Workbook

Sheet Cover
B6: Official Statistics Release
B7: Policy area: | C7: Children’s social care data in England
B8: Theme: | C8: Social care
B9: Published on: | C9: 24 June 2016
B10: Coverage: | C10: England
B11: Period covered: | C11: Inspection outcomes for local authority children’s services inspections, published by 31 March 2016
C12: ="Inspection outcomes for all regulated, and other, children’s social care provision, "&Inspections_From&" to "&Inspections_To&", published by "&Published_By -> Inspection outcomes for all regulated, and other, children’s social care provision, 01 April 2015 to 31 March 2016, published by 30 April 2016
C13: ="Inspection outcome of most recent inspection for all regulated, and other, children’s social care provision, as at "&Inspections_To&", published by "&Published_By -> Inspection outcome of most recent inspection for all regulated, and other, children’s social care provision, as at 31 March 2016, published by 30 April 2016
C14: ="Information about the providers of children’s social care, including the numbers of providers and places, as at "&Inspections_To -> Information about the providers of children’s social care, including the numbers of providers and places, as at 31 March 2016
B15: Status: | C15: Final - inspections of local authority children’s services, to March 2016
C16: ="Provisional - inspections of regulated, and other, children's social care provision, for "&Inspections_From&" to "&Inspections_To -> Provisional - inspections of regulated, and other, children's social care provision, for 01 April 2015 to 31 March 2016
C17: ="Final - inspections of regulated, and other, children's social care provision, as at "&Inspections_To -> Final - inspections of regulated, and other, children's social care provision, as at 31 March 2016
C18: ="Final - information about the providers of children’s social care, including the numbers of providers and places, as at "&Inspections_To -> Final - information about the providers of children’s social care, including the numbers of providers and places, as at 31 March 2016
C19: Revised - inspections of children's homes, 01 April to 30 September 2015
B20: Issued by: | C20: Office for Standards in Education, Children’s Services and Skills (Ofsted) 125 Kingsway London WC2B 6SE
B24: Chief Statistician: | C24: Robert Pike
B25: Statistician: | C25: Adam King
B26: Public enquiries: | C26: If you have any comments or feedback on this publication, please contact the Social Care Data Team on 03000 130 020 or socialcaredata@ofsted.gov.uk
B27: Press enquiries: | C27: pressenquiries@ofsted.gov.uk
B28: Publication frequency: | C28: Annual
B29: Schedule of publication: | C29: https://www.gov.uk/government/statistics/announcements?utf8=%E2%9C%93&organisations%5B%5D=ofsted
B31: © Crown copyright 2016 You may use and re-use this information (not including logos) free of charge in any format or medium, under the terms of the Open Government Licence. To view this licence, visit: http://www.nationalarchives.gov.uk/doc/open-government-licence/
B32: Or write to the Information Policy Team, The National Archives, Kew, London, TW9 4DU
B33: Or email: psi@nationalarchives.gsi.gov.uk

Sheet Dates (hidden)
A1: Dates
A3: Inspections from | B3: =TEXT('dropdown lookups'!K12,"dd mmmm yyyy") -> 01 April 2015
A4: Inspections to | B4: =TEXT('dropdown lookups'!K13,"dd mmmm yyyy") -> 31 March 2016
A5: Published by | B5: =TEXT('dropdown lookups'!K14,"dd mmmm yyyy") -> 30 April 2016
A6: Effective date | B6: =Inspections_To -> 31 March 2016
A8: Reporting year | B8: ="20"&'dropdown lookups'!K5 -> 2015-16

Sheet Contents
B1: Contents
B3: Worksheet title and link | C3: Description of contents of worksheet
B5: Notes | C5: These are notes about the document and data within it to aid the use and interpretation of the data.
B7: Glossary | C7: This is a list of terms found in the document with further explanations about what they mean.
B9: LA Inspection | C9: This is an interactive table which shows inspection judgements for local authority inspections. It covers the current and two previous inspection frameworks. It has drop down options for; England/region/local authority and inspection type.
B11: Children's Social Care | C11: This is an interactive table which shows inspection judgements for all non-local authority inspections. It has numerous drop down options including; England/region/local authority, inspection period, social care provision type and inspection type.
B13: Sub-Judgements | C13: This is an interactive table which shows inspection sub-judgements for all non-local authority inspections. It has numerous drop down options including; England/region/local authority, inspection period, social care provision type and sector.
B15: ="LA level at "&Inspections_To -> LA level at 31 March 2016 | C15: This is a list of all the local authorities in England. Where they have received an inspection in the current cycle, their inspection judgements are shown.
B17: ="Provider level at "&Inspections_To -> Provider level at 31 March 2016 | C17: ="This is a list of all active inspected provisions as at "&Inspections_To&" with the inspection judgements from their latest full inspection." -> This is a list of all active inspected provisions as at 31 March 2016 with the inspection judgements from their latest full inspection.
B19: ="Provider level in year "&Reporting_Year -> Provider level in year 2015-16 | C19: ="This is a list of all provisions inspected between "&Inspections_From&" and "&Inspections_To&" with the inspection judgements from all the different types of inspections/visits." -> This is a list of all provisions inspected between 01 April 2015 and 31 March 2016 with the inspection judgements from all the different types of inspections/visits.
B21: ="Providers+places at "&Inspections_To -> Providers+places at 31 March 2016 | C21: ="This is a list of all active provisions as at "&Inspections_To&" with the number of places they have." -> This is a list of all active provisions as at 31 March 2016 with the number of places they have.
B23: Latest OE 31 March Time Series | C23: This is an interactive time series table and chart showing overall effectiveness of all the different types of social care provisions, as at 31 March each year.
B25: In year CH time series | C25: This is an interactive time series table and chart showing overall effectiveness of all types of children's homes and residential special schools inspected each year from 1 April to 31 March; and broken down by children's homes sub-type.
B27: Providers + Places six monthly | C27: This is a table showing the providers and places data at six month intervals, since 30 September 2011.

Sheet Notes
B1: Notes
B3: Data
B4: The inspection outcomes data relates to inspections of:
B5: local authority (LA) services for children who need help and protection, children looked after and care leavers. The inspections of LA children’s services are carried out under the Single Inspection Framework (SIF)
B6: other children’s social care providers and residential accommodation for children in boarding schools and further education colleges.
B8: The providers and places data includes:
B9: children’s social care providers, for which Ofsted has a regulatory and inspection responsibility,
B10: providers of residential accommodation for children in special schools, boarding schools and further education colleges, for which Ofsted has an inspection responsibility.
B12: Notes to help use/interpret the data
B13: Monitoring visits are only shown in the interactive tables where an inspection judgement is made at the visit. Where no judgement is made the visits are not included in the tables, however they are included in the underlying provider level data for 2015-16.
B15: Where the term 'Residential special school (registered as a children's home)' is used, this refers to residential special schools that are registered as children's homes as they care for pupils for more than 295 days in a year.
B17: Secure training centres are not included in the tables as details regarding them and their inspections are not currently held in the main Ofsted database. They will be added to the database before the next release. Their details have been added manually to the underlying data. They do not appear in the time series charts.
B19: Residential holiday schemes for disabled children show different figures in the interactive tables compared to the underlying data and interactive chart. The tables show three less inspections than the underlying data and interactive charts. They were omitted in the interactive tables due to database issues and had to be manually added to the underlying data and interactive charts.
B21: Some children's home interim inspections have an overall effectiveness outcome of 'not judged'. This is because the home had no children present at the time of inspection and so could not receive an inspection judgement.
B23: The tables show the number of joiners and leavers for each social care provision type. It should be noted however that simply comparing these two will not show the actual change in the number of places each year. This is because a number or providers who are active at both the start and end of the period will change the number of places they are registered for. In addition, it is not always possible to easily distinguish residential special schools registered as children's homes from children's homes and as such changes in the numbers of places for these provision types are sometimes the result of updated information rather than new registrations or de-registrations.
B25: Ofsted has brought in a more standardised set of sub-judgements for all its social care inspections, in conjunction with changes to inspection frameworks, and these are reported in the tables and underlying data. When reporting on the latest inspection judgements, there are some inspections that took place before these standardised sub-judgements came in, and so their sub-judgements are not included as they are not comparable to the new sub-judgements.
B27: In the as at 31 March 2016 data we have used the 2015-16 inspection framework's sub judgement wording rather than the wording at the time of inspection. Where the sub judgements are looking at all provider types as one, we have used a standardised set of sub judgement names to best convey what that sub judgement covers.
B29: Caution should be used when comparing inspection judgements from year to year in the time series charts and tables. Inspection framework changes may have an impact on inspection judgements and so a changing grade profile from one year to the next may not solely indicate a change in the quality of provisions.
B31: Revisions
B32: Any revisions to the inspection data for 2015-16 will be included with the additional six monthly release (local authority and children’s homes inspections and outcomes only, published in December each year). This will include advisory notes about any impact to figures and findings from the first full release of provisional data. Revisions are published in line with Ofsted’s revisions policy for official statistics. For more information about the policy, please visit the Ofsted website or access the policy via the following link:
B33: https://www.gov.uk/government/publications/ofsted-standards-for-official-statistics
B35: Other available data
B36: Previously published data regarding LA inspections, children’s social care inspections and providers and places can be found at the following links on GOV.UK:
B37: https://www.gov.uk/government/collections/childrens-social-care-statistics
B38: and in the National Archives:
B39: http://webarchive.nationalarchives.gov.uk/20141124154759/http:/www.ofsted.gov.uk/resources/statistics
B40: These pages also contain data on adoption, fostering, children looked after placements and serious incident notifications which the reader may find relevant.
B42: Quality Report
B43: An explanation about key uses of these data and further contextual information is provided in the accompanying Quality and Methodology report. The report also provides information about the arrangements for quality assurance, strengths and limitations of the statistics:
B44: www.gov.uk/government/collections/childrens-social-care-statistics

Sheet Glossary
B1: Glossary
B3: Adoption agencies
B4: The focus of all adoption agencies is on placing children successfully into adoptive families who the agency recruits, assesses, prepares and supports, so they will meet the children’s needs and enable them to develop and achieve throughout their lives. The services maintained by local authorities are described in section 3(1) of the Adoption and Children Act 2002. Local authorities place children with adoptive families recruited and approved by themselves, by other local authorities or by voluntary adoption agencies who must register with Ofsted. Adoption agencies may also provide birth records, counselling and intermediary services to adoptees and birth relatives. There are three branches of voluntary adoption agencies in Wales which are inspected by Ofsted because their head offices are in England. These are not included in this publication.
B6: Adoption support agencies
B7: Adoption support agencies are defined by section 8 of the Adoption and Children Act 2002 and provide services to anyone touched by adoption and are registered with Ofsted. This includes counselling and help for children and adults to gain information about their adoption or to trace birth relatives. Adoption support agencies can be either organisations or individuals, and may be contracted by a local authority to provide support services.
B9: Boarding schools
B10: The majority of boarding schools are independent and belong to associations which are members of the Independent Schools Council. As both education and welfare in these schools are inspected by their own inspectorate, Ofsted does not inspect these schools and so they are not included in the data. The remainder are maintained boarding schools where both education and the welfare of boarders are the subject of Ofsted inspection and independent boarding schools which are members of the Bridge Schools Inspectorate or Schools Inspection Service and who receive their education inspections by these organisations and their welfare inspections by Ofsted.
B12: Children’s homes
B13: A children’s home is defined in section 1 of the Care Standards Act 2000, and is an establishment that provides care and accommodation wholly or mainly for children. Children’s homes vary in size and nature. They fulfil a range of purposes designed to meet the different needs of those children and young people who are assessed as needing a residential care placement. Some homes, for example, provide short breaks which are needed to help support children and their family. Some residential special schools are registered as children’s homes because boarders are resident for more than 295 days per year.
B15: Fostering agencies
B16: Local authority fostering services are defined by section 4 of the Care Standards Act 2000. Local authority fostering agencies and independent fostering agencies recruit, prepare, assess, train and support foster carers. Independent fostering agencies (IFAs) are private companies or charities, which are registered with Ofsted and provide placements to children and young people with foster carers approved by them. IFAs work closely with local authorities to deliver these placements.
B18: Further education colleges with residential accommodation
B19: The care provision of further education colleges that provide, or arrange, residential accommodation for one or more students under the age of 18 years. Ofsted inspects these colleges under section 87 of the Children Act 1989 as amended by the Care Standards Act 2000. Where a college is registered as a care home, the residential provision is inspected by the Care Quality Commission rather than by Ofsted.
B21: Joiners
B22: This is the number of social care providers that have registered with Ofsted in the period.
B24: Leavers
B25: This is the number of social care providers that have de-registered with Ofsted in the period.
B27: Linked ED URN
B28: This is the education URN of the school. Each school, or school registered as a children's home, also has an education URN which the education inspection report can be found under on the Ofsted website.
B30: Local safeguarding children's board (LSCB)
B31: A Local Safeguarding Children Board (LSCB) must be established for every local authority area under the requirements of the Children Act 2004. The LSCB has a range of roles and statutory functions including developing local safeguarding policy and procedures and scrutinising local arrangements. The statutory objectives and functions of the LSCB are set out in Regulation 5 of the Local Safeguarding Children Boards Regulations 2006 sets out the functions of LSCBs, and are described in more detail in Chapter 3 of Working Together 2013.
B33: Places
B34: The term ‘places’ used in this report refers to the number of places for which the social care provider has capacity. This number usually will not, therefore, be the same as the actual number of children who are receiving services from the provider. Ofsted holds data relating to places for: children's homes; secure children's homes; residential special schools; residential family centres; boarding schools; and further education colleges. For some of these providers Ofsted does not hold data relating to places. Where this is the case, the number of places has been estimated. For all other provision types, and aggregated provision types, places data is not available.
B36: Providers
B37: Children’s social care providers are those institutions or organisations or agencies that provide services to the relevant children and young people. The providers commented on within this report include children’s homes, secure children’s homes, residential special schools, residential family centres, boarding schools, residential further education colleges, secure training centres, residential holiday schemes for disabled children, adoption support agencies, voluntary adoption agencies, and independent fostering services.
B39: Residential family centres
B40: Residential family centres are defined in section 4(2) of the Care Standards Act 2000 as establishments at which: a) accommodation is provided for children and their parents; b) the parents’ capacity to respond to the children’s needs and to safeguard their welfare is monitored and assessed; and c) the parents are given such advice, guidance and counselling is considered necessary.
B42: Residential holiday schemes for disabled children
B43: A residential holiday scheme for disabled children provides care and accommodation wholly or mainly for disabled children for a specified period for the purposes of a holiday, or for recreational, sporting, cultural or educational purposes. Ofsted inspects these schemes under the Care Standards Act 2000, Part 2 (Extension of the Application of Part 2 to Holiday Schemes for Disabled Children) (England) Regulations 2013.
B45: Residential special schools
B46: Residential special schools are defined in section 59 of the Safeguarding Vulnerable Groups Act 2006. They vary in size and nature. The sector includes large non-maintained special schools which make provision for very specific needs and take children as full boarders from all over the country, to smaller more local providers catering for children with a range of different special needs and disabilities who may be resident at the school only during the week. Some residential special schools are registered as children’s homes because boarders are resident for more than 295 days per year. There are also a small number of independent residential special schools who also tend to cater for children with very specialist needs.
B48: Sector
B49: Sector refers to the type of provider that owns the children’s social care provision.
B50: Academy
B51: These are publicly funded independent schools who are run by trusts.
B52: Health Authority
B53: These are NHS Trust-run.
B54: Local Authority
B55: These are public bodies responsible for the children’s social care provision.
B56: Private
B57: These are for-profit organisations mostly with limited company status. These can also though be individually owned children’s social care provision and run for profit.
B58: Voluntary
B59: These are mostly not-for-profit organisations, mainly with charitable status. These can also be individually owned children’s social care provision and run on a not-for-profit basis.
B61: Secure children’s homes
B62: Secure children’s homes are defined by section 25 of the Children Act 1989. They accommodate children and young people who are remanded or have been sentenced for committing a criminal offence. They also accommodate children and young people who are placed there by a court because their behaviour is deemed to present a significant and immediate threat to their safety or the safety of others, unless they are placed in a secure environment. Ofsted inspections are conducted in accordance with the Care Standards Act 2000 and judgements in reports are made in relation to the outcomes for children set out in the Children Act 2004. The criteria are the same as those used to inspect non-secure children’s homes.
B64: Secure training centres
B65: Secure training centres are defined by section 43(1) (d) of the Prison Act 1952, as amended by Section 6(2) of the Criminal Justice and Public Order Act 1994. Ofsted has the power to inspect under section 146 Education and Inspections Act 2006 and inspects both the care and educational provision for children in three secure training centres. They accommodate young people between the ages of 12 and 17 who have been remanded or sentenced by the courts. The centres are under contract to the Youth Justice Board, which monitors their compliance with requirements. Ofsted does not regulate secure training centres but has an agreement with the Youth Justice Board to inspect care twice a year and education once a year.
B67: Short breaks only
B68: This is an identifier that shows where a children's home only provides short break care for children. Short breaks are part of a continuum of services which support children in need and their families. They include the provision of day, evening, overnight and weekend activities for the child, and can take place in the child’s own home, the home of an approved carer, or in a residential or community setting.

Sheet LA Inspection
B2: Statistical First Release - Local Authority Inspections as at 31 March 2016
B4: Region: | E4: Local Authority:
B5: All | E5: All | G5: =IF(B5="All",TRUE,NOT(ISERROR(MATCH(E5,INDIRECT(SUBSTITUTE(SUBSTITUTE(B5," ","_"),",","")),0)))) -> TRUE
E7: Inspection Type:
E8: Single inspection framework
B10: Judgements | C10: Inspection Outcomes
C11: Outstanding | D11: Good | E11: Requires improvement / adequate | F11: Inadequate | G11: Not judged
B14: Overall Effectiveness (OE) | C14: =IF(ISERROR(VLOOKUP($E$8&$B$9&IF($E$5<>"All","All",$B$5)&$E$5,'LA FINAL RAW DATA'!$A:$I,5,0))=TRUE,0,VLOOKUP($E$8&$B$9&IF($E$5<>"All","All",$B$5)&$E$5,'LA FINAL RAW DATA'!$A:$I,5,0)) -> 2 | D14: =IF(ISERROR(VLOOKUP($E$8&$B$9&IF($E$5<>"All","All",$B$5)&$E$5,'LA FINAL RAW DATA'!$A:$I,6,0))=TRUE,0,VLOOKUP($E$8&$B$9&IF($E$5<>"All","All",$B$5)&$E$5,'LA FINAL RAW DATA'!$A:$I,6,0)) -> 21 | E14: =IF(ISERROR(VLOOKUP($E$8&$B$9&IF($E$5<>"All","All",$B$5)&$E$5,'LA FINAL RAW DATA'!$A:$I,7,0))=TRUE,0,VLOOKUP($E$8&$B$9&IF($E$5<>"All","All",$B$5)&$E$5,'LA FINAL RAW DATA'!$A:$I,7,0)) -> 43 | F14: =IF(ISERROR(VLOOKUP($E$8&$B$9&IF($E$5<>"All","All",$B$5)&$E$5,'LA FINAL RAW DATA'!$A:$I,8,0))=TRUE,0,VLOOKUP($E$8&$B$9&IF($E$5<>"All","All",$B$5)&$E$5,'LA FINAL RAW DATA'!$A:$I,8,0)) -> 21 | G14: =IF(ISERROR(VLOOKUP($E$8&$B$9&IF($E$5<>"All","All",$B$5)&$E$5,'LA FINAL RAW DATA'!$A:$I,9,0))=TRUE,0,VLOOKUP($E$8&$B$9&IF($E$5<>"All","All",$B$5)&$E$5,'LA FINAL RAW DATA'!$A:$I,9,0)) -> 0
B16: Children who need help and protection | C16: =IF(ISERROR(VLOOKUP($E$8&$B$9&" ["&$B16&"]"&IF($E$5<>"All","All",ddla)&$E$5,'LA FINAL RAW DATA'!$A:$I,5,0)),"",VLOOKUP($E$8&$B$9&" ["&$B16&"]"&IF($E$5<>"All","All",ddla)&$E$5,'LA FINAL RAW DATA'!$A:$I,5,0)) -> 0 | D16: =IF(ISERROR(VLOOKUP($E$8&$B$9&" ["&$B16&"]"&IF($E$5<>"All","All",ddla)&$E$5,'LA FINAL RAW DATA'!$A:$I,5,0)),"",VLOOKUP($E$8&$B$9&" ["&$B16&"]"&IF($E$5<>"All","All",ddla)&$E$5,'LA FINAL RAW DATA'!$A:$I,6,0)) -> 20 | E16: =IF(ISERROR(VLOOKUP($E$8&$B$9&" ["&$B16&"]"&IF($E$5<>"All","All",ddla)&$E$5,'LA FINAL RAW DATA'!$A:$I,5,0)),"",VLOOKUP($E$8&$B$9&" ["&$B16&"]"&IF($E$5<>"All","All",ddla)&$E$5,'LA FINAL RAW DATA'!$A:$I,7,0)) -> 49 | F16: =IF(ISERROR(VLOOKUP($E$8&$B$9&" ["&$B16&"]"&IF($E$5<>"All","All",ddla)&$E$5,'LA FINAL RAW DATA'!$A:$I,5,0)),"",VLOOKUP($E$8&$B$9&" ["&$B16&"]"&IF($E$5<>"All","All",ddla)&$E$5,'LA FINAL RAW DATA'!$A:$I,8,0)) -> 18 | G16: =IF(ISERROR(VLOOKUP($E$8&$B$9&" ["&$B16&"]"&IF($E$5<>"All","All",ddla)&$E$5,'LA FINAL RAW DATA'!$A:$I,5,0)),"",VLOOKUP($E$8&$B$9&" ["&$B16&"]"&IF($E$5<>"All","All",ddla)&$E$5,'LA FINAL RAW DATA'!$A:$I,9,0)) -> 0
B18: Children looked after and achieving permanence | C18: =IF(ISERROR(VLOOKUP($E$8&$B$9&" ["&$B18&"]"&IF($E$5<>"All","All",ddla)&$E$5,'LA FINAL RAW DATA'!$A:$I,5,0)),"",VLOOKUP($E$8&$B$9&" ["&$B18&"]"&IF($E$5<>"All","All",ddla)&$E$5,'LA FINAL RAW DATA'!$A:$I,5,0)) -> 2 | D18: =IF(ISERROR(VLOOKUP($E$8&$B$9&" ["&$B18&"]"&IF($E$5<>"All","All",ddla)&$E$5,'LA FINAL RAW DATA'!$A:$I,5,0)),"",VLOOKUP($E$8&$B$9&" ["&$B18&"]"&IF($E$5<>"All","All",ddla)&$E$5,'LA FINAL RAW DATA'!$A:$I,6,0)) -> 28 | E18: =IF(ISERROR(VLOOKUP($E$8&$B$9&" ["&$B18&"]"&IF($E$5<>"All","All",ddla)&$E$5,'LA FINAL RAW DATA'!$A:$I,5,0)),"",VLOOKUP($E$8&$B$9&" ["&$B18&"]"&IF($E$5<>"All","All",ddla)&$E$5,'LA FINAL RAW DATA'!$A:$I,7,0)) -> 48 | F18: =IF(ISERROR(VLOOKUP($E$8&$B$9&" ["&$B18&"]"&IF($E$5<>"All","All",ddla)&$E$5,'LA FINAL RAW DATA'!$A:$I,5,0)),"",VLOOKUP($E$8&$B$9&" ["&$B18&"]"&IF($E$5<>"All","All",ddla)&$E$5,'LA FINAL RAW DATA'!$A:$I,8,0)) -> 9 | G18: =IF(ISERROR(VLOOKUP($E$8&$B$9&" ["&$B18&"]"&IF($E$5<>"All","All",ddla)&$E$5,'LA FINAL RAW DATA'!$A:$I,5,0)),"",VLOOKUP($E$8&$B$9&" ["&$B18&"]"&IF($E$5<>"All","All",ddla)&$E$5,'LA FINAL RAW DATA'!$A:$I,9,0)) -> 0
B20: Adoption Performance | C20: =IF(ISERROR(VLOOKUP($E$8&$B$9&" [CLA Sub: "&$B20&"]"&IF($E$5<>"All","All",ddla)&$E$5,'LA FINAL RAW DATA'!$A:$I,5,0)),"",VLOOKUP($E$8&$B$9&" [CLA Sub: "&$B20&"]"&IF($E$5<>"All","All",ddla)&$E$5,'LA FINAL RAW DATA'!$A:$I,5,0)) -> 7 | D20: =IF(ISERROR(VLOOKUP($E$8&$B$9&" [CLA Sub: "&$B20&"]"&IF($E$5<>"All","All",ddla)&$E$5,'LA FINAL RAW DATA'!$A:$I,5,0)),"",VLOOKUP($E$8&$B$9&" [CLA Sub: "&$B20&"]"&IF($E$5<>"All","All",ddla)&$E$5,'LA FINAL RAW DATA'!$A:$I,6,0)) -> 40 | E20: =IF(ISERROR(VLOOKUP($E$8&$B$9&" [CLA Sub: "&$B20&"]"&IF($E$5<>"All","All",ddla)&$E$5,'LA FINAL RAW DATA'!$A:$I,5,0)),"",VLOOKUP($E$8&$B$9&" [CLA Sub: "&$B20&"]"&IF($E$5<>"All","All",ddla)&$E$5,'LA FINAL RAW DATA'!$A:$I,7,0)) -> 34 | F20: =IF(ISERROR(VLOOKUP($E$8&$B$9&" [CLA Sub: "&$B20&"]"&IF($E$5<>"All","All",ddla)&$E$5,'LA FINAL RAW DATA'!$A:$I,5,0)),"",VLOOKUP($E$8&$B$9&" [CLA Sub: "&$B20&"]"&IF($E$5<>"All","All",ddla)&$E$5,'LA FINAL RAW DATA'!$A:$I,8,0)) -> 6 | G20: =IF(ISERROR(VLOOKUP($E$8&$B$9&" [CLA Sub: "&$B20&"]"&IF($E$5<>"All","All",ddla)&$E$5,'LA FINAL RAW DATA'!$A:$I,5,0)),"",VLOOKUP($E$8&$B$9&" [CLA Sub: "&$B20&"]"&IF($E$5<>"All","All",ddla)&$E$5,'LA FINAL RAW DATA'!$A:$I,9,0)) -> 0
B22: Experiences and progress of care leavers | C22: =IF(ISERROR(VLOOKUP($E$8&$B$9&" [CLA Sub: "&$B22&"]"&IF($E$5<>"All","All",ddla)&$E$5,'LA FINAL RAW DATA'!$A:$I,5,0)),"",VLOOKUP($E$8&$B$9&" [CLA Sub: "&$B22&"]"&IF($E$5<>"All","All",ddla)&$E$5,'LA FINAL RAW DATA'!$A:$I,5,0)) -> 2 | D22: =IF(ISERROR(VLOOKUP($E$8&$B$9&" [CLA Sub: "&$B22&"]"&IF($E$5<>"All","All",ddla)&$E$5,'LA FINAL RAW DATA'!$A:$I,5,0)),"",VLOOKUP($E$8&$B$9&" [CLA Sub: "&$B22&"]"&IF($E$5<>"All","All",ddla)&$E$5,'LA FINAL RAW DATA'!$A:$I,6,0)) -> 30 | E22: =IF(ISERROR(VLOOKUP($E$8&$B$9&" [CLA Sub: "&$B22&"]"&IF($E$5<>"All","All",ddla)&$E$5,'LA FINAL RAW DATA'!$A:$I,5,0)),"",VLOOKUP($E$8&$B$9&" [CLA Sub: "&$B22&"]"&IF($E$5<>"All","All",ddla)&$E$5,'LA FINAL RAW DATA'!$A:$I,7,0)) -> 43 | F22: =IF(ISERROR(VLOOKUP($E$8&$B$9&" [CLA Sub: "&$B22&"]"&IF($E$5<>"All","All",ddla)&$E$5,'LA FINAL RAW DATA'!$A:$I,5,0)),"",VLOOKUP($E$8&$B$9&" [CLA Sub: "&$B22&"]"&IF($E$5<>"All","All",ddla)&$E$5,'LA FINAL RAW DATA'!$A:$I,8,0)) -> 12 | G22: =IF(ISERROR(VLOOKUP($E$8&$B$9&" [CLA Sub: "&$B22&"]"&IF($E$5<>"All","All",ddla)&$E$5,'LA FINAL RAW DATA'!$A:$I,5,0)),"",VLOOKUP($E$8&$B$9&" [CLA Sub: "&$B22&"]"&IF($E$5<>"All","All",ddla)&$E$5,'LA FINAL RAW DATA'!$A:$I,9,0)) -> 0
B24: Leadership, management and governance | C24: =IF(ISERROR(VLOOKUP($E$8&$B$9&" ["&$B24&"]"&IF($E$5<>"All","All",ddla)&$E$5,'LA FINAL RAW DATA'!$A:$I,5,0)),"",VLOOKUP($E$8&$B$9&" ["&$B24&"]"&IF($E$5<>"All","All",ddla)&$E$5,'LA FINAL RAW DATA'!$A:$I,5,0)) -> 7 | D24: =IF(ISERROR(VLOOKUP($E$8&$B$9&" ["&$B24&"]"&IF($E$5<>"All","All",ddla)&$E$5,'LA FINAL RAW DATA'!$A:$I,5,0)),"",VLOOKUP($E$8&$B$9&" ["&$B24&"]"&IF($E$5<>"All","All",ddla)&$E$5,'LA FINAL RAW DATA'!$A:$I,6,0)) -> 20 | E24: =IF(ISERROR(VLOOKUP($E$8&$B$9&" ["&$B24&"]"&IF($E$5<>"All","All",ddla)&$E$5,'LA FINAL RAW DATA'!$A:$I,5,0)),"",VLOOKUP($E$8&$B$9&" ["&$B24&"]"&IF($E$5<>"All","All",ddla)&$E$5,'LA FINAL RAW DATA'!$A:$I,7,0)) -> 42 | F24: =IF(ISERROR(VLOOKUP($E$8&$B$9&" ["&$B24&"]"&IF($E$5<>"All","All",ddla)&$E$5,'LA FINAL RAW DATA'!$A:$I,5,0)),"",VLOOKUP($E$8&$B$9&" ["&$B24&"]"&IF($E$5<>"All","All",ddla)&$E$5,'LA FINAL RAW DATA'!$A:$I,8,0)) -> 18 | G24: =IF(ISERROR(VLOOKUP($E$8&$B$9&" ["&$B24&"]"&IF($E$5<>"All","All",ddla)&$E$5,'LA FINAL RAW DATA'!$A:$I,5,0)),"",VLOOKUP($E$8&$B$9&" ["&$B24&"]"&IF($E$5<>"All","All",ddla)&$E$5,'LA FINAL RAW DATA'!$A:$I,9,0)) -> 0
B29: =IF(B5<>"All",B5,IF(E5<>"All",VLOOKUP(E5,'Region Lookups'!C:D,2,0),"All")) -> All
D31: Total number inspected | F31: Outstanding | H31: Good | J31: Requires Improvement/ Adequate | M31: Inadequate
F32: 6 | H32: 7 | J32: 8 | M32: 9
B33: England | D33: =SUM(F33:M33) -> 87 | F33: =IF(ISERROR(VLOOKUP($E$8&$B$9&"ALL"&"ALL",'LA FINAL RAW DATA'!$A:$I,5,0))=TRUE,"",VLOOKUP($E$8&$B$9&"ALL"&"ALL",'LA FINAL RAW DATA'!$A:$I,5,0)) -> 2 | H33: =IF(ISERROR(VLOOKUP($E$8&$B$9&"ALL"&"ALL",'LA FINAL RAW DATA'!$A:$I,6,0))=TRUE,"",VLOOKUP($E$8&$B$9&"ALL"&"ALL",'LA FINAL RAW DATA'!$A:$I,6,0)) -> 21 | J33: =IF(ISERROR(VLOOKUP($E$8&$B$9&"ALL"&"ALL",'LA FINAL RAW DATA'!$A:$I,7,0))=TRUE,"",VLOOKUP($E$8&$B$9&"ALL"&"ALL",'LA FINAL RAW DATA'!$A:$I,7,0)) -> 43 | M33: =IF(ISERROR(VLOOKUP($E$8&$B$9&"ALL"&"ALL",'LA FINAL RAW DATA'!$A:$I,8,0))=TRUE,"",VLOOKUP($E$8&$B$9&"ALL"&"ALL",'LA FINAL RAW DATA'!$A:$I,8,0)) -> 21
B35: =IFERROR(IF(B29="All",NA(),B29),"") ->  | D35: =IF(ISERROR(VLOOKUP($E$8&B35&"All",'LA FINAL RAW DATA'!$A:$I,5,0)),"",SUM(F35:M35)) ->  | F35: =IF(ISERROR(VLOOKUP($E$8&$B$9&$B$35&"ALL",'LA FINAL RAW DATA'!$A:$I,5,0))=TRUE,"",VLOOKUP($E$8&$B$9&$B$35&"ALL",'LA FINAL RAW DATA'!$A:$I,5,0)) ->  | H35: =IF(ISERROR(VLOOKUP($E$8&$B$9&$B$35&"ALL",'LA FINAL RAW DATA'!$A:$I,6,0))=TRUE,"",VLOOKUP($E$8&$B$9&$B$35&"ALL",'LA FINAL RAW DATA'!$A:$I,6,0)) ->  | J35: =IF(ISERROR(VLOOKUP($E$8&$B$9&$B$35&"ALL",'LA FINAL RAW DATA'!$A:$I,7,0))=TRUE,"",VLOOKUP($E$8&$B$9&$B$35&"ALL",'LA FINAL RAW DATA'!$A:$I,7,0)) ->  | M35: =IF(ISERROR(VLOOKUP($E$8&$B$9&$B$35&"ALL",'LA FINAL RAW DATA'!$A:$I,8,0))=TRUE,"",VLOOKUP($E$8&$B$9&$B$35&"ALL",'LA FINAL RAW DATA'!$A:$I,8,0)) -> 
A36: 1 | B36: =IFERROR(VLOOKUP($B$29&A36,'Region Lookups'!A:C,3,0),"") ->  | D36: =IF(ISERROR(VLOOKUP($E$8&"All"&$B36,'LA FINAL RAW DATA'!$A:$I,5,0)),IF(B36="","",0),SUM(F36:N36)) ->  | F36: =IF(ISERROR(VLOOKUP($E$8&$B$9&IF($B36<>"All","All",$B$5)&$B36,'LA FINAL RAW DATA'!$A:$I,5,0))=TRUE,IF(B36="","",0),VLOOKUP($E$8&$B$9&IF($B36<>"All","All",$B$5)&$B36,'LA FINAL RAW DATA'!$A:$I,5,0)) ->  | H36: =IF(ISERROR(VLOOKUP($E$8&$B$9&IF($B36<>"All","All",$B$5)&$B36,'LA FINAL RAW DATA'!$A:$I,6,0))=TRUE,IF(B36="","",0),VLOOKUP($E$8&$B$9&IF($B36<>"All","All",$B$5)&$B36,'LA FINAL RAW DATA'!$A:$I,6,0)) ->  | J36: =IF(ISERROR(VLOOKUP($E$8&$B$9&IF($B36<>"All","All",$B$5)&$B36,'LA FINAL RAW DATA'!$A:$I,7,0))=TRUE,IF(B36="","",0),VLOOKUP($E$8&$B$9&IF($B36<>"All","All",$B$5)&$B36,'LA FINAL RAW DATA'!$A:$I,7,0)) ->  | M36: =IF(ISERROR(VLOOKUP($E$8&$B$9&IF($B36<>"All","All",$B$5)&$B36,'LA FINAL RAW DATA'!$A:$I,8,0))=TRUE,IF(B36="","",0),VLOOKUP($E$8&$B$9&IF($B36<>"All","All",$B$5)&$B36,'LA FINAL RAW DATA'!$A:$I,8,0)) -> 
A37: 2 | B37: =IFERROR(VLOOKUP($B$29&A37,'Region Lookups'!A:C,3,0),"") ->  | D37: =IF(ISERROR(VLOOKUP($E$8&"All"&$B37,'LA FINAL RAW DATA'!$A:$I,5,0)),IF(B37="","",0),SUM(F37:N37)) ->  | F37: =IF(ISERROR(VLOOKUP($E$8&$B$9&IF($B37<>"All","All",$B$5)&$B37,'LA FINAL RAW DATA'!$A:$I,5,0))=TRUE,IF(B37="","",0),VLOOKUP($E$8&$B$9&IF($B37<>"All","All",$B$5)&$B37,'LA FINAL RAW DATA'!$A:$I,5,0)) ->  | H37: =IF(ISERROR(VLOOKUP($E$8&$B$9&IF($B37<>"All","All",$B$5)&$B37,'LA FINAL RAW DATA'!$A:$I,6,0))=TRUE,IF(B37="","",0),VLOOKUP($E$8&$B$9&IF($B37<>"All","All",$B$5)&$B37,'LA FINAL RAW DATA'!$A:$I,6,0)) ->  | J37: =IF(ISERROR(VLOOKUP($E$8&$B$9&IF($B37<>"All","All",$B$5)&$B37,'LA FINAL RAW DATA'!$A:$I,7,0))=TRUE,IF(B37="","",0),VLOOKUP($E$8&$B$9&IF($B37<>"All","All",$B$5)&$B37,'LA FINAL RAW DATA'!$A:$I,7,0)) ->  | M37: =IF(ISERROR(VLOOKUP($E$8&$B$9&IF($B37<>"All","All",$B$5)&$B37,'LA FINAL RAW DATA'!$A:$I,8,0))=TRUE,IF(B37="","",0),VLOOKUP($E$8&$B$9&IF($B37<>"All","All",$B$5)&$B37,'LA FINAL RAW DATA'!$A:$I,8,0)) -> 
A38: 3 | B38: =IFERROR(VLOOKUP($B$29&A38,'Region Lookups'!A:C,3,0),"") ->  | D38: =IF(ISERROR(VLOOKUP($E$8&"All"&$B38,'LA FINAL RAW DATA'!$A:$I,5,0)),IF(B38="","",0),SUM(F38:N38)) ->  | F38: =IF(ISERROR(VLOOKUP($E$8&$B$9&IF($B38<>"All","All",$B$5)&$B38,'LA FINAL RAW DATA'!$A:$I,5,0))=TRUE,IF(B38="","",0),VLOOKUP($E$8&$B$9&IF($B38<>"All","All",$B$5)&$B38,'LA FINAL RAW DATA'!$A:$I,5,0)) ->  | H38: =IF(ISERROR(VLOOKUP($E$8&$B$9&IF($B38<>"All","All",$B$5)&$B38,'LA FINAL RAW DATA'!$A:$I,6,0))=TRUE,IF(B38="","",0),VLOOKUP($E$8&$B$9&IF($B38<>"All","All",$B$5)&$B38,'LA FINAL RAW DATA'!$A:$I,6,0)) ->  | J38: =IF(ISERROR(VLOOKUP($E$8&$B$9&IF($B38<>"All","All",$B$5)&$B38,'LA FINAL RAW DATA'!$A:$I,7,0))=TRUE,IF(B38="","",0),VLOOKUP($E$8&$B$9&IF($B38<>"All","All",$B$5)&$B38,'LA FINAL RAW DATA'!$A:$I,7,0)) ->  | M38: =IF(ISERROR(VLOOKUP($E$8&$B$9&IF($B38<>"All","All",$B$5)&$B38,'LA FINAL RAW DATA'!$A:$I,8,0))=TRUE,IF(B38="","",0),VLOOKUP($E$8&$B$9&IF($B38<>"All","All",$B$5)&$B38,'LA FINAL RAW DATA'!$A:$I,8,0)) -> 
A39: 4 | B39: =IFERROR(VLOOKUP($B$29&A39,'Region Lookups'!A:C,3,0),"") ->  | D39: =IF(ISERROR(VLOOKUP($E$8&"All"&$B39,'LA FINAL RAW DATA'!$A:$I,5,0)),IF(B39="","",0),SUM(F39:N39)) ->  | F39: =IF(ISERROR(VLOOKUP($E$8&$B$9&IF($B39<>"All","All",$B$5)&$B39,'LA FINAL RAW DATA'!$A:$I,5,0))=TRUE,IF(B39="","",0),VLOOKUP($E$8&$B$9&IF($B39<>"All","All",$B$5)&$B39,'LA FINAL RAW DATA'!$A:$I,5,0)) ->  | H39: =IF(ISERROR(VLOOKUP($E$8&$B$9&IF($B39<>"All","All",$B$5)&$B39,'LA FINAL RAW DATA'!$A:$I,6,0))=TRUE,IF(B39="","",0),VLOOKUP($E$8&$B$9&IF($B39<>"All","All",$B$5)&$B39,'LA FINAL RAW DATA'!$A:$I,6,0)) ->  | J39: =IF(ISERROR(VLOOKUP($E$8&$B$9&IF($B39<>"All","All",$B$5)&$B39,'LA FINAL RAW DATA'!$A:$I,7,0))=TRUE,IF(B39="","",0),VLOOKUP($E$8&$B$9&IF($B39<>"All","All",$B$5)&$B39,'LA FINAL RAW DATA'!$A:$I,7,0)) ->  | M39: =IF(ISERROR(VLOOKUP($E$8&$B$9&IF($B39<>"All","All",$B$5)&$B39,'LA FINAL RAW DATA'!$A:$I,8,0))=TRUE,IF(B39="","",0),VLOOKUP($E$8&$B$9&IF($B39<>"All","All",$B$5)&$B39,'LA FINAL RAW DATA'!$A:$I,8,0)) -> 
A40: 5 | B40: =IFERROR(VLOOKUP($B$29&A40,'Region Lookups'!A:C,3,0),"") ->  | D40: =IF(ISERROR(VLOOKUP($E$8&"All"&$B40,'LA FINAL RAW DATA'!$A:$I,5,0)),IF(B40="","",0),SUM(F40:N40)) ->  | F40: =IF(ISERROR(VLOOKUP($E$8&$B$9&IF($B40<>"All","All",$B$5)&$B40,'LA FINAL RAW DATA'!$A:$I,5,0))=TRUE,IF(B40="","",0),VLOOKUP($E$8&$B$9&IF($B40<>"All","All",$B$5)&$B40,'LA FINAL RAW DATA'!$A:$I,5,0)) ->  | H40: =IF(ISERROR(VLOOKUP($E$8&$B$9&IF($B40<>"All","All",$B$5)&$B40,'LA FINAL RAW DATA'!$A:$I,6,0))=TRUE,IF(B40="","",0),VLOOKUP($E$8&$B$9&IF($B40<>"All","All",$B$5)&$B40,'LA FINAL RAW DATA'!$A:$I,6,0)) ->  | J40: =IF(ISERROR(VLOOKUP($E$8&$B$9&IF($B40<>"All","All",$B$5)&$B40,'LA FINAL RAW DATA'!$A:$I,7,0))=TRUE,IF(B40="","",0),VLOOKUP($E$8&$B$9&IF($B40<>"All","All",$B$5)&$B40,'LA FINAL RAW DATA'!$A:$I,7,0)) ->  | M40: =IF(ISERROR(VLOOKUP($E$8&$B$9&IF($B40<>"All","All",$B$5)&$B40,'LA FINAL RAW DATA'!$A:$I,8,0))=TRUE,IF(B40="","",0),VLOOKUP($E$8&$B$9&IF($B40<>"All","All",$B$5)&$B40,'LA FINAL RAW DATA'!$A:$I,8,0)) -> 
A41: 6 | B41: =IFERROR(VLOOKUP($B$29&A41,'Region Lookups'!A:C,3,0),"") ->  | D41: =IF(ISERROR(VLOOKUP($E$8&"All"&$B41,'LA FINAL RAW DATA'!$A:$I,5,0)),IF(B41="","",0),SUM(F41:N41)) ->  | F41: =IF(ISERROR(VLOOKUP($E$8&$B$9&IF($B41<>"All","All",$B$5)&$B41,'LA FINAL RAW DATA'!$A:$I,5,0))=TRUE,IF(B41="","",0),VLOOKUP($E$8&$B$9&IF($B41<>"All","All",$B$5)&$B41,'LA FINAL RAW DATA'!$A:$I,5,0)) ->  | H41: =IF(ISERROR(VLOOKUP($E$8&$B$9&IF($B41<>"All","All",$B$5)&$B41,'LA FINAL RAW DATA'!$A:$I,6,0))=TRUE,IF(B41="","",0),VLOOKUP($E$8&$B$9&IF($B41<>"All","All",$B$5)&$B41,'LA FINAL RAW DATA'!$A:$I,6,0)) ->  | J41: =IF(ISERROR(VLOOKUP($E$8&$B$9&IF($B41<>"All","All",$B$5)&$B41,'LA FINAL RAW DATA'!$A:$I,7,0))=TRUE,IF(B41="","",0),VLOOKUP($E$8&$B$9&IF($B41<>"All","All",$B$5)&$B41,'LA FINAL RAW DATA'!$A:$I,7,0)) ->  | M41: =IF(ISERROR(VLOOKUP($E$8&$B$9&IF($B41<>"All","All",$B$5)&$B41,'LA FINAL RAW DATA'!$A:$I,8,0))=TRUE,IF(B41="","",0),VLOOKUP($E$8&$B$9&IF($B41<>"All","All",$B$5)&$B41,'LA FINAL RAW DATA'!$A:$I,8,0)) -> 
A42: 7 | B42: =IFERROR(VLOOKUP($B$29&A42,'Region Lookups'!A:C,3,0),"") ->  | D42: =IF(ISERROR(VLOOKUP($E$8&"All"&$B42,'LA FINAL RAW DATA'!$A:$I,5,0)),IF(B42="","",0),SUM(F42:N42)) ->  | F42: =IF(ISERROR(VLOOKUP($E$8&$B$9&IF($B42<>"All","All",$B$5)&$B42,'LA FINAL RAW DATA'!$A:$I,5,0))=TRUE,IF(B42="","",0),VLOOKUP($E$8&$B$9&IF($B42<>"All","All",$B$5)&$B42,'LA FINAL RAW DATA'!$A:$I,5,0)) ->  | H42: =IF(ISERROR(VLOOKUP($E$8&$B$9&IF($B42<>"All","All",$B$5)&$B42,'LA FINAL RAW DATA'!$A:$I,6,0))=TRUE,IF(B42="","",0),VLOOKUP($E$8&$B$9&IF($B42<>"All","All",$B$5)&$B42,'LA FINAL RAW DATA'!$A:$I,6,0)) ->  | J42: =IF(ISERROR(VLOOKUP($E$8&$B$9&IF($B42<>"All","All",$B$5)&$B42,'LA FINAL RAW DATA'!$A:$I,7,0))=TRUE,IF(B42="","",0),VLOOKUP($E$8&$B$9&IF($B42<>"All","All",$B$5)&$B42,'LA FINAL RAW DATA'!$A:$I,7,0)) ->  | M42: =IF(ISERROR(VLOOKUP($E$8&$B$9&IF($B42<>"All","All",$B$5)&$B42,'LA FINAL RAW DATA'!$A:$I,8,0))=TRUE,IF(B42="","",0),VLOOKUP($E$8&$B$9&IF($B42<>"All","All",$B$5)&$B42,'LA FINAL RAW DATA'!$A:$I,8,0)) -> 
A43: 8 | B43: =IFERROR(VLOOKUP($B$29&A43,'Region Lookups'!A:C,3,0),"") ->  | D43: =IF(ISERROR(VLOOKUP($E$8&"All"&$B43,'LA FINAL RAW DATA'!$A:$I,5,0)),IF(B43="","",0),SUM(F43:N43)) ->  | F43: =IF(ISERROR(VLOOKUP($E$8&$B$9&IF($B43<>"All","All",$B$5)&$B43,'LA FINAL RAW DATA'!$A:$I,5,0))=TRUE,IF(B43="","",0),VLOOKUP($E$8&$B$9&IF($B43<>"All","All",$B$5)&$B43,'LA FINAL RAW DATA'!$A:$I,5,0)) ->  | H43: =IF(ISERROR(VLOOKUP($E$8&$B$9&IF($B43<>"All","All",$B$5)&$B43,'LA FINAL RAW DATA'!$A:$I,6,0))=TRUE,IF(B43="","",0),VLOOKUP($E$8&$B$9&IF($B43<>"All","All",$B$5)&$B43,'LA FINAL RAW DATA'!$A:$I,6,0)) ->  | J43: =IF(ISERROR(VLOOKUP($E$8&$B$9&IF($B43<>"All","All",$B$5)&$B43,'LA FINAL RAW DATA'!$A:$I,7,0))=TRUE,IF(B43="","",0),VLOOKUP($E$8&$B$9&IF($B43<>"All","All",$B$5)&$B43,'LA FINAL RAW DATA'!$A:$I,7,0)) ->  | M43: =IF(ISERROR(VLOOKUP($E$8&$B$9&IF($B43<>"All","All",$B$5)&$B43,'LA FINAL RAW DATA'!$A:$I,8,0))=TRUE,IF(B43="","",0),VLOOKUP($E$8&$B$9&IF($B43<>"All","All",$B$5)&$B43,'LA FINAL RAW DATA'!$A:$I,8,0)) -> 
A44: 9 | B44: =IFERROR(VLOOKUP($B$29&A44,'Region Lookups'!A:C,3,0),"") ->  | D44: =IF(ISERROR(VLOOKUP($E$8&"All"&$B44,'LA FINAL RAW DATA'!$A:$I,5,0)),IF(B44="","",0),SUM(F44:N44)) ->  | F44: =IF(ISERROR(VLOOKUP($E$8&$B$9&IF($B44<>"All","All",$B$5)&$B44,'LA FINAL RAW DATA'!$A:$I,5,0))=TRUE,IF(B44="","",0),VLOOKUP($E$8&$B$9&IF($B44<>"All","All",$B$5)&$B44,'LA FINAL RAW DATA'!$A:$I,5,0)) ->  | H44: =IF(ISERROR(VLOOKUP($E$8&$B$9&IF($B44<>"All","All",$B$5)&$B44,'LA FINAL RAW DATA'!$A:$I,6,0))=TRUE,IF(B44="","",0),VLOOKUP($E$8&$B$9&IF($B44<>"All","All",$B$5)&$B44,'LA FINAL RAW DATA'!$A:$I,6,0)) ->  | J44: =IF(ISERROR(VLOOKUP($E$8&$B$9&IF($B44<>"All","All",$B$5)&$B44,'LA FINAL RAW DATA'!$A:$I,7,0))=TRUE,IF(B44="","",0),VLOOKUP($E$8&$B$9&IF($B44<>"All","All",$B$5)&$B44,'LA FINAL RAW DATA'!$A:$I,7,0)) ->  | M44: =IF(ISERROR(VLOOKUP($E$8&$B$9&IF($B44<>"All","All",$B$5)&$B44,'LA FINAL RAW DATA'!$A:$I,8,0))=TRUE,IF(B44="","",0),VLOOKUP($E$8&$B$9&IF($B44<>"All","All",$B$5)&$B44,'LA FINAL RAW DATA'!$A:$I,8,0)) -> 
A45: 10 | B45: =IFERROR(VLOOKUP($B$29&A45,'Region Lookups'!A:C,3,0),"") ->  | D45: =IF(ISERROR(VLOOKUP($E$8&"All"&$B45,'LA FINAL RAW DATA'!$A:$I,5,0)),IF(B45="","",0),SUM(F45:N45)) ->  | F45: =IF(ISERROR(VLOOKUP($E$8&$B$9&IF($B45<>"All","All",$B$5)&$B45,'LA FINAL RAW DATA'!$A:$I,5,0))=TRUE,IF(B45="","",0),VLOOKUP($E$8&$B$9&IF($B45<>"All","All",$B$5)&$B45,'LA FINAL RAW DATA'!$A:$I,5,0)) ->  | H45: =IF(ISERROR(VLOOKUP($E$8&$B$9&IF($B45<>"All","All",$B$5)&$B45,'LA FINAL RAW DATA'!$A:$I,6,0))=TRUE,IF(B45="","",0),VLOOKUP($E$8&$B$9&IF($B45<>"All","All",$B$5)&$B45,'LA FINAL RAW DATA'!$A:$I,6,0)) ->  | J45: =IF(ISERROR(VLOOKUP($E$8&$B$9&IF($B45<>"All","All",$B$5)&$B45,'LA FINAL RAW DATA'!$A:$I,7,0))=TRUE,IF(B45="","",0),VLOOKUP($E$8&$B$9&IF($B45<>"All","All",$B$5)&$B45,'LA FINAL RAW DATA'!$A:$I,7,0)) ->  | M45: =IF(ISERROR(VLOOKUP($E$8&$B$9&IF($B45<>"All","All",$B$5)&$B45,'LA FINAL RAW DATA'!$A:$I,8,0))=TRUE,IF(B45="","",0),VLOOKUP($E$8&$B$9&IF($B45<>"All","All",$B$5)&$B45,'LA FINAL RAW DATA'!$A:$I,8,0)) -> 
A46: 11 | B46: =IFERROR(VLOOKUP($B$29&A46,'Region Lookups'!A:C,3,0),"") ->  | D46: =IF(ISERROR(VLOOKUP($E$8&"All"&$B46,'LA FINAL RAW DATA'!$A:$I,5,0)),IF(B46="","",0),SUM(F46:N46)) ->  | F46: =IF(ISERROR(VLOOKUP($E$8&$B$9&IF($B46<>"All","All",$B$5)&$B46,'LA FINAL RAW DATA'!$A:$I,5,0))=TRUE,IF(B46="","",0),VLOOKUP($E$8&$B$9&IF($B46<>"All","All",$B$5)&$B46,'LA FINAL RAW DATA'!$A:$I,5,0)) ->  | H46: =IF(ISERROR(VLOOKUP($E$8&$B$9&IF($B46<>"All","All",$B$5)&$B46,'LA FINAL RAW DATA'!$A:$I,6,0))=TRUE,IF(B46="","",0),VLOOKUP($E$8&$B$9&IF($B46<>"All","All",$B$5)&$B46,'LA FINAL RAW DATA'!$A:$I,6,0)) ->  | J46: =IF(ISERROR(VLOOKUP($E$8&$B$9&IF($B46<>"All","All",$B$5)&$B46,'LA FINAL RAW DATA'!$A:$I,7,0))=TRUE,IF(B46="","",0),VLOOKUP($E$8&$B$9&IF($B46<>"All","All",$B$5)&$B46,'LA FINAL RAW DATA'!$A:$I,7,0)) ->  | M46: =IF(ISERROR(VLOOKUP($E$8&$B$9&IF($B46<>"All","All",$B$5)&$B46,'LA FINAL RAW DATA'!$A:$I,8,0))=TRUE,IF(B46="","",0),VLOOKUP($E$8&$B$9&IF($B46<>"All","All",$B$5)&$B46,'LA FINAL RAW DATA'!$A:$I,8,0)) -> 
A47: 12 | B47: =IFERROR(VLOOKUP($B$29&A47,'Region Lookups'!A:C,3,0),"") ->  | D47: =IF(ISERROR(VLOOKUP($E$8&"All"&$B47,'LA FINAL RAW DATA'!$A:$I,5,0)),IF(B47="","",0),SUM(F47:N47)) ->  | F47: =IF(ISERROR(VLOOKUP($E$8&$B$9&IF($B47<>"All","All",$B$5)&$B47,'LA FINAL RAW DATA'!$A:$I,5,0))=TRUE,IF(B47="","",0),VLOOKUP($E$8&$B$9&IF($B47<>"All","All",$B$5)&$B47,'LA FINAL RAW DATA'!$A:$I,5,0)) ->  | H47: =IF(ISERROR(VLOOKUP($E$8&$B$9&IF($B47<>"All","All",$B$5)&$B47,'LA FINAL RAW DATA'!$A:$I,6,0))=TRUE,IF(B47="","",0),VLOOKUP($E$8&$B$9&IF($B47<>"All","All",$B$5)&$B47,'LA FINAL RAW DATA'!$A:$I,6,0)) ->  | J47: =IF(ISERROR(VLOOKUP($E$8&$B$9&IF($B47<>"All","All",$B$5)&$B47,'LA FINAL RAW DATA'!$A:$I,7,0))=TRUE,IF(B47="","",0),VLOOKUP($E$8&$B$9&IF($B47<>"All","All",$B$5)&$B47,'LA FINAL RAW DATA'!$A:$I,7,0)) ->  | M47: =IF(ISERROR(VLOOKUP($E$8&$B$9&IF($B47<>"All","All",$B$5)&$B47,'LA FINAL RAW DATA'!$A:$I,8,0))=TRUE,IF(B47="","",0),VLOOKUP($E$8&$B$9&IF($B47<>"All","All",$B$5)&$B47,'LA FINAL RAW DATA'!$A:$I,8,0)) -> 
A48: 13 | B48: =IFERROR(VLOOKUP($B$29&A48,'Region Lookups'!A:C,3,0),"") ->  | D48: =IF(ISERROR(VLOOKUP($E$8&"All"&$B48,'LA FINAL RAW DATA'!$A:$I,5,0)),IF(B48="","",0),SUM(F48:N48)) ->  | F48: =IF(ISERROR(VLOOKUP($E$8&$B$9&IF($B48<>"All","All",$B$5)&$B48,'LA FINAL RAW DATA'!$A:$I,5,0))=TRUE,IF(B48="","",0),VLOOKUP($E$8&$B$9&IF($B48<>"All","All",$B$5)&$B48,'LA FINAL RAW DATA'!$A:$I,5,0)) ->  | H48: =IF(ISERROR(VLOOKUP($E$8&$B$9&IF($B48<>"All","All",$B$5)&$B48,'LA FINAL RAW DATA'!$A:$I,6,0))=TRUE,IF(B48="","",0),VLOOKUP($E$8&$B$9&IF($B48<>"All","All",$B$5)&$B48,'LA FINAL RAW DATA'!$A:$I,6,0)) ->  | J48: =IF(ISERROR(VLOOKUP($E$8&$B$9&IF($B48<>"All","All",$B$5)&$B48,'LA FINAL RAW DATA'!$A:$I,7,0))=TRUE,IF(B48="","",0),VLOOKUP($E$8&$B$9&IF($B48<>"All","All",$B$5)&$B48,'LA FINAL RAW DATA'!$A:$I,7,0)) ->  | M48: =IF(ISERROR(VLOOKUP($E$8&$B$9&IF($B48<>"All","All",$B$5)&$B48,'LA FINAL RAW DATA'!$A:$I,8,0))=TRUE,IF(B48="","",0),VLOOKUP($E$8&$B$9&IF($B48<>"All","All",$B$5)&$B48,'LA FINAL RAW DATA'!$A:$I,8,0)) -> 
A49: 14 | B49: =IFERROR(VLOOKUP($B$29&A49,'Region Lookups'!A:C,3,0),"") ->  | D49: =IF(ISERROR(VLOOKUP($E$8&"All"&$B49,'LA FINAL RAW DATA'!$A:$I,5,0)),IF(B49="","",0),SUM(F49:N49)) ->  | F49: =IF(ISERROR(VLOOKUP($E$8&$B$9&IF($B49<>"All","All",$B$5)&$B49,'LA FINAL RAW DATA'!$A:$I,5,0))=TRUE,IF(B49="","",0),VLOOKUP($E$8&$B$9&IF($B49<>"All","All",$B$5)&$B49,'LA FINAL RAW DATA'!$A:$I,5,0)) ->  | H49: =IF(ISERROR(VLOOKUP($E$8&$B$9&IF($B49<>"All","All",$B$5)&$B49,'LA FINAL RAW DATA'!$A:$I,6,0))=TRUE,IF(B49="","",0),VLOOKUP($E$8&$B$9&IF($B49<>"All","All",$B$5)&$B49,'LA FINAL RAW DATA'!$A:$I,6,0)) ->  | J49: =IF(ISERROR(VLOOKUP($E$8&$B$9&IF($B49<>"All","All",$B$5)&$B49,'LA FINAL RAW DATA'!$A:$I,7,0))=TRUE,IF(B49="","",0),VLOOKUP($E$8&$B$9&IF($B49<>"All","All",$B$5)&$B49,'LA FINAL RAW DATA'!$A:$I,7,0)) ->  | M49: =IF(ISERROR(VLOOKUP($E$8&$B$9&IF($B49<>"All","All",$B$5)&$B49,'LA FINAL RAW DATA'!$A:$I,8,0))=TRUE,IF(B49="","",0),VLOOKUP($E$8&$B$9&IF($B49<>"All","All",$B$5)&$B49,'LA FINAL RAW DATA'!$A:$I,8,0)) -> 
A50: 15 | B50: =IFERROR(VLOOKUP($B$29&A50,'Region Lookups'!A:C,3,0),"") ->  | D50: =IF(ISERROR(VLOOKUP($E$8&"All"&$B50,'LA FINAL RAW DATA'!$A:$I,5,0)),IF(B50="","",0),SUM(F50:N50)) ->  | F50: =IF(ISERROR(VLOOKUP($E$8&$B$9&IF($B50<>"All","All",$B$5)&$B50,'LA FINAL RAW DATA'!$A:$I,5,0))=TRUE,IF(B50="","",0),VLOOKUP($E$8&$B$9&IF($B50<>"All","All",$B$5)&$B50,'LA FINAL RAW DATA'!$A:$I,5,0)) ->  | H50: =IF(ISERROR(VLOOKUP($E$8&$B$9&IF($B50<>"All","All",$B$5)&$B50,'LA FINAL RAW DATA'!$A:$I,6,0))=TRUE,IF(B50="","",0),VLOOKUP($E$8&$B$9&IF($B50<>"All","All",$B$5)&$B50,'LA FINAL RAW DATA'!$A:$I,6,0)) ->  | J50: =IF(ISERROR(VLOOKUP($E$8&$B$9&IF($B50<>"All","All",$B$5)&$B50,'LA FINAL RAW DATA'!$A:$I,7,0))=TRUE,IF(B50="","",0),VLOOKUP($E$8&$B$9&IF($B50<>"All","All",$B$5)&$B50,'LA FINAL RAW DATA'!$A:$I,7,0)) ->  | M50: =IF(ISERROR(VLOOKUP($E$8&$B$9&IF($B50<>"All","All",$B$5)&$B50,'LA FINAL RAW DATA'!$A:$I,8,0))=TRUE,IF(B50="","",0),VLOOKUP($E$8&$B$9&IF($B50<>"All","All",$B$5)&$B50,'LA FINAL RAW DATA'!$A:$I,8,0)) -> 
A51: 16 | B51: =IFERROR(VLOOKUP($B$29&A51,'Region Lookups'!A:C,3,0),"") ->  | D51: =IF(ISERROR(VLOOKUP($E$8&"All"&$B51,'LA FINAL RAW DATA'!$A:$I,5,0)),IF(B51="","",0),SUM(F51:N51)) ->  | F51: =IF(ISERROR(VLOOKUP($E$8&$B$9&IF($B51<>"All","All",$B$5)&$B51,'LA FINAL RAW DATA'!$A:$I,5,0))=TRUE,IF(B51="","",0),VLOOKUP($E$8&$B$9&IF($B51<>"All","All",$B$5)&$B51,'LA FINAL RAW DATA'!$A:$I,5,0)) ->  | H51: =IF(ISERROR(VLOOKUP($E$8&$B$9&IF($B51<>"All","All",$B$5)&$B51,'LA FINAL RAW DATA'!$A:$I,6,0))=TRUE,IF(B51="","",0),VLOOKUP($E$8&$B$9&IF($B51<>"All","All",$B$5)&$B51,'LA FINAL RAW DATA'!$A:$I,6,0)) ->  | J51: =IF(ISERROR(VLOOKUP($E$8&$B$9&IF($B51<>"All","All",$B$5)&$B51,'LA FINAL RAW DATA'!$A:$I,7,0))=TRUE,IF(B51="","",0),VLOOKUP($E$8&$B$9&IF($B51<>"All","All",$B$5)&$B51,'LA FINAL RAW DATA'!$A:$I,7,0)) ->  | M51: =IF(ISERROR(VLOOKUP($E$8&$B$9&IF($B51<>"All","All",$B$5)&$B51,'LA FINAL RAW DATA'!$A:$I,8,0))=TRUE,IF(B51="","",0),VLOOKUP($E$8&$B$9&IF($B51<>"All","All",$B$5)&$B51,'LA FINAL RAW DATA'!$A:$I,8,0)) -> 
A52: 17 | B52: =IFERROR(VLOOKUP($B$29&A52,'Region Lookups'!A:C,3,0),"") ->  | D52: =IF(ISERROR(VLOOKUP($E$8&"All"&$B52,'LA FINAL RAW DATA'!$A:$I,5,0)),IF(B52="","",0),SUM(F52:N52)) ->  | F52: =IF(ISERROR(VLOOKUP($E$8&$B$9&IF($B52<>"All","All",$B$5)&$B52,'LA FINAL RAW DATA'!$A:$I,5,0))=TRUE,IF(B52="","",0),VLOOKUP($E$8&$B$9&IF($B52<>"All","All",$B$5)&$B52,'LA FINAL RAW DATA'!$A:$I,5,0)) ->  | H52: =IF(ISERROR(VLOOKUP($E$8&$B$9&IF($B52<>"All","All",$B$5)&$B52,'LA FINAL RAW DATA'!$A:$I,6,0))=TRUE,IF(B52="","",0),VLOOKUP($E$8&$B$9&IF($B52<>"All","All",$B$5)&$B52,'LA FINAL RAW DATA'!$A:$I,6,0)) ->  | J52: =IF(ISERROR(VLOOKUP($E$8&$B$9&IF($B52<>"All","All",$B$5)&$B52,'LA FINAL RAW DATA'!$A:$I,7,0))=TRUE,IF(B52="","",0),VLOOKUP($E$8&$B$9&IF($B52<>"All","All",$B$5)&$B52,'LA FINAL RAW DATA'!$A:$I,7,0)) ->  | M52: =IF(ISERROR(VLOOKUP($E$8&$B$9&IF($B52<>"All","All",$B$5)&$B52,'LA FINAL RAW DATA'!$A:$I,8,0))=TRUE,IF(B52="","",0),VLOOKUP($E$8&$B$9&IF($B52<>"All","All",$B$5)&$B52,'LA FINAL RAW DATA'!$A:$I,8,0)) -> 
A53: 18 | B53: =IFERROR(VLOOKUP($B$29&A53,'Region Lookups'!A:C,3,0),"") ->  | D53: =IF(ISERROR(VLOOKUP($E$8&"All"&$B53,'LA FINAL RAW DATA'!$A:$I,5,0)),IF(B53="","",0),SUM(F53:N53)) ->  | F53: =IF(ISERROR(VLOOKUP($E$8&$B$9&IF($B53<>"All","All",$B$5)&$B53,'LA FINAL RAW DATA'!$A:$I,5,0))=TRUE,IF(B53="","",0),VLOOKUP($E$8&$B$9&IF($B53<>"All","All",$B$5)&$B53,'LA FINAL RAW DATA'!$A:$I,5,0)) ->  | H53: =IF(ISERROR(VLOOKUP($E$8&$B$9&IF($B53<>"All","All",$B$5)&$B53,'LA FINAL RAW DATA'!$A:$I,6,0))=TRUE,IF(B53="","",0),VLOOKUP($E$8&$B$9&IF($B53<>"All","All",$B$5)&$B53,'LA FINAL RAW DATA'!$A:$I,6,0)) ->  | J53: =IF(ISERROR(VLOOKUP($E$8&$B$9&IF($B53<>"All","All",$B$5)&$B53,'LA FINAL RAW DATA'!$A:$I,7,0))=TRUE,IF(B53="","",0),VLOOKUP($E$8&$B$9&IF($B53<>"All","All",$B$5)&$B53,'LA FINAL RAW DATA'!$A:$I,7,0)) ->  | M53: =IF(ISERROR(VLOOKUP($E$8&$B$9&IF($B53<>"All","All",$B$5)&$B53,'LA FINAL RAW DATA'!$A:$I,8,0))=TRUE,IF(B53="","",0),VLOOKUP($E$8&$B$9&IF($B53<>"All","All",$B$5)&$B53,'LA FINAL RAW DATA'!$A:$I,8,0)) -> 
A54: 19 | B54: =IFERROR(VLOOKUP($B$29&A54,'Region Lookups'!A:C,3,0),"") ->  | D54: =IF(ISERROR(VLOOKUP($E$8&"All"&$B54,'LA FINAL RAW DATA'!$A:$I,5,0)),IF(B54="","",0),SUM(F54:N54)) ->  | F54: =IF(ISERROR(VLOOKUP($E$8&$B$9&IF($B54<>"All","All",$B$5)&$B54,'LA FINAL RAW DATA'!$A:$I,5,0))=TRUE,IF(B54="","",0),VLOOKUP($E$8&$B$9&IF($B54<>"All","All",$B$5)&$B54,'LA FINAL RAW DATA'!$A:$I,5,0)) ->  | H54: =IF(ISERROR(VLOOKUP($E$8&$B$9&IF($B54<>"All","All",$B$5)&$B54,'LA FINAL RAW DATA'!$A:$I,6,0))=TRUE,IF(B54="","",0),VLOOKUP($E$8&$B$9&IF($B54<>"All","All",$B$5)&$B54,'LA FINAL RAW DATA'!$A:$I,6,0)) ->  | J54: =IF(ISERROR(VLOOKUP($E$8&$B$9&IF($B54<>"All","All",$B$5)&$B54,'LA FINAL RAW DATA'!$A:$I,7,0))=TRUE,IF(B54="","",0),VLOOKUP($E$8&$B$9&IF($B54<>"All","All",$B$5)&$B54,'LA FINAL RAW DATA'!$A:$I,7,0)) ->  | M54: =IF(ISERROR(VLOOKUP($E$8&$B$9&IF($B54<>"All","All",$B$5)&$B54,'LA FINAL RAW DATA'!$A:$I,8,0))=TRUE,IF(B54="","",0),VLOOKUP($E$8&$B$9&IF($B54<>"All","All",$B$5)&$B54,'LA FINAL RAW DATA'!$A:$I,8,0)) -> 
A55: 20 | B55: =IFERROR(VLOOKUP($B$29&A55,'Region Lookups'!A:C,3,0),"") ->  | D55: =IF(ISERROR(VLOOKUP($E$8&"All"&$B55,'LA FINAL RAW DATA'!$A:$I,5,0)),IF(B55="","",0),SUM(F55:N55)) ->  | F55: =IF(ISERROR(VLOOKUP($E$8&$B$9&IF($B55<>"All","All",$B$5)&$B55,'LA FINAL RAW DATA'!$A:$I,5,0))=TRUE,IF(B55="","",0),VLOOKUP($E$8&$B$9&IF($B55<>"All","All",$B$5)&$B55,'LA FINAL RAW DATA'!$A:$I,5,0)) ->  | H55: =IF(ISERROR(VLOOKUP($E$8&$B$9&IF($B55<>"All","All",$B$5)&$B55,'LA FINAL RAW DATA'!$A:$I,6,0))=TRUE,IF(B55="","",0),VLOOKUP($E$8&$B$9&IF($B55<>"All","All",$B$5)&$B55,'LA FINAL RAW DATA'!$A:$I,6,0)) ->  | J55: =IF(ISERROR(VLOOKUP($E$8&$B$9&IF($B55<>"All","All",$B$5)&$B55,'LA FINAL RAW DATA'!$A:$I,7,0))=TRUE,IF(B55="","",0),VLOOKUP($E$8&$B$9&IF($B55<>"All","All",$B$5)&$B55,'LA FINAL RAW DATA'!$A:$I,7,0)) ->  | M55: =IF(ISERROR(VLOOKUP($E$8&$B$9&IF($B55<>"All","All",$B$5)&$B55,'LA FINAL RAW DATA'!$A:$I,8,0))=TRUE,IF(B55="","",0),VLOOKUP($E$8&$B$9&IF($B55<>"All","All",$B$5)&$B55,'LA FINAL RAW DATA'!$A:$I,8,0)) -> 
A56: 21 | B56: =IFERROR(VLOOKUP($B$29&A56,'Region Lookups'!A:C,3,0),"") ->  | D56: =IF(ISERROR(VLOOKUP($E$8&"All"&$B56,'LA FINAL RAW DATA'!$A:$I,5,0)),IF(B56="","",0),SUM(F56:N56)) ->  | F56: =IF(ISERROR(VLOOKUP($E$8&$B$9&IF($B56<>"All","All",$B$5)&$B56,'LA FINAL RAW DATA'!$A:$I,5,0))=TRUE,IF(B56="","",0),VLOOKUP($E$8&$B$9&IF($B56<>"All","All",$B$5)&$B56,'LA FINAL RAW DATA'!$A:$I,5,0)) ->  | H56: =IF(ISERROR(VLOOKUP($E$8&$B$9&IF($B56<>"All","All",$B$5)&$B56,'LA FINAL RAW DATA'!$A:$I,6,0))=TRUE,IF(B56="","",0),VLOOKUP($E$8&$B$9&IF($B56<>"All","All",$B$5)&$B56,'LA FINAL RAW DATA'!$A:$I,6,0)) ->  | J56: =IF(ISERROR(VLOOKUP($E$8&$B$9&IF($B56<>"All","All",$B$5)&$B56,'LA FINAL RAW DATA'!$A:$I,7,0))=TRUE,IF(B56="","",0),VLOOKUP($E$8&$B$9&IF($B56<>"All","All",$B$5)&$B56,'LA FINAL RAW DATA'!$A:$I,7,0)) ->  | M56: =IF(ISERROR(VLOOKUP($E$8&$B$9&IF($B56<>"All","All",$B$5)&$B56,'LA FINAL RAW DATA'!$A:$I,8,0))=TRUE,IF(B56="","",0),VLOOKUP($E$8&$B$9&IF($B56<>"All","All",$B$5)&$B56,'LA FINAL RAW DATA'!$A:$I,8,0)) -> 
A57: 22 | B57: =IFERROR(VLOOKUP($B$29&A57,'Region Lookups'!A:C,3,0),"") ->  | D57: =IF(ISERROR(VLOOKUP($E$8&"All"&$B57,'LA FINAL RAW DATA'!$A:$I,5,0)),IF(B57="","",0),SUM(F57:N57)) ->  | F57: =IF(ISERROR(VLOOKUP($E$8&$B$9&IF($B57<>"All","All",$B$5)&$B57,'LA FINAL RAW DATA'!$A:$I,5,0))=TRUE,IF(B57="","",0),VLOOKUP($E$8&$B$9&IF($B57<>"All","All",$B$5)&$B57,'LA FINAL RAW DATA'!$A:$I,5,0)) ->  | H57: =IF(ISERROR(VLOOKUP($E$8&$B$9&IF($B57<>"All","All",$B$5)&$B57,'LA FINAL RAW DATA'!$A:$I,6,0))=TRUE,IF(B57="","",0),VLOOKUP($E$8&$B$9&IF($B57<>"All","All",$B$5)&$B57,'LA FINAL RAW DATA'!$A:$I,6,0)) ->  | J57: =IF(ISERROR(VLOOKUP($E$8&$B$9&IF($B57<>"All","All",$B$5)&$B57,'LA FINAL RAW DATA'!$A:$I,7,0))=TRUE,IF(B57="","",0),VLOOKUP($E$8&$B$9&IF($B57<>"All","All",$B$5)&$B57,'LA FINAL RAW DATA'!$A:$I,7,0)) ->  | M57: =IF(ISERROR(VLOOKUP($E$8&$B$9&IF($B57<>"All","All",$B$5)&$B57,'LA FINAL RAW DATA'!$A:$I,8,0))=TRUE,IF(B57="","",0),VLOOKUP($E$8&$B$9&IF($B57<>"All","All",$B$5)&$B57,'LA FINAL RAW DATA'!$A:$I,8,0)) -> 
A58: 23 | B58: =IFERROR(VLOOKUP($B$29&A58,'Region Lookups'!A:C,3,0),"") ->  | D58: =IF(ISERROR(VLOOKUP($E$8&"All"&$B58,'LA FINAL RAW DATA'!$A:$I,5,0)),IF(B58="","",0),SUM(F58:N58)) ->  | F58: =IF(ISERROR(VLOOKUP($E$8&$B$9&IF($B58<>"All","All",$B$5)&$B58,'LA FINAL RAW DATA'!$A:$I,5,0))=TRUE,IF(B58="","",0),VLOOKUP($E$8&$B$9&IF($B58<>"All","All",$B$5)&$B58,'LA FINAL RAW DATA'!$A:$I,5,0)) ->  | H58: =IF(ISERROR(VLOOKUP($E$8&$B$9&IF($B58<>"All","All",$B$5)&$B58,'LA FINAL RAW DATA'!$A:$I,6,0))=TRUE,IF(B58="","",0),VLOOKUP($E$8&$B$9&IF($B58<>"All","All",$B$5)&$B58,'LA FINAL RAW DATA'!$A:$I,6,0)) ->  | J58: =IF(ISERROR(VLOOKUP($E$8&$B$9&IF($B58<>"All","All",$B$5)&$B58,'LA FINAL RAW DATA'!$A:$I,7,0))=TRUE,IF(B58="","",0),VLOOKUP($E$8&$B$9&IF($B58<>"All","All",$B$5)&$B58,'LA FINAL RAW DATA'!$A:$I,7,0)) ->  | M58: =IF(ISERROR(VLOOKUP($E$8&$B$9&IF($B58<>"All","All",$B$5)&$B58,'LA FINAL RAW DATA'!$A:$I,8,0))=TRUE,IF(B58="","",0),VLOOKUP($E$8&$B$9&IF($B58<>"All","All",$B$5)&$B58,'LA FINAL RAW DATA'!$A:$I,8,0)) -> 
A59: 24 | B59: =IFERROR(VLOOKUP($B$29&A59,'Region Lookups'!A:C,3,0),"") ->  | D59: =IF(ISERROR(VLOOKUP($E$8&"All"&$B59,'LA FINAL RAW DATA'!$A:$I,5,0)),IF(B59="","",0),SUM(F59:N59)) ->  | F59: =IF(ISERROR(VLOOKUP($E$8&$B$9&IF($B59<>"All","All",$B$5)&$B59,'LA FINAL RAW DATA'!$A:$I,5,0))=TRUE,IF(B59="","",0),VLOOKUP($E$8&$B$9&IF($B59<>"All","All",$B$5)&$B59,'LA FINAL RAW DATA'!$A:$I,5,0)) ->  | H59: =IF(ISERROR(VLOOKUP($E$8&$B$9&IF($B59<>"All","All",$B$5)&$B59,'LA FINAL RAW DATA'!$A:$I,6,0))=TRUE,IF(B59="","",0),VLOOKUP($E$8&$B$9&IF($B59<>"All","All",$B$5)&$B59,'LA FINAL RAW DATA'!$A:$I,6,0)) ->  | J59: =IF(ISERROR(VLOOKUP($E$8&$B$9&IF($B59<>"All","All",$B$5)&$B59,'LA FINAL RAW DATA'!$A:$I,7,0))=TRUE,IF(B59="","",0),VLOOKUP($E$8&$B$9&IF($B59<>"All","All",$B$5)&$B59,'LA FINAL RAW DATA'!$A:$I,7,0)) ->  | M59: =IF(ISERROR(VLOOKUP($E$8&$B$9&IF($B59<>"All","All",$B$5)&$B59,'LA FINAL RAW DATA'!$A:$I,8,0))=TRUE,IF(B59="","",0),VLOOKUP($E$8&$B$9&IF($B59<>"All","All",$B$5)&$B59,'LA FINAL RAW DATA'!$A:$I,8,0)) -> 
A60: 25 | B60: =IFERROR(VLOOKUP($B$29&A60,'Region Lookups'!A:C,3,0),"") ->  | D60: =IF(ISERROR(VLOOKUP($E$8&"All"&$B60,'LA FINAL RAW DATA'!$A:$I,5,0)),IF(B60="","",0),SUM(F60:N60)) ->  | F60: =IF(ISERROR(VLOOKUP($E$8&$B$9&IF($B60<>"All","All",$B$5)&$B60,'LA FINAL RAW DATA'!$A:$I,5,0))=TRUE,IF(B60="","",0),VLOOKUP($E$8&$B$9&IF($B60<>"All","All",$B$5)&$B60,'LA FINAL RAW DATA'!$A:$I,5,0)) ->  | H60: =IF(ISERROR(VLOOKUP($E$8&$B$9&IF($B60<>"All","All",$B$5)&$B60,'LA FINAL RAW DATA'!$A:$I,6,0))=TRUE,IF(B60="","",0),VLOOKUP($E$8&$B$9&IF($B60<>"All","All",$B$5)&$B60,'LA FINAL RAW DATA'!$A:$I,6,0)) ->  | J60: =IF(ISERROR(VLOOKUP($E$8&$B$9&IF($B60<>"All","All",$B$5)&$B60,'LA FINAL RAW DATA'!$A:$I,7,0))=TRUE,IF(B60="","",0),VLOOKUP($E$8&$B$9&IF($B60<>"All","All",$B$5)&$B60,'LA FINAL RAW DATA'!$A:$I,7,0)) ->  | M60: =IF(ISERROR(VLOOKUP($E$8&$B$9&IF($B60<>"All","All",$B$5)&$B60,'LA FINAL RAW DATA'!$A:$I,8,0))=TRUE,IF(B60="","",0),VLOOKUP($E$8&$B$9&IF($B60<>"All","All",$B$5)&$B60,'LA FINAL RAW DATA'!$A:$I,8,0)) -> 
A61: 26 | B61: =IFERROR(VLOOKUP($B$29&A61,'Region Lookups'!A:C,3,0),"") ->  | D61: =IF(ISERROR(VLOOKUP($E$8&"All"&$B61,'LA FINAL RAW DATA'!$A:$I,5,0)),IF(B61="","",0),SUM(F61:N61)) ->  | F61: =IF(ISERROR(VLOOKUP($E$8&$B$9&IF($B61<>"All","All",$B$5)&$B61,'LA FINAL RAW DATA'!$A:$I,5,0))=TRUE,IF(B61="","",0),VLOOKUP($E$8&$B$9&IF($B61<>"All","All",$B$5)&$B61,'LA FINAL RAW DATA'!$A:$I,5,0)) ->  | H61: =IF(ISERROR(VLOOKUP($E$8&$B$9&IF($B61<>"All","All",$B$5)&$B61,'LA FINAL RAW DATA'!$A:$I,6,0))=TRUE,IF(B61="","",0),VLOOKUP($E$8&$B$9&IF($B61<>"All","All",$B$5)&$B61,'LA FINAL RAW DATA'!$A:$I,6,0)) ->  | J61: =IF(ISERROR(VLOOKUP($E$8&$B$9&IF($B61<>"All","All",$B$5)&$B61,'LA FINAL RAW DATA'!$A:$I,7,0))=TRUE,IF(B61="","",0),VLOOKUP($E$8&$B$9&IF($B61<>"All","All",$B$5)&$B61,'LA FINAL RAW DATA'!$A:$I,7,0)) ->  | M61: =IF(ISERROR(VLOOKUP($E$8&$B$9&IF($B61<>"All","All",$B$5)&$B61,'LA FINAL RAW DATA'!$A:$I,8,0))=TRUE,IF(B61="","",0),VLOOKUP($E$8&$B$9&IF($B61<>"All","All",$B$5)&$B61,'LA FINAL RAW DATA'!$A:$I,8,0)) -> 
A62: 27 | B62: =IFERROR(VLOOKUP($B$29&A62,'Region Lookups'!A:C,3,0),"") ->  | D62: =IF(ISERROR(VLOOKUP($E$8&"All"&$B62,'LA FINAL RAW DATA'!$A:$I,5,0)),IF(B62="","",0),SUM(F62:N62)) ->  | F62: =IF(ISERROR(VLOOKUP($E$8&$B$9&IF($B62<>"All","All",$B$5)&$B62,'LA FINAL RAW DATA'!$A:$I,5,0))=TRUE,IF(B62="","",0),VLOOKUP($E$8&$B$9&IF($B62<>"All","All",$B$5)&$B62,'LA FINAL RAW DATA'!$A:$I,5,0)) ->  | H62: =IF(ISERROR(VLOOKUP($E$8&$B$9&IF($B62<>"All","All",$B$5)&$B62,'LA FINAL RAW DATA'!$A:$I,6,0))=TRUE,IF(B62="","",0),VLOOKUP($E$8&$B$9&IF($B62<>"All","All",$B$5)&$B62,'LA FINAL RAW DATA'!$A:$I,6,0)) ->  | J62: =IF(ISERROR(VLOOKUP($E$8&$B$9&IF($B62<>"All","All",$B$5)&$B62,'LA FINAL RAW DATA'!$A:$I,7,0))=TRUE,IF(B62="","",0),VLOOKUP($E$8&$B$9&IF($B62<>"All","All",$B$5)&$B62,'LA FINAL RAW DATA'!$A:$I,7,0)) ->  | M62: =IF(ISERROR(VLOOKUP($E$8&$B$9&IF($B62<>"All","All",$B$5)&$B62,'LA FINAL RAW DATA'!$A:$I,8,0))=TRUE,IF(B62="","",0),VLOOKUP($E$8&$B$9&IF($B62<>"All","All",$B$5)&$B62,'LA FINAL RAW DATA'!$A:$I,8,0)) -> 
A63: 28 | B63: =IFERROR(VLOOKUP($B$29&A63,'Region Lookups'!A:C,3,0),"") ->  | D63: =IF(ISERROR(VLOOKUP($E$8&"All"&$B63,'LA FINAL RAW DATA'!$A:$I,5,0)),IF(B63="","",0),SUM(F63:N63)) ->  | F63: =IF(ISERROR(VLOOKUP($E$8&$B$9&IF($B63<>"All","All",$B$5)&$B63,'LA FINAL RAW DATA'!$A:$I,5,0))=TRUE,IF(B63="","",0),VLOOKUP($E$8&$B$9&IF($B63<>"All","All",$B$5)&$B63,'LA FINAL RAW DATA'!$A:$I,5,0)) ->  | H63: =IF(ISERROR(VLOOKUP($E$8&$B$9&IF($B63<>"All","All",$B$5)&$B63,'LA FINAL RAW DATA'!$A:$I,6,0))=TRUE,IF(B63="","",0),VLOOKUP($E$8&$B$9&IF($B63<>"All","All",$B$5)&$B63,'LA FINAL RAW DATA'!$A:$I,6,0)) ->  | J63: =IF(ISERROR(VLOOKUP($E$8&$B$9&IF($B63<>"All","All",$B$5)&$B63,'LA FINAL RAW DATA'!$A:$I,7,0))=TRUE,IF(B63="","",0),VLOOKUP($E$8&$B$9&IF($B63<>"All","All",$B$5)&$B63,'LA FINAL RAW DATA'!$A:$I,7,0)) ->  | M63: =IF(ISERROR(VLOOKUP($E$8&$B$9&IF($B63<>"All","All",$B$5)&$B63,'LA FINAL RAW DATA'!$A:$I,8,0))=TRUE,IF(B63="","",0),VLOOKUP($E$8&$B$9&IF($B63<>"All","All",$B$5)&$B63,'LA FINAL RAW DATA'!$A:$I,8,0)) -> 
A64: 29 | B64: =IFERROR(VLOOKUP($B$29&A64,'Region Lookups'!A:C,3,0),"") ->  | D64: =IF(ISERROR(VLOOKUP($E$8&"All"&$B64,'LA FINAL RAW DATA'!$A:$I,5,0)),IF(B64="","",0),SUM(F64:N64)) ->  | F64: =IF(ISERROR(VLOOKUP($E$8&$B$9&IF($B64<>"All","All",$B$5)&$B64,'LA FINAL RAW DATA'!$A:$I,5,0))=TRUE,IF(B64="","",0),VLOOKUP($E$8&$B$9&IF($B64<>"All","All",$B$5)&$B64,'LA FINAL RAW DATA'!$A:$I,5,0)) ->  | H64: =IF(ISERROR(VLOOKUP($E$8&$B$9&IF($B64<>"All","All",$B$5)&$B64,'LA FINAL RAW DATA'!$A:$I,6,0))=TRUE,IF(B64="","",0),VLOOKUP($E$8&$B$9&IF($B64<>"All","All",$B$5)&$B64,'LA FINAL RAW DATA'!$A:$I,6,0)) ->  | J64: =IF(ISERROR(VLOOKUP($E$8&$B$9&IF($B64<>"All","All",$B$5)&$B64,'LA FINAL RAW DATA'!$A:$I,7,0))=TRUE,IF(B64="","",0),VLOOKUP($E$8&$B$9&IF($B64<>"All","All",$B$5)&$B64,'LA FINAL RAW DATA'!$A:$I,7,0)) ->  | M64: =IF(ISERROR(VLOOKUP($E$8&$B$9&IF($B64<>"All","All",$B$5)&$B64,'LA FINAL RAW DATA'!$A:$I,8,0))=TRUE,IF(B64="","",0),VLOOKUP($E$8&$B$9&IF($B64<>"All","All",$B$5)&$B64,'LA FINAL RAW DATA'!$A:$I,8,0)) -> 
A65: 30 | B65: =IFERROR(VLOOKUP($B$29&A65,'Region Lookups'!A:C,3,0),"") ->  | D65: =IF(ISERROR(VLOOKUP($E$8&"All"&$B65,'LA FINAL RAW DATA'!$A:$I,5,0)),IF(B65="","",0),SUM(F65:N65)) ->  | F65: =IF(ISERROR(VLOOKUP($E$8&$B$9&IF($B65<>"All","All",$B$5)&$B65,'LA FINAL RAW DATA'!$A:$I,5,0))=TRUE,IF(B65="","",0),VLOOKUP($E$8&$B$9&IF($B65<>"All","All",$B$5)&$B65,'LA FINAL RAW DATA'!$A:$I,5,0)) ->  | H65: =IF(ISERROR(VLOOKUP($E$8&$B$9&IF($B65<>"All","All",$B$5)&$B65,'LA FINAL RAW DATA'!$A:$I,6,0))=TRUE,IF(B65="","",0),VLOOKUP($E$8&$B$9&IF($B65<>"All","All",$B$5)&$B65,'LA FINAL RAW DATA'!$A:$I,6,0)) ->  | J65: =IF(ISERROR(VLOOKUP($E$8&$B$9&IF($B65<>"All","All",$B$5)&$B65,'LA FINAL RAW DATA'!$A:$I,7,0))=TRUE,IF(B65="","",0),VLOOKUP($E$8&$B$9&IF($B65<>"All","All",$B$5)&$B65,'LA FINAL RAW DATA'!$A:$I,7,0)) ->  | M65: =IF(ISERROR(VLOOKUP($E$8&$B$9&IF($B65<>"All","All",$B$5)&$B65,'LA FINAL RAW DATA'!$A:$I,8,0))=TRUE,IF(B65="","",0),VLOOKUP($E$8&$B$9&IF($B65<>"All","All",$B$5)&$B65,'LA FINAL RAW DATA'!$A:$I,8,0)) -> 
A66: 31 | B66: =IFERROR(VLOOKUP($B$29&A66,'Region Lookups'!A:C,3,0),"") ->  | D66: =IF(ISERROR(VLOOKUP($E$8&"All"&$B66,'LA FINAL RAW DATA'!$A:$I,5,0)),IF(B66="","",0),SUM(F66:N66)) ->  | F66: =IF(ISERROR(VLOOKUP($E$8&$B$9&IF($B66<>"All","All",$B$5)&$B66,'LA FINAL RAW DATA'!$A:$I,5,0))=TRUE,IF(B66="","",0),VLOOKUP($E$8&$B$9&IF($B66<>"All","All",$B$5)&$B66,'LA FINAL RAW DATA'!$A:$I,5,0)) ->  | H66: =IF(ISERROR(VLOOKUP($E$8&$B$9&IF($B66<>"All","All",$B$5)&$B66,'LA FINAL RAW DATA'!$A:$I,6,0))=TRUE,IF(B66="","",0),VLOOKUP($E$8&$B$9&IF($B66<>"All","All",$B$5)&$B66,'LA FINAL RAW DATA'!$A:$I,6,0)) ->  | J66: =IF(ISERROR(VLOOKUP($E$8&$B$9&IF($B66<>"All","All",$B$5)&$B66,'LA FINAL RAW DATA'!$A:$I,7,0))=TRUE,IF(B66="","",0),VLOOKUP($E$8&$B$9&IF($B66<>"All","All",$B$5)&$B66,'LA FINAL RAW DATA'!$A:$I,7,0)) ->  | M66: =IF(ISERROR(VLOOKUP($E$8&$B$9&IF($B66<>"All","All",$B$5)&$B66,'LA FINAL RAW DATA'!$A:$I,8,0))=TRUE,IF(B66="","",0),VLOOKUP($E$8&$B$9&IF($B66<>"All","All",$B$5)&$B66,'LA FINAL RAW DATA'!$A:$I,8,0)) -> 
A67: 32 | B67: =IFERROR(VLOOKUP($B$29&A67,'Region Lookups'!A:C,3,0),"") ->  | D67: =IF(ISERROR(VLOOKUP($E$8&"All"&$B67,'LA FINAL RAW DATA'!$A:$I,5,0)),IF(B67="","",0),SUM(F67:N67)) ->  | F67: =IF(ISERROR(VLOOKUP($E$8&$B$9&IF($B67<>"All","All",$B$5)&$B67,'LA FINAL RAW DATA'!$A:$I,5,0))=TRUE,IF(B67="","",0),VLOOKUP($E$8&$B$9&IF($B67<>"All","All",$B$5)&$B67,'LA FINAL RAW DATA'!$A:$I,5,0)) ->  | H67: =IF(ISERROR(VLOOKUP($E$8&$B$9&IF($B67<>"All","All",$B$5)&$B67,'LA FINAL RAW DATA'!$A:$I,6,0))=TRUE,IF(B67="","",0),VLOOKUP($E$8&$B$9&IF($B67<>"All","All",$B$5)&$B67,'LA FINAL RAW DATA'!$A:$I,6,0)) ->  | J67: =IF(ISERROR(VLOOKUP($E$8&$B$9&IF($B67<>"All","All",$B$5)&$B67,'LA FINAL RAW DATA'!$A:$I,7,0))=TRUE,IF(B67="","",0),VLOOKUP($E$8&$B$9&IF($B67<>"All","All",$B$5)&$B67,'LA FINAL RAW DATA'!$A:$I,7,0)) ->  | M67: =IF(ISERROR(VLOOKUP($E$8&$B$9&IF($B67<>"All","All",$B$5)&$B67,'LA FINAL RAW DATA'!$A:$I,8,0))=TRUE,IF(B67="","",0),VLOOKUP($E$8&$B$9&IF($B67<>"All","All",$B$5)&$B67,'LA FINAL RAW DATA'!$A:$I,8,0)) -> 
A68: 33 | B68: =IFERROR(VLOOKUP($B$29&A68,'Region Lookups'!A:C,3,0),"") ->  | D68: =IF(ISERROR(VLOOKUP($E$8&"All"&$B68,'LA FINAL RAW DATA'!$A:$I,5,0)),IF(B68="","",0),SUM(F68:N68)) ->  | F68: =IF(ISERROR(VLOOKUP($E$8&$B$9&IF($B68<>"All","All",$B$5)&$B68,'LA FINAL RAW DATA'!$A:$I,5,0))=TRUE,IF(B68="","",0),VLOOKUP($E$8&$B$9&IF($B68<>"All","All",$B$5)&$B68,'LA FINAL RAW DATA'!$A:$I,5,0)) ->  | H68: =IF(ISERROR(VLOOKUP($E$8&$B$9&IF($B68<>"All","All",$B$5)&$B68,'LA FINAL RAW DATA'!$A:$I,6,0))=TRUE,IF(B68="","",0),VLOOKUP($E$8&$B$9&IF($B68<>"All","All",$B$5)&$B68,'LA FINAL RAW DATA'!$A:$I,6,0)) ->  | J68: =IF(ISERROR(VLOOKUP($E$8&$B$9&IF($B68<>"All","All",$B$5)&$B68,'LA FINAL RAW DATA'!$A:$I,7,0))=TRUE,IF(B68="","",0),VLOOKUP($E$8&$B$9&IF($B68<>"All","All",$B$5)&$B68,'LA FINAL RAW DATA'!$A:$I,7,0)) ->  | M68: =IF(ISERROR(VLOOKUP($E$8&$B$9&IF($B68<>"All","All",$B$5)&$B68,'LA FINAL RAW DATA'!$A:$I,8,0))=TRUE,IF(B68="","",0),VLOOKUP($E$8&$B$9&IF($B68<>"All","All",$B$5)&$B68,'LA FINAL RAW DATA'!$A:$I,8,0)) -> 
J69: =IF(ISERROR(VLOOKUP($E$8&$B$9&IF($B69<>"All","All",$B$5)&$B69,'LA FINAL RAW DATA'!$A:$I,7,0))=TRUE,"",VLOOKUP($E$8&$B$9&IF($B69<>"All","All",$B$5)&$B69,'LA FINAL RAW DATA'!$A:$I,7,0)) -> 
J70: =IF(ISERROR(VLOOKUP($E$8&$B$9&IF($B70<>"All","All",$B$5)&$B70,'LA FINAL RAW DATA'!$A:$I,7,0))=TRUE,"",VLOOKUP($E$8&$B$9&IF($B70<>"All","All",$B$5)&$B70,'LA FINAL RAW DATA'!$A:$I,7,0)) -> 
J71: =IF(ISERROR(VLOOKUP($E$8&$B$9&IF($B71<>"All","All",$B$5)&$B71,'LA FINAL RAW DATA'!$A:$I,7,0))=TRUE,"",VLOOKUP($E$8&$B$9&IF($B71<>"All","All",$B$5)&$B71,'LA FINAL RAW DATA'!$A:$I,7,0)) -> 
J72: =IF(ISERROR(VLOOKUP($E$8&$B$9&IF($B72<>"All","All",$B$5)&$B72,'LA FINAL RAW DATA'!$A:$I,7,0))=TRUE,"",VLOOKUP($E$8&$B$9&IF($B72<>"All","All",$B$5)&$B72,'LA FINAL RAW DATA'!$A:$I,7,0)) -> 
J73: =IF(ISERROR(VLOOKUP($E$8&$B$9&IF($B73<>"All","All",$B$5)&$B73,'LA FINAL RAW DATA'!$A:$I,7,0))=TRUE,"",VLOOKUP($E$8&$B$9&IF($B73<>"All","All",$B$5)&$B73,'LA FINAL RAW DATA'!$A:$I,7,0)) -> 
J74: =IF(ISERROR(VLOOKUP($E$8&$B$9&IF($B74<>"All","All",$B$5)&$B74,'LA FINAL RAW DATA'!$A:$I,7,0))=TRUE,"",VLOOKUP($E$8&$B$9&IF($B74<>"All","All",$B$5)&$B74,'LA FINAL RAW DATA'!$A:$I,7,0)) -> 
J75: =IF(ISERROR(VLOOKUP($E$8&$B$9&IF($B75<>"All","All",$B$5)&$B75,'LA FINAL RAW DATA'!$A:$I,7,0))=TRUE,"",VLOOKUP($E$8&$B$9&IF($B75<>"All","All",$B$5)&$B75,'LA FINAL RAW DATA'!$A:$I,7,0)) -> 
J76: =IF(ISERROR(VLOOKUP($E$8&$B$9&IF($B76<>"All","All",$B$5)&$B76,'LA FINAL RAW DATA'!$A:$I,7,0))=TRUE,"",VLOOKUP($E$8&$B$9&IF($B76<>"All","All",$B$5)&$B76,'LA FINAL RAW DATA'!$A:$I,7,0)) -> 
J77: =IF(ISERROR(VLOOKUP($E$8&$B$9&IF($B77<>"All","All",$B$5)&$B77,'LA FINAL RAW DATA'!$A:$I,7,0))=TRUE,"",VLOOKUP($E$8&$B$9&IF($B77<>"All","All",$B$5)&$B77,'LA FINAL RAW DATA'!$A:$I,7,0)) -> 
J78: =IF(ISERROR(VLOOKUP($E$8&$B$9&IF($B78<>"All","All",$B$5)&$B78,'LA FINAL RAW DATA'!$A:$I,7,0))=TRUE,"",VLOOKUP($E$8&$B$9&IF($B78<>"All","All",$B$5)&$B78,'LA FINAL RAW DATA'!$A:$I,7,0)) -> 
J79: =IF(ISERROR(VLOOKUP($E$8&$B$9&IF($B79<>"All","All",$B$5)&$B79,'LA FINAL RAW DATA'!$A:$I,7,0))=TRUE,"",VLOOKUP($E$8&$B$9&IF($B79<>"All","All",$B$5)&$B79,'LA FINAL RAW DATA'!$A:$I,7,0)) -> 
J80: =IF(ISERROR(VLOOKUP($E$8&$B$9&IF($B80<>"All","All",$B$5)&$B80,'LA FINAL RAW DATA'!$A:$I,7,0))=TRUE,"",VLOOKUP($E$8&$B$9&IF($B80<>"All","All",$B$5)&$B80,'LA FINAL RAW DATA'!$A:$I,7,0)) -> 
J81: =IF(ISERROR(VLOOKUP($E$8&$B$9&IF($B81<>"All","All",$B$5)&$B81,'LA FINAL RAW DATA'!$A:$I,7,0))=TRUE,"",VLOOKUP($E$8&$B$9&IF($B81<>"All","All",$B$5)&$B81,'LA FINAL RAW DATA'!$A:$I,7,0)) -> 
J82: =IF(ISERROR(VLOOKUP($E$8&$B$9&IF($B82<>"All","All",$B$5)&$B82,'LA FINAL RAW DATA'!$A:$I,7,0))=TRUE,"",VLOOKUP($E$8&$B$9&IF($B82<>"All","All",$B$5)&$B82,'LA FINAL RAW DATA'!$A:$I,7,0)) -> 
J83: =IF(ISERROR(VLOOKUP($E$8&$B$9&IF($B83<>"All","All",$B$5)&$B83,'LA FINAL RAW DATA'!$A:$I,7,0))=TRUE,"",VLOOKUP($E$8&$B$9&IF($B83<>"All","All",$B$5)&$B83,'LA FINAL RAW DATA'!$A:$I,7,0)) -> 
J84: =IF(ISERROR(VLOOKUP($E$8&$B$9&IF($B84<>"All","All",$B$5)&$B84,'LA FINAL RAW DATA'!$A:$I,7,0))=TRUE,"",VLOOKUP($E$8&$B$9&IF($B84<>"All","All",$B$5)&$B84,'LA FINAL RAW DATA'!$A:$I,7,0)) -> 
J85: =IF(ISERROR(VLOOKUP($E$8&$B$9&IF($B85<>"All","All",$B$5)&$B85,'LA FINAL RAW DATA'!$A:$I,7,0))=TRUE,"",VLOOKUP($E$8&$B$9&IF($B85<>"All","All",$B$5)&$B85,'LA FINAL RAW DATA'!$A:$I,7,0)) -> 
J86: =IF(ISERROR(VLOOKUP($E$8&$B$9&IF($B86<>"All","All",$B$5)&$B86,'LA FINAL RAW DATA'!$A:$I,7,0))=TRUE,"",VLOOKUP($E$8&$B$9&IF($B86<>"All","All",$B$5)&$B86,'LA FINAL RAW DATA'!$A:$I,7,0)) -> 
J87: =IF(ISERROR(VLOOKUP($E$8&$B$9&IF($B87<>"All","All",$B$5)&$B87,'LA FINAL RAW DATA'!$A:$I,7,0))=TRUE,"",VLOOKUP($E$8&$B$9&IF($B87<>"All","All",$B$5)&$B87,'LA FINAL RAW DATA'!$A:$I,7,0)) -> 
J88: =IF(ISERROR(VLOOKUP($E$8&$B$9&IF($B88<>"All","All",$B$5)&$B88,'LA FINAL RAW DATA'!$A:$I,7,0))=TRUE,"",VLOOKUP($E$8&$B$9&IF($B88<>"All","All",$B$5)&$B88,'LA FINAL RAW DATA'!$A:$I,7,0)) -> 

Sheet Children's Social Care
B2: Statistical First Release - Children's Social Care Provision (excluding inspections of Local Authorities)
D4: Region: | G4: Local Authority:
D5: All | G5: All | I5: =IF(D5="All",TRUE,NOT(ISERROR(MATCH(G5,INDIRECT(SUBSTITUTE(SUBSTITUTE(D5," ","_"),",","")),0)))) -> TRUE
D7: Date: | G7: Provision Type: | J7: Inspection Type:
D8: as at 31 March 2016 | G8: All | J8: Full Inspection
C9: =IF(LEFT(D8,5) = "as at","","year") ->  | D9: =VLOOKUP(D8,Periodlookup,2,0) -> 2016 | H9: =IF(LEFT(D8,5)="as at",TRUE,FALSE) -> TRUE
B10: Sector | C10: Total number of inspections | D10: Inspection Outcomes | H10: Number not inspected | I10: ="Number of Providers as at "&Inspections_To -> Number of Providers as at 31 March 2016 | J10: ="Number of Places as at "&Inspections_To -> Number of Places as at 31 March 2016 | K10: ="No of Joiners between "&Inspections_From&" and "&Inspections_To -> No of Joiners between 01 April 2015 and 31 March 2016 | M10: ="No of Leavers between "&Inspections_From&" and "&Inspections_To -> No of Leavers between 01 April 2015 and 31 March 2016
D11: =VLOOKUP(J8,InspectionOutcomes,2,0) -> Outstanding | E11: =VLOOKUP(J8,InspectionOutcomes,3,0) -> Good | F11: =VLOOKUP(J8,InspectionOutcomes,4,0) -> Requires Improvement | G11: =VLOOKUP(J8,InspectionOutcomes,5,0) -> Inadequate | K11: Providers | L11: Places | M11: Providers | N11: Places
B14: All | C14: =SUM(D14,E14,F14,G14) -> 2644 | D14: =IF(ISERROR(VLOOKUP($G$8&$G$5&$D$5&$B$14&$J$8&$D$9,'Inspection Outcome data'!$A:$L,8,0))=TRUE,0,VLOOKUP($G$8&$G$5&$D$5&$B$14&$J$8&$D$9,'Inspection Outcome data'!$A:$L,8,0)) -> 517 | E14: =IF(ISERROR(VLOOKUP($G$8&$G$5&$D$5&$B$14&$J$8&$D$9,'Inspection Outcome data'!$A:$K,9,0))=TRUE,0,VLOOKUP($G$8&$G$5&$D$5&$B$14&$J$8&$D$9,'Inspection Outcome data'!$A:$K,9,0)) -> 1606 | F14: =IF(ISERROR(VLOOKUP($G$8&$G$5&$D$5&$B$14&$J$8&$D$9,'Inspection Outcome data'!$A:$K,10,0))=TRUE,0,VLOOKUP($G$8&$G$5&$D$5&$B$14&$J$8&$D$9,'Inspection Outcome data'!$A:$K,10,0)) -> 488 | G14: =IF(ISERROR(VLOOKUP($G$8&$G$5&$D$5&$B$14&$J$8&$D$9,'Inspection Outcome data'!$A:$K,11,0))=TRUE,0,VLOOKUP($G$8&$G$5&$D$5&$B$14&$J$8&$D$9,'Inspection Outcome data'!$A:$K,11,0)) -> 33 | H14: =IF($H$9,I14-C14,0) -> 134 | I14: =IF($H$9,IF(ISERROR(VLOOKUP($G$8&$G$5&$D$5&$B$14&$D$9,pandp!$A:$I,8,0))=TRUE,0,VLOOKUP($G$8&$G$5&$D$5&$B$14&$D$9,pandp!$A:$I,8,0)),"") -> 2778 | J14: =IF($H$9,IF(ISERROR(VLOOKUP($G$8&$G$5&$D$5&$B$14&$D$9,pandp!$A:$K,9,0))=TRUE,0,VLOOKUP($G$8&$G$5&$D$5&$B$14&$D$9,pandp!$A:$K,9,0)),"") -> 33289 | K14: =IF($H$9,IF(ISERROR(VLOOKUP($G$8&$G$5&$D$5&$B14&$D$9,pandpjoiners!$A:$I,8,0))=TRUE,0,VLOOKUP($G$8&$G$5&$D$5&$B14&$D$9,pandpjoiners!$A:$I,8,0)),"") -> 189 | L14: =IF($H$9,IF(ISERROR(VLOOKUP($G$8&$G$5&$D$5&$B14&$D$9,pandpjoiners!$A:$I,9,0))=TRUE,0,VLOOKUP($G$8&$G$5&$D$5&$B14&$D$9,pandpjoiners!$A:$I,9,0)),"") -> 1397 | M14: =IF($H$9,IF(ISERROR(VLOOKUP($G$8&$G$5&$D$5&$B14&$D$9,pandpleavers!$A:$I,8,0))=TRUE,0,VLOOKUP($G$8&$G$5&$D$5&$B14&$D$9,pandpleavers!$A:$I,8,0)),"") -> 195 | N14: =IF($H$9,IF(ISERROR(VLOOKUP($G$8&$G$5&$D$5&$B14&$D$9,pandpleavers!$A:$I,9,0))=TRUE,0,VLOOKUP($G$8&$G$5&$D$5&$B14&$D$9,pandpleavers!$A:$I,9,0)),"") -> 1606
B16: Local Authority | C16: =SUM(D16,E16,F16,G16) -> 543 | D16: =IF(ISERROR(VLOOKUP($G$8&$G$5&$D$5&$B$16&$J$8&$D$9,'Inspection Outcome data'!$A:$L,8,0))=TRUE,0,VLOOKUP($G$8&$G$5&$D$5&$B$16&$J$8&$D$9,'Inspection Outcome data'!$A:$L,8,0)) -> 149 | E16: =IF(ISERROR(VLOOKUP($G$8&$G$5&$D$5&$B$16&$J$8&$D$9,'Inspection Outcome data'!$A:$K,9,0))=TRUE,0,VLOOKUP($G$8&$G$5&$D$5&$B$16&$J$8&$D$9,'Inspection Outcome data'!$A:$K,9,0)) -> 295 | F16: =IF(ISERROR(VLOOKUP($G$8&$G$5&$D$5&$B$16&$J$8&$D$9,'Inspection Outcome data'!$A:$K,10,0))=TRUE,0,VLOOKUP($G$8&$G$5&$D$5&$B$16&$J$8&$D$9,'Inspection Outcome data'!$A:$K,10,0)) -> 95 | G16: =IF(ISERROR(VLOOKUP($G$8&$G$5&$D$5&$B$16&$J$8&$D$9,'Inspection Outcome data'!$A:$K,11,0))=TRUE,0,VLOOKUP($G$8&$G$5&$D$5&$B$16&$J$8&$D$9,'Inspection Outcome data'!$A:$K,11,0)) -> 4 | H16: =IF($H$9,I16-C16,0) -> 3 | I16: =IF($H$9,IF(ISERROR(VLOOKUP($G$8&$G$5&$D$5&$B16&$D$9,pandp!$A:$J,8,0))=TRUE,0,VLOOKUP($G$8&$G$5&$D$5&$B16&$D$9,pandp!$A:$J,8,0)),"") -> 546 | J16: =IF($H$9,IF(ISERROR(VLOOKUP($G$8&$G$5&$D$5&$B16&$D$9,pandp!$A:$K,9,0))=TRUE,0,VLOOKUP($G$8&$G$5&$D$5&$B16&$D$9,pandp!$A:$K,9,0)),"") -> 6560 | K16: =IF($H$9,IF(ISERROR(VLOOKUP($G$8&$G$5&$D$5&$B16&$D$9,pandpjoiners!$A:$I,8,0))=TRUE,0,VLOOKUP($G$8&$G$5&$D$5&$B16&$D$9,pandpjoiners!$A:$I,8,0)),"") -> 8 | L16: =IF($H$9,IF(ISERROR(VLOOKUP($G$8&$G$5&$D$5&$B16&$D$9,pandpjoiners!$A:$I,9,0))=TRUE,0,VLOOKUP($G$8&$G$5&$D$5&$B16&$D$9,pandpjoiners!$A:$I,9,0)),"") -> 46 | M16: =IF($H$9,IF(ISERROR(VLOOKUP($G$8&$G$5&$D$5&$B16&$D$9,pandpleavers!$A:$I,8,0))=TRUE,0,VLOOKUP($G$8&$G$5&$D$5&$B16&$D$9,pandpleavers!$A:$I,8,0)),"") -> 33 | N16: =IF($H$9,IF(ISERROR(VLOOKUP($G$8&$G$5&$D$5&$B16&$D$9,pandpleavers!$A:$I,9,0))=TRUE,0,VLOOKUP($G$8&$G$5&$D$5&$B16&$D$9,pandpleavers!$A:$I,9,0)),"") -> 321
B18: Private | C18: =SUM(D18,E18,F18,G18) -> 1674 | D18: =IF(ISERROR(VLOOKUP($G$8&$G$5&$D$5&$B$18&$J$8&$D$9,'Inspection Outcome data'!$A:$K,8,0))=TRUE,0,VLOOKUP($G$8&$G$5&$D$5&$B$18&$J$8&$D$9,'Inspection Outcome data'!$A:$K,8,0)) -> 252 | E18: =IF(ISERROR(VLOOKUP($G$8&$G$5&$D$5&$B$18&$J$8&$D$9,'Inspection Outcome data'!$A:$K,9,0))=TRUE,0,VLOOKUP($G$8&$G$5&$D$5&$B$18&$J$8&$D$9,'Inspection Outcome data'!$A:$K,9,0)) -> 1065 | F18: =IF(ISERROR(VLOOKUP($G$8&$G$5&$D$5&$B$18&$J$8&$D$9,'Inspection Outcome data'!$A:$K,10,0))=TRUE,0,VLOOKUP($G$8&$G$5&$D$5&$B$18&$J$8&$D$9,'Inspection Outcome data'!$A:$K,10,0)) -> 339 | G18: =IF(ISERROR(VLOOKUP($G$8&$G$5&$D$5&$B$18&$J$8&$D$9,'Inspection Outcome data'!$A:$K,11,0))=TRUE,0,VLOOKUP($G$8&$G$5&$D$5&$B$18&$J$8&$D$9,'Inspection Outcome data'!$A:$K,11,0)) -> 18 | H18: =IF($H$9,I18-C18,0) -> 118 | I18: =IF($H$9,IF(ISERROR(VLOOKUP($G$8&$G$5&$D$5&$B18&$D$9,pandp!$A:$J,8,0))=TRUE,0,VLOOKUP($G$8&$G$5&$D$5&$B18&$D$9,pandp!$A:$J,8,0)),"") -> 1792 | J18: =IF($H$9,IF(ISERROR(VLOOKUP($G$8&$G$5&$D$5&$B18&$D$9,pandp!$A:$K,9,0))=TRUE,0,VLOOKUP($G$8&$G$5&$D$5&$B18&$D$9,pandp!$A:$K,9,0)),"") -> 12703 | K18: =IF($H$9,IF(ISERROR(VLOOKUP($G$8&$G$5&$D$5&$B18&$D$9,pandpjoiners!$A:$I,8,0))=TRUE,0,VLOOKUP($G$8&$G$5&$D$5&$B18&$D$9,pandpjoiners!$A:$I,8,0)),"") -> 165 | L18: =IF($H$9,IF(ISERROR(VLOOKUP($G$8&$G$5&$D$5&$B18&$D$9,pandpjoiners!$A:$I,9,0))=TRUE,0,VLOOKUP($G$8&$G$5&$D$5&$B18&$D$9,pandpjoiners!$A:$I,9,0)),"") -> 1274 | M18: =IF($H$9,IF(ISERROR(VLOOKUP($G$8&$G$5&$D$5&$B18&$D$9,pandpleavers!$A:$I,8,0))=TRUE,0,VLOOKUP($G$8&$G$5&$D$5&$B18&$D$9,pandpleavers!$A:$I,8,0)),"") -> 132 | N18: =IF($H$9,IF(ISERROR(VLOOKUP($G$8&$G$5&$D$5&$B18&$D$9,pandpleavers!$A:$I,9,0))=TRUE,0,VLOOKUP($G$8&$G$5&$D$5&$B18&$D$9,pandpleavers!$A:$I,9,0)),"") -> 890
B20: Voluntary | C20: =SUM(D20,E20,F20,G20) -> 373 | D20: =IF(ISERROR(VLOOKUP($G$8&$G$5&$D$5&$B$20&$J$8&$D$9,'Inspection Outcome data'!$A:$K,8,0))=TRUE,0,VLOOKUP($G$8&$G$5&$D$5&$B$20&$J$8&$D$9,'Inspection Outcome data'!$A:$K,8,0)) -> 95 | E20: =IF(ISERROR(VLOOKUP($G$8&$G$5&$D$5&$B$20&$J$8&$D$9,'Inspection Outcome data'!$A:$K,9,0))=TRUE,0,VLOOKUP($G$8&$G$5&$D$5&$B$20&$J$8&$D$9,'Inspection Outcome data'!$A:$K,9,0)) -> 219 | F20: =IF(ISERROR(VLOOKUP($G$8&$G$5&$D$5&$B$20&$J$8&$D$9,'Inspection Outcome data'!$A:$K,10,0))=TRUE,0,VLOOKUP($G$8&$G$5&$D$5&$B$20&$J$8&$D$9,'Inspection Outcome data'!$A:$K,10,0)) -> 50 | G20: =IF(ISERROR(VLOOKUP($G$8&$G$5&$D$5&$B$20&$J$8&$D$9,'Inspection Outcome data'!$A:$K,11,0))=TRUE,0,VLOOKUP($G$8&$G$5&$D$5&$B$20&$J$8&$D$9,'Inspection Outcome data'!$A:$K,11,0)) -> 9 | H20: =IF($H$9,I20-C20,0) -> 12 | I20: =IF($H$9,IF(ISERROR(VLOOKUP($G$8&$G$5&$D$5&$B20&$D$9,pandp!$A:$J,8,0))=TRUE,0,VLOOKUP($G$8&$G$5&$D$5&$B20&$D$9,pandp!$A:$J,8,0)),"") -> 385 | J20: =IF($H$9,IF(ISERROR(VLOOKUP($G$8&$G$5&$D$5&$B20&$D$9,pandp!$A:$K,9,0))=TRUE,0,VLOOKUP($G$8&$G$5&$D$5&$B20&$D$9,pandp!$A:$K,9,0)),"") -> 9335 | K20: =IF($H$9,IF(ISERROR(VLOOKUP($G$8&$G$5&$D$5&$B20&$D$9,pandpjoiners!$A:$I,8,0))=TRUE,0,VLOOKUP($G$8&$G$5&$D$5&$B20&$D$9,pandpjoiners!$A:$I,8,0)),"") -> 15 | L20: =IF($H$9,IF(ISERROR(VLOOKUP($G$8&$G$5&$D$5&$B20&$D$9,pandpjoiners!$A:$I,9,0))=TRUE,0,VLOOKUP($G$8&$G$5&$D$5&$B20&$D$9,pandpjoiners!$A:$I,9,0)),"") -> 50 | M20: =IF($H$9,IF(ISERROR(VLOOKUP($G$8&$G$5&$D$5&$B20&$D$9,pandpleavers!$A:$I,8,0))=TRUE,0,VLOOKUP($G$8&$G$5&$D$5&$B20&$D$9,pandpleavers!$A:$I,8,0)),"") -> 29 | N20: =IF($H$9,IF(ISERROR(VLOOKUP($G$8&$G$5&$D$5&$B20&$D$9,pandpleavers!$A:$I,9,0))=TRUE,0,VLOOKUP($G$8&$G$5&$D$5&$B20&$D$9,pandpleavers!$A:$I,9,0)),"") -> 385
B22: Academy | C22: =SUM(D22,E22,F22,G22) -> 45 | D22: =IF(ISERROR(VLOOKUP($G$8&$G$5&$D$5&$B$22&$J$8&$D$9,'Inspection Outcome data'!$A:$K,8,0))=TRUE,0,VLOOKUP($G$8&$G$5&$D$5&$B$22&$J$8&$D$9,'Inspection Outcome data'!$A:$K,8,0)) -> 20 | E22: =IF(ISERROR(VLOOKUP($G$8&$G$5&$D$5&$B$22&$J$8&$D$9,'Inspection Outcome data'!$A:$K,9,0))=TRUE,0,VLOOKUP($G$8&$G$5&$D$5&$B$22&$J$8&$D$9,'Inspection Outcome data'!$A:$K,9,0)) -> 19 | F22: =IF(ISERROR(VLOOKUP($G$8&$G$5&$D$5&$B$22&$J$8&$D$9,'Inspection Outcome data'!$A:$K,10,0))=TRUE,0,VLOOKUP($G$8&$G$5&$D$5&$B$22&$J$8&$D$9,'Inspection Outcome data'!$A:$K,10,0)) -> 4 | G22: =IF(ISERROR(VLOOKUP($G$8&$G$5&$D$5&$B$22&$J$8&$D$9,'Inspection Outcome data'!$A:$K,11,0))=TRUE,0,VLOOKUP($G$8&$G$5&$D$5&$B$22&$J$8&$D$9,'Inspection Outcome data'!$A:$K,11,0)) -> 2 | H22: =IF($H$9,I22-C22,0) -> 1 | I22: =IF($H$9,IF(ISERROR(VLOOKUP($G$8&$G$5&$D$5&$B22&$D$9,pandp!$A:$J,8,0))=TRUE,0,VLOOKUP($G$8&$G$5&$D$5&$B22&$D$9,pandp!$A:$J,8,0)),"") -> 46 | J22: =IF($H$9,IF(ISERROR(VLOOKUP($G$8&$G$5&$D$5&$B22&$D$9,pandp!$A:$K,9,0))=TRUE,0,VLOOKUP($G$8&$G$5&$D$5&$B22&$D$9,pandp!$A:$K,9,0)),"") -> 4638 | K22: =IF($H$9,IF(ISERROR(VLOOKUP($G$8&$G$5&$D$5&$B22&$D$9,pandpjoiners!$A:$I,8,0))=TRUE,0,VLOOKUP($G$8&$G$5&$D$5&$B22&$D$9,pandpjoiners!$A:$I,8,0)),"") -> 1 | L22: =IF($H$9,IF(ISERROR(VLOOKUP($G$8&$G$5&$D$5&$B22&$D$9,pandpjoiners!$A:$I,9,0))=TRUE,0,VLOOKUP($G$8&$G$5&$D$5&$B22&$D$9,pandpjoiners!$A:$I,9,0)),"") -> 27 | M22: =IF($H$9,IF(ISERROR(VLOOKUP($G$8&$G$5&$D$5&$B22&$D$9,pandpleavers!$A:$I,8,0))=TRUE,0,VLOOKUP($G$8&$G$5&$D$5&$B22&$D$9,pandpleavers!$A:$I,8,0)),"") -> 1 | N22: =IF($H$9,IF(ISERROR(VLOOKUP($G$8&$G$5&$D$5&$B22&$D$9,pandpleavers!$A:$I,9,0))=TRUE,0,VLOOKUP($G$8&$G$5&$D$5&$B22&$D$9,pandpleavers!$A:$I,9,0)),"") -> 10
B24: Health Authority | C24: =SUM(D24,E24,F24,G24) -> 9 | D24: =IF(ISERROR(VLOOKUP($G$8&$G$5&$D$5&$B$24&$J$8&$D$9,'Inspection Outcome data'!$A:$K,8,0))=TRUE,0,VLOOKUP($G$8&$G$5&$D$5&$B$24&$J$8&$D$9,'Inspection Outcome data'!$A:$K,8,0)) -> 1 | E24: =IF(ISERROR(VLOOKUP($G$8&$G$5&$D$5&$B$24&$J$8&$D$9,'Inspection Outcome data'!$A:$K,9,0))=TRUE,0,VLOOKUP($G$8&$G$5&$D$5&$B$24&$J$8&$D$9,'Inspection Outcome data'!$A:$K,9,0)) -> 8 | F24: =IF(ISERROR(VLOOKUP($G$8&$G$5&$D$5&$B$24&$J$8&$D$9,'Inspection Outcome data'!$A:$K,10,0))=TRUE,0,VLOOKUP($G$8&$G$5&$D$5&$B$24&$J$8&$D$9,'Inspection Outcome data'!$A:$K,10,0)) -> 0 | G24: =IF(ISERROR(VLOOKUP($G$8&$G$5&$D$5&$B$24&$J$8&$D$9,'Inspection Outcome data'!$A:$K,11,0))=TRUE,0,VLOOKUP($G$8&$G$5&$D$5&$B$24&$J$8&$D$9,'Inspection Outcome data'!$A:$K,11,0)) -> 0 | H24: =IF($H$9,I24-C24,0) -> 0 | I24: =IF($H$9,IF(ISERROR(VLOOKUP($G$8&$G$5&$D$5&$B24&$D$9,pandp!$A:$J,8,0))=TRUE,0,VLOOKUP($G$8&$G$5&$D$5&$B24&$D$9,pandp!$A:$J,8,0)),"") -> 9 | J24: =IF($H$9,IF(ISERROR(VLOOKUP($G$8&$G$5&$D$5&$B24&$D$9,pandp!$A:$K,9,0))=TRUE,0,VLOOKUP($G$8&$G$5&$D$5&$B24&$D$9,pandp!$A:$K,9,0)),"") -> 53 | K24: =IF($H$9,IF(ISERROR(VLOOKUP($G$8&$G$5&$D$5&$B24&$D$9,pandpjoiners!$A:$I,8,0))=TRUE,0,VLOOKUP($G$8&$G$5&$D$5&$B24&$D$9,pandpjoiners!$A:$I,8,0)),"") -> 0 | L24: =IF($H$9,IF(ISERROR(VLOOKUP($G$8&$G$5&$D$5&$B24&$D$9,pandpjoiners!$A:$I,9,0))=TRUE,0,VLOOKUP($G$8&$G$5&$D$5&$B24&$D$9,pandpjoiners!$A:$I,9,0)),"") -> 0 | M24: =IF($H$9,IF(ISERROR(VLOOKUP($G$8&$G$5&$D$5&$B24&$D$9,pandpleavers!$A:$I,8,0))=TRUE,0,VLOOKUP($G$8&$G$5&$D$5&$B24&$D$9,pandpleavers!$A:$I,8,0)),"") -> 0 | N24: =IF($H$9,IF(ISERROR(VLOOKUP($G$8&$G$5&$D$5&$B24&$D$9,pandpleavers!$A:$I,9,0))=TRUE,0,VLOOKUP($G$8&$G$5&$D$5&$B24&$D$9,pandpleavers!$A:$I,9,0)),"") -> 0
B29: =IF(D5<>"All",D5,IF(ddla<>"All",VLOOKUP(ddla,'Region Lookups'!C:D,2,0),"All")) -> All
F30: 8 | H30: 9 | J30: 10 | M30: 11
D31: Total number inspected | F31: Outstanding | H31: Good | J31: Requires Improvement | M31: Inadequate
F32: 6 | H32: 7 | J32: 8 | M32: 9
B33: England | D33: =SUM(F33:M33) -> 2644 | F33: =IF(ISERROR(VLOOKUP($G$8&"All"&"All"&"All"&$J$8&$D$9,'Inspection Outcome data'!$A:$K,8,0))=TRUE,0,VLOOKUP($G$8&"All"&"All"&"All"&$J$8&$D$9,'Inspection Outcome data'!$A:$K,8,0)) -> 517 | H33: =IF(ISERROR(VLOOKUP($G$8&"All"&"All"&"All"&$J$8&$D$9,'Inspection Outcome data'!$A:$K,9,0))=TRUE,0,VLOOKUP($G$8&"All"&"All"&"All"&$J$8&$D$9,'Inspection Outcome data'!$A:$K,9,0)) -> 1606 | J33: =IF(ISERROR(VLOOKUP($G$8&"All"&"All"&"All"&$J$8&$D$9,'Inspection Outcome data'!$A:$K,10,0))=TRUE,0,VLOOKUP($G$8&"All"&"All"&"All"&$J$8&$D$9,'Inspection Outcome data'!$A:$K,10,0)) -> 488 | M33: =IF(ISERROR(VLOOKUP($G$8&"All"&"All"&"All"&$J$8&$D$9,'Inspection Outcome data'!$A:$K,11,0))=TRUE,0,VLOOKUP($G$8&"All"&"All"&"All"&$J$8&$D$9,'Inspection Outcome data'!$A:$K,11,0)) -> 33
B35: =IFERROR(IF(B29="All",NA(),B29),"") ->  | D35: =IF(ISERROR(VLOOKUP($G$8&"All"&$B$35&$B$14&$J$8&$D$9,'Inspection Outcome data'!$A:$K,8,0)),IF(B37="","",0),SUM(F35:M35)) ->  | F35: =IFERROR(VLOOKUP($G$8&"All"&$B$35&$B$14&$J$8&$D$9,'Inspection Outcome data'!$A:$K,F$30,0),IF(B35="","",0)) ->  | H35: =IFERROR(VLOOKUP($G$8&"All"&$B$35&$B$14&$J$8&$D$9,'Inspection Outcome data'!$A:$K,H$30,0),IF(D35="","",0)) ->  | J35: =IFERROR(VLOOKUP($G$8&"All"&$B$35&$B$14&$J$8&$D$9,'Inspection Outcome data'!$A:$K,J$30,0),IF(F35="","",0)) ->  | M35: =IFERROR(VLOOKUP($G$8&"All"&$B$35&$B$14&$J$8&$D$9,'Inspection Outcome data'!$A:$K,M$30,0),IF(I35="","",0)) -> 
A36: 1 | B36: =IFERROR(VLOOKUP($B$29&A36,'Region Lookups'!A:C,3,0),"") ->  | D36: =IF(ISERROR(VLOOKUP($G$8&$B36&"All"&$B$14&$J$8&$D$9,'Inspection Outcome data'!$A:$K,8,0)),IF(B36="","",0),SUM(F36:M36)) ->  | F36: =IFERROR(VLOOKUP($G$8&$B36&"All"&$B$14&$J$8&$D$9,'Inspection Outcome data'!$A:$K,8,0),IF(B36="","",0)) ->  | H36: =IFERROR(VLOOKUP($G$8&$B36&"All"&$B$14&$J$8&$D$9,'Inspection Outcome data'!$A:$K,9,0),IF(B36="","",0)) ->  | J36: =IFERROR(VLOOKUP($G$8&$B36&"All"&$B$14&$J$8&$D$9,'Inspection Outcome data'!$A:$K,10,0),IF(B36="","",0)) ->  | M36: =IFERROR(VLOOKUP($G$8&$B36&"All"&$B$14&$J$8&$D$9,'Inspection Outcome data'!$A:$K,11,0),IF(B36="","",0)) -> 
A37: 2 | B37: =IFERROR(VLOOKUP($B$29&A37,'Region Lookups'!A:C,3,0),"") ->  | D37: =IF(ISERROR(VLOOKUP($G$8&$B37&"All"&$B$14&$J$8&$D$9,'Inspection Outcome data'!$A:$K,8,0)),IF(B37="","",0),SUM(F37:M37)) ->  | F37: =IFERROR(VLOOKUP($G$8&$B37&"All"&$B$14&$J$8&$D$9,'Inspection Outcome data'!$A:$K,8,0),IF(B37="","",0)) ->  | H37: =IFERROR(VLOOKUP($G$8&$B37&"All"&$B$14&$J$8&$D$9,'Inspection Outcome data'!$A:$K,9,0),IF(B37="","",0)) ->  | J37: =IFERROR(VLOOKUP($G$8&$B37&"All"&$B$14&$J$8&$D$9,'Inspection Outcome data'!$A:$K,10,0),IF(B37="","",0)) ->  | M37: =IFERROR(VLOOKUP($G$8&$B37&"All"&$B$14&$J$8&$D$9,'Inspection Outcome data'!$A:$K,11,0),IF(B37="","",0)) -> 
A38: 3 | B38: =IFERROR(VLOOKUP($B$29&A38,'Region Lookups'!A:C,3,0),"") ->  | D38: =IF(ISERROR(VLOOKUP($G$8&$B38&"All"&$B$14&$J$8&$D$9,'Inspection Outcome data'!$A:$K,8,0)),IF(B38="","",0),SUM(F38:M38)) ->  | F38: =IFERROR(VLOOKUP($G$8&$B38&"All"&$B$14&$J$8&$D$9,'Inspection Outcome data'!$A:$K,8,0),IF(B38="","",0)) ->  | H38: =IFERROR(VLOOKUP($G$8&$B38&"All"&$B$14&$J$8&$D$9,'Inspection Outcome data'!$A:$K,9,0),IF(B38="","",0)) ->  | J38: =IFERROR(VLOOKUP($G$8&$B38&"All"&$B$14&$J$8&$D$9,'Inspection Outcome data'!$A:$K,10,0),IF(B38="","",0)) ->  | M38: =IFERROR(VLOOKUP($G$8&$B38&"All"&$B$14&$J$8&$D$9,'Inspection Outcome data'!$A:$K,11,0),IF(B38="","",0)) -> 
A39: 4 | B39: =IFERROR(VLOOKUP($B$29&A39,'Region Lookups'!A:C,3,0),"") ->  | D39: =IF(ISERROR(VLOOKUP($G$8&$B39&"All"&$B$14&$J$8&$D$9,'Inspection Outcome data'!$A:$K,8,0)),IF(B39="","",0),SUM(F39:M39)) ->  | F39: =IFERROR(VLOOKUP($G$8&$B39&"All"&$B$14&$J$8&$D$9,'Inspection Outcome data'!$A:$K,8,0),IF(B39="","",0)) ->  | H39: =IFERROR(VLOOKUP($G$8&$B39&"All"&$B$14&$J$8&$D$9,'Inspection Outcome data'!$A:$K,9,0),IF(B39="","",0)) ->  | J39: =IFERROR(VLOOKUP($G$8&$B39&"All"&$B$14&$J$8&$D$9,'Inspection Outcome data'!$A:$K,10,0),IF(B39="","",0)) ->  | M39: =IFERROR(VLOOKUP($G$8&$B39&"All"&$B$14&$J$8&$D$9,'Inspection Outcome data'!$A:$K,11,0),IF(B39="","",0)) -> 
A40: 5 | B40: =IFERROR(VLOOKUP($B$29&A40,'Region Lookups'!A:C,3,0),"") ->  | D40: =IF(ISERROR(VLOOKUP($G$8&$B40&"All"&$B$14&$J$8&$D$9,'Inspection Outcome data'!$A:$K,8,0)),IF(B40="","",0),SUM(F40:M40)) ->  | F40: =IFERROR(VLOOKUP($G$8&$B40&"All"&$B$14&$J$8&$D$9,'Inspection Outcome data'!$A:$K,8,0),IF(B40="","",0)) ->  | H40: =IFERROR(VLOOKUP($G$8&$B40&"All"&$B$14&$J$8&$D$9,'Inspection Outcome data'!$A:$K,9,0),IF(B40="","",0)) ->  | J40: =IFERROR(VLOOKUP($G$8&$B40&"All"&$B$14&$J$8&$D$9,'Inspection Outcome data'!$A:$K,10,0),IF(B40="","",0)) ->  | M40: =IFERROR(VLOOKUP($G$8&$B40&"All"&$B$14&$J$8&$D$9,'Inspection Outcome data'!$A:$K,11,0),IF(B40="","",0)) -> 
A41: 6 | B41: =IFERROR(VLOOKUP($B$29&A41,'Region Lookups'!A:C,3,0),"") ->  | D41: =IF(ISERROR(VLOOKUP($G$8&$B41&"All"&$B$14&$J$8&$D$9,'Inspection Outcome data'!$A:$K,8,0)),IF(B41="","",0),SUM(F41:M41)) ->  | F41: =IFERROR(VLOOKUP($G$8&$B41&"All"&$B$14&$J$8&$D$9,'Inspection Outcome data'!$A:$K,8,0),IF(B41="","",0)) ->  | H41: =IFERROR(VLOOKUP($G$8&$B41&"All"&$B$14&$J$8&$D$9,'Inspection Outcome data'!$A:$K,9,0),IF(B41="","",0)) ->  | J41: =IFERROR(VLOOKUP($G$8&$B41&"All"&$B$14&$J$8&$D$9,'Inspection Outcome data'!$A:$K,10,0),IF(B41="","",0)) ->  | M41: =IFERROR(VLOOKUP($G$8&$B41&"All"&$B$14&$J$8&$D$9,'Inspection Outcome data'!$A:$K,11,0),IF(B41="","",0)) -> 
A42: 7 | B42: =IFERROR(VLOOKUP($B$29&A42,'Region Lookups'!A:C,3,0),"") ->  | D42: =IF(ISERROR(VLOOKUP($G$8&$B42&"All"&$B$14&$J$8&$D$9,'Inspection Outcome data'!$A:$K,8,0)),IF(B42="","",0),SUM(F42:M42)) ->  | F42: =IFERROR(VLOOKUP($G$8&$B42&"All"&$B$14&$J$8&$D$9,'Inspection Outcome data'!$A:$K,8,0),IF(B42="","",0)) ->  | H42: =IFERROR(VLOOKUP($G$8&$B42&"All"&$B$14&$J$8&$D$9,'Inspection Outcome data'!$A:$K,9,0),IF(B42="","",0)) ->  | J42: =IFERROR(VLOOKUP($G$8&$B42&"All"&$B$14&$J$8&$D$9,'Inspection Outcome data'!$A:$K,10,0),IF(B42="","",0)) ->  | M42: =IFERROR(VLOOKUP($G$8&$B42&"All"&$B$14&$J$8&$D$9,'Inspection Outcome data'!$A:$K,11,0),IF(B42="","",0)) -> 
A43: 8 | B43: =IFERROR(VLOOKUP($B$29&A43,'Region Lookups'!A:C,3,0),"") ->  | D43: =IF(ISERROR(VLOOKUP($G$8&$B43&"All"&$B$14&$J$8&$D$9,'Inspection Outcome data'!$A:$K,8,0)),IF(B43="","",0),SUM(F43:M43)) ->  | F43: =IFERROR(VLOOKUP($G$8&$B43&"All"&$B$14&$J$8&$D$9,'Inspection Outcome data'!$A:$K,8,0),IF(B43="","",0)) ->  | H43: =IFERROR(VLOOKUP($G$8&$B43&"All"&$B$14&$J$8&$D$9,'Inspection Outcome data'!$A:$K,9,0),IF(B43="","",0)) ->  | J43: =IFERROR(VLOOKUP($G$8&$B43&"All"&$B$14&$J$8&$D$9,'Inspection Outcome data'!$A:$K,10,0),IF(B43="","",0)) ->  | M43: =IFERROR(VLOOKUP($G$8&$B43&"All"&$B$14&$J$8&$D$9,'Inspection Outcome data'!$A:$K,11,0),IF(B43="","",0)) -> 
A44: 9 | B44: =IFERROR(VLOOKUP($B$29&A44,'Region Lookups'!A:C,3,0),"") ->  | D44: =IF(ISERROR(VLOOKUP($G$8&$B44&"All"&$B$14&$J$8&$D$9,'Inspection Outcome data'!$A:$K,8,0)),IF(B44="","",0),SUM(F44:M44)) ->  | F44: =IFERROR(VLOOKUP($G$8&$B44&"All"&$B$14&$J$8&$D$9,'Inspection Outcome data'!$A:$K,8,0),IF(B44="","",0)) ->  | H44: =IFERROR(VLOOKUP($G$8&$B44&"All"&$B$14&$J$8&$D$9,'Inspection Outcome data'!$A:$K,9,0),IF(B44="","",0)) ->  | J44: =IFERROR(VLOOKUP($G$8&$B44&"All"&$B$14&$J$8&$D$9,'Inspection Outcome data'!$A:$K,10,0),IF(B44="","",0)) ->  | M44: =IFERROR(VLOOKUP($G$8&$B44&"All"&$B$14&$J$8&$D$9,'Inspection Outcome data'!$A:$K,11,0),IF(B44="","",0)) -> 
A45: 10 | B45: =IFERROR(VLOOKUP($B$29&A45,'Region Lookups'!A:C,3,0),"") ->  | D45: =IF(ISERROR(VLOOKUP($G$8&$B45&"All"&$B$14&$J$8&$D$9,'Inspection Outcome data'!$A:$K,8,0)),IF(B45="","",0),SUM(F45:M45)) ->  | F45: =IFERROR(VLOOKUP($G$8&$B45&"All"&$B$14&$J$8&$D$9,'Inspection Outcome data'!$A:$K,8,0),IF(B45="","",0)) ->  | H45: =IFERROR(VLOOKUP($G$8&$B45&"All"&$B$14&$J$8&$D$9,'Inspection Outcome data'!$A:$K,9,0),IF(B45="","",0)) ->  | J45: =IFERROR(VLOOKUP($G$8&$B45&"All"&$B$14&$J$8&$D$9,'Inspection Outcome data'!$A:$K,10,0),IF(B45="","",0)) ->  | M45: =IFERROR(VLOOKUP($G$8&$B45&"All"&$B$14&$J$8&$D$9,'Inspection Outcome data'!$A:$K,11,0),IF(B45="","",0)) -> 
A46: 11 | B46: =IFERROR(VLOOKUP($B$29&A46,'Region Lookups'!A:C,3,0),"") ->  | D46: =IF(ISERROR(VLOOKUP($G$8&$B46&"All"&$B$14&$J$8&$D$9,'Inspection Outcome data'!$A:$K,8,0)),IF(B46="","",0),SUM(F46:M46)) ->  | F46: =IFERROR(VLOOKUP($G$8&$B46&"All"&$B$14&$J$8&$D$9,'Inspection Outcome data'!$A:$K,8,0),IF(B46="","",0)) ->  | H46: =IFERROR(VLOOKUP($G$8&$B46&"All"&$B$14&$J$8&$D$9,'Inspection Outcome data'!$A:$K,9,0),IF(B46="","",0)) ->  | J46: =IFERROR(VLOOKUP($G$8&$B46&"All"&$B$14&$J$8&$D$9,'Inspection Outcome data'!$A:$K,10,0),IF(B46="","",0)) ->  | M46: =IFERROR(VLOOKUP($G$8&$B46&"All"&$B$14&$J$8&$D$9,'Inspection Outcome data'!$A:$K,11,0),IF(B46="","",0)) -> 
A47: 12 | B47: =IFERROR(VLOOKUP($B$29&A47,'Region Lookups'!A:C,3,0),"") ->  | D47: =IF(ISERROR(VLOOKUP($G$8&$B47&"All"&$B$14&$J$8&$D$9,'Inspection Outcome data'!$A:$K,8,0)),IF(B47="","",0),SUM(F47:M47)) ->  | F47: =IFERROR(VLOOKUP($G$8&$B47&"All"&$B$14&$J$8&$D$9,'Inspection Outcome data'!$A:$K,8,0),IF(B47="","",0)) ->  | H47: =IFERROR(VLOOKUP($G$8&$B47&"All"&$B$14&$J$8&$D$9,'Inspection Outcome data'!$A:$K,9,0),IF(B47="","",0)) ->  | J47: =IFERROR(VLOOKUP($G$8&$B47&"All"&$B$14&$J$8&$D$9,'Inspection Outcome data'!$A:$K,10,0),IF(B47="","",0)) ->  | M47: =IFERROR(VLOOKUP($G$8&$B47&"All"&$B$14&$J$8&$D$9,'Inspection Outcome data'!$A:$K,11,0),IF(B47="","",0)) -> 
A48: 13 | B48: =IFERROR(VLOOKUP($B$29&A48,'Region Lookups'!A:C,3,0),"") ->  | D48: =IF(ISERROR(VLOOKUP($G$8&$B48&"All"&$B$14&$J$8&$D$9,'Inspection Outcome data'!$A:$K,8,0)),IF(B48="","",0),SUM(F48:M48)) ->  | F48: =IFERROR(VLOOKUP($G$8&$B48&"All"&$B$14&$J$8&$D$9,'Inspection Outcome data'!$A:$K,8,0),IF(B48="","",0)) ->  | H48: =IFERROR(VLOOKUP($G$8&$B48&"All"&$B$14&$J$8&$D$9,'Inspection Outcome data'!$A:$K,9,0),IF(B48="","",0)) ->  | J48: =IFERROR(VLOOKUP($G$8&$B48&"All"&$B$14&$J$8&$D$9,'Inspection Outcome data'!$A:$K,10,0),IF(B48="","",0)) ->  | M48: =IFERROR(VLOOKUP($G$8&$B48&"All"&$B$14&$J$8&$D$9,'Inspection Outcome data'!$A:$K,11,0),IF(B48="","",0)) -> 
A49: 14 | B49: =IFERROR(VLOOKUP($B$29&A49,'Region Lookups'!A:C,3,0),"") ->  | D49: =IF(ISERROR(VLOOKUP($G$8&$B49&"All"&$B$14&$J$8&$D$9,'Inspection Outcome data'!$A:$K,8,0)),IF(B49="","",0),SUM(F49:M49)) ->  | F49: =IFERROR(VLOOKUP($G$8&$B49&"All"&$B$14&$J$8&$D$9,'Inspection Outcome data'!$A:$K,8,0),IF(B49="","",0)) ->  | H49: =IFERROR(VLOOKUP($G$8&$B49&"All"&$B$14&$J$8&$D$9,'Inspection Outcome data'!$A:$K,9,0),IF(B49="","",0)) ->  | J49: =IFERROR(VLOOKUP($G$8&$B49&"All"&$B$14&$J$8&$D$9,'Inspection Outcome data'!$A:$K,10,0),IF(B49="","",0)) ->  | M49: =IFERROR(VLOOKUP($G$8&$B49&"All"&$B$14&$J$8&$D$9,'Inspection Outcome data'!$A:$K,11,0),IF(B49="","",0)) -> 
A50: 15 | B50: =IFERROR(VLOOKUP($B$29&A50,'Region Lookups'!A:C,3,0),"") ->  | D50: =IF(ISERROR(VLOOKUP($G$8&$B50&"All"&$B$14&$J$8&$D$9,'Inspection Outcome data'!$A:$K,8,0)),IF(B50="","",0),SUM(F50:M50)) ->  | F50: =IFERROR(VLOOKUP($G$8&$B50&"All"&$B$14&$J$8&$D$9,'Inspection Outcome data'!$A:$K,8,0),IF(B50="","",0)) ->  | H50: =IFERROR(VLOOKUP($G$8&$B50&"All"&$B$14&$J$8&$D$9,'Inspection Outcome data'!$A:$K,9,0),IF(B50="","",0)) ->  | J50: =IFERROR(VLOOKUP($G$8&$B50&"All"&$B$14&$J$8&$D$9,'Inspection Outcome data'!$A:$K,10,0),IF(B50="","",0)) ->  | M50: =IFERROR(VLOOKUP($G$8&$B50&"All"&$B$14&$J$8&$D$9,'Inspection Outcome data'!$A:$K,11,0),IF(B50="","",0)) -> 
A51: 16 | B51: =IFERROR(VLOOKUP($B$29&A51,'Region Lookups'!A:C,3,0),"") ->  | D51: =IF(ISERROR(VLOOKUP($G$8&$B51&"All"&$B$14&$J$8&$D$9,'Inspection Outcome data'!$A:$K,8,0)),IF(B51="","",0),SUM(F51:M51)) ->  | F51: =IFERROR(VLOOKUP($G$8&$B51&"All"&$B$14&$J$8&$D$9,'Inspection Outcome data'!$A:$K,8,0),IF(B51="","",0)) ->  | H51: =IFERROR(VLOOKUP($G$8&$B51&"All"&$B$14&$J$8&$D$9,'Inspection Outcome data'!$A:$K,9,0),IF(B51="","",0)) ->  | J51: =IFERROR(VLOOKUP($G$8&$B51&"All"&$B$14&$J$8&$D$9,'Inspection Outcome data'!$A:$K,10,0),IF(B51="","",0)) ->  | M51: =IFERROR(VLOOKUP($G$8&$B51&"All"&$B$14&$J$8&$D$9,'Inspection Outcome data'!$A:$K,11,0),IF(B51="","",0)) -> 
A52: 17 | B52: =IFERROR(VLOOKUP($B$29&A52,'Region Lookups'!A:C,3,0),"") ->  | D52: =IF(ISERROR(VLOOKUP($G$8&$B52&"All"&$B$14&$J$8&$D$9,'Inspection Outcome data'!$A:$K,8,0)),IF(B52="","",0),SUM(F52:M52)) ->  | F52: =IFERROR(VLOOKUP($G$8&$B52&"All"&$B$14&$J$8&$D$9,'Inspection Outcome data'!$A:$K,8,0),IF(B52="","",0)) ->  | H52: =IFERROR(VLOOKUP($G$8&$B52&"All"&$B$14&$J$8&$D$9,'Inspection Outcome data'!$A:$K,9,0),IF(B52="","",0)) ->  | J52: =IFERROR(VLOOKUP($G$8&$B52&"All"&$B$14&$J$8&$D$9,'Inspection Outcome data'!$A:$K,10,0),IF(B52="","",0)) ->  | M52: =IFERROR(VLOOKUP($G$8&$B52&"All"&$B$14&$J$8&$D$9,'Inspection Outcome data'!$A:$K,11,0),IF(B52="","",0)) -> 
A53: 18 | B53: =IFERROR(VLOOKUP($B$29&A53,'Region Lookups'!A:C,3,0),"") ->  | D53: =IF(ISERROR(VLOOKUP($G$8&$B53&"All"&$B$14&$J$8&$D$9,'Inspection Outcome data'!$A:$K,8,0)),IF(B53="","",0),SUM(F53:M53)) ->  | F53: =IFERROR(VLOOKUP($G$8&$B53&"All"&$B$14&$J$8&$D$9,'Inspection Outcome data'!$A:$K,8,0),IF(B53="","",0)) ->  | H53: =IFERROR(VLOOKUP($G$8&$B53&"All"&$B$14&$J$8&$D$9,'Inspection Outcome data'!$A:$K,9,0),IF(B53="","",0)) ->  | J53: =IFERROR(VLOOKUP($G$8&$B53&"All"&$B$14&$J$8&$D$9,'Inspection Outcome data'!$A:$K,10,0),IF(B53="","",0)) ->  | M53: =IFERROR(VLOOKUP($G$8&$B53&"All"&$B$14&$J$8&$D$9,'Inspection Outcome data'!$A:$K,11,0),IF(B53="","",0)) -> 
A54: 19 | B54: =IFERROR(VLOOKUP($B$29&A54,'Region Lookups'!A:C,3,0),"") ->  | D54: =IF(ISERROR(VLOOKUP($G$8&$B54&"All"&$B$14&$J$8&$D$9,'Inspection Outcome data'!$A:$K,8,0)),IF(B54="","",0),SUM(F54:M54)) ->  | F54: =IFERROR(VLOOKUP($G$8&$B54&"All"&$B$14&$J$8&$D$9,'Inspection Outcome data'!$A:$K,8,0),IF(B54="","",0)) ->  | H54: =IFERROR(VLOOKUP($G$8&$B54&"All"&$B$14&$J$8&$D$9,'Inspection Outcome data'!$A:$K,9,0),IF(B54="","",0)) ->  | J54: =IFERROR(VLOOKUP($G$8&$B54&"All"&$B$14&$J$8&$D$9,'Inspection Outcome data'!$A:$K,10,0),IF(B54="","",0)) ->  | M54: =IFERROR(VLOOKUP($G$8&$B54&"All"&$B$14&$J$8&$D$9,'Inspection Outcome data'!$A:$K,11,0),IF(B54="","",0)) -> 
A55: 20 | B55: =IFERROR(VLOOKUP($B$29&A55,'Region Lookups'!A:C,3,0),"") ->  | D55: =IF(ISERROR(VLOOKUP($G$8&$B55&"All"&$B$14&$J$8&$D$9,'Inspection Outcome data'!$A:$K,8,0)),IF(B55="","",0),SUM(F55:M55)) ->  | F55: =IFERROR(VLOOKUP($G$8&$B55&"All"&$B$14&$J$8&$D$9,'Inspection Outcome data'!$A:$K,8,0),IF(B55="","",0)) ->  | H55: =IFERROR(VLOOKUP($G$8&$B55&"All"&$B$14&$J$8&$D$9,'Inspection Outcome data'!$A:$K,9,0),IF(B55="","",0)) ->  | J55: =IFERROR(VLOOKUP($G$8&$B55&"All"&$B$14&$J$8&$D$9,'Inspection Outcome data'!$A:$K,10,0),IF(B55="","",0)) ->  | M55: =IFERROR(VLOOKUP($G$8&$B55&"All"&$B$14&$J$8&$D$9,'Inspection Outcome data'!$A:$K,11,0),IF(B55="","",0)) -> 
A56: 21 | B56: =IFERROR(VLOOKUP($B$29&A56,'Region Lookups'!A:C,3,0),"") ->  | D56: =IF(ISERROR(VLOOKUP($G$8&$B56&"All"&$B$14&$J$8&$D$9,'Inspection Outcome data'!$A:$K,8,0)),IF(B56="","",0),SUM(F56:M56)) ->  | F56: =IFERROR(VLOOKUP($G$8&$B56&"All"&$B$14&$J$8&$D$9,'Inspection Outcome data'!$A:$K,8,0),IF(B56="","",0)) ->  | H56: =IFERROR(VLOOKUP($G$8&$B56&"All"&$B$14&$J$8&$D$9,'Inspection Outcome data'!$A:$K,9,0),IF(B56="","",0)) ->  | J56: =IFERROR(VLOOKUP($G$8&$B56&"All"&$B$14&$J$8&$D$9,'Inspection Outcome data'!$A:$K,10,0),IF(B56="","",0)) ->  | M56: =IFERROR(VLOOKUP($G$8&$B56&"All"&$B$14&$J$8&$D$9,'Inspection Outcome data'!$A:$K,11,0),IF(B56="","",0)) -> 
A57: 22 | B57: =IFERROR(VLOOKUP($B$29&A57,'Region Lookups'!A:C,3,0),"") ->  | D57: =IF(ISERROR(VLOOKUP($G$8&$B57&"All"&$B$14&$J$8&$D$9,'Inspection Outcome data'!$A:$K,8,0)),IF(B57="","",0),SUM(F57:M57)) ->  | F57: =IFERROR(VLOOKUP($G$8&$B57&"All"&$B$14&$J$8&$D$9,'Inspection Outcome data'!$A:$K,8,0),IF(B57="","",0)) ->  | H57: =IFERROR(VLOOKUP($G$8&$B57&"All"&$B$14&$J$8&$D$9,'Inspection Outcome data'!$A:$K,9,0),IF(B57="","",0)) ->  | J57: =IFERROR(VLOOKUP($G$8&$B57&"All"&$B$14&$J$8&$D$9,'Inspection Outcome data'!$A:$K,10,0),IF(B57="","",0)) ->  | M57: =IFERROR(VLOOKUP($G$8&$B57&"All"&$B$14&$J$8&$D$9,'Inspection Outcome data'!$A:$K,11,0),IF(B57="","",0)) -> 
A58: 23 | B58: =IFERROR(VLOOKUP($B$29&A58,'Region Lookups'!A:C,3,0),"") ->  | D58: =IF(ISERROR(VLOOKUP($G$8&$B58&"All"&$B$14&$J$8&$D$9,'Inspection Outcome data'!$A:$K,8,0)),IF(B58="","",0),SUM(F58:M58)) ->  | F58: =IFERROR(VLOOKUP($G$8&$B58&"All"&$B$14&$J$8&$D$9,'Inspection Outcome data'!$A:$K,8,0),IF(B58="","",0)) ->  | H58: =IFERROR(VLOOKUP($G$8&$B58&"All"&$B$14&$J$8&$D$9,'Inspection Outcome data'!$A:$K,9,0),IF(B58="","",0)) ->  | J58: =IFERROR(VLOOKUP($G$8&$B58&"All"&$B$14&$J$8&$D$9,'Inspection Outcome data'!$A:$K,10,0),IF(B58="","",0)) ->  | M58: =IFERROR(VLOOKUP($G$8&$B58&"All"&$B$14&$J$8&$D$9,'Inspection Outcome data'!$A:$K,11,0),IF(B58="","",0)) -> 
A59: 24 | B59: =IFERROR(VLOOKUP($B$29&A59,'Region Lookups'!A:C,3,0),"") ->  | D59: =IF(ISERROR(VLOOKUP($G$8&$B59&"All"&$B$14&$J$8&$D$9,'Inspection Outcome data'!$A:$K,8,0)),IF(B59="","",0),SUM(F59:M59)) ->  | F59: =IFERROR(VLOOKUP($G$8&$B59&"All"&$B$14&$J$8&$D$9,'Inspection Outcome data'!$A:$K,8,0),IF(B59="","",0)) ->  | H59: =IFERROR(VLOOKUP($G$8&$B59&"All"&$B$14&$J$8&$D$9,'Inspection Outcome data'!$A:$K,9,0),IF(B59="","",0)) ->  | J59: =IFERROR(VLOOKUP($G$8&$B59&"All"&$B$14&$J$8&$D$9,'Inspection Outcome data'!$A:$K,10,0),IF(B59="","",0)) ->  | M59: =IFERROR(VLOOKUP($G$8&$B59&"All"&$B$14&$J$8&$D$9,'Inspection Outcome data'!$A:$K,11,0),IF(B59="","",0)) -> 
A60: 25 | B60: =IFERROR(VLOOKUP($B$29&A60,'Region Lookups'!A:C,3,0),"") ->  | D60: =IF(ISERROR(VLOOKUP($G$8&$B60&"All"&$B$14&$J$8&$D$9,'Inspection Outcome data'!$A:$K,8,0)),IF(B60="","",0),SUM(F60:M60)) ->  | F60: =IFERROR(VLOOKUP($G$8&$B60&"All"&$B$14&$J$8&$D$9,'Inspection Outcome data'!$A:$K,8,0),IF(B60="","",0)) ->  | H60: =IFERROR(VLOOKUP($G$8&$B60&"All"&$B$14&$J$8&$D$9,'Inspection Outcome data'!$A:$K,9,0),IF(B60="","",0)) ->  | J60: =IFERROR(VLOOKUP($G$8&$B60&"All"&$B$14&$J$8&$D$9,'Inspection Outcome data'!$A:$K,10,0),IF(B60="","",0)) ->  | M60: =IFERROR(VLOOKUP($G$8&$B60&"All"&$B$14&$J$8&$D$9,'Inspection Outcome data'!$A:$K,11,0),IF(B60="","",0)) -> 
A61: 26 | B61: =IFERROR(VLOOKUP($B$29&A61,'Region Lookups'!A:C,3,0),"") ->  | D61: =IF(ISERROR(VLOOKUP($G$8&$B61&"All"&$B$14&$J$8&$D$9,'Inspection Outcome data'!$A:$K,8,0)),IF(B61="","",0),SUM(F61:M61)) ->  | F61: =IFERROR(VLOOKUP($G$8&$B61&"All"&$B$14&$J$8&$D$9,'Inspection Outcome data'!$A:$K,8,0),IF(B61="","",0)) ->  | H61: =IFERROR(VLOOKUP($G$8&$B61&"All"&$B$14&$J$8&$D$9,'Inspection Outcome data'!$A:$K,9,0),IF(B61="","",0)) ->  | J61: =IFERROR(VLOOKUP($G$8&$B61&"All"&$B$14&$J$8&$D$9,'Inspection Outcome data'!$A:$K,10,0),IF(B61="","",0)) ->  | M61: =IFERROR(VLOOKUP($G$8&$B61&"All"&$B$14&$J$8&$D$9,'Inspection Outcome data'!$A:$K,11,0),IF(B61="","",0)) -> 
A62: 27 | B62: =IFERROR(VLOOKUP($B$29&A62,'Region Lookups'!A:C,3,0),"") ->  | D62: =IF(ISERROR(VLOOKUP($G$8&$B62&"All"&$B$14&$J$8&$D$9,'Inspection Outcome data'!$A:$K,8,0)),IF(B62="","",0),SUM(F62:M62)) ->  | F62: =IFERROR(VLOOKUP($G$8&$B62&"All"&$B$14&$J$8&$D$9,'Inspection Outcome data'!$A:$K,8,0),IF(B62="","",0)) ->  | H62: =IFERROR(VLOOKUP($G$8&$B62&"All"&$B$14&$J$8&$D$9,'Inspection Outcome data'!$A:$K,9,0),IF(B62="","",0)) ->  | J62: =IFERROR(VLOOKUP($G$8&$B62&"All"&$B$14&$J$8&$D$9,'Inspection Outcome data'!$A:$K,10,0),IF(B62="","",0)) ->  | M62: =IFERROR(VLOOKUP($G$8&$B62&"All"&$B$14&$J$8&$D$9,'Inspection Outcome data'!$A:$K,11,0),IF(B62="","",0)) -> 
A63: 28 | B63: =IFERROR(VLOOKUP($B$29&A63,'Region Lookups'!A:C,3,0),"") ->  | D63: =IF(ISERROR(VLOOKUP($G$8&$B63&"All"&$B$14&$J$8&$D$9,'Inspection Outcome data'!$A:$K,8,0)),IF(B63="","",0),SUM(F63:M63)) ->  | F63: =IFERROR(VLOOKUP($G$8&$B63&"All"&$B$14&$J$8&$D$9,'Inspection Outcome data'!$A:$K,8,0),IF(B63="","",0)) ->  | H63: =IFERROR(VLOOKUP($G$8&$B63&"All"&$B$14&$J$8&$D$9,'Inspection Outcome data'!$A:$K,9,0),IF(B63="","",0)) ->  | J63: =IFERROR(VLOOKUP($G$8&$B63&"All"&$B$14&$J$8&$D$9,'Inspection Outcome data'!$A:$K,10,0),IF(B63="","",0)) ->  | M63: =IFERROR(VLOOKUP($G$8&$B63&"All"&$B$14&$J$8&$D$9,'Inspection Outcome data'!$A:$K,11,0),IF(B63="","",0)) -> 
A64: 29 | B64: =IFERROR(VLOOKUP($B$29&A64,'Region Lookups'!A:C,3,0),"") ->  | D64: =IF(ISERROR(VLOOKUP($G$8&$B64&"All"&$B$14&$J$8&$D$9,'Inspection Outcome data'!$A:$K,8,0)),IF(B64="","",0),SUM(F64:M64)) ->  | F64: =IFERROR(VLOOKUP($G$8&$B64&"All"&$B$14&$J$8&$D$9,'Inspection Outcome data'!$A:$K,8,0),IF(B64="","",0)) ->  | H64: =IFERROR(VLOOKUP($G$8&$B64&"All"&$B$14&$J$8&$D$9,'Inspection Outcome data'!$A:$K,9,0),IF(B64="","",0)) ->  | J64: =IFERROR(VLOOKUP($G$8&$B64&"All"&$B$14&$J$8&$D$9,'Inspection Outcome data'!$A:$K,10,0),IF(B64="","",0)) ->  | M64: =IFERROR(VLOOKUP($G$8&$B64&"All"&$B$14&$J$8&$D$9,'Inspection Outcome data'!$A:$K,11,0),IF(B64="","",0)) -> 
A65: 30 | B65: =IFERROR(VLOOKUP($B$29&A65,'Region Lookups'!A:C,3,0),"") ->  | D65: =IF(ISERROR(VLOOKUP($G$8&$B65&"All"&$B$14&$J$8&$D$9,'Inspection Outcome data'!$A:$K,8,0)),IF(B65="","",0),SUM(F65:M65)) ->  | F65: =IFERROR(VLOOKUP($G$8&$B65&"All"&$B$14&$J$8&$D$9,'Inspection Outcome data'!$A:$K,8,0),IF(B65="","",0)) ->  | H65: =IFERROR(VLOOKUP($G$8&$B65&"All"&$B$14&$J$8&$D$9,'Inspection Outcome data'!$A:$K,9,0),IF(B65="","",0)) ->  | J65: =IFERROR(VLOOKUP($G$8&$B65&"All"&$B$14&$J$8&$D$9,'Inspection Outcome data'!$A:$K,10,0),IF(B65="","",0)) ->  | M65: =IFERROR(VLOOKUP($G$8&$B65&"All"&$B$14&$J$8&$D$9,'Inspection Outcome data'!$A:$K,11,0),IF(B65="","",0)) -> 
A66: 31 | B66: =IFERROR(VLOOKUP($B$29&A66,'Region Lookups'!A:C,3,0),"") ->  | D66: =IF(ISERROR(VLOOKUP($G$8&$B66&"All"&$B$14&$J$8&$D$9,'Inspection Outcome data'!$A:$K,8,0)),IF(B66="","",0),SUM(F66:M66)) ->  | F66: =IFERROR(VLOOKUP($G$8&$B66&"All"&$B$14&$J$8&$D$9,'Inspection Outcome data'!$A:$K,8,0),IF(B66="","",0)) ->  | H66: =IFERROR(VLOOKUP($G$8&$B66&"All"&$B$14&$J$8&$D$9,'Inspection Outcome data'!$A:$K,9,0),IF(B66="","",0)) ->  | J66: =IFERROR(VLOOKUP($G$8&$B66&"All"&$B$14&$J$8&$D$9,'Inspection Outcome data'!$A:$K,10,0),IF(B66="","",0)) ->  | M66: =IFERROR(VLOOKUP($G$8&$B66&"All"&$B$14&$J$8&$D$9,'Inspection Outcome data'!$A:$K,11,0),IF(B66="","",0)) -> 
A67: 32 | B67: =IFERROR(VLOOKUP($B$29&A67,'Region Lookups'!A:C,3,0),"") ->  | D67: =IF(ISERROR(VLOOKUP($G$8&$B67&"All"&$B$14&$J$8&$D$9,'Inspection Outcome data'!$A:$K,8,0)),IF(B67="","",0),SUM(F67:M67)) ->  | F67: =IFERROR(VLOOKUP($G$8&$B67&"All"&$B$14&$J$8&$D$9,'Inspection Outcome data'!$A:$K,8,0),IF(B67="","",0)) ->  | H67: =IFERROR(VLOOKUP($G$8&$B67&"All"&$B$14&$J$8&$D$9,'Inspection Outcome data'!$A:$K,9,0),IF(B67="","",0)) ->  | J67: =IFERROR(VLOOKUP($G$8&$B67&"All"&$B$14&$J$8&$D$9,'Inspection Outcome data'!$A:$K,10,0),IF(B67="","",0)) ->  | M67: =IFERROR(VLOOKUP($G$8&$B67&"All"&$B$14&$J$8&$D$9,'Inspection Outcome data'!$A:$K,11,0),IF(B67="","",0)) -> 
A68: 33 | B68: =IFERROR(VLOOKUP($B$29&A68,'Region Lookups'!A:C,3,0),"") ->  | D68: =IF(ISERROR(VLOOKUP($G$8&$B68&"All"&$B$14&$J$8&$D$9,'Inspection Outcome data'!$A:$K,8,0)),IF(B68="","",0),SUM(F68:M68)) ->  | F68: =IFERROR(VLOOKUP($G$8&$B68&"All"&$B$14&$J$8&$D$9,'Inspection Outcome data'!$A:$K,8,0),IF(B68="","",0)) ->  | H68: =IFERROR(VLOOKUP($G$8&$B68&"All"&$B$14&$J$8&$D$9,'Inspection Outcome data'!$A:$K,9,0),IF(B68="","",0)) ->  | J68: =IFERROR(VLOOKUP($G$8&$B68&"All"&$B$14&$J$8&$D$9,'Inspection Outcome data'!$A:$K,10,0),IF(B68="","",0)) ->  | M68: =IFERROR(VLOOKUP($G$8&$B68&"All"&$B$14&$J$8&$D$9,'Inspection Outcome data'!$A:$K,11,0),IF(B68="","",0)) -> 

Sheet Sub-Judgements
S1: 1
B2: Statistical First Release - Children's Social Care Provision (Sub-Judgements excluding inspections of Local Authorities) | S2: 2
S3: 3
C4: Region: | F4: Local Authority: | I4: Sector: | S4: 4
C5: All | F5: All | H5: =IF(C5="All",TRUE,NOT(ISERROR(MATCH(F5,INDIRECT(SUBSTITUTE(SUBSTITUTE(C5," ","_"),",","")),0)))) -> TRUE | I5: All | S5: 5
S6: 6
C7: Date: | F7: Provision Type:
C8: as at 31 March 2016 | F8: All
D9: =VLOOKUP(C8,Periodlookup,2,0) -> 2016 | H9: =IF(LEFT(C8,5)="as at",TRUE,FALSE) -> TRUE | I9: =LEFT(D7,5) -> 
B10: Judgements | C10: Total number of inspections | D10: Inspection Outcomes
D11: Outstanding | E11: Good | F11: Requires Improvement / Adequate | G11: Inadequate
A14: Overall effectiveness | B14: =IF(IF(ISERROR(VLOOKUP($D$9&$F$8&$S1,subjudgement_lookup,4,0))=TRUE,0,VLOOKUP($D$9&$F$8&$S1,subjudgement_lookup,4,0))=0,"",IF(ISERROR(VLOOKUP($D$9&$F$8&$S1,subjudgement_lookup,4,0))=TRUE,0,VLOOKUP($D$9&$F$8&$S1,subjudgement_lookup,4,0))) -> Overall effectiveness | C14: =IF($B14 = "","",IF(SUM(D14,E14,F14,G14)=0,0,SUM(D14,E14,F14,G14))) -> 2644 | D14: =IF($B$14="","",IF(ISERROR(VLOOKUP($C$5&$F$5&$I$5&$F$8&$A$14&$D$9,DataSubJudgements!$A:$K,8,0))=TRUE,0,VLOOKUP($C$5&$F$5&$I$5&$F$8&$A$14&$D$9,DataSubJudgements!$A:$K,8,0))) -> 517 | E14: =IF($B$14="","",IF(ISERROR(VLOOKUP($C$5&$F$5&$I$5&$F$8&$A$14&$D$9,DataSubJudgements!$A:$K,9,0))=TRUE,0,VLOOKUP($C$5&$F$5&$I$5&$F$8&$A$14&$D$9,DataSubJudgements!$A:$K,9,0))) -> 1606 | F14: =IF($B$14="","",IF(ISERROR(VLOOKUP($C$5&$F$5&$I$5&$F$8&$A$14&$D$9,DataSubJudgements!$A:$K,10,0))=TRUE,0,VLOOKUP($C$5&$F$5&$I$5&$F$8&$A$14&$D$9,DataSubJudgements!$A:$K,10,0))) -> 488 | G14: =IF($B$14="","",IF(ISERROR(VLOOKUP($C$5&$F$5&$I$5&$F$8&$A$14&$D$9,DataSubJudgements!$A:$K,11,0))=TRUE,0,VLOOKUP($C$5&$F$5&$I$5&$F$8&$A$14&$D$9,DataSubJudgements!$A:$K,11,0))) -> 33
A17: Outcomes for children and young people | B17: =IF(IF(ISERROR(VLOOKUP($D$9&$F$8&$S2,subjudgement_lookup,4,0))=TRUE,0,VLOOKUP($D$9&$F$8&$S2,subjudgement_lookup,4,0))=0,"",IF(ISERROR(VLOOKUP($D$9&$F$8&$S2,subjudgement_lookup,4,0))=TRUE,0,VLOOKUP($D$9&$F$8&$S2,subjudgement_lookup,4,0))) -> Outcomes for children and young people | C17: =IF($B17 = "","",IF(SUM(D17,E17,F17,G17)=0,0,SUM(D17,E17,F17,G17))) -> 526 | D17: =IF($B$17="","",IF(ISERROR(VLOOKUP($C$5&$F$5&$I$5&$F$8&$A$17&$D$9,DataSubJudgements!$A:$K,8,0))=TRUE,0,VLOOKUP($C$5&$F$5&$I$5&$F$8&$A$17&$D$9,DataSubJudgements!$A:$K,8,0))) -> 192 | E17: =IF($B$17="","",IF(ISERROR(VLOOKUP($C$5&$F$5&$I$5&$F$8&$A$17&$D$9,DataSubJudgements!$A:$K,9,0))=TRUE,0,VLOOKUP($C$5&$F$5&$I$5&$F$8&$A$17&$D$9,DataSubJudgements!$A:$K,9,0))) -> 298 | F17: =IF($B$17="","",IF(ISERROR(VLOOKUP($C$5&$F$5&$I$5&$F$8&$A$17&$D$9,DataSubJudgements!$A:$K,10,0))=TRUE,0,VLOOKUP($C$5&$F$5&$I$5&$F$8&$A$17&$D$9,DataSubJudgements!$A:$K,10,0))) -> 29 | G17: =IF($B$17="","",IF(ISERROR(VLOOKUP($C$5&$F$5&$I$5&$F$8&$A$17&$D$9,DataSubJudgements!$A:$K,11,0))=TRUE,0,VLOOKUP($C$5&$F$5&$I$5&$F$8&$A$17&$D$9,DataSubJudgements!$A:$K,11,0))) -> 7
A20: Quality of care | B20: =IF(IF(ISERROR(VLOOKUP($D$9&$F$8&$S3,subjudgement_lookup,4,0))=TRUE,0,VLOOKUP($D$9&$F$8&$S3,subjudgement_lookup,4,0))=0,"",IF(ISERROR(VLOOKUP($D$9&$F$8&$S3,subjudgement_lookup,4,0))=TRUE,0,VLOOKUP($D$9&$F$8&$S3,subjudgement_lookup,4,0))) -> Quality of care | C20: =IF($B20 = "","",IF(SUM(D20,E20,F20,G20)=0,0,SUM(D20,E20,F20,G20))) -> 686 | D20: =IF($B$20="","",IF(ISERROR(VLOOKUP($C$5&$F$5&$I$5&$F$8&$A$20&$D$9,DataSubJudgements!$A:$K,8,0))=TRUE,0,VLOOKUP($C$5&$F$5&$I$5&$F$8&$A$20&$D$9,DataSubJudgements!$A:$K,8,0))) -> 248 | E20: =IF($B$20="","",IF(ISERROR(VLOOKUP($C$5&$F$5&$I$5&$F$8&$A$20&$D$9,DataSubJudgements!$A:$K,9,0))=TRUE,0,VLOOKUP($C$5&$F$5&$I$5&$F$8&$A$20&$D$9,DataSubJudgements!$A:$K,9,0))) -> 338 | F20: =IF($B$20="","",IF(ISERROR(VLOOKUP($C$5&$F$5&$I$5&$F$8&$A$20&$D$9,DataSubJudgements!$A:$K,10,0))=TRUE,0,VLOOKUP($C$5&$F$5&$I$5&$F$8&$A$20&$D$9,DataSubJudgements!$A:$K,10,0))) -> 69 | G20: =IF($B$20="","",IF(ISERROR(VLOOKUP($C$5&$F$5&$I$5&$F$8&$A$20&$D$9,DataSubJudgements!$A:$K,11,0))=TRUE,0,VLOOKUP($C$5&$F$5&$I$5&$F$8&$A$20&$D$9,DataSubJudgements!$A:$K,11,0))) -> 31
A23: Safeguarding children and young people | B23: =IF(IF(ISERROR(VLOOKUP($D$9&$F$8&$S4,subjudgement_lookup,4,0))=TRUE,0,VLOOKUP($D$9&$F$8&$S4,subjudgement_lookup,4,0))=0,"",IF(ISERROR(VLOOKUP($D$9&$F$8&$S4,subjudgement_lookup,4,0))=TRUE,0,VLOOKUP($D$9&$F$8&$S4,subjudgement_lookup,4,0))) -> Safeguarding children and young people | C23: =IF($B23 = "","",IF(SUM(D23,E23,F23,G23)=0,0,SUM(D23,E23,F23,G23))) -> 2641 | D23: =IF($B$23="","",IF(ISERROR(VLOOKUP($C$5&$F$5&$I$5&$F$8&$A$23&$D$9,DataSubJudgements!$A:$K,8,0))=TRUE,0,VLOOKUP($C$5&$F$5&$I$5&$F$8&$A$23&$D$9,DataSubJudgements!$A:$K,8,0))) -> 441 | E23: =IF($B$23="","",IF(ISERROR(VLOOKUP($C$5&$F$5&$I$5&$F$8&$A$23&$D$9,DataSubJudgements!$A:$K,9,0))=TRUE,0,VLOOKUP($C$5&$F$5&$I$5&$F$8&$A$23&$D$9,DataSubJudgements!$A:$K,9,0))) -> 1634 | F23: =IF($B$23="","",IF(ISERROR(VLOOKUP($C$5&$F$5&$I$5&$F$8&$A$23&$D$9,DataSubJudgements!$A:$K,10,0))=TRUE,0,VLOOKUP($C$5&$F$5&$I$5&$F$8&$A$23&$D$9,DataSubJudgements!$A:$K,10,0))) -> 512 | G23: =IF($B$23="","",IF(ISERROR(VLOOKUP($C$5&$F$5&$I$5&$F$8&$A$23&$D$9,DataSubJudgements!$A:$K,11,0))=TRUE,0,VLOOKUP($C$5&$F$5&$I$5&$F$8&$A$23&$D$9,DataSubJudgements!$A:$K,11,0))) -> 54
A26: Leadership and management | B26: =IF(IF(ISERROR(VLOOKUP($D$9&$F$8&$S5,subjudgement_lookup,4,0))=TRUE,0,VLOOKUP($D$9&$F$8&$S5,subjudgement_lookup,4,0))=0,"",IF(ISERROR(VLOOKUP($D$9&$F$8&$S5,subjudgement_lookup,4,0))=TRUE,0,VLOOKUP($D$9&$F$8&$S5,subjudgement_lookup,4,0))) -> Leadership and management | C26: =IF($B26 = "","",IF(SUM(D26,E26,F26,G26)=0,0,SUM(D26,E26,F26,G26))) -> 2640 | D26: =IF($B$26="","",IF(ISERROR(VLOOKUP($C$5&$F$5&$I$5&$F$8&$A$26&$D$9,DataSubJudgements!$A:$K,8,0))=TRUE,0,VLOOKUP($C$5&$F$5&$I$5&$F$8&$A$26&$D$9,DataSubJudgements!$A:$K,8,0))) -> 488 | E26: =IF($B$26="","",IF(ISERROR(VLOOKUP($C$5&$F$5&$I$5&$F$8&$A$26&$D$9,DataSubJudgements!$A:$K,9,0))=TRUE,0,VLOOKUP($C$5&$F$5&$I$5&$F$8&$A$26&$D$9,DataSubJudgements!$A:$K,9,0))) -> 1364 | F26: =IF($B$26="","",IF(ISERROR(VLOOKUP($C$5&$F$5&$I$5&$F$8&$A$26&$D$9,DataSubJudgements!$A:$K,10,0))=TRUE,0,VLOOKUP($C$5&$F$5&$I$5&$F$8&$A$26&$D$9,DataSubJudgements!$A:$K,10,0))) -> 643 | G26: =IF($B$26="","",IF(ISERROR(VLOOKUP($C$5&$F$5&$I$5&$F$8&$A$26&$D$9,DataSubJudgements!$A:$K,11,0))=TRUE,0,VLOOKUP($C$5&$F$5&$I$5&$F$8&$A$26&$D$9,DataSubJudgements!$A:$K,11,0))) -> 145
A29: Outcomes in education and related learning activities | B29: =IF(IF(ISERROR(VLOOKUP($F$8&$S6,#REF!,4,0))=TRUE,0,VLOOKUP($F$8&$S6,#REF!,4,0))=0,"",IF(ISERROR(VLOOKUP($F$8&$S6,#REF!,4,0))=TRUE,0,VLOOKUP($F$8&$S6,#REF!,4,0))) ->  | C29: =IF(SUM(D29,E29,F29,G29)=0,"",SUM(D29,E29,F29,G29)) ->  | D29: =IF($B$29="","",IF(ISERROR(VLOOKUP($C$5&$F$5&$I$5&$F$8&$A$29&$D$9,DataSubJudgements!$A:$K,8,0))=TRUE,0,VLOOKUP($C$5&$F$5&$I$5&$F$8&$A$29&$D$9,DataSubJudgements!$A:$K,8,0))) ->  | E29: =IF($B$29="","",IF(ISERROR(VLOOKUP($C$5&$F$5&$I$5&$F$8&$A$29&$D$9,DataSubJudgements!$A:$K,9,0))=TRUE,0,VLOOKUP($C$5&$F$5&$I$5&$F$8&$A$29&$D$9,DataSubJudgements!$A:$K,9,0))) ->  | F29: =IF($B$29="","",IF(ISERROR(VLOOKUP($C$5&$F$5&$I$5&$F$8&$A$29&$D$9,DataSubJudgements!$A:$K,10,0))=TRUE,0,VLOOKUP($C$5&$F$5&$I$5&$F$8&$A$29&$D$9,DataSubJudgements!$A:$K,10,0))) ->  | G29: =IF($B$29="","",IF(ISERROR(VLOOKUP($C$5&$F$5&$I$5&$F$8&$A$29&$D$9,DataSubJudgements!$A:$K,11,0))=TRUE,0,VLOOKUP($C$5&$F$5&$I$5&$F$8&$A$29&$D$9,DataSubJudgements!$A:$K,11,0))) -> 
B35: =IF(C5<>"All",C5,IF(F5<>"All",VLOOKUP(F5,'Region Lookups'!C:D,2,0),"All")) -> All
F36: 8 | H36: 9 | J36: 10 | M36: 11
D37: Total number inspected | F37: Outstanding | H37: Good | J37: Requires Improvement/ Adequate | M37: Inadequate
F38: 6 | H38: 7 | J38: 8 | M38: 9
B39: England | D39: =IF(ISERROR(VLOOKUP("All"&"All"&$I$5&$F$8&$A$14&$D$9,DataSubJudgements!$A:$K,8,0)),"",SUM(F39:M39)) -> 2644 | F39: =IFERROR(VLOOKUP("All"&"All"&$I$5&$F$8&$A$14&$D$9,DataSubJudgements!$A:$K,8,0),"") -> 517 | H39: =IFERROR(VLOOKUP("All"&"All"&$I$5&$F$8&$A$14&$D$9,DataSubJudgements!$A:$K,9,0),"") -> 1606 | J39: =IFERROR(VLOOKUP("All"&"All"&$I$5&$F$8&$A$14&$D$9,DataSubJudgements!$A:$K,10,0),"") -> 488 | M39: =IFERROR(VLOOKUP("All"&"All"&$I$5&$F$8&$A$14&$D$9,DataSubJudgements!$A:$K,11,0),"") -> 33
B41: =IFERROR(IF(B35="All",NA(),B35),"") ->  | D41: =IF(ISERROR(VLOOKUP($B41&"All"&$I$5&$F$8&$A$14&$D$9,DataSubJudgements!$A:$K,8,0)),IF(B41="","",0),SUM(F41:M41)) ->  | F41: =IF(ISERROR(VLOOKUP($B41&"All"&$I$5&$F$8&$A$14&$D$9,DataSubJudgements!$A:$K,F$36,0)),IF($B41="","",0),VLOOKUP($B41&"All"&$I$5&$F$8&$A$14&$D$9,DataSubJudgements!$A:$K,F$36,0)) ->  | H41: =IF(ISERROR(VLOOKUP($B41&"All"&$I$5&$F$8&$A$14&$D$9,DataSubJudgements!$A:$K,H$36,0)),IF($B41="","",0),VLOOKUP($B41&"All"&$I$5&$F$8&$A$14&$D$9,DataSubJudgements!$A:$K,H$36,0)) ->  | J41: =IF(ISERROR(VLOOKUP($B41&"All"&$I$5&$F$8&$A$14&$D$9,DataSubJudgements!$A:$K,J$36,0)),IF($B41="","",0),VLOOKUP($B41&"All"&$I$5&$F$8&$A$14&$D$9,DataSubJudgements!$A:$K,J$36,0)) ->  | M41: =IF(ISERROR(VLOOKUP($B41&"All"&$I$5&$F$8&$A$14&$D$9,DataSubJudgements!$A:$K,M$36,0)),IF($B41="","",0),VLOOKUP($B41&"All"&$I$5&$F$8&$A$14&$D$9,DataSubJudgements!$A:$K,M$36,0)) -> 
A42: 1 | B42: =IFERROR(VLOOKUP($B$35&A42,'Region Lookups'!A:C,3,0),"") ->  | D42: =IF(ISERROR(VLOOKUP("All"&$B42&$I$5&$F$8&$A$14&$D$9,DataSubJudgements!$A:$K,8,0)),IF(B42="","",0),SUM(F42:M42)) ->  | F42: =IF(ISERROR(VLOOKUP("All"&$B42&$I$5&$F$8&$A$14&$D$9,DataSubJudgements!$A:$K,F$36,0)),IF($B42="","",0),VLOOKUP("All"&$B42&$I$5&$F$8&$A$14&$D$9,DataSubJudgements!$A:$K,F$36,0)) ->  | H42: =IF(ISERROR(VLOOKUP("All"&$B42&$I$5&$F$8&$A$14&$D$9,DataSubJudgements!$A:$K,H$36,0)),IF($B42="","",0),VLOOKUP("All"&$B42&$I$5&$F$8&$A$14&$D$9,DataSubJudgements!$A:$K,H$36,0)) ->  | J42: =IF(ISERROR(VLOOKUP("All"&$B42&$I$5&$F$8&$A$14&$D$9,DataSubJudgements!$A:$K,J$36,0)),IF($B42="","",0),VLOOKUP("All"&$B42&$I$5&$F$8&$A$14&$D$9,DataSubJudgements!$A:$K,J$36,0)) ->  | M42: =IF(ISERROR(VLOOKUP("All"&$B42&$I$5&$F$8&$A$14&$D$9,DataSubJudgements!$A:$K,M$36,0)),IF($B42="","",0),VLOOKUP("All"&$B42&$I$5&$F$8&$A$14&$D$9,DataSubJudgements!$A:$K,M$36,0)) -> 
A43: 2 | B43: =IFERROR(VLOOKUP($B$35&A43,'Region Lookups'!A:C,3,0),"") ->  | D43: =IF(ISERROR(VLOOKUP("All"&$B43&$I$5&$F$8&$A$14&$D$9,DataSubJudgements!$A:$K,8,0)),IF(B43="","",0),SUM(F43:M43)) ->  | F43: =IF(ISERROR(VLOOKUP("All"&$B43&$I$5&$F$8&$A$14&$D$9,DataSubJudgements!$A:$K,F$36,0)),IF($B43="","",0),VLOOKUP("All"&$B43&$I$5&$F$8&$A$14&$D$9,DataSubJudgements!$A:$K,F$36,0)) ->  | H43: =IF(ISERROR(VLOOKUP("All"&$B43&$I$5&$F$8&$A$14&$D$9,DataSubJudgements!$A:$K,H$36,0)),IF($B43="","",0),VLOOKUP("All"&$B43&$I$5&$F$8&$A$14&$D$9,DataSubJudgements!$A:$K,H$36,0)) ->  | J43: =IF(ISERROR(VLOOKUP("All"&$B43&$I$5&$F$8&$A$14&$D$9,DataSubJudgements!$A:$K,J$36,0)),IF($B43="","",0),VLOOKUP("All"&$B43&$I$5&$F$8&$A$14&$D$9,DataSubJudgements!$A:$K,J$36,0)) ->  | M43: =IF(ISERROR(VLOOKUP("All"&$B43&$I$5&$F$8&$A$14&$D$9,DataSubJudgements!$A:$K,M$36,0)),IF($B43="","",0),VLOOKUP("All"&$B43&$I$5&$F$8&$A$14&$D$9,DataSubJudgements!$A:$K,M$36,0)) -> 
A44: 3 | B44: =IFERROR(VLOOKUP($B$35&A44,'Region Lookups'!A:C,3,0),"") ->  | D44: =IF(ISERROR(VLOOKUP("All"&$B44&$I$5&$F$8&$A$14&$D$9,DataSubJudgements!$A:$K,8,0)),IF(B44="","",0),SUM(F44:M44)) ->  | F44: =IF(ISERROR(VLOOKUP("All"&$B44&$I$5&$F$8&$A$14&$D$9,DataSubJudgements!$A:$K,F$36,0)),IF($B44="","",0),VLOOKUP("All"&$B44&$I$5&$F$8&$A$14&$D$9,DataSubJudgements!$A:$K,F$36,0)) ->  | H44: =IF(ISERROR(VLOOKUP("All"&$B44&$I$5&$F$8&$A$14&$D$9,DataSubJudgements!$A:$K,H$36,0)),IF($B44="","",0),VLOOKUP("All"&$B44&$I$5&$F$8&$A$14&$D$9,DataSubJudgements!$A:$K,H$36,0)) ->  | J44: =IF(ISERROR(VLOOKUP("All"&$B44&$I$5&$F$8&$A$14&$D$9,DataSubJudgements!$A:$K,J$36,0)),IF($B44="","",0),VLOOKUP("All"&$B44&$I$5&$F$8&$A$14&$D$9,DataSubJudgements!$A:$K,J$36,0)) ->  | M44: =IF(ISERROR(VLOOKUP("All"&$B44&$I$5&$F$8&$A$14&$D$9,DataSubJudgements!$A:$K,M$36,0)),IF($B44="","",0),VLOOKUP("All"&$B44&$I$5&$F$8&$A$14&$D$9,DataSubJudgements!$A:$K,M$36,0)) -> 
A45: 4 | B45: =IFERROR(VLOOKUP($B$35&A45,'Region Lookups'!A:C,3,0),"") ->  | D45: =IF(ISERROR(VLOOKUP("All"&$B45&$I$5&$F$8&$A$14&$D$9,DataSubJudgements!$A:$K,8,0)),IF(B45="","",0),SUM(F45:M45)) ->  | F45: =IF(ISERROR(VLOOKUP("All"&$B45&$I$5&$F$8&$A$14&$D$9,DataSubJudgements!$A:$K,F$36,0)),IF($B45="","",0),VLOOKUP("All"&$B45&$I$5&$F$8&$A$14&$D$9,DataSubJudgements!$A:$K,F$36,0)) ->  | H45: =IF(ISERROR(VLOOKUP("All"&$B45&$I$5&$F$8&$A$14&$D$9,DataSubJudgements!$A:$K,H$36,0)),IF($B45="","",0),VLOOKUP("All"&$B45&$I$5&$F$8&$A$14&$D$9,DataSubJudgements!$A:$K,H$36,0)) ->  | J45: =IF(ISERROR(VLOOKUP("All"&$B45&$I$5&$F$8&$A$14&$D$9,DataSubJudgements!$A:$K,J$36,0)),IF($B45="","",0),VLOOKUP("All"&$B45&$I$5&$F$8&$A$14&$D$9,DataSubJudgements!$A:$K,J$36,0)) ->  | M45: =IF(ISERROR(VLOOKUP("All"&$B45&$I$5&$F$8&$A$14&$D$9,DataSubJudgements!$A:$K,M$36,0)),IF($B45="","",0),VLOOKUP("All"&$B45&$I$5&$F$8&$A$14&$D$9,DataSubJudgements!$A:$K,M$36,0)) -> 
A46: 5 | B46: =IFERROR(VLOOKUP($B$35&A46,'Region Lookups'!A:C,3,0),"") ->  | D46: =IF(ISERROR(VLOOKUP("All"&$B46&$I$5&$F$8&$A$14&$D$9,DataSubJudgements!$A:$K,8,0)),IF(B46="","",0),SUM(F46:M46)) ->  | F46: =IF(ISERROR(VLOOKUP("All"&$B46&$I$5&$F$8&$A$14&$D$9,DataSubJudgements!$A:$K,F$36,0)),IF($B46="","",0),VLOOKUP("All"&$B46&$I$5&$F$8&$A$14&$D$9,DataSubJudgements!$A:$K,F$36,0)) ->  | H46: =IF(ISERROR(VLOOKUP("All"&$B46&$I$5&$F$8&$A$14&$D$9,DataSubJudgements!$A:$K,H$36,0)),IF($B46="","",0),VLOOKUP("All"&$B46&$I$5&$F$8&$A$14&$D$9,DataSubJudgements!$A:$K,H$36,0)) ->  | J46: =IF(ISERROR(VLOOKUP("All"&$B46&$I$5&$F$8&$A$14&$D$9,DataSubJudgements!$A:$K,J$36,0)),IF($B46="","",0),VLOOKUP("All"&$B46&$I$5&$F$8&$A$14&$D$9,DataSubJudgements!$A:$K,J$36,0)) ->  | M46: =IF(ISERROR(VLOOKUP("All"&$B46&$I$5&$F$8&$A$14&$D$9,DataSubJudgements!$A:$K,M$36,0)),IF($B46="","",0),VLOOKUP("All"&$B46&$I$5&$F$8&$A$14&$D$9,DataSubJudgements!$A:$K,M$36,0)) -> 
A47: 6 | B47: =IFERROR(VLOOKUP($B$35&A47,'Region Lookups'!A:C,3,0),"") ->  | D47: =IF(ISERROR(VLOOKUP("All"&$B47&$I$5&$F$8&$A$14&$D$9,DataSubJudgements!$A:$K,8,0)),IF(B47="","",0),SUM(F47:M47)) ->  | F47: =IF(ISERROR(VLOOKUP("All"&$B47&$I$5&$F$8&$A$14&$D$9,DataSubJudgements!$A:$K,F$36,0)),IF($B47="","",0),VLOOKUP("All"&$B47&$I$5&$F$8&$A$14&$D$9,DataSubJudgements!$A:$K,F$36,0)) ->  | H47: =IF(ISERROR(VLOOKUP("All"&$B47&$I$5&$F$8&$A$14&$D$9,DataSubJudgements!$A:$K,H$36,0)),IF($B47="","",0),VLOOKUP("All"&$B47&$I$5&$F$8&$A$14&$D$9,DataSubJudgements!$A:$K,H$36,0)) ->  | J47: =IF(ISERROR(VLOOKUP("All"&$B47&$I$5&$F$8&$A$14&$D$9,DataSubJudgements!$A:$K,J$36,0)),IF($B47="","",0),VLOOKUP("All"&$B47&$I$5&$F$8&$A$14&$D$9,DataSubJudgements!$A:$K,J$36,0)) ->  | M47: =IF(ISERROR(VLOOKUP("All"&$B47&$I$5&$F$8&$A$14&$D$9,DataSubJudgements!$A:$K,M$36,0)),IF($B47="","",0),VLOOKUP("All"&$B47&$I$5&$F$8&$A$14&$D$9,DataSubJudgements!$A:$K,M$36,0)) -> 
A48: 7 | B48: =IFERROR(VLOOKUP($B$35&A48,'Region Lookups'!A:C,3,0),"") ->  | D48: =IF(ISERROR(VLOOKUP("All"&$B48&$I$5&$F$8&$A$14&$D$9,DataSubJudgements!$A:$K,8,0)),IF(B48="","",0),SUM(F48:M48)) ->  | F48: =IF(ISERROR(VLOOKUP("All"&$B48&$I$5&$F$8&$A$14&$D$9,DataSubJudgements!$A:$K,F$36,0)),IF($B48="","",0),VLOOKUP("All"&$B48&$I$5&$F$8&$A$14&$D$9,DataSubJudgements!$A:$K,F$36,0)) ->  | H48: =IF(ISERROR(VLOOKUP("All"&$B48&$I$5&$F$8&$A$14&$D$9,DataSubJudgements!$A:$K,H$36,0)),IF($B48="","",0),VLOOKUP("All"&$B48&$I$5&$F$8&$A$14&$D$9,DataSubJudgements!$A:$K,H$36,0)) ->  | J48: =IF(ISERROR(VLOOKUP("All"&$B48&$I$5&$F$8&$A$14&$D$9,DataSubJudgements!$A:$K,J$36,0)),IF($B48="","",0),VLOOKUP("All"&$B48&$I$5&$F$8&$A$14&$D$9,DataSubJudgements!$A:$K,J$36,0)) ->  | M48: =IF(ISERROR(VLOOKUP("All"&$B48&$I$5&$F$8&$A$14&$D$9,DataSubJudgements!$A:$K,M$36,0)),IF($B48="","",0),VLOOKUP("All"&$B48&$I$5&$F$8&$A$14&$D$9,DataSubJudgements!$A:$K,M$36,0)) -> 
A49: 8 | B49: =IFERROR(VLOOKUP($B$35&A49,'Region Lookups'!A:C,3,0),"") ->  | D49: =IF(ISERROR(VLOOKUP("All"&$B49&$I$5&$F$8&$A$14&$D$9,DataSubJudgements!$A:$K,8,0)),IF(B49="","",0),SUM(F49:M49)) ->  | F49: =IF(ISERROR(VLOOKUP("All"&$B49&$I$5&$F$8&$A$14&$D$9,DataSubJudgements!$A:$K,F$36,0)),IF($B49="","",0),VLOOKUP("All"&$B49&$I$5&$F$8&$A$14&$D$9,DataSubJudgements!$A:$K,F$36,0)) ->  | H49: =IF(ISERROR(VLOOKUP("All"&$B49&$I$5&$F$8&$A$14&$D$9,DataSubJudgements!$A:$K,H$36,0)),IF($B49="","",0),VLOOKUP("All"&$B49&$I$5&$F$8&$A$14&$D$9,DataSubJudgements!$A:$K,H$36,0)) ->  | J49: =IF(ISERROR(VLOOKUP("All"&$B49&$I$5&$F$8&$A$14&$D$9,DataSubJudgements!$A:$K,J$36,0)),IF($B49="","",0),VLOOKUP("All"&$B49&$I$5&$F$8&$A$14&$D$9,DataSubJudgements!$A:$K,J$36,0)) ->  | M49: =IF(ISERROR(VLOOKUP("All"&$B49&$I$5&$F$8&$A$14&$D$9,DataSubJudgements!$A:$K,M$36,0)),IF($B49="","",0),VLOOKUP("All"&$B49&$I$5&$F$8&$A$14&$D$9,DataSubJudgements!$A:$K,M$36,0)) -> 
A50: 9 | B50: =IFERROR(VLOOKUP($B$35&A50,'Region Lookups'!A:C,3,0),"") ->  | D50: =IF(ISERROR(VLOOKUP("All"&$B50&$I$5&$F$8&$A$14&$D$9,DataSubJudgements!$A:$K,8,0)),IF(B50="","",0),SUM(F50:M50)) ->  | F50: =IF(ISERROR(VLOOKUP("All"&$B50&$I$5&$F$8&$A$14&$D$9,DataSubJudgements!$A:$K,F$36,0)),IF($B50="","",0),VLOOKUP("All"&$B50&$I$5&$F$8&$A$14&$D$9,DataSubJudgements!$A:$K,F$36,0)) ->  | H50: =IF(ISERROR(VLOOKUP("All"&$B50&$I$5&$F$8&$A$14&$D$9,DataSubJudgements!$A:$K,H$36,0)),IF($B50="","",0),VLOOKUP("All"&$B50&$I$5&$F$8&$A$14&$D$9,DataSubJudgements!$A:$K,H$36,0)) ->  | J50: =IF(ISERROR(VLOOKUP("All"&$B50&$I$5&$F$8&$A$14&$D$9,DataSubJudgements!$A:$K,J$36,0)),IF($B50="","",0),VLOOKUP("All"&$B50&$I$5&$F$8&$A$14&$D$9,DataSubJudgements!$A:$K,J$36,0)) ->  | M50: =IF(ISERROR(VLOOKUP("All"&$B50&$I$5&$F$8&$A$14&$D$9,DataSubJudgements!$A:$K,M$36,0)),IF($B50="","",0),VLOOKUP("All"&$B50&$I$5&$F$8&$A$14&$D$9,DataSubJudgements!$A:$K,M$36,0)) -> 
A51: 10 | B51: =IFERROR(VLOOKUP($B$35&A51,'Region Lookups'!A:C,3,0),"") ->  | D51: =IF(ISERROR(VLOOKUP("All"&$B51&$I$5&$F$8&$A$14&$D$9,DataSubJudgements!$A:$K,8,0)),IF(B51="","",0),SUM(F51:M51)) ->  | F51: =IF(ISERROR(VLOOKUP("All"&$B51&$I$5&$F$8&$A$14&$D$9,DataSubJudgements!$A:$K,F$36,0)),IF($B51="","",0),VLOOKUP("All"&$B51&$I$5&$F$8&$A$14&$D$9,DataSubJudgements!$A:$K,F$36,0)) ->  | H51: =IF(ISERROR(VLOOKUP("All"&$B51&$I$5&$F$8&$A$14&$D$9,DataSubJudgements!$A:$K,H$36,0)),IF($B51="","",0),VLOOKUP("All"&$B51&$I$5&$F$8&$A$14&$D$9,DataSubJudgements!$A:$K,H$36,0)) ->  | J51: =IF(ISERROR(VLOOKUP("All"&$B51&$I$5&$F$8&$A$14&$D$9,DataSubJudgements!$A:$K,J$36,0)),IF($B51="","",0),VLOOKUP("All"&$B51&$I$5&$F$8&$A$14&$D$9,DataSubJudgements!$A:$K,J$36,0)) ->  | M51: =IF(ISERROR(VLOOKUP("All"&$B51&$I$5&$F$8&$A$14&$D$9,DataSubJudgements!$A:$K,M$36,0)),IF($B51="","",0),VLOOKUP("All"&$B51&$I$5&$F$8&$A$14&$D$9,DataSubJudgements!$A:$K,M$36,0)) -> 
A52: 11 | B52: =IFERROR(VLOOKUP($B$35&A52,'Region Lookups'!A:C,3,0),"") ->  | D52: =IF(ISERROR(VLOOKUP("All"&$B52&$I$5&$F$8&$A$14&$D$9,DataSubJudgements!$A:$K,8,0)),IF(B52="","",0),SUM(F52:M52)) ->  | F52: =IF(ISERROR(VLOOKUP("All"&$B52&$I$5&$F$8&$A$14&$D$9,DataSubJudgements!$A:$K,F$36,0)),IF($B52="","",0),VLOOKUP("All"&$B52&$I$5&$F$8&$A$14&$D$9,DataSubJudgements!$A:$K,F$36,0)) ->  | H52: =IF(ISERROR(VLOOKUP("All"&$B52&$I$5&$F$8&$A$14&$D$9,DataSubJudgements!$A:$K,H$36,0)),IF($B52="","",0),VLOOKUP("All"&$B52&$I$5&$F$8&$A$14&$D$9,DataSubJudgements!$A:$K,H$36,0)) ->  | J52: =IF(ISERROR(VLOOKUP("All"&$B52&$I$5&$F$8&$A$14&$D$9,DataSubJudgements!$A:$K,J$36,0)),IF($B52="","",0),VLOOKUP("All"&$B52&$I$5&$F$8&$A$14&$D$9,DataSubJudgements!$A:$K,J$36,0)) ->  | M52: =IF(ISERROR(VLOOKUP("All"&$B52&$I$5&$F$8&$A$14&$D$9,DataSubJudgements!$A:$K,M$36,0)),IF($B52="","",0),VLOOKUP("All"&$B52&$I$5&$F$8&$A$14&$D$9,DataSubJudgements!$A:$K,M$36,0)) -> 
A53: 12 | B53: =IFERROR(VLOOKUP($B$35&A53,'Region Lookups'!A:C,3,0),"") ->  | D53: =IF(ISERROR(VLOOKUP("All"&$B53&$I$5&$F$8&$A$14&$D$9,DataSubJudgements!$A:$K,8,0)),IF(B53="","",0),SUM(F53:M53)) ->  | F53: =IF(ISERROR(VLOOKUP("All"&$B53&$I$5&$F$8&$A$14&$D$9,DataSubJudgements!$A:$K,F$36,0)),IF($B53="","",0),VLOOKUP("All"&$B53&$I$5&$F$8&$A$14&$D$9,DataSubJudgements!$A:$K,F$36,0)) ->  | H53: =IF(ISERROR(VLOOKUP("All"&$B53&$I$5&$F$8&$A$14&$D$9,DataSubJudgements!$A:$K,H$36,0)),IF($B53="","",0),VLOOKUP("All"&$B53&$I$5&$F$8&$A$14&$D$9,DataSubJudgements!$A:$K,H$36,0)) ->  | J53: =IF(ISERROR(VLOOKUP("All"&$B53&$I$5&$F$8&$A$14&$D$9,DataSubJudgements!$A:$K,J$36,0)),IF($B53="","",0),VLOOKUP("All"&$B53&$I$5&$F$8&$A$14&$D$9,DataSubJudgements!$A:$K,J$36,0)) ->  | M53: =IF(ISERROR(VLOOKUP("All"&$B53&$I$5&$F$8&$A$14&$D$9,DataSubJudgements!$A:$K,M$36,0)),IF($B53="","",0),VLOOKUP("All"&$B53&$I$5&$F$8&$A$14&$D$9,DataSubJudgements!$A:$K,M$36,0)) -> 
A54: 13 | B54: =IFERROR(VLOOKUP($B$35&A54,'Region Lookups'!A:C,3,0),"") ->  | D54: =IF(ISERROR(VLOOKUP("All"&$B54&$I$5&$F$8&$A$14&$D$9,DataSubJudgements!$A:$K,8,0)),IF(B54="","",0),SUM(F54:M54)) ->  | F54: =IF(ISERROR(VLOOKUP("All"&$B54&$I$5&$F$8&$A$14&$D$9,DataSubJudgements!$A:$K,F$36,0)),IF($B54="","",0),VLOOKUP("All"&$B54&$I$5&$F$8&$A$14&$D$9,DataSubJudgements!$A:$K,F$36,0)) ->  | H54: =IF(ISERROR(VLOOKUP("All"&$B54&$I$5&$F$8&$A$14&$D$9,DataSubJudgements!$A:$K,H$36,0)),IF($B54="","",0),VLOOKUP("All"&$B54&$I$5&$F$8&$A$14&$D$9,DataSubJudgements!$A:$K,H$36,0)) ->  | J54: =IF(ISERROR(VLOOKUP("All"&$B54&$I$5&$F$8&$A$14&$D$9,DataSubJudgements!$A:$K,J$36,0)),IF($B54="","",0),VLOOKUP("All"&$B54&$I$5&$F$8&$A$14&$D$9,DataSubJudgements!$A:$K,J$36,0)) ->  | M54: =IF(ISERROR(VLOOKUP("All"&$B54&$I$5&$F$8&$A$14&$D$9,DataSubJudgements!$A:$K,M$36,0)),IF($B54="","",0),VLOOKUP("All"&$B54&$I$5&$F$8&$A$14&$D$9,DataSubJudgements!$A:$K,M$36,0)) -> 
A55: 14 | B55: =IFERROR(VLOOKUP($B$35&A55,'Region Lookups'!A:C,3,0),"") ->  | D55: =IF(ISERROR(VLOOKUP("All"&$B55&$I$5&$F$8&$A$14&$D$9,DataSubJudgements!$A:$K,8,0)),IF(B55="","",0),SUM(F55:M55)) ->  | F55: =IF(ISERROR(VLOOKUP("All"&$B55&$I$5&$F$8&$A$14&$D$9,DataSubJudgements!$A:$K,F$36,0)),IF($B55="","",0),VLOOKUP("All"&$B55&$I$5&$F$8&$A$14&$D$9,DataSubJudgements!$A:$K,F$36,0)) ->  | H55: =IF(ISERROR(VLOOKUP("All"&$B55&$I$5&$F$8&$A$14&$D$9,DataSubJudgements!$A:$K,H$36,0)),IF($B55="","",0),VLOOKUP("All"&$B55&$I$5&$F$8&$A$14&$D$9,DataSubJudgements!$A:$K,H$36,0)) ->  | J55: =IF(ISERROR(VLOOKUP("All"&$B55&$I$5&$F$8&$A$14&$D$9,DataSubJudgements!$A:$K,J$36,0)),IF($B55="","",0),VLOOKUP("All"&$B55&$I$5&$F$8&$A$14&$D$9,DataSubJudgements!$A:$K,J$36,0)) ->  | M55: =IF(ISERROR(VLOOKUP("All"&$B55&$I$5&$F$8&$A$14&$D$9,DataSubJudgements!$A:$K,M$36,0)),IF($B55="","",0),VLOOKUP("All"&$B55&$I$5&$F$8&$A$14&$D$9,DataSubJudgements!$A:$K,M$36,0)) -> 
A56: 15 | B56: =IFERROR(VLOOKUP($B$35&A56,'Region Lookups'!A:C,3,0),"") ->  | D56: =IF(ISERROR(VLOOKUP("All"&$B56&$I$5&$F$8&$A$14&$D$9,DataSubJudgements!$A:$K,8,0)),IF(B56="","",0),SUM(F56:M56)) ->  | F56: =IF(ISERROR(VLOOKUP("All"&$B56&$I$5&$F$8&$A$14&$D$9,DataSubJudgements!$A:$K,F$36,0)),IF($B56="","",0),VLOOKUP("All"&$B56&$I$5&$F$8&$A$14&$D$9,DataSubJudgements!$A:$K,F$36,0)) ->  | H56: =IF(ISERROR(VLOOKUP("All"&$B56&$I$5&$F$8&$A$14&$D$9,DataSubJudgements!$A:$K,H$36,0)),IF($B56="","",0),VLOOKUP("All"&$B56&$I$5&$F$8&$A$14&$D$9,DataSubJudgements!$A:$K,H$36,0)) ->  | J56: =IF(ISERROR(VLOOKUP("All"&$B56&$I$5&$F$8&$A$14&$D$9,DataSubJudgements!$A:$K,J$36,0)),IF($B56="","",0),VLOOKUP("All"&$B56&$I$5&$F$8&$A$14&$D$9,DataSubJudgements!$A:$K,J$36,0)) ->  | M56: =IF(ISERROR(VLOOKUP("All"&$B56&$I$5&$F$8&$A$14&$D$9,DataSubJudgements!$A:$K,M$36,0)),IF($B56="","",0),VLOOKUP("All"&$B56&$I$5&$F$8&$A$14&$D$9,DataSubJudgements!$A:$K,M$36,0)) -> 
A57: 16 | B57: =IFERROR(VLOOKUP($B$35&A57,'Region Lookups'!A:C,3,0),"") ->  | D57: =IF(ISERROR(VLOOKUP("All"&$B57&$I$5&$F$8&$A$14&$D$9,DataSubJudgements!$A:$K,8,0)),IF(B57="","",0),SUM(F57:M57)) ->  | F57: =IF(ISERROR(VLOOKUP("All"&$B57&$I$5&$F$8&$A$14&$D$9,DataSubJudgements!$A:$K,F$36,0)),IF($B57="","",0),VLOOKUP("All"&$B57&$I$5&$F$8&$A$14&$D$9,DataSubJudgements!$A:$K,F$36,0)) ->  | H57: =IF(ISERROR(VLOOKUP("All"&$B57&$I$5&$F$8&$A$14&$D$9,DataSubJudgements!$A:$K,H$36,0)),IF($B57="","",0),VLOOKUP("All"&$B57&$I$5&$F$8&$A$14&$D$9,DataSubJudgements!$A:$K,H$36,0)) ->  | J57: =IF(ISERROR(VLOOKUP("All"&$B57&$I$5&$F$8&$A$14&$D$9,DataSubJudgements!$A:$K,J$36,0)),IF($B57="","",0),VLOOKUP("All"&$B57&$I$5&$F$8&$A$14&$D$9,DataSubJudgements!$A:$K,J$36,0)) ->  | M57: =IF(ISERROR(VLOOKUP("All"&$B57&$I$5&$F$8&$A$14&$D$9,DataSubJudgements!$A:$K,M$36,0)),IF($B57="","",0),VLOOKUP("All"&$B57&$I$5&$F$8&$A$14&$D$9,DataSubJudgements!$A:$K,M$36,0)) -> 
A58: 17 | B58: =IFERROR(VLOOKUP($B$35&A58,'Region Lookups'!A:C,3,0),"") ->  | D58: =IF(ISERROR(VLOOKUP("All"&$B58&$I$5&$F$8&$A$14&$D$9,DataSubJudgements!$A:$K,8,0)),IF(B58="","",0),SUM(F58:M58)) ->  | F58: =IF(ISERROR(VLOOKUP("All"&$B58&$I$5&$F$8&$A$14&$D$9,DataSubJudgements!$A:$K,F$36,0)),IF($B58="","",0),VLOOKUP("All"&$B58&$I$5&$F$8&$A$14&$D$9,DataSubJudgements!$A:$K,F$36,0)) ->  | H58: =IF(ISERROR(VLOOKUP("All"&$B58&$I$5&$F$8&$A$14&$D$9,DataSubJudgements!$A:$K,H$36,0)),IF($B58="","",0),VLOOKUP("All"&$B58&$I$5&$F$8&$A$14&$D$9,DataSubJudgements!$A:$K,H$36,0)) ->  | J58: =IF(ISERROR(VLOOKUP("All"&$B58&$I$5&$F$8&$A$14&$D$9,DataSubJudgements!$A:$K,J$36,0)),IF($B58="","",0),VLOOKUP("All"&$B58&$I$5&$F$8&$A$14&$D$9,DataSubJudgements!$A:$K,J$36,0)) ->  | M58: =IF(ISERROR(VLOOKUP("All"&$B58&$I$5&$F$8&$A$14&$D$9,DataSubJudgements!$A:$K,M$36,0)),IF($B58="","",0),VLOOKUP("All"&$B58&$I$5&$F$8&$A$14&$D$9,DataSubJudgements!$A:$K,M$36,0)) -> 
A59: 18 | B59: =IFERROR(VLOOKUP($B$35&A59,'Region Lookups'!A:C,3,0),"") ->  | F59: =IF(ISERROR(VLOOKUP("All"&$B59&$I$5&$F$8&$A$14&$D$9,DataSubJudgements!$A:$K,F$36,0)),IF($B59="","",0),VLOOKUP("All"&$B59&$I$5&$F$8&$A$14&$D$9,DataSubJudgements!$A:$K,F$36,0)) ->  | H59: =IF(ISERROR(VLOOKUP("All"&$B59&$I$5&$F$8&$A$14&$D$9,DataSubJudgements!$A:$K,H$36,0)),IF($B59="","",0),VLOOKUP("All"&$B59&$I$5&$F$8&$A$14&$D$9,DataSubJudgements!$A:$K,H$36,0)) ->  | J59: =IF(ISERROR(VLOOKUP("All"&$B59&$I$5&$F$8&$A$14&$D$9,DataSubJudgements!$A:$K,J$36,0)),IF($B59="","",0),VLOOKUP("All"&$B59&$I$5&$F$8&$A$14&$D$9,DataSubJudgements!$A:$K,J$36,0)) ->  | M59: =IF(ISERROR(VLOOKUP("All"&$B59&$I$5&$F$8&$A$14&$D$9,DataSubJudgements!$A:$K,M$36,0)),IF($B59="","",0),VLOOKUP("All"&$B59&$I$5&$F$8&$A$14&$D$9,DataSubJudgements!$A:$K,M$36,0)) -> 
A60: 19 | B60: =IFERROR(VLOOKUP($B$35&A60,'Region Lookups'!A:C,3,0),"") ->  | D60: =IF(ISERROR(VLOOKUP("All"&$B60&$I$5&$F$8&$A$14&$D$9,DataSubJudgements!$A:$K,8,0)),IF(B60="","",0),SUM(F60:M60)) ->  | F60: =IF(ISERROR(VLOOKUP("All"&$B60&$I$5&$F$8&$A$14&$D$9,DataSubJudgements!$A:$K,F$36,0)),IF($B60="","",0),VLOOKUP("All"&$B60&$I$5&$F$8&$A$14&$D$9,DataSubJudgements!$A:$K,F$36,0)) ->  | H60: =IF(ISERROR(VLOOKUP("All"&$B60&$I$5&$F$8&$A$14&$D$9,DataSubJudgements!$A:$K,H$36,0)),IF($B60="","",0),VLOOKUP("All"&$B60&$I$5&$F$8&$A$14&$D$9,DataSubJudgements!$A:$K,H$36,0)) ->  | J60: =IF(ISERROR(VLOOKUP("All"&$B60&$I$5&$F$8&$A$14&$D$9,DataSubJudgements!$A:$K,J$36,0)),IF($B60="","",0),VLOOKUP("All"&$B60&$I$5&$F$8&$A$14&$D$9,DataSubJudgements!$A:$K,J$36,0)) ->  | M60: =IF(ISERROR(VLOOKUP("All"&$B60&$I$5&$F$8&$A$14&$D$9,DataSubJudgements!$A:$K,M$36,0)),IF($B60="","",0),VLOOKUP("All"&$B60&$I$5&$F$8&$A$14&$D$9,DataSubJudgements!$A:$K,M$36,0)) -> 
A61: 20 | B61: =IFERROR(VLOOKUP($B$35&A61,'Region Lookups'!A:C,3,0),"") ->  | D61: =IF(ISERROR(VLOOKUP("All"&$B61&$I$5&$F$8&$A$14&$D$9,DataSubJudgements!$A:$K,8,0)),IF(B61="","",0),SUM(F61:M61)) ->  | F61: =IF(ISERROR(VLOOKUP("All"&$B61&$I$5&$F$8&$A$14&$D$9,DataSubJudgements!$A:$K,F$36,0)),IF($B61="","",0),VLOOKUP("All"&$B61&$I$5&$F$8&$A$14&$D$9,DataSubJudgements!$A:$K,F$36,0)) ->  | H61: =IF(ISERROR(VLOOKUP("All"&$B61&$I$5&$F$8&$A$14&$D$9,DataSubJudgements!$A:$K,H$36,0)),IF($B61="","",0),VLOOKUP("All"&$B61&$I$5&$F$8&$A$14&$D$9,DataSubJudgements!$A:$K,H$36,0)) ->  | J61: =IF(ISERROR(VLOOKUP("All"&$B61&$I$5&$F$8&$A$14&$D$9,DataSubJudgements!$A:$K,J$36,0)),IF($B61="","",0),VLOOKUP("All"&$B61&$I$5&$F$8&$A$14&$D$9,DataSubJudgements!$A:$K,J$36,0)) ->  | M61: =IF(ISERROR(VLOOKUP("All"&$B61&$I$5&$F$8&$A$14&$D$9,DataSubJudgements!$A:$K,M$36,0)),IF($B61="","",0),VLOOKUP("All"&$B61&$I$5&$F$8&$A$14&$D$9,DataSubJudgements!$A:$K,M$36,0)) -> 
A62: 21 | B62: =IFERROR(VLOOKUP($B$35&A62,'Region Lookups'!A:C,3,0),"") ->  | D62: =IF(ISERROR(VLOOKUP("All"&$B62&$I$5&$F$8&$A$14&$D$9,DataSubJudgements!$A:$K,8,0)),IF(B62="","",0),SUM(F62:M62)) ->  | F62: =IF(ISERROR(VLOOKUP("All"&$B62&$I$5&$F$8&$A$14&$D$9,DataSubJudgements!$A:$K,F$36,0)),IF($B62="","",0),VLOOKUP("All"&$B62&$I$5&$F$8&$A$14&$D$9,DataSubJudgements!$A:$K,F$36,0)) ->  | H62: =IF(ISERROR(VLOOKUP("All"&$B62&$I$5&$F$8&$A$14&$D$9,DataSubJudgements!$A:$K,H$36,0)),IF($B62="","",0),VLOOKUP("All"&$B62&$I$5&$F$8&$A$14&$D$9,DataSubJudgements!$A:$K,H$36,0)) ->  | J62: =IF(ISERROR(VLOOKUP("All"&$B62&$I$5&$F$8&$A$14&$D$9,DataSubJudgements!$A:$K,J$36,0)),IF($B62="","",0),VLOOKUP("All"&$B62&$I$5&$F$8&$A$14&$D$9,DataSubJudgements!$A:$K,J$36,0)) ->  | M62: =IF(ISERROR(VLOOKUP("All"&$B62&$I$5&$F$8&$A$14&$D$9,DataSubJudgements!$A:$K,M$36,0)),IF($B62="","",0),VLOOKUP("All"&$B62&$I$5&$F$8&$A$14&$D$9,DataSubJudgements!$A:$K,M$36,0)) -> 
A63: 22 | B63: =IFERROR(VLOOKUP($B$35&A63,'Region Lookups'!A:C,3,0),"") ->  | D63: =IF(ISERROR(VLOOKUP("All"&$B63&$I$5&$F$8&$A$14&$D$9,DataSubJudgements!$A:$K,8,0)),IF(B63="","",0),SUM(F63:M63)) ->  | F63: =IF(ISERROR(VLOOKUP("All"&$B63&$I$5&$F$8&$A$14&$D$9,DataSubJudgements!$A:$K,F$36,0)),IF($B63="","",0),VLOOKUP("All"&$B63&$I$5&$F$8&$A$14&$D$9,DataSubJudgements!$A:$K,F$36,0)) ->  | H63: =IF(ISERROR(VLOOKUP("All"&$B63&$I$5&$F$8&$A$14&$D$9,DataSubJudgements!$A:$K,H$36,0)),IF($B63="","",0),VLOOKUP("All"&$B63&$I$5&$F$8&$A$14&$D$9,DataSubJudgements!$A:$K,H$36,0)) ->  | J63: =IF(ISERROR(VLOOKUP("All"&$B63&$I$5&$F$8&$A$14&$D$9,DataSubJudgements!$A:$K,J$36,0)),IF($B63="","",0),VLOOKUP("All"&$B63&$I$5&$F$8&$A$14&$D$9,DataSubJudgements!$A:$K,J$36,0)) ->  | M63: =IF(ISERROR(VLOOKUP("All"&$B63&$I$5&$F$8&$A$14&$D$9,DataSubJudgements!$A:$K,M$36,0)),IF($B63="","",0),VLOOKUP("All"&$B63&$I$5&$F$8&$A$14&$D$9,DataSubJudgements!$A:$K,M$36,0)) -> 
A64: 23 | B64: =IFERROR(VLOOKUP($B$35&A64,'Region Lookups'!A:C,3,0),"") ->  | D64: =IF(ISERROR(VLOOKUP("All"&$B64&$I$5&$F$8&$A$14&$D$9,DataSubJudgements!$A:$K,8,0)),IF(B64="","",0),SUM(F64:M64)) ->  | F64: =IF(ISERROR(VLOOKUP("All"&$B64&$I$5&$F$8&$A$14&$D$9,DataSubJudgements!$A:$K,F$36,0)),IF($B64="","",0),VLOOKUP("All"&$B64&$I$5&$F$8&$A$14&$D$9,DataSubJudgements!$A:$K,F$36,0)) ->  | H64: =IF(ISERROR(VLOOKUP("All"&$B64&$I$5&$F$8&$A$14&$D$9,DataSubJudgements!$A:$K,H$36,0)),IF($B64="","",0),VLOOKUP("All"&$B64&$I$5&$F$8&$A$14&$D$9,DataSubJudgements!$A:$K,H$36,0)) ->  | J64: =IF(ISERROR(VLOOKUP("All"&$B64&$I$5&$F$8&$A$14&$D$9,DataSubJudgements!$A:$K,J$36,0)),IF($B64="","",0),VLOOKUP("All"&$B64&$I$5&$F$8&$A$14&$D$9,DataSubJudgements!$A:$K,J$36,0)) ->  | M64: =IF(ISERROR(VLOOKUP("All"&$B64&$I$5&$F$8&$A$14&$D$9,DataSubJudgements!$A:$K,M$36,0)),IF($B64="","",0),VLOOKUP("All"&$B64&$I$5&$F$8&$A$14&$D$9,DataSubJudgements!$A:$K,M$36,0)) -> 
A65: 24 | B65: =IFERROR(VLOOKUP($B$35&A65,'Region Lookups'!A:C,3,0),"") ->  | D65: =IF(ISERROR(VLOOKUP("All"&$B65&$I$5&$F$8&$A$14&$D$9,DataSubJudgements!$A:$K,8,0)),IF(B65="","",0),SUM(F65:M65)) ->  | F65: =IF(ISERROR(VLOOKUP("All"&$B65&$I$5&$F$8&$A$14&$D$9,DataSubJudgements!$A:$K,F$36,0)),IF($B65="","",0),VLOOKUP("All"&$B65&$I$5&$F$8&$A$14&$D$9,DataSubJudgements!$A:$K,F$36,0)) ->  | H65: =IF(ISERROR(VLOOKUP("All"&$B65&$I$5&$F$8&$A$14&$D$9,DataSubJudgements!$A:$K,H$36,0)),IF($B65="","",0),VLOOKUP("All"&$B65&$I$5&$F$8&$A$14&$D$9,DataSubJudgements!$A:$K,H$36,0)) ->  | J65: =IF(ISERROR(VLOOKUP("All"&$B65&$I$5&$F$8&$A$14&$D$9,DataSubJudgements!$A:$K,J$36,0)),IF($B65="","",0),VLOOKUP("All"&$B65&$I$5&$F$8&$A$14&$D$9,DataSubJudgements!$A:$K,J$36,0)) ->  | M65: =IF(ISERROR(VLOOKUP("All"&$B65&$I$5&$F$8&$A$14&$D$9,DataSubJudgements!$A:$K,M$36,0)),IF($B65="","",0),VLOOKUP("All"&$B65&$I$5&$F$8&$A$14&$D$9,DataSubJudgements!$A:$K,M$36,0)) -> 
A66: 25 | B66: =IFERROR(VLOOKUP($B$35&A66,'Region Lookups'!A:C,3,0),"") ->  | D66: =IF(ISERROR(VLOOKUP("All"&$B66&$I$5&$F$8&$A$14&$D$9,DataSubJudgements!$A:$K,8,0)),IF(B66="","",0),SUM(F66:M66)) ->  | F66: =IF(ISERROR(VLOOKUP("All"&$B66&$I$5&$F$8&$A$14&$D$9,DataSubJudgements!$A:$K,F$36,0)),IF($B66="","",0),VLOOKUP("All"&$B66&$I$5&$F$8&$A$14&$D$9,DataSubJudgements!$A:$K,F$36,0)) ->  | H66: =IF(ISERROR(VLOOKUP("All"&$B66&$I$5&$F$8&$A$14&$D$9,DataSubJudgements!$A:$K,H$36,0)),IF($B66="","",0),VLOOKUP("All"&$B66&$I$5&$F$8&$A$14&$D$9,DataSubJudgements!$A:$K,H$36,0)) ->  | J66: =IF(ISERROR(VLOOKUP("All"&$B66&$I$5&$F$8&$A$14&$D$9,DataSubJudgements!$A:$K,J$36,0)),IF($B66="","",0),VLOOKUP("All"&$B66&$I$5&$F$8&$A$14&$D$9,DataSubJudgements!$A:$K,J$36,0)) ->  | M66: =IF(ISERROR(VLOOKUP("All"&$B66&$I$5&$F$8&$A$14&$D$9,DataSubJudgements!$A:$K,M$36,0)),IF($B66="","",0),VLOOKUP("All"&$B66&$I$5&$F$8&$A$14&$D$9,DataSubJudgements!$A:$K,M$36,0)) -> 
A67: 26 | B67: =IFERROR(VLOOKUP($B$35&A67,'Region Lookups'!A:C,3,0),"") ->  | D67: =IF(ISERROR(VLOOKUP("All"&$B67&$I$5&$F$8&$A$14&$D$9,DataSubJudgements!$A:$K,8,0)),IF(B67="","",0),SUM(F67:M67)) ->  | F67: =IF(ISERROR(VLOOKUP("All"&$B67&$I$5&$F$8&$A$14&$D$9,DataSubJudgements!$A:$K,F$36,0)),IF($B67="","",0),VLOOKUP("All"&$B67&$I$5&$F$8&$A$14&$D$9,DataSubJudgements!$A:$K,F$36,0)) ->  | H67: =IF(ISERROR(VLOOKUP("All"&$B67&$I$5&$F$8&$A$14&$D$9,DataSubJudgements!$A:$K,H$36,0)),IF($B67="","",0),VLOOKUP("All"&$B67&$I$5&$F$8&$A$14&$D$9,DataSubJudgements!$A:$K,H$36,0)) ->  | J67: =IF(ISERROR(VLOOKUP("All"&$B67&$I$5&$F$8&$A$14&$D$9,DataSubJudgements!$A:$K,J$36,0)),IF($B67="","",0),VLOOKUP("All"&$B67&$I$5&$F$8&$A$14&$D$9,DataSubJudgements!$A:$K,J$36,0)) ->  | M67: =IF(ISERROR(VLOOKUP("All"&$B67&$I$5&$F$8&$A$14&$D$9,DataSubJudgements!$A:$K,M$36,0)),IF($B67="","",0),VLOOKUP("All"&$B67&$I$5&$F$8&$A$14&$D$9,DataSubJudgements!$A:$K,M$36,0)) -> 
A68: 27 | B68: =IFERROR(VLOOKUP($B$35&A68,'Region Lookups'!A:C,3,0),"") ->  | D68: =IF(ISERROR(VLOOKUP("All"&$B68&$I$5&$F$8&$A$14&$D$9,DataSubJudgements!$A:$K,8,0)),IF(B68="","",0),SUM(F68:M68)) ->  | F68: =IF(ISERROR(VLOOKUP("All"&$B68&$I$5&$F$8&$A$14&$D$9,DataSubJudgements!$A:$K,F$36,0)),IF($B68="","",0),VLOOKUP("All"&$B68&$I$5&$F$8&$A$14&$D$9,DataSubJudgements!$A:$K,F$36,0)) ->  | H68: =IF(ISERROR(VLOOKUP("All"&$B68&$I$5&$F$8&$A$14&$D$9,DataSubJudgements!$A:$K,H$36,0)),IF($B68="","",0),VLOOKUP("All"&$B68&$I$5&$F$8&$A$14&$D$9,DataSubJudgements!$A:$K,H$36,0)) ->  | J68: =IF(ISERROR(VLOOKUP("All"&$B68&$I$5&$F$8&$A$14&$D$9,DataSubJudgements!$A:$K,J$36,0)),IF($B68="","",0),VLOOKUP("All"&$B68&$I$5&$F$8&$A$14&$D$9,DataSubJudgements!$A:$K,J$36,0)) ->  | M68: =IF(ISERROR(VLOOKUP("All"&$B68&$I$5&$F$8&$A$14&$D$9,DataSubJudgements!$A:$K,M$36,0)),IF($B68="","",0),VLOOKUP("All"&$B68&$I$5&$F$8&$A$14&$D$9,DataSubJudgements!$A:$K,M$36,0)) -> 
A69: 28 | B69: =IFERROR(VLOOKUP($B$35&A69,'Region Lookups'!A:C,3,0),"") ->  | D69: =IF(ISERROR(VLOOKUP("All"&$B69&$I$5&$F$8&$A$14&$D$9,DataSubJudgements!$A:$K,8,0)),IF(B69="","",0),SUM(F69:M69)) ->  | F69: =IF(ISERROR(VLOOKUP("All"&$B69&$I$5&$F$8&$A$14&$D$9,DataSubJudgements!$A:$K,F$36,0)),IF($B69="","",0),VLOOKUP("All"&$B69&$I$5&$F$8&$A$14&$D$9,DataSubJudgements!$A:$K,F$36,0)) ->  | H69: =IF(ISERROR(VLOOKUP("All"&$B69&$I$5&$F$8&$A$14&$D$9,DataSubJudgements!$A:$K,H$36,0)),IF($B69="","",0),VLOOKUP("All"&$B69&$I$5&$F$8&$A$14&$D$9,DataSubJudgements!$A:$K,H$36,0)) ->  | J69: =IF(ISERROR(VLOOKUP("All"&$B69&$I$5&$F$8&$A$14&$D$9,DataSubJudgements!$A:$K,J$36,0)),IF($B69="","",0),VLOOKUP("All"&$B69&$I$5&$F$8&$A$14&$D$9,DataSubJudgements!$A:$K,J$36,0)) ->  | M69: =IF(ISERROR(VLOOKUP("All"&$B69&$I$5&$F$8&$A$14&$D$9,DataSubJudgements!$A:$K,M$36,0)),IF($B69="","",0),VLOOKUP("All"&$B69&$I$5&$F$8&$A$14&$D$9,DataSubJudgements!$A:$K,M$36,0)) -> 
A70: 29 | B70: =IFERROR(VLOOKUP($B$35&A70,'Region Lookups'!A:C,3,0),"") ->  | D70: =IF(ISERROR(VLOOKUP("All"&$B70&$I$5&$F$8&$A$14&$D$9,DataSubJudgements!$A:$K,8,0)),IF(B70="","",0),SUM(F70:M70)) ->  | F70: =IF(ISERROR(VLOOKUP("All"&$B70&$I$5&$F$8&$A$14&$D$9,DataSubJudgements!$A:$K,F$36,0)),IF($B70="","",0),VLOOKUP("All"&$B70&$I$5&$F$8&$A$14&$D$9,DataSubJudgements!$A:$K,F$36,0)) ->  | H70: =IF(ISERROR(VLOOKUP("All"&$B70&$I$5&$F$8&$A$14&$D$9,DataSubJudgements!$A:$K,H$36,0)),IF($B70="","",0),VLOOKUP("All"&$B70&$I$5&$F$8&$A$14&$D$9,DataSubJudgements!$A:$K,H$36,0)) ->  | J70: =IF(ISERROR(VLOOKUP("All"&$B70&$I$5&$F$8&$A$14&$D$9,DataSubJudgements!$A:$K,J$36,0)),IF($B70="","",0),VLOOKUP("All"&$B70&$I$5&$F$8&$A$14&$D$9,DataSubJudgements!$A:$K,J$36,0)) ->  | M70: =IF(ISERROR(VLOOKUP("All"&$B70&$I$5&$F$8&$A$14&$D$9,DataSubJudgements!$A:$K,M$36,0)),IF($B70="","",0),VLOOKUP("All"&$B70&$I$5&$F$8&$A$14&$D$9,DataSubJudgements!$A:$K,M$36,0)) -> 
A71: 30 | B71: =IFERROR(VLOOKUP($B$35&A71,'Region Lookups'!A:C,3,0),"") ->  | D71: =IF(ISERROR(VLOOKUP("All"&$B71&$I$5&$F$8&$A$14&$D$9,DataSubJudgements!$A:$K,8,0)),IF(B71="","",0),SUM(F71:M71)) ->  | F71: =IF(ISERROR(VLOOKUP("All"&$B71&$I$5&$F$8&$A$14&$D$9,DataSubJudgements!$A:$K,F$36,0)),IF($B71="","",0),VLOOKUP("All"&$B71&$I$5&$F$8&$A$14&$D$9,DataSubJudgements!$A:$K,F$36,0)) ->  | H71: =IF(ISERROR(VLOOKUP("All"&$B71&$I$5&$F$8&$A$14&$D$9,DataSubJudgements!$A:$K,H$36,0)),IF($B71="","",0),VLOOKUP("All"&$B71&$I$5&$F$8&$A$14&$D$9,DataSubJudgements!$A:$K,H$36,0)) ->  | J71: =IF(ISERROR(VLOOKUP("All"&$B71&$I$5&$F$8&$A$14&$D$9,DataSubJudgements!$A:$K,J$36,0)),IF($B71="","",0),VLOOKUP("All"&$B71&$I$5&$F$8&$A$14&$D$9,DataSubJudgements!$A:$K,J$36,0)) ->  | M71: =IF(ISERROR(VLOOKUP("All"&$B71&$I$5&$F$8&$A$14&$D$9,DataSubJudgements!$A:$K,M$36,0)),IF($B71="","",0),VLOOKUP("All"&$B71&$I$5&$F$8&$A$14&$D$9,DataSubJudgements!$A:$K,M$36,0)) -> 
A72: 31 | B72: =IFERROR(VLOOKUP($B$35&A72,'Region Lookups'!A:C,3,0),"") ->  | D72: =IF(ISERROR(VLOOKUP("All"&$B72&$I$5&$F$8&$A$14&$D$9,DataSubJudgements!$A:$K,8,0)),IF(B72="","",0),SUM(F72:M72)) ->  | F72: =IF(ISERROR(VLOOKUP("All"&$B72&$I$5&$F$8&$A$14&$D$9,DataSubJudgements!$A:$K,F$36,0)),IF($B72="","",0),VLOOKUP("All"&$B72&$I$5&$F$8&$A$14&$D$9,DataSubJudgements!$A:$K,F$36,0)) ->  | H72: =IF(ISERROR(VLOOKUP("All"&$B72&$I$5&$F$8&$A$14&$D$9,DataSubJudgements!$A:$K,H$36,0)),IF($B72="","",0),VLOOKUP("All"&$B72&$I$5&$F$8&$A$14&$D$9,DataSubJudgements!$A:$K,H$36,0)) ->  | J72: =IF(ISERROR(VLOOKUP("All"&$B72&$I$5&$F$8&$A$14&$D$9,DataSubJudgements!$A:$K,J$36,0)),IF($B72="","",0),VLOOKUP("All"&$B72&$I$5&$F$8&$A$14&$D$9,DataSubJudgements!$A:$K,J$36,0)) ->  | M72: =IF(ISERROR(VLOOKUP("All"&$B72&$I$5&$F$8&$A$14&$D$9,DataSubJudgements!$A:$K,M$36,0)),IF($B72="","",0),VLOOKUP("All"&$B72&$I$5&$F$8&$A$14&$D$9,DataSubJudgements!$A:$K,M$36,0)) -> 
A73: 32 | B73: =IFERROR(VLOOKUP($B$35&A73,'Region Lookups'!A:C,3,0),"") ->  | D73: =IF(ISERROR(VLOOKUP("All"&$B73&$I$5&$F$8&$A$14&$D$9,DataSubJudgements!$A:$K,8,0)),IF(B73="","",0),SUM(F73:M73)) ->  | F73: =IF(ISERROR(VLOOKUP("All"&$B73&$I$5&$F$8&$A$14&$D$9,DataSubJudgements!$A:$K,F$36,0)),IF($B73="","",0),VLOOKUP("All"&$B73&$I$5&$F$8&$A$14&$D$9,DataSubJudgements!$A:$K,F$36,0)) ->  | H73: =IF(ISERROR(VLOOKUP("All"&$B73&$I$5&$F$8&$A$14&$D$9,DataSubJudgements!$A:$K,H$36,0)),IF($B73="","",0),VLOOKUP("All"&$B73&$I$5&$F$8&$A$14&$D$9,DataSubJudgements!$A:$K,H$36,0)) ->  | J73: =IF(ISERROR(VLOOKUP("All"&$B73&$I$5&$F$8&$A$14&$D$9,DataSubJudgements!$A:$K,J$36,0)),IF($B73="","",0),VLOOKUP("All"&$B73&$I$5&$F$8&$A$14&$D$9,DataSubJudgements!$A:$K,J$36,0)) ->  | M73: =IF(ISERROR(VLOOKUP("All"&$B73&$I$5&$F$8&$A$14&$D$9,DataSubJudgements!$A:$K,M$36,0)),IF($B73="","",0),VLOOKUP("All"&$B73&$I$5&$F$8&$A$14&$D$9,DataSubJudgements!$A:$K,M$36,0)) -> 
A74: 33 | B74: =IFERROR(VLOOKUP($B$35&A74,'Region Lookups'!A:C,3,0),"") ->  | D74: =IF(ISERROR(VLOOKUP("All"&$B74&$I$5&$F$8&$A$14&$D$9,DataSubJudgements!$A:$K,8,0)),IF(B74="","",0),SUM(F74:M74)) ->  | F74: =IF(ISERROR(VLOOKUP("All"&$B74&$I$5&$F$8&$A$14&$D$9,DataSubJudgements!$A:$K,F$36,0)),IF($B74="","",0),VLOOKUP("All"&$B74&$I$5&$F$8&$A$14&$D$9,DataSubJudgements!$A:$K,F$36,0)) ->  | H74: =IF(ISERROR(VLOOKUP("All"&$B74&$I$5&$F$8&$A$14&$D$9,DataSubJudgements!$A:$K,H$36,0)),IF($B74="","",0),VLOOKUP("All"&$B74&$I$5&$F$8&$A$14&$D$9,DataSubJudgements!$A:$K,H$36,0)) ->  | J74: =IF(ISERROR(VLOOKUP("All"&$B74&$I$5&$F$8&$A$14&$D$9,DataSubJudgements!$A:$K,J$36,0)),IF($B74="","",0),VLOOKUP("All"&$B74&$I$5&$F$8&$A$14&$D$9,DataSubJudgements!$A:$K,J$36,0)) ->  | M74: =IF(ISERROR(VLOOKUP("All"&$B74&$I$5&$F$8&$A$14&$D$9,DataSubJudgements!$A:$K,M$36,0)),IF($B74="","",0),VLOOKUP("All"&$B74&$I$5&$F$8&$A$14&$D$9,DataSubJudgements!$A:$K,M$36,0)) -> 

Sheet LA FINAL RAW DATA (hidden)
A1: Lookup | B1: Inspection type | C1: Region | D1: Local Authority | E1: Outstanding | F1: Good | G1: Requires Improvement | H1: Inadequate | I1: Not Judged
A2: =B2&C2&D2 -> Child protection inspectionALLALL | B2: Child protection inspection | C2: ALL | D2: ALL | F2: 4 | G2: 29 | H2: 17
A3: =B3&C3&D3 -> Child protection inspectionEast MidlandsALL | B3: Child protection inspection | C3: East Midlands | D3: ALL | F3: 1 | G3: 1 | H3: 1
A4: Child protection inspectionEast of EnglandALL | B4: Child protection inspection | C4: East of England | D4: ALL | G4: 4 | H4: 2
A5: Child protection inspectionLondonALL | B5: Child protection inspection | C5: London | D5: ALL | F5: 2 | G5: 5 | H5: 1
A6: Child protection inspectionNorth WestALL | B6: Child protection inspection | C6: North West | D6: ALL | G6: 2 | H6: 4
A7: Child protection inspectionSouth EastALL | B7: Child protection inspection | C7: South East | D7: ALL | G7: 5 | H7: 2
A8: Child protection inspectionSouth WestALL | B8: Child protection inspection | C8: South West | D8: ALL | G8: 4 | H8: 2
A9: Child protection inspectionWest MidlandsALL | B9: Child protection inspection | C9: West Midlands | D9: ALL | G9: 3 | H9: 3
A10: Child protection inspectionYorkshire and The HumberALL | B10: Child protection inspection | C10: Yorkshire and The Humber | D10: ALL | G10: 3 | H10: 2
A11: Child protection inspectionNorth EastALL | B11: Child protection inspection | C11: North East | D11: ALL | F11: 1 | G11: 2
A12: Child protection inspectionALLBath and North East Somerset | B12: Child protection inspection | C12: ALL | D12: Bath and North East Somerset | G12: 1
A13: Child protection inspectionALLBedford | B13: Child protection inspection | C13: ALL | D13: Bedford | G13: 1
A14: Child protection inspectionALLBirmingham | B14: Child protection inspection | C14: ALL | D14: Birmingham | H14: 1
A15: Child protection inspectionALLBlackpool | B15: Child protection inspection | C15: ALL | D15: Blackpool | H15: 1
A16: Child protection inspectionALLBrent | B16: Child protection inspection | C16: ALL | D16: Brent | G16: 1
A17: Child protection inspectionALLBromley | B17: Child protection inspection | C17: ALL | D17: Bromley | G17: 1
A18: Child protection inspectionALLCalderdale | B18: Child protection inspection | C18: ALL | D18: Calderdale | H18: 1
A19: Child protection inspectionALLCambridgeshire | B19: Child protection inspection | C19: ALL | D19: Cambridgeshire | H19: 1
A20: Child protection inspectionALLCheshire East | B20: Child protection inspection | C20: ALL | D20: Cheshire East | H20: 1
A21: Child protection inspectionALLCheshire West and Chester | B21: Child protection inspection | C21: ALL | D21: Cheshire West and Chester | G21: 1
A22: Child protection inspectionALLCornwall | B22: Child protection inspection | C22: ALL | D22: Cornwall | G22: 1
A23: Child protection inspectionALLCumbria | B23: Child protection inspection | C23: ALL | D23: Cumbria | H23: 1
A24: Child protection inspectionALLDerby | B24: Child protection inspection | C24: ALL | D24: Derby | F24: 1
A25: Child protection inspectionALLDevon | B25: Child protection inspection | C25: ALL | D25: Devon | H25: 1
A26: Child protection inspectionALLDoncaster | B26: Child protection inspection | C26: ALL | D26: Doncaster | H26: 1
A27: Child protection inspectionALLGateshead | B27: Child protection inspection | C27: ALL | D27: Gateshead | F27: 1
A28: Child protection inspectionALLGreenwich | B28: Child protection inspection | C28: ALL | D28: Greenwich | F28: 1
A29: Child protection inspectionALLHavering | B29: Child protection inspection | C29: ALL | D29: Havering | G29: 1
A30: Child protection inspectionALLHerefordshire | B30: Child protection inspection | C30: ALL | D30: Herefordshire | H30: 1
A31: Child protection inspectionALLHertfordshire | B31: Child protection inspection | C31: ALL | D31: Hertfordshire | G31: 1
A32: Child protection inspectionALLIsle of Wight | B32: Child protection inspection | C32: ALL | D32: Isle of Wight | H32: 1
A33: Child protection inspectionALLKent | B33: Child protection inspection | C33: ALL | D33: Kent | G33: 1
A34: Child protection inspectionALLKingston upon Thames | B34: Child protection inspection | C34: ALL | D34: Kingston upon Thames | H34: 1
A35: Child protection inspectionALLMedway | B35: Child protection inspection | C35: ALL | D35: Medway | H35: 1
A36: Child protection inspectionALLNorfolk | B36: Child protection inspection | C36: ALL | D36: Norfolk | H36: 1
A37: Child protection inspectionALLNorth Yorkshire | B37: Child protection inspection | C37: ALL | D37: North Yorkshire | G37: 1
A38: Child protection inspectionALLNorthamptonshire | B38: Child protection inspection | C38: ALL | D38: Northamptonshire | H38: 1
A39: Child protection inspectionALLPeterborough | B39: Child protection inspection | C39: ALL | D39: Peterborough | G39: 1
A40: Child protection inspectionALLReading | B40: Child protection inspection | C40: ALL | D40: Reading | G40: 1
A41: Child protection inspectionALLRedbridge | B41: Child protection inspection | C41: ALL | D41: Redbridge | F41: 1
A42: Child protection inspectionALLRochdale | B42: Child protection inspection | C42: ALL | D42: Rochdale | H42: 1
A43: Child protection inspectionALLRotherham | B43: Child protection inspection | C43: ALL | D43: Rotherham | G43: 1
A44: Child protection inspectionALLRutland | B44: Child protection inspection | C44: ALL | D44: Rutland | G44: 1
A45: Child protection inspectionALLSalford | B45: Child protection inspection | C45: ALL | D45: Salford | G45: 1
A46: Child protection inspectionALLSandwell | B46: Child protection inspection | C46: ALL | D46: Sandwell | H46: 1
A47: Child protection inspectionALLShropshire | B47: Child protection inspection | C47: ALL | D47: Shropshire | G47: 1
A48: Child protection inspectionALLSomerset | B48: Child protection inspection | C48: ALL | D48: Somerset | H48: 1
A49: Child protection inspectionALLSouth Tyneside | B49: Child protection inspection | C49: ALL | D49: South Tyneside | G49: 1
A50: Child protection inspectionALLStaffordshire | B50: Child protection inspection | C50: ALL | D50: Staffordshire | G50: 1
A51: Child protection inspectionALLStockton-on-Tees | B51: Child protection inspection | C51: ALL | D51: Stockton-on-Tees | G51: 1
A52: Child protection inspectionALLSuffolk | B52: Child protection inspection | C52: ALL | D52: Suffolk | G52: 1
A53: Child protection inspectionALLSurrey | B53: Child protection inspection | C53: ALL | D53: Surrey | G53: 1
A54: Child protection inspectionALLSutton | B54: Child protection inspection | C54: ALL | D54: Sutton | G54: 1
A55: Child protection inspectionALLTorbay | B55: Child protection inspection | C55: ALL | D55: Torbay | G55: 1
A56: Child protection inspectionALLWakefield | B56: Child protection inspection | C56: ALL | D56: Wakefield | G56: 1
A57: Child protection inspectionALLWalsall | B57: Child protection inspection | C57: ALL | D57: Walsall | G57: 1
A58: Child protection inspectionALLWaltham Forest | B58: Child protection inspection | C58: ALL | D58: Waltham Forest | G58: 1
A59: Child protection inspectionALLWest Sussex | B59: Child protection inspection | C59: ALL | D59: West Sussex | G59: 1
A60: Child protection inspectionALLWiltshire | B60: Child protection inspection | C60: ALL | D60: Wiltshire | G60: 1
A61: Child protection inspectionALLWokingham | B61: Child protection inspection | C61: ALL | D61: Wokingham | G61: 1
A62: Looked after childrenALLALL | B62: Looked after children | C62: ALL | D62: ALL | E62: 2 | F62: 79 | G62: 65 | H62: 5 | I62: 1
A63: Looked after childrenEast MidlandsALL | B63: Looked after children | C63: East Midlands | D63: ALL | F63: 6 | G63: 2 | H63: 1
A64: Looked after childrenEast of EnglandALL | B64: Looked after children | C64: East of England | D64: ALL | F64: 3 | G64: 7 | H64: 1
A65: Looked after childrenLondonALL | B65: Looked after children | C65: London | D65: ALL | E65: 1 | F65: 19 | G65: 12 | H65: 1
A66: Looked after childrenNorth WestALL | B66: Looked after children | C66: North West | D66: ALL | F66: 14 | G66: 9
A67: =B67&C67&D67 -> Looked after childrenSouth EastALL | B67: Looked after children | C67: South East | D67: ALL | F67: 7 | G67: 11 | H67: 1
A68: Looked after childrenSouth WestALL | B68: Looked after children | C68: South West | D68: ALL | F68: 9 | G68: 6 | I68: 1
A69: Looked after childrenWest MidlandsALL | B69: Looked after children | C69: West Midlands | D69: ALL | F69: 5 | G69: 8 | H69: 1
A70: Looked after childrenYorkshire and The HumberALL | B70: Looked after children | C70: Yorkshire and The Humber | D70: ALL | E70: 1 | F70: 7 | G70: 7
A71: Looked after childrenNorth EastALL | B71: Looked after children | C71: North East | D71: ALL | F71: 9 | G71: 3
A72: Looked after childrenALLBarking and Dagenham | B72: Looked after children | C72: ALL | D72: Barking and Dagenham | G72: 1
A73: Looked after childrenALLBarnet | B73: Looked after children | C73: ALL | D73: Barnet | F73: 1
A74: Looked after childrenALLBarnsley | B74: Looked after children | C74: ALL | D74: Barnsley | G74: 1
A75: Looked after childrenALLBath and North East Somerset | B75: Looked after children | C75: ALL | D75: Bath and North East Somerset | F75: 1
A76: Looked after childrenALLBedford | B76: Looked after children | C76: ALL | D76: Bedford | G76: 1
A77: Looked after childrenALLBexley | B77: Looked after children | C77: ALL | D77: Bexley | F77: 1
A78: Looked after childrenALLBirmingham | B78: Looked after children | C78: ALL | D78: Birmingham | G78: 1
A79: Looked after childrenALLBlackburn with Darwen | B79: Looked after children | C79: ALL | D79: Blackburn with Darwen | F79: 1
A80: Looked after childrenALLBlackpool | B80: Looked after children | C80: ALL | D80: Blackpool | F80: 1
A81: Looked after childrenALLBolton | B81: Looked after children | C81: ALL | D81: Bolton | F81: 1
A82: Looked after childrenALLBournemouth | B82: Looked after children | C82: ALL | D82: Bournemouth | F82: 1
A83: Looked after childrenALLBracknell Forest | B83: Looked after children | C83: ALL | D83: Bracknell Forest | F83: 1
A84: Looked after childrenALLBradford | B84: Looked after children | C84: ALL | D84: Bradford | F84: 1
A85: Looked after childrenALLBrent | B85: Looked after children | C85: ALL | D85: Brent | G85: 1
A86: Looked after childrenALLBrighton and Hove | B86: Looked after children | C86: ALL | D86: Brighton and Hove | G86: 1
A87: Looked after childrenALLBristol | B87: Looked after children | C87: ALL | D87: Bristol | F87: 1
A88: Looked after childrenALLBromley | B88: Looked after children | C88: ALL | D88: Bromley | G88: 1
A89: Looked after childrenALLBuckinghamshire | B89: Looked after children | C89: ALL | D89: Buckinghamshire | F89: 1
A90: Looked after childrenALLBury | B90: Looked after children | C90: ALL | D90: Bury | G90: 1
A91: Looked after childrenALLCalderdale | B91: Looked after children | C91: ALL | D91: Calderdale | G91: 1
A92: Looked after childrenALLCambridgeshire | B92: Looked after children | C92: ALL | D92: Cambridgeshire | G92: 1
A93: Looked after childrenALLCamden | B93: Looked after children | C93: ALL | D93: Camden | F93: 1
A94: Looked after childrenALLCentral Bedfordshire | B94: Looked after children | C94: ALL | D94: Central Bedfordshire | G94: 1
A95: Looked after childrenALLCheshire East | B95: Looked after children | C95: ALL | D95: Cheshire East | G95: 1
A96: Looked after childrenALLCheshire West and Chester | B96: Looked after children | C96: ALL | D96: Cheshire West and Chester | G96: 1
A97: Looked after childrenALLCity of London | B97: Looked after children | C97: ALL | D97: City of London | F97: 1
A98: Looked after childrenALLCornwall | B98: Looked after children | C98: ALL | D98: Cornwall | G98: 1
A99: Looked after childrenALLCoventry | B99: Looked after children | C99: ALL | D99: Coventry | G99: 1
A100: Looked after childrenALLCroydon | B100: Looked after children | C100: ALL | D100: Croydon | G100: 1
A101: Looked after childrenALLCumbria | B101: Looked after children | C101: ALL | D101: Cumbria | G101: 1
A102: Looked after childrenALLDarlington | B102: Looked after children | C102: ALL | D102: Darlington | G102: 1
A103: Looked after childrenALLDerby | B103: Looked after children | C103: ALL | D103: Derby | G103: 1
A104: Looked after childrenALLDerbyshire | B104: Looked after children | C104: ALL | D104: Derbyshire | F104: 1
A105: Looked after childrenALLDevon | B105: Looked after children | C105: ALL | D105: Devon | F105: 1
A106: Looked after childrenALLDoncaster | B106: Looked after children | C106: ALL | D106: Doncaster | G106: 1
A107: Looked after childrenALLDorset | B107: Looked after children | C107: ALL | D107: Dorset | F107: 1
A108: Looked after childrenALLDudley | B108: Looked after children | C108: ALL | D108: Dudley | F108: 1
A109: Looked after childrenALLDurham | B109: Looked after children | C109: ALL | D109: Durham | F109: 1
A110: Looked after childrenALLEaling | B110: Looked after children | C110: ALL | D110: Ealing | F110: 1
A111: Looked after childrenALLEast Riding of Yorkshire | B111: Looked after children | C111: ALL | D111: East Riding of Yorkshire | F111: 1
A112: Looked after childrenALLEast Sussex | B112: Looked after children | C112: ALL | D112: East Sussex | F112: 1
A113: Looked after childrenALLEnfield | B113: Looked after children | C113: ALL | D113: Enfield | F113: 1
A114: Looked after childrenALLEssex | B114: Looked after children | C114: ALL | D114: Essex | G114: 1
A115: Looked after childrenALLGateshead | B115: Looked after children | C115: ALL | D115: Gateshead | G115: 1
A116: Looked after childrenALLGloucestershire | B116: Looked after children | C116: ALL | D116: Gloucestershire | G116: 1
A117: Looked after childrenALLGreenwich | B117: Looked after children | C117: ALL | D117: Greenwich | G117: 1
A118: Looked after childrenALLHackney | B118: Looked after children | C118: ALL | D118: Hackney | F118: 1
A119: Looked after childrenALLHalton | B119: Looked after children | C119: ALL | D119: Halton | F119: 1
A120: Looked after childrenALLHammersmith and Fulham | B120: Looked after children | C120: ALL | D120: Hammersmith and Fulham | F120: 1
A121: Looked after childrenALLHampshire | B121: Looked after children | C121: ALL | D121: Hampshire | F121: 1
A122: Looked after childrenALLHaringey | B122: Looked after children | C122: ALL | D122: Haringey | G122: 1
A123: Looked after childrenALLHarrow | B123: Looked after children | C123: ALL | D123: Harrow | G123: 1
A124: Looked after childrenALLHartlepool | B124: Looked after children | C124: ALL | D124: Hartlepool | F124: 1
A125: Looked after childrenALLHavering | B125: Looked after children | C125: ALL | D125: Havering | G125: 1
A126: Looked after childrenALLHerefordshire | B126: Looked after children | C126: ALL | D126: Herefordshire | F126: 1
A127: Looked after childrenALLHertfordshire | B127: Looked after children | C127: ALL | D127: Hertfordshire | G127: 1
A128: Looked after childrenALLHillingdon | B128: Looked after children | C128: ALL | D128: Hillingdon | F128: 1
A129: Looked after childrenALLHounslow | B129: Looked after children | C129: ALL | D129: Hounslow | F129: 1
A130: Looked after childrenALLIsle of Wight | B130: Looked after children | C130: ALL | D130: Isle of Wight | G130: 1
A131: =B131&C131&D131 -> Looked after childrenALLIsles of Scilly | B131: Looked after children | C131: ALL | D131: Isles of Scilly | I131: 1
A132: Looked after childrenALLIslington | B132: Looked after children | C132: ALL | D132: Islington | F132: 1
A133: Looked after childrenALLKensington and Chelsea | B133: Looked after children | C133: ALL | D133: Kensington and Chelsea | F133: 1
A134: Looked after childrenALLKent | B134: Looked after children | C134: ALL | D134: Kent | G134: 1
A135: Looked after childrenALLKingston upon Hull | B135: Looked after children | C135: ALL | D135: Kingston upon Hull | G135: 1
A136: Looked after childrenALLKingston upon Thames | B136: Looked after children | C136: ALL | D136: Kingston upon Thames | G136: 1
A137: Looked after childrenALLKirklees | B137: Looked after children | C137: ALL | D137: Kirklees | F137: 1
A138: Looked after childrenALLKnowsley | B138: Looked after children | C138: ALL | D138: Knowsley | F138: 1
A139: Looked after childrenALLLambeth | B139: Looked after children | C139: ALL | D139: Lambeth | E139: 1
A140: Looked after childrenALLLancashire | B140: Looked after children | C140: ALL | D140: Lancashire | F140: 1
A141: Looked after childrenALLLeeds | B141: Looked after children | C141: ALL | D141: Leeds | G141: 1
A142: Looked after childrenALLLeicester | B142: Looked after children | C142: ALL | D142: Leicester | F142: 1
A143: Looked after childrenALLLeicestershire | B143: Looked after children | C143: ALL | D143: Leicestershire | F143: 1
A144: Looked after childrenALLLewisham | B144: Looked after children | C144: ALL | D144: Lewisham | F144: 1
A145: Looked after childrenALLLincolnshire | B145: Looked after children | C145: ALL | D145: Lincolnshire | F145: 1
A146: Looked after childrenALLLiverpool | B146: Looked after children | C146: ALL | D146: Liverpool | F146: 1
A147: Looked after childrenALLLuton | B147: Looked after children | C147: ALL | D147: Luton | G147: 1
A148: Looked after childrenALLManchester | B148: Looked after children | C148: ALL | D148: Manchester | G148: 1
A149: Looked after childrenALLMedway | B149: Looked after children | C149: ALL | D149: Medway | H149: 1
A150: Looked after childrenALLMerton | B150: Looked after children | C150: ALL | D150: Merton | F150: 1
A151: Looked after childrenALLMiddlesbrough | B151: Looked after children | C151: ALL | D151: Middlesbrough | G151: 1
A152: Looked after childrenALLMilton Keynes | B152: Looked after children | C152: ALL | D152: Milton Keynes | G152: 1
A153: Looked after childrenALLNewcastle upon Tyne | B153: Looked after children | C153: ALL | D153: Newcastle upon Tyne | F153: 1
A154: Looked after childrenALLNewham | B154: Looked after children | C154: ALL | D154: Newham | G154: 1
A155: Looked after childrenALLNorfolk | B155: Looked after children | C155: ALL | D155: Norfolk | H155: 1
A156: Looked after childrenALLNorth East Lincolnshire | B156: Looked after children | C156: ALL | D156: North East Lincolnshire | F156: 1
A157: Looked after childrenALLNorth Lincolnshire | B157: Looked after children | C157: ALL | D157: North Lincolnshire | E157: 1
A158: Looked after childrenALLNorth Somerset | B158: Looked after children | C158: ALL | D158: North Somerset | F158: 1
A159: Looked after childrenALLNorth Tyneside | B159: Looked after children | C159: ALL | D159: North Tyneside | F159: 1
A160: Looked after childrenALLNorth Yorkshire | B160: Looked after children | C160: ALL | D160: North Yorkshire | F160: 1
A161: Looked after childrenALLNorthamptonshire | B161: Looked after children | C161: ALL | D161: Northamptonshire | H161: 1
A162: Looked after childrenALLNorthumberland | B162: Looked after children | C162: ALL | D162: Northumberland | F162: 1
A163: Looked after childrenALLNottingham | B163: Looked after children | C163: ALL | D163: Nottingham | F163: 1
A164: Looked after childrenALLNottinghamshire | B164: Looked after children | C164: ALL | D164: Nottinghamshire | G164: 1
A165: Looked after childrenALLOldham | B165: Looked after children | C165: ALL | D165: Oldham | F165: 1
A166: Looked after childrenALLOxfordshire | B166: Looked after children | C166: ALL | D166: Oxfordshire | F166: 1
A167: Looked after childrenALLPeterborough | B167: Looked after children | C167: ALL | D167: Peterborough | F167: 1
A168: Looked after childrenALLPlymouth | B168: Looked after children | C168: ALL | D168: Plymouth | F168: 1
A169: Looked after childrenALLPoole | B169: Looked after children | C169: ALL | D169: Poole | F169: 1
A170: Looked after childrenALLPortsmouth | B170: Looked after children | C170: ALL | D170: Portsmouth | F170: 1
A171: Looked after childrenALLReading | B171: Looked after children | C171: ALL | D171: Reading | G171: 1
A172: Looked after childrenALLRedbridge | B172: Looked after children | C172: ALL | D172: Redbridge | G172: 1
A173: Looked after childrenALLRedcar and Cleveland | B173: Looked after children | C173: ALL | D173: Redcar and Cleveland | F173: 1
A174: Looked after childrenALLRichmond upon Thames | B174: Looked after children | C174: ALL | D174: Richmond upon Thames | F174: 1
A175: Looked after childrenALLRochdale | B175: Looked after children | C175: ALL | D175: Rochdale | G175: 1
A176: Looked after childrenALLRotherham | B176: Looked after children | C176: ALL | D176: Rotherham | G176: 1
A177: Looked after childrenALLRutland | B177: Looked after children | C177: ALL | D177: Rutland | F177: 1
A178: Looked after childrenALLSalford | B178: Looked after children | C178: ALL | D178: Salford | G178: 1
A179: Looked after childrenALLSandwell | B179: Looked after children | C179: ALL | D179: Sandwell | H179: 1
A180: Looked after childrenALLSefton | B180: Looked after children | C180: ALL | D180: Sefton | F180: 1
A181: Looked after childrenALLSheffield | B181: Looked after children | C181: ALL | D181: Sheffield | G181: 1
A182: Looked after childrenALLShropshire | B182: Looked after children | C182: ALL | D182: Shropshire | F182: 1
A183: Looked after childrenALLSlough | B183: Looked after children | C183: ALL | D183: Slough | G183: 1
A184: Looked after childrenALLSolihull | B184: Looked after children | C184: ALL | D184: Solihull | G184: 1
A185: Looked after childrenALLSomerset | B185: Looked after children | C185: ALL | D185: Somerset | G185: 1
A186: Looked after childrenALLSouth Gloucestershire | B186: Looked after children | C186: ALL | D186: South Gloucestershire | G186: 1
A187: Looked after childrenALLSouth Tyneside | B187: Looked after children | C187: ALL | D187: South Tyneside | F187: 1
A188: Looked after childrenALLSouthampton | B188: Looked after children | C188: ALL | D188: Southampton | G188: 1
A189: Looked after childrenALLSouthend on Sea | B189: Looked after children | C189: ALL | D189: Southend on Sea | F189: 1
A190: Looked after childrenALLSouthwark | B190: Looked after children | C190: ALL | D190: Southwark | F190: 1
A191: Looked after childrenALLSt Helens | B191: Looked after children | C191: ALL | D191: St Helens | F191: 1
A192: Looked after childrenALLStaffordshire | B192: Looked after children | C192: ALL | D192: Staffordshire | G192: 1
A193: Looked after childrenALLStockport | B193: Looked after children | C193: ALL | D193: Stockport | G193: 1
A194: Looked after childrenALLStockton-on-Tees | B194: Looked after children | C194: ALL | D194: Stockton-on-Tees | F194: 1
A195: =B195&C195&D195 -> Looked after childrenALLStoke-on-Trent | B195: Looked after children | C195: ALL | D195: Stoke-on-Trent | G195: 1
A196: Looked after childrenALLSuffolk | B196: Looked after children | C196: ALL | D196: Suffolk | G196: 1
A197: Looked after childrenALLSunderland | B197: Looked after children | C197: ALL | D197: Sunderland | F197: 1
A198: Looked after childrenALLSurrey | B198: Looked after children | C198: ALL | D198: Surrey | G198: 1
A199: Looked after childrenALLSutton | B199: Looked after children | C199: ALL | D199: Sutton | G199: 1
A200: Looked after childrenALLSwindon | B200: Looked after children | C200: ALL | D200: Swindon | F200: 1
... 1319 more rows

Sheet Inspection Outcome data (hidden)
A1: lookup | B1: Provision Type | C1: Local Authority | D1: Region | E1: Sector | F1: Inspection Type | G1: Period | H1: Outstanding | I1: Good | J1: Requires Improvement | K1: Inadequate | L1: Not judged/Not applic
A2: Adoption Support AgencyAllAllAllAll15-16 | B2: Adoption Support Agency | C2: All | D2: All | E2: All | F2: All | G2: 15-16 | H2: 5 | I2: 7 | J2: 1 | K2: 0 | L2: 0
A3: Adoption Support AgencyAllAllAllFull inspection15-16 | B3: Adoption Support Agency | C3: All | D3: All | E3: All | F3: Full inspection | G3: 15-16 | H3: 5 | I3: 7 | J3: 1 | K3: 0 | L3: 0
A4: Adoption Support AgencyAllAllPrivateAll15-16 | B4: Adoption Support Agency | C4: All | D4: All | E4: Private | F4: All | G4: 15-16 | H4: 4 | I4: 3 | J4: 1 | K4: 0 | L4: 0
A5: Adoption Support AgencyAllAllPrivateFull inspection15-16 | B5: Adoption Support Agency | C5: All | D5: All | E5: Private | F5: Full inspection | G5: 15-16 | H5: 4 | I5: 3 | J5: 1 | K5: 0 | L5: 0
A6: Adoption Support AgencyAllAllVoluntaryAll15-16 | B6: Adoption Support Agency | C6: All | D6: All | E6: Voluntary | F6: All | G6: 15-16 | H6: 1 | I6: 4 | J6: 0 | K6: 0 | L6: 0
A7: Adoption Support AgencyAllAllVoluntaryFull inspection15-16 | B7: Adoption Support Agency | C7: All | D7: All | E7: Voluntary | F7: Full inspection | G7: 15-16 | H7: 1 | I7: 4 | J7: 0 | K7: 0 | L7: 0
A8: Adoption Support AgencyAllEast of EnglandAllAll15-16 | B8: Adoption Support Agency | C8: All | D8: East of England | E8: All | F8: All | G8: 15-16 | H8: 1 | I8: 0 | J8: 0 | K8: 0 | L8: 0
A9: Adoption Support AgencyAllEast of EnglandAllFull inspection15-16 | B9: Adoption Support Agency | C9: All | D9: East of England | E9: All | F9: Full inspection | G9: 15-16 | H9: 1 | I9: 0 | J9: 0 | K9: 0 | L9: 0
A10: Adoption Support AgencyAllEast of EnglandPrivateAll15-16 | B10: Adoption Support Agency | C10: All | D10: East of England | E10: Private | F10: All | G10: 15-16 | H10: 1 | I10: 0 | J10: 0 | K10: 0 | L10: 0
A11: Adoption Support AgencyAllEast of EnglandPrivateFull inspection15-16 | B11: Adoption Support Agency | C11: All | D11: East of England | E11: Private | F11: Full inspection | G11: 15-16 | H11: 1 | I11: 0 | J11: 0 | K11: 0 | L11: 0
A12: Adoption Support AgencyAllLondonAllAll15-16 | B12: Adoption Support Agency | C12: All | D12: London | E12: All | F12: All | G12: 15-16 | H12: 0 | I12: 3 | J12: 0 | K12: 0 | L12: 0
A13: Adoption Support AgencyAllLondonAllFull inspection15-16 | B13: Adoption Support Agency | C13: All | D13: London | E13: All | F13: Full inspection | G13: 15-16 | H13: 0 | I13: 3 | J13: 0 | K13: 0 | L13: 0
A14: Adoption Support AgencyAllLondonPrivateAll15-16 | B14: Adoption Support Agency | C14: All | D14: London | E14: Private | F14: All | G14: 15-16 | H14: 0 | I14: 1 | J14: 0 | K14: 0 | L14: 0
A15: Adoption Support AgencyAllLondonPrivateFull inspection15-16 | B15: Adoption Support Agency | C15: All | D15: London | E15: Private | F15: Full inspection | G15: 15-16 | H15: 0 | I15: 1 | J15: 0 | K15: 0 | L15: 0
A16: Adoption Support AgencyAllLondonVoluntaryAll15-16 | B16: Adoption Support Agency | C16: All | D16: London | E16: Voluntary | F16: All | G16: 15-16 | H16: 0 | I16: 2 | J16: 0 | K16: 0 | L16: 0
A17: Adoption Support AgencyAllLondonVoluntaryFull inspection15-16 | B17: Adoption Support Agency | C17: All | D17: London | E17: Voluntary | F17: Full inspection | G17: 15-16 | H17: 0 | I17: 2 | J17: 0 | K17: 0 | L17: 0
A18: Adoption Support AgencyAllNorth EastAllAll15-16 | B18: Adoption Support Agency | C18: All | D18: North East | E18: All | F18: All | G18: 15-16 | H18: 0 | I18: 1 | J18: 0 | K18: 0 | L18: 0
A19: Adoption Support AgencyAllNorth EastAllFull inspection15-16 | B19: Adoption Support Agency | C19: All | D19: North East | E19: All | F19: Full inspection | G19: 15-16 | H19: 0 | I19: 1 | J19: 0 | K19: 0 | L19: 0
A20: Adoption Support AgencyAllNorth EastVoluntaryAll15-16 | B20: Adoption Support Agency | C20: All | D20: North East | E20: Voluntary | F20: All | G20: 15-16 | H20: 0 | I20: 1 | J20: 0 | K20: 0 | L20: 0
A21: Adoption Support AgencyAllNorth EastVoluntaryFull inspection15-16 | B21: Adoption Support Agency | C21: All | D21: North East | E21: Voluntary | F21: Full inspection | G21: 15-16 | H21: 0 | I21: 1 | J21: 0 | K21: 0 | L21: 0
A22: Adoption Support AgencyAllNorth WestAllAll15-16 | B22: Adoption Support Agency | C22: All | D22: North West | E22: All | F22: All | G22: 15-16 | H22: 0 | I22: 1 | J22: 1 | K22: 0 | L22: 0
A23: Adoption Support AgencyAllNorth WestAllFull inspection15-16 | B23: Adoption Support Agency | C23: All | D23: North West | E23: All | F23: Full inspection | G23: 15-16 | H23: 0 | I23: 1 | J23: 1 | K23: 0 | L23: 0
A24: Adoption Support AgencyAllNorth WestPrivateAll15-16 | B24: Adoption Support Agency | C24: All | D24: North West | E24: Private | F24: All | G24: 15-16 | H24: 0 | I24: 1 | J24: 1 | K24: 0 | L24: 0
A25: Adoption Support AgencyAllNorth WestPrivateFull inspection15-16 | B25: Adoption Support Agency | C25: All | D25: North West | E25: Private | F25: Full inspection | G25: 15-16 | H25: 0 | I25: 1 | J25: 1 | K25: 0 | L25: 0
A26: Adoption Support AgencyAllSouth EastAllAll15-16 | B26: Adoption Support Agency | C26: All | D26: South East | E26: All | F26: All | G26: 15-16 | H26: 2 | I26: 1 | J26: 0 | K26: 0 | L26: 0
A27: Adoption Support AgencyAllSouth EastAllFull inspection15-16 | B27: Adoption Support Agency | C27: All | D27: South East | E27: All | F27: Full inspection | G27: 15-16 | H27: 2 | I27: 1 | J27: 0 | K27: 0 | L27: 0
A28: Adoption Support AgencyAllSouth EastPrivateAll15-16 | B28: Adoption Support Agency | C28: All | D28: South East | E28: Private | F28: All | G28: 15-16 | H28: 1 | I28: 0 | J28: 0 | K28: 0 | L28: 0
A29: Adoption Support AgencyAllSouth EastPrivateFull inspection15-16 | B29: Adoption Support Agency | C29: All | D29: South East | E29: Private | F29: Full inspection | G29: 15-16 | H29: 1 | I29: 0 | J29: 0 | K29: 0 | L29: 0
A30: Adoption Support AgencyAllSouth EastVoluntaryAll15-16 | B30: Adoption Support Agency | C30: All | D30: South East | E30: Voluntary | F30: All | G30: 15-16 | H30: 1 | I30: 1 | J30: 0 | K30: 0 | L30: 0
A31: Adoption Support AgencyAllSouth EastVoluntaryFull inspection15-16 | B31: Adoption Support Agency | C31: All | D31: South East | E31: Voluntary | F31: Full inspection | G31: 15-16 | H31: 1 | I31: 1 | J31: 0 | K31: 0 | L31: 0
A32: Adoption Support AgencyAllSouth WestAllAll15-16 | B32: Adoption Support Agency | C32: All | D32: South West | E32: All | F32: All | G32: 15-16 | H32: 1 | I32: 0 | J32: 0 | K32: 0 | L32: 0
A33: Adoption Support AgencyAllSouth WestAllFull inspection15-16 | B33: Adoption Support Agency | C33: All | D33: South West | E33: All | F33: Full inspection | G33: 15-16 | H33: 1 | I33: 0 | J33: 0 | K33: 0 | L33: 0
A34: Adoption Support AgencyAllSouth WestPrivateAll15-16 | B34: Adoption Support Agency | C34: All | D34: South West | E34: Private | F34: All | G34: 15-16 | H34: 1 | I34: 0 | J34: 0 | K34: 0 | L34: 0
A35: Adoption Support AgencyAllSouth WestPrivateFull inspection15-16 | B35: Adoption Support Agency | C35: All | D35: South West | E35: Private | F35: Full inspection | G35: 15-16 | H35: 1 | I35: 0 | J35: 0 | K35: 0 | L35: 0
A36: Adoption Support AgencyAllWest MidlandsAllAll15-16 | B36: Adoption Support Agency | C36: All | D36: West Midlands | E36: All | F36: All | G36: 15-16 | H36: 1 | I36: 1 | J36: 0 | K36: 0 | L36: 0
A37: Adoption Support AgencyAllWest MidlandsAllFull inspection15-16 | B37: Adoption Support Agency | C37: All | D37: West Midlands | E37: All | F37: Full inspection | G37: 15-16 | H37: 1 | I37: 1 | J37: 0 | K37: 0 | L37: 0
A38: Adoption Support AgencyAllWest MidlandsPrivateAll15-16 | B38: Adoption Support Agency | C38: All | D38: West Midlands | E38: Private | F38: All | G38: 15-16 | H38: 1 | I38: 1 | J38: 0 | K38: 0 | L38: 0
A39: Adoption Support AgencyAllWest MidlandsPrivateFull inspection15-16 | B39: Adoption Support Agency | C39: All | D39: West Midlands | E39: Private | F39: Full inspection | G39: 15-16 | H39: 1 | I39: 1 | J39: 0 | K39: 0 | L39: 0
A40: Adoption Support AgencyCamdenAllAllAll15-16 | B40: Adoption Support Agency | C40: Camden | D40: All | E40: All | F40: All | G40: 15-16 | H40: 0 | I40: 1 | J40: 0 | K40: 0 | L40: 0
A41: Adoption Support AgencyCamdenAllAllFull inspection15-16 | B41: Adoption Support Agency | C41: Camden | D41: All | E41: All | F41: Full inspection | G41: 15-16 | H41: 0 | I41: 1 | J41: 0 | K41: 0 | L41: 0
A42: Adoption Support AgencyCamdenAllPrivateAll15-16 | B42: Adoption Support Agency | C42: Camden | D42: All | E42: Private | F42: All | G42: 15-16 | H42: 0 | I42: 1 | J42: 0 | K42: 0 | L42: 0
A43: Adoption Support AgencyCamdenAllPrivateFull inspection15-16 | B43: Adoption Support Agency | C43: Camden | D43: All | E43: Private | F43: Full inspection | G43: 15-16 | H43: 0 | I43: 1 | J43: 0 | K43: 0 | L43: 0
A44: Adoption Support AgencyCamdenLondonAllAll15-16 | B44: Adoption Support Agency | C44: Camden | D44: London | E44: All | F44: All | G44: 15-16 | H44: 0 | I44: 1 | J44: 0 | K44: 0 | L44: 0
A45: Adoption Support AgencyCamdenLondonAllFull inspection15-16 | B45: Adoption Support Agency | C45: Camden | D45: London | E45: All | F45: Full inspection | G45: 15-16 | H45: 0 | I45: 1 | J45: 0 | K45: 0 | L45: 0
A46: Adoption Support AgencyCamdenLondonPrivateAll15-16 | B46: Adoption Support Agency | C46: Camden | D46: London | E46: Private | F46: All | G46: 15-16 | H46: 0 | I46: 1 | J46: 0 | K46: 0 | L46: 0
A47: Adoption Support AgencyCamdenLondonPrivateFull inspection15-16 | B47: Adoption Support Agency | C47: Camden | D47: London | E47: Private | F47: Full inspection | G47: 15-16 | H47: 0 | I47: 1 | J47: 0 | K47: 0 | L47: 0
A48: Adoption Support AgencyCheshire West and ChesterAllAllAll15-16 | B48: Adoption Support Agency | C48: Cheshire West and Chester | D48: All | E48: All | F48: All | G48: 15-16 | H48: 0 | I48: 1 | J48: 0 | K48: 0 | L48: 0
A49: Adoption Support AgencyCheshire West and ChesterAllAllFull inspection15-16 | B49: Adoption Support Agency | C49: Cheshire West and Chester | D49: All | E49: All | F49: Full inspection | G49: 15-16 | H49: 0 | I49: 1 | J49: 0 | K49: 0 | L49: 0
A50: Adoption Support AgencyCheshire West and ChesterAllPrivateAll15-16 | B50: Adoption Support Agency | C50: Cheshire West and Chester | D50: All | E50: Private | F50: All | G50: 15-16 | H50: 0 | I50: 1 | J50: 0 | K50: 0 | L50: 0
A51: Adoption Support AgencyCheshire West and ChesterAllPrivateFull inspection15-16 | B51: Adoption Support Agency | C51: Cheshire West and Chester | D51: All | E51: Private | F51: Full inspection | G51: 15-16 | H51: 0 | I51: 1 | J51: 0 | K51: 0 | L51: 0
A52: Adoption Support AgencyCheshire West and ChesterNorth WestAllAll15-16 | B52: Adoption Support Agency | C52: Cheshire West and Chester | D52: North West | E52: All | F52: All | G52: 15-16 | H52: 0 | I52: 1 | J52: 0 | K52: 0 | L52: 0
A53: Adoption Support AgencyCheshire West and ChesterNorth WestAllFull inspection15-16 | B53: Adoption Support Agency | C53: Cheshire West and Chester | D53: North West | E53: All | F53: Full inspection | G53: 15-16 | H53: 0 | I53: 1 | J53: 0 | K53: 0 | L53: 0
A54: Adoption Support AgencyCheshire West and ChesterNorth WestPrivateAll15-16 | B54: Adoption Support Agency | C54: Cheshire West and Chester | D54: North West | E54: Private | F54: All | G54: 15-16 | H54: 0 | I54: 1 | J54: 0 | K54: 0 | L54: 0
A55: Adoption Support AgencyCheshire West and ChesterNorth WestPrivateFull inspection15-16 | B55: Adoption Support Agency | C55: Cheshire West and Chester | D55: North West | E55: Private | F55: Full inspection | G55: 15-16 | H55: 0 | I55: 1 | J55: 0 | K55: 0 | L55: 0
A56: Adoption Support AgencyCumbriaAllAllAll15-16 | B56: Adoption Support Agency | C56: Cumbria | D56: All | E56: All | F56: All | G56: 15-16 | H56: 0 | I56: 0 | J56: 1 | K56: 0 | L56: 0
A57: Adoption Support AgencyCumbriaAllAllFull inspection15-16 | B57: Adoption Support Agency | C57: Cumbria | D57: All | E57: All | F57: Full inspection | G57: 15-16 | H57: 0 | I57: 0 | J57: 1 | K57: 0 | L57: 0
A58: Adoption Support AgencyCumbriaAllPrivateAll15-16 | B58: Adoption Support Agency | C58: Cumbria | D58: All | E58: Private | F58: All | G58: 15-16 | H58: 0 | I58: 0 | J58: 1 | K58: 0 | L58: 0
A59: Adoption Support AgencyCumbriaAllPrivateFull inspection15-16 | B59: Adoption Support Agency | C59: Cumbria | D59: All | E59: Private | F59: Full inspection | G59: 15-16 | H59: 0 | I59: 0 | J59: 1 | K59: 0 | L59: 0
A60: Adoption Support AgencyCumbriaNorth WestAllAll15-16 | B60: Adoption Support Agency | C60: Cumbria | D60: North West | E60: All | F60: All | G60: 15-16 | H60: 0 | I60: 0 | J60: 1 | K60: 0 | L60: 0
A61: Adoption Support AgencyCumbriaNorth WestAllFull inspection15-16 | B61: Adoption Support Agency | C61: Cumbria | D61: North West | E61: All | F61: Full inspection | G61: 15-16 | H61: 0 | I61: 0 | J61: 1 | K61: 0 | L61: 0
A62: Adoption Support AgencyCumbriaNorth WestPrivateAll15-16 | B62: Adoption Support Agency | C62: Cumbria | D62: North West | E62: Private | F62: All | G62: 15-16 | H62: 0 | I62: 0 | J62: 1 | K62: 0 | L62: 0
A63: Adoption Support AgencyCumbriaNorth WestPrivateFull inspection15-16 | B63: Adoption Support Agency | C63: Cumbria | D63: North West | E63: Private | F63: Full inspection | G63: 15-16 | H63: 0 | I63: 0 | J63: 1 | K63: 0 | L63: 0
A64: Adoption Support AgencyDevonAllAllAll15-16 | B64: Adoption Support Agency | C64: Devon | D64: All | E64: All | F64: All | G64: 15-16 | H64: 1 | I64: 0 | J64: 0 | K64: 0 | L64: 0
A65: Adoption Support AgencyDevonAllAllFull inspection15-16 | B65: Adoption Support Agency | C65: Devon | D65: All | E65: All | F65: Full inspection | G65: 15-16 | H65: 1 | I65: 0 | J65: 0 | K65: 0 | L65: 0
A66: Adoption Support AgencyDevonAllPrivateAll15-16 | B66: Adoption Support Agency | C66: Devon | D66: All | E66: Private | F66: All | G66: 15-16 | H66: 1 | I66: 0 | J66: 0 | K66: 0 | L66: 0
A67: Adoption Support AgencyDevonAllPrivateFull inspection15-16 | B67: Adoption Support Agency | C67: Devon | D67: All | E67: Private | F67: Full inspection | G67: 15-16 | H67: 1 | I67: 0 | J67: 0 | K67: 0 | L67: 0
A68: Adoption Support AgencyDevonSouth WestAllAll15-16 | B68: Adoption Support Agency | C68: Devon | D68: South West | E68: All | F68: All | G68: 15-16 | H68: 1 | I68: 0 | J68: 0 | K68: 0 | L68: 0
A69: Adoption Support AgencyDevonSouth WestAllFull inspection15-16 | B69: Adoption Support Agency | C69: Devon | D69: South West | E69: All | F69: Full inspection | G69: 15-16 | H69: 1 | I69: 0 | J69: 0 | K69: 0 | L69: 0
A70: Adoption Support AgencyDevonSouth WestPrivateAll15-16 | B70: Adoption Support Agency | C70: Devon | D70: South West | E70: Private | F70: All | G70: 15-16 | H70: 1 | I70: 0 | J70: 0 | K70: 0 | L70: 0
A71: Adoption Support AgencyDevonSouth WestPrivateFull inspection15-16 | B71: Adoption Support Agency | C71: Devon | D71: South West | E71: Private | F71: Full inspection | G71: 15-16 | H71: 1 | I71: 0 | J71: 0 | K71: 0 | L71: 0
A72: Adoption Support AgencyHampshireAllAllAll15-16 | B72: Adoption Support Agency | C72: Hampshire | D72: All | E72: All | F72: All | G72: 15-16 | H72: 1 | I72: 0 | J72: 0 | K72: 0 | L72: 0
A73: Adoption Support AgencyHampshireAllAllFull inspection15-16 | B73: Adoption Support Agency | C73: Hampshire | D73: All | E73: All | F73: Full inspection | G73: 15-16 | H73: 1 | I73: 0 | J73: 0 | K73: 0 | L73: 0
A74: Adoption Support AgencyHampshireAllPrivateAll15-16 | B74: Adoption Support Agency | C74: Hampshire | D74: All | E74: Private | F74: All | G74: 15-16 | H74: 1 | I74: 0 | J74: 0 | K74: 0 | L74: 0
A75: Adoption Support AgencyHampshireAllPrivateFull inspection15-16 | B75: Adoption Support Agency | C75: Hampshire | D75: All | E75: Private | F75: Full inspection | G75: 15-16 | H75: 1 | I75: 0 | J75: 0 | K75: 0 | L75: 0
A76: Adoption Support AgencyHampshireSouth EastAllAll15-16 | B76: Adoption Support Agency | C76: Hampshire | D76: South East | E76: All | F76: All | G76: 15-16 | H76: 1 | I76: 0 | J76: 0 | K76: 0 | L76: 0
A77: Adoption Support AgencyHampshireSouth EastAllFull inspection15-16 | B77: Adoption Support Agency | C77: Hampshire | D77: South East | E77: All | F77: Full inspection | G77: 15-16 | H77: 1 | I77: 0 | J77: 0 | K77: 0 | L77: 0
A78: Adoption Support AgencyHampshireSouth EastPrivateAll15-16 | B78: Adoption Support Agency | C78: Hampshire | D78: South East | E78: Private | F78: All | G78: 15-16 | H78: 1 | I78: 0 | J78: 0 | K78: 0 | L78: 0
A79: Adoption Support AgencyHampshireSouth EastPrivateFull inspection15-16 | B79: Adoption Support Agency | C79: Hampshire | D79: South East | E79: Private | F79: Full inspection | G79: 15-16 | H79: 1 | I79: 0 | J79: 0 | K79: 0 | L79: 0
A80: Adoption Support AgencyIslingtonAllAllAll15-16 | B80: Adoption Support Agency | C80: Islington | D80: All | E80: All | F80: All | G80: 15-16 | H80: 0 | I80: 1 | J80: 0 | K80: 0 | L80: 0
A81: Adoption Support AgencyIslingtonAllAllFull inspection15-16 | B81: Adoption Support Agency | C81: Islington | D81: All | E81: All | F81: Full inspection | G81: 15-16 | H81: 0 | I81: 1 | J81: 0 | K81: 0 | L81: 0
A82: Adoption Support AgencyIslingtonAllVoluntaryAll15-16 | B82: Adoption Support Agency | C82: Islington | D82: All | E82: Voluntary | F82: All | G82: 15-16 | H82: 0 | I82: 1 | J82: 0 | K82: 0 | L82: 0
A83: Adoption Support AgencyIslingtonAllVoluntaryFull inspection15-16 | B83: Adoption Support Agency | C83: Islington | D83: All | E83: Voluntary | F83: Full inspection | G83: 15-16 | H83: 0 | I83: 1 | J83: 0 | K83: 0 | L83: 0
A84: Adoption Support AgencyIslingtonLondonAllAll15-16 | B84: Adoption Support Agency | C84: Islington | D84: London | E84: All | F84: All | G84: 15-16 | H84: 0 | I84: 1 | J84: 0 | K84: 0 | L84: 0
A85: Adoption Support AgencyIslingtonLondonAllFull inspection15-16 | B85: Adoption Support Agency | C85: Islington | D85: London | E85: All | F85: Full inspection | G85: 15-16 | H85: 0 | I85: 1 | J85: 0 | K85: 0 | L85: 0
A86: Adoption Support AgencyIslingtonLondonVoluntaryAll15-16 | B86: Adoption Support Agency | C86: Islington | D86: London | E86: Voluntary | F86: All | G86: 15-16 | H86: 0 | I86: 1 | J86: 0 | K86: 0 | L86: 0
A87: Adoption Support AgencyIslingtonLondonVoluntaryFull inspection15-16 | B87: Adoption Support Agency | C87: Islington | D87: London | E87: Voluntary | F87: Full inspection | G87: 15-16 | H87: 0 | I87: 1 | J87: 0 | K87: 0 | L87: 0
A88: Adoption Support AgencyKensington and ChelseaAllAllAll15-16 | B88: Adoption Support Agency | C88: Kensington and Chelsea | D88: All | E88: All | F88: All | G88: 15-16 | H88: 0 | I88: 1 | J88: 0 | K88: 0 | L88: 0
A89: Adoption Support AgencyKensington and ChelseaAllAllFull inspection15-16 | B89: Adoption Support Agency | C89: Kensington and Chelsea | D89: All | E89: All | F89: Full inspection | G89: 15-16 | H89: 0 | I89: 1 | J89: 0 | K89: 0 | L89: 0
A90: Adoption Support AgencyKensington and ChelseaAllVoluntaryAll15-16 | B90: Adoption Support Agency | C90: Kensington and Chelsea | D90: All | E90: Voluntary | F90: All | G90: 15-16 | H90: 0 | I90: 1 | J90: 0 | K90: 0 | L90: 0
A91: Adoption Support AgencyKensington and ChelseaAllVoluntaryFull inspection15-16 | B91: Adoption Support Agency | C91: Kensington and Chelsea | D91: All | E91: Voluntary | F91: Full inspection | G91: 15-16 | H91: 0 | I91: 1 | J91: 0 | K91: 0 | L91: 0
A92: Adoption Support AgencyKensington and ChelseaLondonAllAll15-16 | B92: Adoption Support Agency | C92: Kensington and Chelsea | D92: London | E92: All | F92: All | G92: 15-16 | H92: 0 | I92: 1 | J92: 0 | K92: 0 | L92: 0
A93: Adoption Support AgencyKensington and ChelseaLondonAllFull inspection15-16 | B93: Adoption Support Agency | C93: Kensington and Chelsea | D93: London | E93: All | F93: Full inspection | G93: 15-16 | H93: 0 | I93: 1 | J93: 0 | K93: 0 | L93: 0
A94: Adoption Support AgencyKensington and ChelseaLondonVoluntaryAll15-16 | B94: Adoption Support Agency | C94: Kensington and Chelsea | D94: London | E94: Voluntary | F94: All | G94: 15-16 | H94: 0 | I94: 1 | J94: 0 | K94: 0 | L94: 0
A95: Adoption Support AgencyKensington and ChelseaLondonVoluntaryFull inspection15-16 | B95: Adoption Support Agency | C95: Kensington and Chelsea | D95: London | E95: Voluntary | F95: Full inspection | G95: 15-16 | H95: 0 | I95: 1 | J95: 0 | K95: 0 | L95: 0
A96: Adoption Support AgencyMedwayAllAllAll15-16 | B96: Adoption Support Agency | C96: Medway | D96: All | E96: All | F96: All | G96: 15-16 | H96: 0 | I96: 1 | J96: 0 | K96: 0 | L96: 0
A97: Adoption Support AgencyMedwayAllAllFull inspection15-16 | B97: Adoption Support Agency | C97: Medway | D97: All | E97: All | F97: Full inspection | G97: 15-16 | H97: 0 | I97: 1 | J97: 0 | K97: 0 | L97: 0
A98: Adoption Support AgencyMedwayAllVoluntaryAll15-16 | B98: Adoption Support Agency | C98: Medway | D98: All | E98: Voluntary | F98: All | G98: 15-16 | H98: 0 | I98: 1 | J98: 0 | K98: 0 | L98: 0
A99: Adoption Support AgencyMedwayAllVoluntaryFull inspection15-16 | B99: Adoption Support Agency | C99: Medway | D99: All | E99: Voluntary | F99: Full inspection | G99: 15-16 | H99: 0 | I99: 1 | J99: 0 | K99: 0 | L99: 0
A100: Adoption Support AgencyMedwaySouth EastAllAll15-16 | B100: Adoption Support Agency | C100: Medway | D100: South East | E100: All | F100: All | G100: 15-16 | H100: 0 | I100: 1 | J100: 0 | K100: 0 | L100: 0
A101: Adoption Support AgencyMedwaySouth EastAllFull inspection15-16 | B101: Adoption Support Agency | C101: Medway | D101: South East | E101: All | F101: Full inspection | G101: 15-16 | H101: 0 | I101: 1 | J101: 0 | K101: 0 | L101: 0
A102: Adoption Support AgencyMedwaySouth EastVoluntaryAll15-16 | B102: Adoption Support Agency | C102: Medway | D102: South East | E102: Voluntary | F102: All | G102: 15-16 | H102: 0 | I102: 1 | J102: 0 | K102: 0 | L102: 0
A103: Adoption Support AgencyMedwaySouth EastVoluntaryFull inspection15-16 | B103: Adoption Support Agency | C103: Medway | D103: South East | E103: Voluntary | F103: Full inspection | G103: 15-16 | H103: 0 | I103: 1 | J103: 0 | K103: 0 | L103: 0
A104: Adoption Support AgencyOxfordshireAllAllAll15-16 | B104: Adoption Support Agency | C104: Oxfordshire | D104: All | E104: All | F104: All | G104: 15-16 | H104: 1 | I104: 0 | J104: 0 | K104: 0 | L104: 0
A105: Adoption Support AgencyOxfordshireAllAllFull inspection15-16 | B105: Adoption Support Agency | C105: Oxfordshire | D105: All | E105: All | F105: Full inspection | G105: 15-16 | H105: 1 | I105: 0 | J105: 0 | K105: 0 | L105: 0
A106: Adoption Support AgencyOxfordshireAllVoluntaryAll15-16 | B106: Adoption Support Agency | C106: Oxfordshire | D106: All | E106: Voluntary | F106: All | G106: 15-16 | H106: 1 | I106: 0 | J106: 0 | K106: 0 | L106: 0
A107: Adoption Support AgencyOxfordshireAllVoluntaryFull inspection15-16 | B107: Adoption Support Agency | C107: Oxfordshire | D107: All | E107: Voluntary | F107: Full inspection | G107: 15-16 | H107: 1 | I107: 0 | J107: 0 | K107: 0 | L107: 0
A108: Adoption Support AgencyOxfordshireSouth EastAllAll15-16 | B108: Adoption Support Agency | C108: Oxfordshire | D108: South East | E108: All | F108: All | G108: 15-16 | H108: 1 | I108: 0 | J108: 0 | K108: 0 | L108: 0
A109: Adoption Support AgencyOxfordshireSouth EastAllFull inspection15-16 | B109: Adoption Support Agency | C109: Oxfordshire | D109: South East | E109: All | F109: Full inspection | G109: 15-16 | H109: 1 | I109: 0 | J109: 0 | K109: 0 | L109: 0
A110: Adoption Support AgencyOxfordshireSouth EastVoluntaryAll15-16 | B110: Adoption Support Agency | C110: Oxfordshire | D110: South East | E110: Voluntary | F110: All | G110: 15-16 | H110: 1 | I110: 0 | J110: 0 | K110: 0 | L110: 0
A111: Adoption Support AgencyOxfordshireSouth EastVoluntaryFull inspection15-16 | B111: Adoption Support Agency | C111: Oxfordshire | D111: South East | E111: Voluntary | F111: Full inspection | G111: 15-16 | H111: 1 | I111: 0 | J111: 0 | K111: 0 | L111: 0
A112: Adoption Support AgencyStoke-on-TrentAllAllAll15-16 | B112: Adoption Support Agency | C112: Stoke-on-Trent | D112: All | E112: All | F112: All | G112: 15-16 | H112: 0 | I112: 1 | J112: 0 | K112: 0 | L112: 0
A113: Adoption Support AgencyStoke-on-TrentAllAllFull inspection15-16 | B113: Adoption Support Agency | C113: Stoke-on-Trent | D113: All | E113: All | F113: Full inspection | G113: 15-16 | H113: 0 | I113: 1 | J113: 0 | K113: 0 | L113: 0
A114: Adoption Support AgencyStoke-on-TrentAllPrivateAll15-16 | B114: Adoption Support Agency | C114: Stoke-on-Trent | D114: All | E114: Private | F114: All | G114: 15-16 | H114: 0 | I114: 1 | J114: 0 | K114: 0 | L114: 0
A115: Adoption Support AgencyStoke-on-TrentAllPrivateFull inspection15-16 | B115: Adoption Support Agency | C115: Stoke-on-Trent | D115: All | E115: Private | F115: Full inspection | G115: 15-16 | H115: 0 | I115: 1 | J115: 0 | K115: 0 | L115: 0
A116: Adoption Support AgencyStoke-on-TrentWest MidlandsAllAll15-16 | B116: Adoption Support Agency | C116: Stoke-on-Trent | D116: West Midlands | E116: All | F116: All | G116: 15-16 | H116: 0 | I116: 1 | J116: 0 | K116: 0 | L116: 0
A117: Adoption Support AgencyStoke-on-TrentWest MidlandsAllFull inspection15-16 | B117: Adoption Support Agency | C117: Stoke-on-Trent | D117: West Midlands | E117: All | F117: Full inspection | G117: 15-16 | H117: 0 | I117: 1 | J117: 0 | K117: 0 | L117: 0
A118: Adoption Support AgencyStoke-on-TrentWest MidlandsPrivateAll15-16 | B118: Adoption Support Agency | C118: Stoke-on-Trent | D118: West Midlands | E118: Private | F118: All | G118: 15-16 | H118: 0 | I118: 1 | J118: 0 | K118: 0 | L118: 0
A119: Adoption Support AgencyStoke-on-TrentWest MidlandsPrivateFull inspection15-16 | B119: Adoption Support Agency | C119: Stoke-on-Trent | D119: West Midlands | E119: Private | F119: Full inspection | G119: 15-16 | H119: 0 | I119: 1 | J119: 0 | K119: 0 | L119: 0
A120: Adoption Support AgencySuffolkAllAllAll15-16 | B120: Adoption Support Agency | C120: Suffolk | D120: All | E120: All | F120: All | G120: 15-16 | H120: 1 | I120: 0 | J120: 0 | K120: 0 | L120: 0
A121: Adoption Support AgencySuffolkAllAllFull inspection15-16 | B121: Adoption Support Agency | C121: Suffolk | D121: All | E121: All | F121: Full inspection | G121: 15-16 | H121: 1 | I121: 0 | J121: 0 | K121: 0 | L121: 0
A122: Adoption Support AgencySuffolkAllPrivateAll15-16 | B122: Adoption Support Agency | C122: Suffolk | D122: All | E122: Private | F122: All | G122: 15-16 | H122: 1 | I122: 0 | J122: 0 | K122: 0 | L122: 0
A123: Adoption Support AgencySuffolkAllPrivateFull inspection15-16 | B123: Adoption Support Agency | C123: Suffolk | D123: All | E123: Private | F123: Full inspection | G123: 15-16 | H123: 1 | I123: 0 | J123: 0 | K123: 0 | L123: 0
A124: Adoption Support AgencySuffolkEast of EnglandAllAll15-16 | B124: Adoption Support Agency | C124: Suffolk | D124: East of England | E124: All | F124: All | G124: 15-16 | H124: 1 | I124: 0 | J124: 0 | K124: 0 | L124: 0
A125: Adoption Support AgencySuffolkEast of EnglandAllFull inspection15-16 | B125: Adoption Support Agency | C125: Suffolk | D125: East of England | E125: All | F125: Full inspection | G125: 15-16 | H125: 1 | I125: 0 | J125: 0 | K125: 0 | L125: 0
A126: Adoption Support AgencySuffolkEast of EnglandPrivateAll15-16 | B126: Adoption Support Agency | C126: Suffolk | D126: East of England | E126: Private | F126: All | G126: 15-16 | H126: 1 | I126: 0 | J126: 0 | K126: 0 | L126: 0
A127: Adoption Support AgencySuffolkEast of EnglandPrivateFull inspection15-16 | B127: Adoption Support Agency | C127: Suffolk | D127: East of England | E127: Private | F127: Full inspection | G127: 15-16 | H127: 1 | I127: 0 | J127: 0 | K127: 0 | L127: 0
A128: Adoption Support AgencySunderlandAllAllAll15-16 | B128: Adoption Support Agency | C128: Sunderland | D128: All | E128: All | F128: All | G128: 15-16 | H128: 0 | I128: 1 | J128: 0 | K128: 0 | L128: 0
A129: Adoption Support AgencySunderlandAllAllFull inspection15-16 | B129: Adoption Support Agency | C129: Sunderland | D129: All | E129: All | F129: Full inspection | G129: 15-16 | H129: 0 | I129: 1 | J129: 0 | K129: 0 | L129: 0
A130: Adoption Support AgencySunderlandAllVoluntaryAll15-16 | B130: Adoption Support Agency | C130: Sunderland | D130: All | E130: Voluntary | F130: All | G130: 15-16 | H130: 0 | I130: 1 | J130: 0 | K130: 0 | L130: 0
A131: Adoption Support AgencySunderlandAllVoluntaryFull inspection15-16 | B131: Adoption Support Agency | C131: Sunderland | D131: All | E131: Voluntary | F131: Full inspection | G131: 15-16 | H131: 0 | I131: 1 | J131: 0 | K131: 0 | L131: 0
A132: Adoption Support AgencySunderlandNorth EastAllAll15-16 | B132: Adoption Support Agency | C132: Sunderland | D132: North East | E132: All | F132: All | G132: 15-16 | H132: 0 | I132: 1 | J132: 0 | K132: 0 | L132: 0
A133: Adoption Support AgencySunderlandNorth EastAllFull inspection15-16 | B133: Adoption Support Agency | C133: Sunderland | D133: North East | E133: All | F133: Full inspection | G133: 15-16 | H133: 0 | I133: 1 | J133: 0 | K133: 0 | L133: 0
A134: Adoption Support AgencySunderlandNorth EastVoluntaryAll15-16 | B134: Adoption Support Agency | C134: Sunderland | D134: North East | E134: Voluntary | F134: All | G134: 15-16 | H134: 0 | I134: 1 | J134: 0 | K134: 0 | L134: 0
A135: Adoption Support AgencySunderlandNorth EastVoluntaryFull inspection15-16 | B135: Adoption Support Agency | C135: Sunderland | D135: North East | E135: Voluntary | F135: Full inspection | G135: 15-16 | H135: 0 | I135: 1 | J135: 0 | K135: 0 | L135: 0
A136: Adoption Support AgencyWorcestershireAllAllAll15-16 | B136: Adoption Support Agency | C136: Worcestershire | D136: All | E136: All | F136: All | G136: 15-16 | H136: 1 | I136: 0 | J136: 0 | K136: 0 | L136: 0
A137: Adoption Support AgencyWorcestershireAllAllFull inspection15-16 | B137: Adoption Support Agency | C137: Worcestershire | D137: All | E137: All | F137: Full inspection | G137: 15-16 | H137: 1 | I137: 0 | J137: 0 | K137: 0 | L137: 0
A138: Adoption Support AgencyWorcestershireAllPrivateAll15-16 | B138: Adoption Support Agency | C138: Worcestershire | D138: All | E138: Private | F138: All | G138: 15-16 | H138: 1 | I138: 0 | J138: 0 | K138: 0 | L138: 0
A139: Adoption Support AgencyWorcestershireAllPrivateFull inspection15-16 | B139: Adoption Support Agency | C139: Worcestershire | D139: All | E139: Private | F139: Full inspection | G139: 15-16 | H139: 1 | I139: 0 | J139: 0 | K139: 0 | L139: 0
A140: Adoption Support AgencyWorcestershireWest MidlandsAllAll15-16 | B140: Adoption Support Agency | C140: Worcestershire | D140: West Midlands | E140: All | F140: All | G140: 15-16 | H140: 1 | I140: 0 | J140: 0 | K140: 0 | L140: 0
A141: Adoption Support AgencyWorcestershireWest MidlandsAllFull inspection15-16 | B141: Adoption Support Agency | C141: Worcestershire | D141: West Midlands | E141: All | F141: Full inspection | G141: 15-16 | H141: 1 | I141: 0 | J141: 0 | K141: 0 | L141: 0
A142: Adoption Support AgencyWorcestershireWest MidlandsPrivateAll15-16 | B142: Adoption Support Agency | C142: Worcestershire | D142: West Midlands | E142: Private | F142: All | G142: 15-16 | H142: 1 | I142: 0 | J142: 0 | K142: 0 | L142: 0
A143: Adoption Support AgencyWorcestershireWest MidlandsPrivateFull inspection15-16 | B143: Adoption Support Agency | C143: Worcestershire | D143: West Midlands | E143: Private | F143: Full inspection | G143: 15-16 | H143: 1 | I143: 0 | J143: 0 | K143: 0 | L143: 0
A144: AllAllAllAcademyAll15-16 | B144: All | C144: All | D144: All | E144: Academy | F144: All | G144: 15-16 | H144: 10 | I144: 11 | J144: 3 | K144: 2 | L144: 0
A145: AllAllAllAcademyFull inspection15-16 | B145: All | C145: All | D145: All | E145: Academy | F145: Full inspection | G145: 15-16 | H145: 10 | I145: 11 | J145: 3 | K145: 2 | L145: 0
A146: AllAllAllAcademyMonitoring inspection15-16 | B146: All | C146: All | D146: All | E146: Academy | F146: Monitoring inspection | G146: 15-16 | H146: 0 | I146: 0 | J146: 0 | K146: 0 | L146: 0
A147: AllAllAllAllAll15-16 | B147: All | C147: All | D147: All | E147: All | F147: All | G147: 15-16 | H147: 437 | I147: 2083 | J147: 1367 | K147: 322 | L147: 78
A148: AllAllAllAllFull inspection15-16 | B148: All | C148: All | D148: All | E148: All | F148: Full inspection | G148: 15-16 | H148: 437 | I148: 1432 | J148: 459 | K148: 125 | L148: 0
A149: AllAllAllAllInterim inspection15-16 | B149: All | C149: All | D149: All | E149: All | F149: Interim inspection | G149: 15-16 | H149: 0 | I149: 651 | J149: 908 | K149: 197 | L149: 78
A150: AllAllAllAllMonitoring inspection15-16 | B150: All | C150: All | D150: All | E150: All | F150: Monitoring inspection | G150: 15-16 | H150: 0 | I150: 0 | J150: 0 | K150: 0 | L150: 0
A151: AllAllAllHealth AuthorityAll15-16 | B151: All | C151: All | D151: All | E151: Health Authority | F151: All | G151: 15-16 | H151: 1 | I151: 9 | J151: 7 | K151: 0 | L151: 0
A152: AllAllAllHealth AuthorityFull inspection15-16 | B152: All | C152: All | D152: All | E152: Health Authority | F152: Full inspection | G152: 15-16 | H152: 1 | I152: 8 | J152: 0 | K152: 0 | L152: 0
A153: AllAllAllHealth AuthorityInterim inspection15-16 | B153: All | C153: All | D153: All | E153: Health Authority | F153: Interim inspection | G153: 15-16 | H153: 0 | I153: 1 | J153: 7 | K153: 0 | L153: 0
A154: AllAllAllLocal AuthorityAll15-16 | B154: All | C154: All | D154: All | E154: Local Authority | F154: All | G154: 15-16 | H154: 143 | I154: 451 | J154: 292 | K154: 66 | L154: 7
A155: AllAllAllLocal AuthorityFull inspection15-16 | B155: All | C155: All | D155: All | E155: Local Authority | F155: Full inspection | G155: 15-16 | H155: 143 | I155: 286 | J155: 95 | K155: 28 | L155: 0
A156: AllAllAllLocal AuthorityInterim inspection15-16 | B156: All | C156: All | D156: All | E156: Local Authority | F156: Interim inspection | G156: 15-16 | H156: 0 | I156: 165 | J156: 197 | K156: 38 | L156: 7
A157: AllAllAllLocal AuthorityMonitoring inspection15-16 | B157: All | C157: All | D157: All | E157: Local Authority | F157: Monitoring inspection | G157: 15-16 | H157: 0 | I157: 0 | J157: 0 | K157: 0 | L157: 0
A158: AllAllAllPrivateAll15-16 | B158: All | C158: All | D158: All | E158: Private | F158: All | G158: 15-16 | H158: 219 | I158: 1388 | J158: 943 | K158: 222 | L158: 60
A159: AllAllAllPrivateFull inspection15-16 | B159: All | C159: All | D159: All | E159: Private | F159: Full inspection | G159: 15-16 | H159: 219 | I159: 964 | J159: 317 | K159: 75 | L159: 0
A160: AllAllAllPrivateInterim inspection15-16 | B160: All | C160: All | D160: All | E160: Private | F160: Interim inspection | G160: 15-16 | H160: 0 | I160: 424 | J160: 626 | K160: 147 | L160: 60
A161: AllAllAllPrivateMonitoring inspection15-16 | B161: All | C161: All | D161: All | E161: Private | F161: Monitoring inspection | G161: 15-16 | H161: 0 | I161: 0 | J161: 0 | K161: 0 | L161: 0
A162: AllAllAllVoluntaryAll15-16 | B162: All | C162: All | D162: All | E162: Voluntary | F162: All | G162: 15-16 | H162: 64 | I162: 224 | J162: 122 | K162: 32 | L162: 11
A163: AllAllAllVoluntaryFull inspection15-16 | B163: All | C163: All | D163: All | E163: Voluntary | F163: Full inspection | G163: 15-16 | H163: 64 | I163: 163 | J163: 44 | K163: 20 | L163: 0
A164: AllAllAllVoluntaryInterim inspection15-16 | B164: All | C164: All | D164: All | E164: Voluntary | F164: Interim inspection | G164: 15-16 | H164: 0 | I164: 61 | J164: 78 | K164: 12 | L164: 11
A165: AllAllAllVoluntaryMonitoring inspection15-16 | B165: All | C165: All | D165: All | E165: Voluntary | F165: Monitoring inspection | G165: 15-16 | H165: 0 | I165: 0 | J165: 0 | K165: 0 | L165: 0
A166: AllAllEast MidlandsAcademyAll15-16 | B166: All | C166: All | D166: East Midlands | E166: Academy | F166: All | G166: 15-16 | H166: 1 | I166: 1 | J166: 0 | K166: 0 | L166: 0
A167: AllAllEast MidlandsAcademyFull inspection15-16 | B167: All | C167: All | D167: East Midlands | E167: Academy | F167: Full inspection | G167: 15-16 | H167: 1 | I167: 1 | J167: 0 | K167: 0 | L167: 0
A168: AllAllEast MidlandsAllAll15-16 | B168: All | C168: All | D168: East Midlands | E168: All | F168: All | G168: 15-16 | H168: 43 | I168: 190 | J168: 113 | K168: 24 | L168: 7
A169: AllAllEast MidlandsAllFull inspection15-16 | B169: All | C169: All | D169: East Midlands | E169: All | F169: Full inspection | G169: 15-16 | H169: 43 | I169: 115 | J169: 41 | K169: 12 | L169: 0
A170: AllAllEast MidlandsAllInterim inspection15-16 | B170: All | C170: All | D170: East Midlands | E170: All | F170: Interim inspection | G170: 15-16 | H170: 0 | I170: 75 | J170: 72 | K170: 12 | L170: 7
A171: AllAllEast MidlandsAllMonitoring inspection15-16 | B171: All | C171: All | D171: East Midlands | E171: All | F171: Monitoring inspection | G171: 15-16 | H171: 0 | I171: 0 | J171: 0 | K171: 0 | L171: 0
A172: AllAllEast MidlandsHealth AuthorityAll15-16 | B172: All | C172: All | D172: East Midlands | E172: Health Authority | F172: All | G172: 15-16 | H172: 0 | I172: 4 | J172: 2 | K172: 0 | L172: 0
A173: AllAllEast MidlandsHealth AuthorityFull inspection15-16 | B173: All | C173: All | D173: East Midlands | E173: Health Authority | F173: Full inspection | G173: 15-16 | H173: 0 | I173: 3 | J173: 0 | K173: 0 | L173: 0
A174: AllAllEast MidlandsHealth AuthorityInterim inspection15-16 | B174: All | C174: All | D174: East Midlands | E174: Health Authority | F174: Interim inspection | G174: 15-16 | H174: 0 | I174: 1 | J174: 2 | K174: 0 | L174: 0
A175: AllAllEast MidlandsLocal AuthorityAll15-16 | B175: All | C175: All | D175: East Midlands | E175: Local Authority | F175: All | G175: 15-16 | H175: 20 | I175: 57 | J175: 29 | K175: 5 | L175: 2
A176: AllAllEast MidlandsLocal AuthorityFull inspection15-16 | B176: All | C176: All | D176: East Midlands | E176: Local Authority | F176: Full inspection | G176: 15-16 | H176: 20 | I176: 31 | J176: 8 | K176: 4 | L176: 0
A177: AllAllEast MidlandsLocal AuthorityInterim inspection15-16 | B177: All | C177: All | D177: East Midlands | E177: Local Authority | F177: Interim inspection | G177: 15-16 | H177: 0 | I177: 26 | J177: 21 | K177: 1 | L177: 2
A178: AllAllEast MidlandsLocal AuthorityMonitoring inspection15-16 | B178: All | C178: All | D178: East Midlands | E178: Local Authority | F178: Monitoring inspection | G178: 15-16 | H178: 0 | I178: 0 | J178: 0 | K178: 0 | L178: 0
A179: AllAllEast MidlandsPrivateAll15-16 | B179: All | C179: All | D179: East Midlands | E179: Private | F179: All | G179: 15-16 | H179: 19 | I179: 118 | J179: 78 | K179: 17 | L179: 5
A180: AllAllEast MidlandsPrivateFull inspection15-16 | B180: All | C180: All | D180: East Midlands | E180: Private | F180: Full inspection | G180: 15-16 | H180: 19 | I180: 73 | J180: 31 | K180: 6 | L180: 0
A181: AllAllEast MidlandsPrivateInterim inspection15-16 | B181: All | C181: All | D181: East Midlands | E181: Private | F181: Interim inspection | G181: 15-16 | H181: 0 | I181: 45 | J181: 47 | K181: 11 | L181: 5
A182: AllAllEast MidlandsPrivateMonitoring inspection15-16 | B182: All | C182: All | D182: East Midlands | E182: Private | F182: Monitoring inspection | G182: 15-16 | H182: 0 | I182: 0 | J182: 0 | K182: 0 | L182: 0
A183: AllAllEast MidlandsVoluntaryAll15-16 | B183: All | C183: All | D183: East Midlands | E183: Voluntary | F183: All | G183: 15-16 | H183: 3 | I183: 10 | J183: 4 | K183: 2 | L183: 0
A184: AllAllEast MidlandsVoluntaryFull inspection15-16 | B184: All | C184: All | D184: East Midlands | E184: Voluntary | F184: Full inspection | G184: 15-16 | H184: 3 | I184: 7 | J184: 2 | K184: 2 | L184: 0
A185: AllAllEast MidlandsVoluntaryInterim inspection15-16 | B185: All | C185: All | D185: East Midlands | E185: Voluntary | F185: Interim inspection | G185: 15-16 | H185: 0 | I185: 3 | J185: 2 | K185: 0 | L185: 0
A186: AllAllEast of EnglandAcademyAll15-16 | B186: All | C186: All | D186: East of England | E186: Academy | F186: All | G186: 15-16 | H186: 2 | I186: 2 | J186: 0 | K186: 0 | L186: 0
A187: AllAllEast of EnglandAcademyFull inspection15-16 | B187: All | C187: All | D187: East of England | E187: Academy | F187: Full inspection | G187: 15-16 | H187: 2 | I187: 2 | J187: 0 | K187: 0 | L187: 0
A188: AllAllEast of EnglandAllAll15-16 | B188: All | C188: All | D188: East of England | E188: All | F188: All | G188: 15-16 | H188: 27 | I188: 195 | J188: 118 | K188: 27 | L188: 4
A189: AllAllEast of EnglandAllFull inspection15-16 | B189: All | C189: All | D189: East of England | E189: All | F189: Full inspection | G189: 15-16 | H189: 27 | I189: 129 | J189: 48 | K189: 2 | L189: 0
A190: AllAllEast of EnglandAllInterim inspection15-16 | B190: All | C190: All | D190: East of England | E190: All | F190: Interim inspection | G190: 15-16 | H190: 0 | I190: 66 | J190: 70 | K190: 25 | L190: 4
A191: AllAllEast of EnglandAllMonitoring inspection15-16 | B191: All | C191: All | D191: East of England | E191: All | F191: Monitoring inspection | G191: 15-16 | H191: 0 | I191: 0 | J191: 0 | K191: 0 | L191: 0
A192: AllAllEast of EnglandLocal AuthorityAll15-16 | B192: All | C192: All | D192: East of England | E192: Local Authority | F192: All | G192: 15-16 | H192: 6 | I192: 43 | J192: 24 | K192: 5 | L192: 0
A193: AllAllEast of EnglandLocal AuthorityFull inspection15-16 | B193: All | C193: All | D193: East of England | E193: Local Authority | F193: Full inspection | G193: 15-16 | H193: 6 | I193: 27 | J193: 12 | K193: 0 | L193: 0
A194: AllAllEast of EnglandLocal AuthorityInterim inspection15-16 | B194: All | C194: All | D194: East of England | E194: Local Authority | F194: Interim inspection | G194: 15-16 | H194: 0 | I194: 16 | J194: 12 | K194: 5 | L194: 0
A195: AllAllEast of EnglandPrivateAll15-16 | B195: All | C195: All | D195: East of England | E195: Private | F195: All | G195: 15-16 | H195: 14 | I195: 112 | J195: 72 | K195: 18 | L195: 3
A196: AllAllEast of EnglandPrivateFull inspection15-16 | B196: All | C196: All | D196: East of England | E196: Private | F196: Full inspection | G196: 15-16 | H196: 14 | I196: 77 | J196: 28 | K196: 1 | L196: 0
A197: AllAllEast of EnglandPrivateInterim inspection15-16 | B197: All | C197: All | D197: East of England | E197: Private | F197: Interim inspection | G197: 15-16 | H197: 0 | I197: 35 | J197: 44 | K197: 17 | L197: 3
A198: AllAllEast of EnglandPrivateMonitoring inspection15-16 | B198: All | C198: All | D198: East of England | E198: Private | F198: Monitoring inspection | G198: 15-16 | H198: 0 | I198: 0 | J198: 0 | K198: 0 | L198: 0
A199: AllAllEast of EnglandVoluntaryAll15-16 | B199: All | C199: All | D199: East of England | E199: Voluntary | F199: All | G199: 15-16 | H199: 5 | I199: 38 | J199: 22 | K199: 4 | L199: 1
A200: AllAllEast of EnglandVoluntaryFull inspection15-16 | B200: All | C200: All | D200: East of England | E200: Voluntary | F200: Full inspection | G200: 15-16 | H200: 5 | I200: 23 | J200: 8 | K200: 1 | L200: 0
... 4300 more rows

Sheet DataSubJudgements (hidden)
A1: lookup | B1: Provision Type | C1: Local Authority | D1: Region | E1: Sector | F1: Judgement | G1: Period | H1: Outstanding | I1: Good | J1: Requires Improvement | K1: Inadequate | L1: Not judged
A2: AllAllAcademyAllAll15-16 | B2: All | C2: All | D2: All | E2: Academy | F2: All | G2: 15-16 | H2: 40 | I2: 44 | J2: 15 | K2: 7 | L2: 1
A3: AllAllAcademyAllLeadership and management15-16 | B3: All | C3: All | D3: All | E3: Academy | F3: Leadership and management | G3: 15-16 | H3: 9 | I3: 11 | J3: 4 | K3: 2 | L3: 0
A4: AllAllAcademyAllOutcomes for children and young people15-16 | B4: All | C4: All | D4: All | E4: Academy | F4: Outcomes for children and young people | G4: 15-16 | H4: 0 | I4: 1 | J4: 1 | K4: 0 | L4: 1
A5: AllAllAcademyAllOverall effectiveness15-16 | B5: All | C5: All | D5: All | E5: Academy | F5: Overall effectiveness | G5: 15-16 | H5: 10 | I5: 11 | J5: 3 | K5: 2 | L5: 0
A6: AllAllAcademyAllQuality of care15-16 | B6: All | C6: All | D6: All | E6: Academy | F6: Quality of care | G6: 15-16 | H6: 13 | I6: 9 | J6: 3 | K6: 1 | L6: 0
A7: AllAllAcademyAllSafeguarding children and young people15-16 | B7: All | C7: All | D7: All | E7: Academy | F7: Safeguarding children and young people | G7: 15-16 | H7: 8 | I7: 12 | J7: 4 | K7: 2 | L7: 0
A8: AllAllAcademyBoarding SchoolAll15-16 | B8: Boarding School | C8: All | D8: All | E8: Academy | F8: All | G8: 15-16 | H8: 12 | I8: 23 | J8: 11 | K8: 4 | L8: 1
A9: AllAllAcademyBoarding SchoolLeadership and management15-16 | B9: Boarding School | C9: All | D9: All | E9: Academy | F9: Leadership and management | G9: 15-16 | H9: 3 | I9: 5 | J9: 3 | K9: 1 | L9: 0
A10: AllAllAcademyBoarding SchoolOutcomes for children and young people15-16 | B10: Boarding School | C10: All | D10: All | E10: Academy | F10: Outcomes for children and young people | G10: 15-16 | H10: 0 | I10: 1 | J10: 1 | K10: 0 | L10: 1
A11: AllAllAcademyBoarding SchoolOverall effectiveness15-16 | B11: Boarding School | C11: All | D11: All | E11: Academy | F11: Overall effectiveness | G11: 15-16 | H11: 3 | I11: 6 | J11: 2 | K11: 1 | L11: 0
A12: AllAllAcademyBoarding SchoolQuality of care15-16 | B12: Boarding School | C12: All | D12: All | E12: Academy | F12: Quality of care | G12: 15-16 | H12: 4 | I12: 5 | J12: 2 | K12: 1 | L12: 0
A13: AllAllAcademyBoarding SchoolSafeguarding children and young people15-16 | B13: Boarding School | C13: All | D13: All | E13: Academy | F13: Safeguarding children and young people | G13: 15-16 | H13: 2 | I13: 6 | J13: 3 | K13: 1 | L13: 0
A14: AllAllAcademyResidential Special SchoolAll15-16 | B14: Residential Special School | C14: All | D14: All | E14: Academy | F14: All | G14: 15-16 | H14: 28 | I14: 21 | J14: 4 | K14: 3 | L14: 0
A15: AllAllAcademyResidential Special SchoolLeadership and management15-16 | B15: Residential Special School | C15: All | D15: All | E15: Academy | F15: Leadership and management | G15: 15-16 | H15: 6 | I15: 6 | J15: 1 | K15: 1 | L15: 0
A16: AllAllAcademyResidential Special SchoolOverall effectiveness15-16 | B16: Residential Special School | C16: All | D16: All | E16: Academy | F16: Overall effectiveness | G16: 15-16 | H16: 7 | I16: 5 | J16: 1 | K16: 1 | L16: 0
A17: AllAllAcademyResidential Special SchoolQuality of care15-16 | B17: Residential Special School | C17: All | D17: All | E17: Academy | F17: Quality of care | G17: 15-16 | H17: 9 | I17: 4 | J17: 1 | K17: 0 | L17: 0
A18: AllAllAcademyResidential Special SchoolSafeguarding children and young people15-16 | B18: Residential Special School | C18: All | D18: All | E18: Academy | F18: Safeguarding children and young people | G18: 15-16 | H18: 6 | I18: 6 | J18: 1 | K18: 1 | L18: 0
A19: AllAllAllAdoption Support AgencyAll15-16 | B19: Adoption Support Agency | C19: All | D19: All | E19: All | F19: All | G19: 15-16 | H19: 25 | I19: 36 | J19: 4 | K19: 0 | L19: 0
A20: AllAllAllAdoption Support AgencyLeadership and management15-16 | B20: Adoption Support Agency | C20: All | D20: All | E20: All | F20: Leadership and management | G20: 15-16 | H20: 5 | I20: 6 | J20: 2 | K20: 0 | L20: 0
A21: AllAllAllAdoption Support AgencyOutcomes for children and young people15-16 | B21: Adoption Support Agency | C21: All | D21: All | E21: All | F21: Outcomes for children and young people | G21: 15-16 | H21: 6 | I21: 7 | J21: 0 | K21: 0 | L21: 0
A22: AllAllAllAdoption Support AgencyOverall effectiveness15-16 | B22: Adoption Support Agency | C22: All | D22: All | E22: All | F22: Overall effectiveness | G22: 15-16 | H22: 5 | I22: 7 | J22: 1 | K22: 0 | L22: 0
A23: AllAllAllAdoption Support AgencyQuality of care15-16 | B23: Adoption Support Agency | C23: All | D23: All | E23: All | F23: Quality of care | G23: 15-16 | H23: 7 | I23: 6 | J23: 0 | K23: 0 | L23: 0
A24: AllAllAllAdoption Support AgencySafeguarding children and young people15-16 | B24: Adoption Support Agency | C24: All | D24: All | E24: All | F24: Safeguarding children and young people | G24: 15-16 | H24: 2 | I24: 10 | J24: 1 | K24: 0 | L24: 0
A25: AllAllAllAll Children's HomesAll15-16 | B25: All Children's Homes | C25: All | D25: All | E25: All | F25: All | G25: 15-16 | H25: 905 | I25: 3497 | J25: 1390 | K25: 403 | L25: 0
A26: AllAllAllAll Children's HomesLeadership and management15-16 | B26: All Children's Homes | C26: All | D26: All | E26: All | F26: Leadership and management | G26: 15-16 | H26: 293 | I26: 1035 | J26: 549 | K26: 183 | L26: 0
A27: AllAllAllAll Children's HomesOutcomes for children and young people15-16 | B27: All Children's Homes | C27: All | D27: All | E27: All | F27: Outcomes for children and young people | G27: 15-16 | H27: 3 | I27: 11 | J27: 1 | K27: 0 | L27: 0
A28: AllAllAllAll Children's HomesOverall effectiveness15-16 | B28: All Children's Homes | C28: All | D28: All | E28: All | F28: Overall effectiveness | G28: 15-16 | H28: 328 | I28: 1216 | J28: 405 | K28: 111 | L28: 0
A29: AllAllAllAll Children's HomesSafeguarding children and young people15-16 | B29: All Children's Homes | C29: All | D29: All | E29: All | F29: Safeguarding children and young people | G29: 15-16 | H29: 281 | I29: 1235 | J29: 435 | K29: 109 | L29: 0
A30: AllAllAllAllAll15-16 | B30: All | C30: All | D30: All | E30: All | F30: All | G30: 15-16 | H30: 1424 | I30: 4423 | J30: 1664 | K30: 456 | L30: 1
A31: AllAllAllAllLeadership and management15-16 | B31: All | C31: All | D31: All | E31: All | F31: Leadership and management | G31: 15-16 | H31: 405 | I31: 1217 | J31: 630 | K31: 199 | L31: 0
A32: AllAllAllAllOutcomes for children and young people15-16 | B32: All | C32: All | D32: All | E32: All | F32: Outcomes for children and young people | G32: 15-16 | H32: 71 | I32: 134 | J32: 21 | K32: 1 | L32: 1
A33: AllAllAllAllOverall effectiveness15-16 | B33: All | C33: All | D33: All | E33: All | F33: Overall effectiveness | G33: 15-16 | H33: 437 | I33: 1432 | J33: 459 | K33: 125 | L33: 0
A34: AllAllAllAllQuality of care15-16 | B34: All | C34: All | D34: All | E34: All | F34: Quality of care | G34: 15-16 | H34: 142 | I34: 186 | J34: 50 | K34: 7 | L34: 0
A35: AllAllAllAllSafeguarding children and young people15-16 | B35: All | C35: All | D35: All | E35: All | F35: Safeguarding children and young people | G35: 15-16 | H35: 369 | I35: 1454 | J35: 504 | K35: 124 | L35: 0
A36: AllAllAllBoarding SchoolAll15-16 | B36: Boarding School | C36: All | D36: All | E36: All | F36: All | G36: 15-16 | H36: 26 | I36: 48 | J36: 36 | K36: 26 | L36: 1
A37: AllAllAllBoarding SchoolLeadership and management15-16 | B37: Boarding School | C37: All | D37: All | E37: All | F37: Leadership and management | G37: 15-16 | H37: 6 | I37: 10 | J37: 9 | K37: 7 | L37: 0
A38: AllAllAllBoarding SchoolOutcomes for children and young people15-16 | B38: Boarding School | C38: All | D38: All | E38: All | F38: Outcomes for children and young people | G38: 15-16 | H38: 1 | I38: 2 | J38: 3 | K38: 1 | L38: 1
A39: AllAllAllBoarding SchoolOverall effectiveness15-16 | B39: Boarding School | C39: All | D39: All | E39: All | F39: Overall effectiveness | G39: 15-16 | H39: 6 | I39: 13 | J39: 7 | K39: 7 | L39: 0
A40: AllAllAllBoarding SchoolQuality of care15-16 | B40: Boarding School | C40: All | D40: All | E40: All | F40: Quality of care | G40: 15-16 | H40: 8 | I40: 12 | J40: 8 | K40: 4 | L40: 0
A41: AllAllAllBoarding SchoolSafeguarding children and young people15-16 | B41: Boarding School | C41: All | D41: All | E41: All | F41: Safeguarding children and young people | G41: 15-16 | H41: 5 | I41: 11 | J41: 9 | K41: 7 | L41: 0
A42: AllAllAllChildren's homeAll15-16 | B42: Children's home | C42: All | D42: All | E42: All | F42: All | G42: 15-16 | H42: 843 | I42: 3334 | J42: 1303 | K42: 364 | L42: 0
A43: AllAllAllChildren's homeLeadership and management15-16 | B43: Children's home | C43: All | D43: All | E43: All | F43: Leadership and management | G43: 15-16 | H43: 274 | I43: 989 | J43: 515 | K43: 170 | L43: 0
A44: AllAllAllChildren's homeOverall effectiveness15-16 | B44: Children's home | C44: All | D44: All | E44: All | F44: Overall effectiveness | G44: 15-16 | H44: 306 | I44: 1167 | J44: 377 | K44: 98 | L44: 0
A45: AllAllAllChildren's homeSafeguarding children and young people15-16 | B45: Children's home | C45: All | D45: All | E45: All | F45: Safeguarding children and young people | G45: 15-16 | H45: 263 | I45: 1178 | J45: 411 | K45: 96 | L45: 0
A46: AllAllAllFurther Education College with Residential AccommodationAll15-16 | B46: Further Education College with Residential Accommodation | C46: All | D46: All | E46: All | F46: All | G46: 15-16 | H46: 20 | I46: 19 | J46: 10 | K46: 1 | L46: 0
A47: AllAllAllFurther Education College with Residential AccommodationLeadership and management15-16 | B47: Further Education College with Residential Accommodation | C47: All | D47: All | E47: All | F47: Leadership and management | G47: 15-16 | H47: 4 | I47: 3 | J47: 3 | K47: 0 | L47: 0
A48: AllAllAllFurther Education College with Residential AccommodationOutcomes for children and young people15-16 | B48: Further Education College with Residential Accommodation | C48: All | D48: All | E48: All | F48: Outcomes for children and young people | G48: 15-16 | H48: 4 | I48: 6 | J48: 0 | K48: 0 | L48: 0
A49: AllAllAllFurther Education College with Residential AccommodationOverall effectiveness15-16 | B49: Further Education College with Residential Accommodation | C49: All | D49: All | E49: All | F49: Overall effectiveness | G49: 15-16 | H49: 4 | I49: 3 | J49: 3 | K49: 0 | L49: 0
A50: AllAllAllFurther Education College with Residential AccommodationQuality of care15-16 | B50: Further Education College with Residential Accommodation | C50: All | D50: All | E50: All | F50: Quality of care | G50: 15-16 | H50: 4 | I50: 4 | J50: 2 | K50: 0 | L50: 0
A51: AllAllAllFurther Education College with Residential AccommodationSafeguarding children and young people15-16 | B51: Further Education College with Residential Accommodation | C51: All | D51: All | E51: All | F51: Safeguarding children and young people | G51: 15-16 | H51: 4 | I51: 3 | J51: 2 | K51: 1 | L51: 0
A52: AllAllAllIndependent Fostering AgencyAll15-16 | B52: Independent Fostering Agency | C52: All | D52: All | E52: All | F52: All | G52: 15-16 | H52: 127 | I52: 440 | J52: 111 | K52: 17 | L52: 0
A53: AllAllAllIndependent Fostering AgencyLeadership and management15-16 | B53: Independent Fostering Agency | C53: All | D53: All | E53: All | F53: Leadership and management | G53: 15-16 | H53: 25 | I53: 77 | J53: 32 | K53: 5 | L53: 0
A54: AllAllAllIndependent Fostering AgencyOutcomes for children and young people15-16 | B54: Independent Fostering Agency | C54: All | D54: All | E54: All | F54: Outcomes for children and young people | G54: 15-16 | H54: 42 | I54: 87 | J54: 10 | K54: 0 | L54: 0
A55: AllAllAllIndependent Fostering AgencyOverall effectiveness15-16 | B55: Independent Fostering Agency | C55: All | D55: All | E55: All | F55: Overall effectiveness | G55: 15-16 | H55: 19 | I55: 96 | J55: 20 | K55: 4 | L55: 0
A56: AllAllAllIndependent Fostering AgencyQuality of care15-16 | B56: Independent Fostering Agency | C56: All | D56: All | E56: All | F56: Quality of care | G56: 15-16 | H56: 28 | I56: 86 | J56: 22 | K56: 3 | L56: 0
A57: AllAllAllIndependent Fostering AgencySafeguarding children and young people15-16 | B57: Independent Fostering Agency | C57: All | D57: All | E57: All | F57: Safeguarding children and young people | G57: 15-16 | H57: 13 | I57: 94 | J57: 27 | K57: 5 | L57: 0
A58: AllAllAllResidential Family CentreAll15-16 | B58: Residential Family Centre | C58: All | D58: All | E58: All | F58: All | G58: 15-16 | H58: 21 | I58: 62 | J58: 18 | K58: 0 | L58: 0
A59: AllAllAllResidential Family CentreLeadership and management15-16 | B59: Residential Family Centre | C59: All | D59: All | E59: All | F59: Leadership and management | G59: 15-16 | H59: 3 | I59: 10 | J59: 8 | K59: 0 | L59: 0
A60: AllAllAllResidential Family CentreOutcomes for children and young people15-16 | B60: Residential Family Centre | C60: All | D60: All | E60: All | F60: Outcomes for children and young people | G60: 15-16 | H60: 6 | I60: 9 | J60: 5 | K60: 0 | L60: 0
A61: AllAllAllResidential Family CentreOverall effectiveness15-16 | B61: Residential Family Centre | C61: All | D61: All | E61: All | F61: Overall effectiveness | G61: 15-16 | H61: 4 | I61: 15 | J61: 2 | K61: 0 | L61: 0
A62: AllAllAllResidential Family CentreQuality of care15-16 | B62: Residential Family Centre | C62: All | D62: All | E62: All | F62: Quality of care | G62: 15-16 | H62: 4 | I62: 13 | J62: 1 | K62: 0 | L62: 0
A63: AllAllAllResidential Family CentreSafeguarding children and young people15-16 | B63: Residential Family Centre | C63: All | D63: All | E63: All | F63: Safeguarding children and young people | G63: 15-16 | H63: 4 | I63: 15 | J63: 2 | K63: 0 | L63: 0
A64: AllAllAllResidential Holiday Scheme for Disabled ChildrenAll15-16 | B64: Residential Holiday Scheme for Disabled Children | C64: All | D64: All | E64: All | F64: All | G64: 15-16 | H64: 0 | I64: 12 | J64: 0 | K64: 0 | L64: 0
A65: AllAllAllResidential Holiday Scheme for Disabled ChildrenLeadership and management15-16 | B65: Residential Holiday Scheme for Disabled Children | C65: All | D65: All | E65: All | F65: Leadership and management | G65: 15-16 | H65: 0 | I65: 3 | J65: 0 | K65: 0 | L65: 0
A66: AllAllAllResidential Holiday Scheme for Disabled ChildrenOutcomes for children and young people15-16 | B66: Residential Holiday Scheme for Disabled Children | C66: All | D66: All | E66: All | F66: Outcomes for children and young people | G66: 15-16 | H66: 0 | I66: 3 | J66: 0 | K66: 0 | L66: 0
A67: AllAllAllResidential Holiday Scheme for Disabled ChildrenOverall effectiveness15-16 | B67: Residential Holiday Scheme for Disabled Children | C67: All | D67: All | E67: All | F67: Overall effectiveness | G67: 15-16 | H67: 0 | I67: 3 | J67: 0 | K67: 0 | L67: 0
A68: AllAllAllResidential Holiday Scheme for Disabled ChildrenSafeguarding children and young people15-16 | B68: Residential Holiday Scheme for Disabled Children | C68: All | D68: All | E68: All | F68: Safeguarding children and young people | G68: 15-16 | H68: 0 | I68: 3 | J68: 0 | K68: 0 | L68: 0
A69: AllAllAllResidential special school (registered as a children's home)All15-16 | B69: Residential special school (registered as a children's home) | C69: All | D69: All | E69: All | F69: All | G69: 15-16 | H69: 51 | I69: 124 | J69: 77 | K69: 39 | L69: 0
A70: AllAllAllResidential special school (registered as a children's home)Leadership and management15-16 | B70: Residential special school (registered as a children's home) | C70: All | D70: All | E70: All | F70: Leadership and management | G70: 15-16 | H70: 16 | I70: 41 | J70: 27 | K70: 13 | L70: 0
A71: AllAllAllResidential special school (registered as a children's home)Overall effectiveness15-16 | B71: Residential special school (registered as a children's home) | C71: All | D71: All | E71: All | F71: Overall effectiveness | G71: 15-16 | H71: 19 | I71: 37 | J71: 28 | K71: 13 | L71: 0
A72: AllAllAllResidential special school (registered as a children's home)Safeguarding children and young people15-16 | B72: Residential special school (registered as a children's home) | C72: All | D72: All | E72: All | F72: Safeguarding children and young people | G72: 15-16 | H72: 16 | I72: 46 | J72: 22 | K72: 13 | L72: 0
A73: AllAllAllResidential Special SchoolAll15-16 | B73: Residential Special School | C73: All | D73: All | E73: All | F73: All | G73: 15-16 | H73: 266 | I73: 263 | J73: 90 | K73: 9 | L73: 0
A74: AllAllAllResidential Special SchoolLeadership and management15-16 | B74: Residential Special School | C74: All | D74: All | E74: All | F74: Leadership and management | G74: 15-16 | H74: 64 | I74: 62 | J74: 26 | K74: 4 | L74: 0
A75: AllAllAllResidential Special SchoolOutcomes for children and young people15-16 | B75: Residential Special School | C75: All | D75: All | E75: All | F75: Outcomes for children and young people | G75: 15-16 | H75: 0 | I75: 1 | J75: 2 | K75: 0 | L75: 0
A76: AllAllAllResidential Special SchoolOverall effectiveness15-16 | B76: Residential Special School | C76: All | D76: All | E76: All | F76: Overall effectiveness | G76: 15-16 | H76: 64 | I76: 70 | J76: 20 | K76: 3 | L76: 0
A77: AllAllAllResidential Special SchoolQuality of care15-16 | B77: Residential Special School | C77: All | D77: All | E77: All | F77: Quality of care | G77: 15-16 | H77: 83 | I77: 58 | J77: 15 | K77: 0 | L77: 0
A78: AllAllAllResidential Special SchoolSafeguarding children and young people15-16 | B78: Residential Special School | C78: All | D78: All | E78: All | F78: Safeguarding children and young people | G78: 15-16 | H78: 55 | I78: 72 | J78: 27 | K78: 2 | L78: 0
A79: AllAllAllSecure children's homeAll15-16 | B79: Secure children's home | C79: All | D79: All | E79: All | F79: All | G79: 15-16 | H79: 11 | I79: 39 | J79: 10 | K79: 0 | L79: 0
A80: AllAllAllSecure children's homeLeadership and management15-16 | B80: Secure children's home | C80: All | D80: All | E80: All | F80: Leadership and management | G80: 15-16 | H80: 3 | I80: 5 | J80: 7 | K80: 0 | L80: 0
A81: AllAllAllSecure children's homeOutcomes for children and young people15-16 | B81: Secure children's home | C81: All | D81: All | E81: All | F81: Outcomes for children and young people | G81: 15-16 | H81: 3 | I81: 11 | J81: 1 | K81: 0 | L81: 0
A82: AllAllAllSecure children's homeOverall effectiveness15-16 | B82: Secure children's home | C82: All | D82: All | E82: All | F82: Overall effectiveness | G82: 15-16 | H82: 3 | I82: 12 | J82: 0 | K82: 0 | L82: 0
A83: AllAllAllSecure children's homeSafeguarding children and young people15-16 | B83: Secure children's home | C83: All | D83: All | E83: All | F83: Safeguarding children and young people | G83: 15-16 | H83: 2 | I83: 11 | J83: 2 | K83: 0 | L83: 0
A84: AllAllAllSecure training centreAll15-16 | B84: Secure training centre | C84: All | D84: All | E84: All | F84: All | G84: 15-16 | H84: 0 | I84: 5 | J84: 5 | K84: 0 | L84: 0
A85: AllAllAllSecure training centreLeadership and management15-16 | B85: Secure training centre | C85: All | D85: All | E85: All | F85: Leadership and management | G85: 15-16 | H85: 0 | I85: 1 | J85: 1 | K85: 0 | L85: 0
A86: AllAllAllSecure training centreOutcomes for children and young people15-16 | B86: Secure training centre | C86: All | D86: All | E86: All | F86: Outcomes for children and young people | G86: 15-16 | H86: 0 | I86: 2 | J86: 0 | K86: 0 | L86: 0
A87: AllAllAllSecure training centreOverall effectiveness15-16 | B87: Secure training centre | C87: All | D87: All | E87: All | F87: Overall effectiveness | G87: 15-16 | H87: 0 | I87: 1 | J87: 1 | K87: 0 | L87: 0
A88: AllAllAllSecure training centreQuality of care15-16 | B88: Secure training centre | C88: All | D88: All | E88: All | F88: Quality of care | G88: 15-16 | H88: 0 | I88: 0 | J88: 2 | K88: 0 | L88: 0
A89: AllAllAllSecure training centreSafeguarding children and young people15-16 | B89: Secure training centre | C89: All | D89: All | E89: All | F89: Safeguarding children and young people | G89: 15-16 | H89: 0 | I89: 1 | J89: 1 | K89: 0 | L89: 0
A90: AllAllAllVoluntary Adoption AgencyAll15-16 | B90: Voluntary Adoption Agency | C90: All | D90: All | E90: All | F90: All | G90: 15-16 | H90: 34 | I90: 41 | J90: 0 | K90: 0 | L90: 0
A91: AllAllAllVoluntary Adoption AgencyLeadership and management15-16 | B91: Voluntary Adoption Agency | C91: All | D91: All | E91: All | F91: Leadership and management | G91: 15-16 | H91: 5 | I91: 10 | J91: 0 | K91: 0 | L91: 0
A92: AllAllAllVoluntary Adoption AgencyOutcomes for children and young people15-16 | B92: Voluntary Adoption Agency | C92: All | D92: All | E92: All | F92: Outcomes for children and young people | G92: 15-16 | H92: 9 | I92: 6 | J92: 0 | K92: 0 | L92: 0
A93: AllAllAllVoluntary Adoption AgencyOverall effectiveness15-16 | B93: Voluntary Adoption Agency | C93: All | D93: All | E93: All | F93: Overall effectiveness | G93: 15-16 | H93: 7 | I93: 8 | J93: 0 | K93: 0 | L93: 0
A94: AllAllAllVoluntary Adoption AgencyQuality of care15-16 | B94: Voluntary Adoption Agency | C94: All | D94: All | E94: All | F94: Quality of care | G94: 15-16 | H94: 8 | I94: 7 | J94: 0 | K94: 0 | L94: 0
A95: AllAllAllVoluntary Adoption AgencySafeguarding children and young people15-16 | B95: Voluntary Adoption Agency | C95: All | D95: All | E95: All | F95: Safeguarding children and young people | G95: 15-16 | H95: 5 | I95: 10 | J95: 0 | K95: 0 | L95: 0
A96: AllAllHealth AuthorityAll Children's HomesAll15-16 | B96: All Children's Homes | C96: All | D96: All | E96: Health Authority | F96: All | G96: 15-16 | H96: 3 | I96: 21 | J96: 3 | K96: 0 | L96: 0
A97: AllAllHealth AuthorityAll Children's HomesLeadership and management15-16 | B97: All Children's Homes | C97: All | D97: All | E97: Health Authority | F97: Leadership and management | G97: 15-16 | H97: 1 | I97: 5 | J97: 3 | K97: 0 | L97: 0
A98: AllAllHealth AuthorityAll Children's HomesOverall effectiveness15-16 | B98: All Children's Homes | C98: All | D98: All | E98: Health Authority | F98: Overall effectiveness | G98: 15-16 | H98: 1 | I98: 8 | J98: 0 | K98: 0 | L98: 0
A99: AllAllHealth AuthorityAll Children's HomesSafeguarding children and young people15-16 | B99: All Children's Homes | C99: All | D99: All | E99: Health Authority | F99: Safeguarding children and young people | G99: 15-16 | H99: 1 | I99: 8 | J99: 0 | K99: 0 | L99: 0
A100: AllAllHealth AuthorityAllAll15-16 | B100: All | C100: All | D100: All | E100: Health Authority | F100: All | G100: 15-16 | H100: 3 | I100: 21 | J100: 3 | K100: 0 | L100: 0
A101: AllAllHealth AuthorityAllLeadership and management15-16 | B101: All | C101: All | D101: All | E101: Health Authority | F101: Leadership and management | G101: 15-16 | H101: 1 | I101: 5 | J101: 3 | K101: 0 | L101: 0
A102: AllAllHealth AuthorityAllOverall effectiveness15-16 | B102: All | C102: All | D102: All | E102: Health Authority | F102: Overall effectiveness | G102: 15-16 | H102: 1 | I102: 8 | J102: 0 | K102: 0 | L102: 0
A103: AllAllHealth AuthorityAllSafeguarding children and young people15-16 | B103: All | C103: All | D103: All | E103: Health Authority | F103: Safeguarding children and young people | G103: 15-16 | H103: 1 | I103: 8 | J103: 0 | K103: 0 | L103: 0
A104: AllAllHealth AuthorityChildren's homeAll15-16 | B104: Children's home | C104: All | D104: All | E104: Health Authority | F104: All | G104: 15-16 | H104: 3 | I104: 21 | J104: 3 | K104: 0 | L104: 0
A105: AllAllHealth AuthorityChildren's homeLeadership and management15-16 | B105: Children's home | C105: All | D105: All | E105: Health Authority | F105: Leadership and management | G105: 15-16 | H105: 1 | I105: 5 | J105: 3 | K105: 0 | L105: 0
A106: AllAllHealth AuthorityChildren's homeOverall effectiveness15-16 | B106: Children's home | C106: All | D106: All | E106: Health Authority | F106: Overall effectiveness | G106: 15-16 | H106: 1 | I106: 8 | J106: 0 | K106: 0 | L106: 0
A107: AllAllHealth AuthorityChildren's homeSafeguarding children and young people15-16 | B107: Children's home | C107: All | D107: All | E107: Health Authority | F107: Safeguarding children and young people | G107: 15-16 | H107: 1 | I107: 8 | J107: 0 | K107: 0 | L107: 0
A108: AllAllLocal AuthorityAll Children's HomesAll15-16 | B108: All Children's Homes | C108: All | D108: All | E108: Local Authority | F108: All | G108: 15-16 | H108: 294 | I108: 739 | J108: 300 | K108: 97 | L108: 0
A109: AllAllLocal AuthorityAll Children's HomesLeadership and management15-16 | B109: All Children's Homes | C109: All | D109: All | E109: Local Authority | F109: Leadership and management | G109: 15-16 | H109: 95 | I109: 212 | J109: 123 | K109: 42 | L109: 0
A110: AllAllLocal AuthorityAll Children's HomesOutcomes for children and young people15-16 | B110: All Children's Homes | C110: All | D110: All | E110: Local Authority | F110: Outcomes for children and young people | G110: 15-16 | H110: 3 | I110: 10 | J110: 1 | K110: 0 | L110: 0
A111: AllAllLocal AuthorityAll Children's HomesOverall effectiveness15-16 | B111: All Children's Homes | C111: All | D111: All | E111: Local Authority | F111: Overall effectiveness | G111: 15-16 | H111: 108 | I111: 248 | J111: 88 | K111: 28 | L111: 0
A112: AllAllLocal AuthorityAll Children's HomesSafeguarding children and young people15-16 | B112: All Children's Homes | C112: All | D112: All | E112: Local Authority | F112: Safeguarding children and young people | G112: 15-16 | H112: 88 | I112: 269 | J112: 88 | K112: 27 | L112: 0
A113: AllAllLocal AuthorityAllAll15-16 | B113: All | C113: All | D113: All | E113: Local Authority | F113: All | G113: 15-16 | H113: 442 | I113: 879 | J113: 337 | K113: 97 | L113: 0
A114: AllAllLocal AuthorityAllLeadership and management15-16 | B114: All | C114: All | D114: All | E114: Local Authority | F114: Leadership and management | G114: 15-16 | H114: 129 | I114: 247 | J114: 134 | K114: 42 | L114: 0
A115: AllAllLocal AuthorityAllOutcomes for children and young people15-16 | B115: All | C115: All | D115: All | E115: Local Authority | F115: Outcomes for children and young people | G115: 15-16 | H115: 5 | I115: 12 | J115: 2 | K115: 0 | L115: 0
A116: AllAllLocal AuthorityAllOverall effectiveness15-16 | B116: All | C116: All | D116: All | E116: Local Authority | F116: Overall effectiveness | G116: 15-16 | H116: 143 | I116: 286 | J116: 95 | K116: 28 | L116: 0
A117: AllAllLocal AuthorityAllQuality of care15-16 | B117: All | C117: All | D117: All | E117: Local Authority | F117: Quality of care | G117: 15-16 | H117: 44 | I117: 31 | J117: 5 | K117: 0 | L117: 0
A118: AllAllLocal AuthorityAllSafeguarding children and young people15-16 | B118: All | C118: All | D118: All | E118: Local Authority | F118: Safeguarding children and young people | G118: 15-16 | H118: 121 | I118: 303 | J118: 101 | K118: 27 | L118: 0
A119: AllAllLocal AuthorityBoarding SchoolAll15-16 | B119: Boarding School | C119: All | D119: All | E119: Local Authority | F119: All | G119: 15-16 | H119: 4 | I119: 1 | J119: 4 | K119: 0 | L119: 0
A120: AllAllLocal AuthorityBoarding SchoolLeadership and management15-16 | B120: Boarding School | C120: All | D120: All | E120: Local Authority | F120: Leadership and management | G120: 15-16 | H120: 1 | I120: 0 | J120: 1 | K120: 0 | L120: 0
A121: AllAllLocal AuthorityBoarding SchoolOutcomes for children and young people15-16 | B121: Boarding School | C121: All | D121: All | E121: Local Authority | F121: Outcomes for children and young people | G121: 15-16 | H121: 0 | I121: 0 | J121: 1 | K121: 0 | L121: 0
A122: AllAllLocal AuthorityBoarding SchoolOverall effectiveness15-16 | B122: Boarding School | C122: All | D122: All | E122: Local Authority | F122: Overall effectiveness | G122: 15-16 | H122: 1 | I122: 0 | J122: 1 | K122: 0 | L122: 0
A123: AllAllLocal AuthorityBoarding SchoolQuality of care15-16 | B123: Boarding School | C123: All | D123: All | E123: Local Authority | F123: Quality of care | G123: 15-16 | H123: 1 | I123: 1 | J123: 0 | K123: 0 | L123: 0
A124: AllAllLocal AuthorityBoarding SchoolSafeguarding children and young people15-16 | B124: Boarding School | C124: All | D124: All | E124: Local Authority | F124: Safeguarding children and young people | G124: 15-16 | H124: 1 | I124: 0 | J124: 1 | K124: 0 | L124: 0
A125: AllAllLocal AuthorityChildren's homeAll15-16 | B125: Children's home | C125: All | D125: All | E125: Local Authority | F125: All | G125: 15-16 | H125: 278 | I125: 703 | J125: 287 | K125: 97 | L125: 0
A126: AllAllLocal AuthorityChildren's homeLeadership and management15-16 | B126: Children's home | C126: All | D126: All | E126: Local Authority | F126: Leadership and management | G126: 15-16 | H126: 90 | I126: 208 | J126: 115 | K126: 42 | L126: 0
A127: AllAllLocal AuthorityChildren's homeOverall effectiveness15-16 | B127: Children's home | C127: All | D127: All | E127: Local Authority | F127: Overall effectiveness | G127: 15-16 | H127: 103 | I127: 237 | J127: 87 | K127: 28 | L127: 0
A128: AllAllLocal AuthorityChildren's homeSafeguarding children and young people15-16 | B128: Children's home | C128: All | D128: All | E128: Local Authority | F128: Safeguarding children and young people | G128: 15-16 | H128: 85 | I128: 258 | J128: 85 | K128: 27 | L128: 0
A129: AllAllLocal AuthorityFurther Education College with Residential AccommodationAll15-16 | B129: Further Education College with Residential Accommodation | C129: All | D129: All | E129: Local Authority | F129: All | G129: 15-16 | H129: 5 | I129: 5 | J129: 0 | K129: 0 | L129: 0
A130: AllAllLocal AuthorityFurther Education College with Residential AccommodationLeadership and management15-16 | B130: Further Education College with Residential Accommodation | C130: All | D130: All | E130: Local Authority | F130: Leadership and management | G130: 15-16 | H130: 1 | I130: 1 | J130: 0 | K130: 0 | L130: 0
A131: AllAllLocal AuthorityFurther Education College with Residential AccommodationOutcomes for children and young people15-16 | B131: Further Education College with Residential Accommodation | C131: All | D131: All | E131: Local Authority | F131: Outcomes for children and young people | G131: 15-16 | H131: 1 | I131: 1 | J131: 0 | K131: 0 | L131: 0
A132: AllAllLocal AuthorityFurther Education College with Residential AccommodationOverall effectiveness15-16 | B132: Further Education College with Residential Accommodation | C132: All | D132: All | E132: Local Authority | F132: Overall effectiveness | G132: 15-16 | H132: 1 | I132: 1 | J132: 0 | K132: 0 | L132: 0
A133: AllAllLocal AuthorityFurther Education College with Residential AccommodationQuality of care15-16 | B133: Further Education College with Residential Accommodation | C133: All | D133: All | E133: Local Authority | F133: Quality of care | G133: 15-16 | H133: 1 | I133: 1 | J133: 0 | K133: 0 | L133: 0
A134: AllAllLocal AuthorityFurther Education College with Residential AccommodationSafeguarding children and young people15-16 | B134: Further Education College with Residential Accommodation | C134: All | D134: All | E134: Local Authority | F134: Safeguarding children and young people | G134: 15-16 | H134: 1 | I134: 1 | J134: 0 | K134: 0 | L134: 0
A135: AllAllLocal AuthorityResidential Family CentreAll15-16 | B135: Residential Family Centre | C135: All | D135: All | E135: Local Authority | F135: All | G135: 15-16 | H135: 4 | I135: 1 | J135: 0 | K135: 0 | L135: 0
A136: AllAllLocal AuthorityResidential Family CentreLeadership and management15-16 | B136: Residential Family Centre | C136: All | D136: All | E136: Local Authority | F136: Leadership and management | G136: 15-16 | H136: 0 | I136: 1 | J136: 0 | K136: 0 | L136: 0
A137: AllAllLocal AuthorityResidential Family CentreOutcomes for children and young people15-16 | B137: Residential Family Centre | C137: All | D137: All | E137: Local Authority | F137: Outcomes for children and young people | G137: 15-16 | H137: 1 | I137: 0 | J137: 0 | K137: 0 | L137: 0
A138: AllAllLocal AuthorityResidential Family CentreOverall effectiveness15-16 | B138: Residential Family Centre | C138: All | D138: All | E138: Local Authority | F138: Overall effectiveness | G138: 15-16 | H138: 1 | I138: 0 | J138: 0 | K138: 0 | L138: 0
A139: AllAllLocal AuthorityResidential Family CentreQuality of care15-16 | B139: Residential Family Centre | C139: All | D139: All | E139: Local Authority | F139: Quality of care | G139: 15-16 | H139: 1 | I139: 0 | J139: 0 | K139: 0 | L139: 0
A140: AllAllLocal AuthorityResidential Family CentreSafeguarding children and young people15-16 | B140: Residential Family Centre | C140: All | D140: All | E140: Local Authority | F140: Safeguarding children and young people | G140: 15-16 | H140: 1 | I140: 0 | J140: 0 | K140: 0 | L140: 0
A141: AllAllLocal AuthorityResidential special school (registered as a children's home)All15-16 | B141: Residential special school (registered as a children's home) | C141: All | D141: All | E141: Local Authority | F141: All | G141: 15-16 | H141: 5 | I141: 1 | J141: 3 | K141: 0 | L141: 0
A142: AllAllLocal AuthorityResidential special school (registered as a children's home)Leadership and management15-16 | B142: Residential special school (registered as a children's home) | C142: All | D142: All | E142: Local Authority | F142: Leadership and management | G142: 15-16 | H142: 2 | I142: 0 | J142: 1 | K142: 0 | L142: 0
A143: AllAllLocal AuthorityResidential special school (registered as a children's home)Overall effectiveness15-16 | B143: Residential special school (registered as a children's home) | C143: All | D143: All | E143: Local Authority | F143: Overall effectiveness | G143: 15-16 | H143: 2 | I143: 0 | J143: 1 | K143: 0 | L143: 0
A144: AllAllLocal AuthorityResidential special school (registered as a children's home)Safeguarding children and young people15-16 | B144: Residential special school (registered as a children's home) | C144: All | D144: All | E144: Local Authority | F144: Safeguarding children and young people | G144: 15-16 | H144: 1 | I144: 1 | J144: 1 | K144: 0 | L144: 0
A145: AllAllLocal AuthorityResidential Special SchoolAll15-16 | B145: Residential Special School | C145: All | D145: All | E145: Local Authority | F145: All | G145: 15-16 | H145: 135 | I145: 133 | J145: 33 | K145: 0 | L145: 0
A146: AllAllLocal AuthorityResidential Special SchoolLeadership and management15-16 | B146: Residential Special School | C146: All | D146: All | E146: Local Authority | F146: Leadership and management | G146: 15-16 | H146: 32 | I146: 33 | J146: 10 | K146: 0 | L146: 0
A147: AllAllLocal AuthorityResidential Special SchoolOutcomes for children and young people15-16 | B147: Residential Special School | C147: All | D147: All | E147: Local Authority | F147: Outcomes for children and young people | G147: 15-16 | H147: 0 | I147: 1 | J147: 0 | K147: 0 | L147: 0
A148: AllAllLocal AuthorityResidential Special SchoolOverall effectiveness15-16 | B148: Residential Special School | C148: All | D148: All | E148: Local Authority | F148: Overall effectiveness | G148: 15-16 | H148: 32 | I148: 37 | J148: 6 | K148: 0 | L148: 0
A149: AllAllLocal AuthorityResidential Special SchoolQuality of care15-16 | B149: Residential Special School | C149: All | D149: All | E149: Local Authority | F149: Quality of care | G149: 15-16 | H149: 41 | I149: 29 | J149: 5 | K149: 0 | L149: 0
A150: AllAllLocal AuthorityResidential Special SchoolSafeguarding children and young people15-16 | B150: Residential Special School | C150: All | D150: All | E150: Local Authority | F150: Safeguarding children and young people | G150: 15-16 | H150: 30 | I150: 33 | J150: 12 | K150: 0 | L150: 0
A151: AllAllLocal AuthoritySecure children's homeAll15-16 | B151: Secure children's home | C151: All | D151: All | E151: Local Authority | F151: All | G151: 15-16 | H151: 11 | I151: 35 | J151: 10 | K151: 0 | L151: 0
A152: AllAllLocal AuthoritySecure children's homeLeadership and management15-16 | B152: Secure children's home | C152: All | D152: All | E152: Local Authority | F152: Leadership and management | G152: 15-16 | H152: 3 | I152: 4 | J152: 7 | K152: 0 | L152: 0
A153: AllAllLocal AuthoritySecure children's homeOutcomes for children and young people15-16 | B153: Secure children's home | C153: All | D153: All | E153: Local Authority | F153: Outcomes for children and young people | G153: 15-16 | H153: 3 | I153: 10 | J153: 1 | K153: 0 | L153: 0
A154: AllAllLocal AuthoritySecure children's homeOverall effectiveness15-16 | B154: Secure children's home | C154: All | D154: All | E154: Local Authority | F154: Overall effectiveness | G154: 15-16 | H154: 3 | I154: 11 | J154: 0 | K154: 0 | L154: 0
A155: AllAllLocal AuthoritySecure children's homeSafeguarding children and young people15-16 | B155: Secure children's home | C155: All | D155: All | E155: Local Authority | F155: Safeguarding children and young people | G155: 15-16 | H155: 2 | I155: 10 | J155: 2 | K155: 0 | L155: 0
A156: AllAllPrivateAdoption Support AgencyAll15-16 | B156: Adoption Support Agency | C156: All | D156: All | E156: Private | F156: All | G156: 15-16 | H156: 20 | I156: 16 | J156: 4 | K156: 0 | L156: 0
A157: AllAllPrivateAdoption Support AgencyLeadership and management15-16 | B157: Adoption Support Agency | C157: All | D157: All | E157: Private | F157: Leadership and management | G157: 15-16 | H157: 4 | I157: 2 | J157: 2 | K157: 0 | L157: 0
A158: AllAllPrivateAdoption Support AgencyOutcomes for children and young people15-16 | B158: Adoption Support Agency | C158: All | D158: All | E158: Private | F158: Outcomes for children and young people | G158: 15-16 | H158: 5 | I158: 3 | J158: 0 | K158: 0 | L158: 0
A159: AllAllPrivateAdoption Support AgencyOverall effectiveness15-16 | B159: Adoption Support Agency | C159: All | D159: All | E159: Private | F159: Overall effectiveness | G159: 15-16 | H159: 4 | I159: 3 | J159: 1 | K159: 0 | L159: 0
A160: AllAllPrivateAdoption Support AgencyQuality of care15-16 | B160: Adoption Support Agency | C160: All | D160: All | E160: Private | F160: Quality of care | G160: 15-16 | H160: 5 | I160: 3 | J160: 0 | K160: 0 | L160: 0
A161: AllAllPrivateAdoption Support AgencySafeguarding children and young people15-16 | B161: Adoption Support Agency | C161: All | D161: All | E161: Private | F161: Safeguarding children and young people | G161: 15-16 | H161: 2 | I161: 5 | J161: 1 | K161: 0 | L161: 0
A162: AllAllPrivateAll Children's HomesAll15-16 | B162: All Children's Homes | C162: All | D162: All | E162: Private | F162: All | G162: 15-16 | H162: 525 | I162: 2449 | J162: 970 | K162: 265 | L162: 0
A163: AllAllPrivateAll Children's HomesLeadership and management15-16 | B163: All Children's Homes | C163: All | D163: All | E163: Private | F163: Leadership and management | G163: 15-16 | H163: 168 | I163: 734 | J163: 377 | K163: 124 | L163: 0
A164: AllAllPrivateAll Children's HomesOverall effectiveness15-16 | B164: All Children's Homes | C164: All | D164: All | E164: Private | F164: Overall effectiveness | G164: 15-16 | H164: 189 | I164: 857 | J164: 286 | K164: 71 | L164: 0
A165: AllAllPrivateAll Children's HomesSafeguarding children and young people15-16 | B165: All Children's Homes | C165: All | D165: All | E165: Private | F165: Safeguarding children and young people | G165: 15-16 | H165: 168 | I165: 858 | J165: 307 | K165: 70 | L165: 0
A166: AllAllPrivateAllAll15-16 | B166: All | C166: All | D166: All | E166: Private | F166: All | G166: 15-16 | H166: 698 | I166: 2928 | J166: 1119 | K166: 284 | L166: 0
A167: AllAllPrivateAllLeadership and management15-16 | B167: All | C167: All | D167: All | E167: Private | F167: Leadership and management | G167: 15-16 | H167: 205 | I167: 817 | J167: 423 | K167: 130 | L167: 0
A168: AllAllPrivateAllOutcomes for children and young people15-16 | B168: All | C168: All | D168: All | E168: Private | F168: Outcomes for children and young people | G168: 15-16 | H168: 41 | I168: 82 | J168: 12 | K168: 1 | L168: 0
A169: AllAllPrivateAllOverall effectiveness15-16 | B169: All | C169: All | D169: All | E169: Private | F169: Overall effectiveness | G169: 15-16 | H169: 219 | I169: 964 | J169: 317 | K169: 75 | L169: 0
A170: AllAllPrivateAllQuality of care15-16 | B170: All | C170: All | D170: All | E170: Private | F170: Quality of care | G170: 15-16 | H170: 43 | I170: 97 | J170: 25 | K170: 3 | L170: 0
A171: AllAllPrivateAllSafeguarding children and young people15-16 | B171: All | C171: All | D171: All | E171: Private | F171: Safeguarding children and young people | G171: 15-16 | H171: 190 | I171: 968 | J171: 342 | K171: 75 | L171: 0
A172: AllAllPrivateBoarding SchoolAll15-16 | B172: Boarding School | C172: All | D172: All | E172: Private | F172: All | G172: 15-16 | H172: 9 | I172: 17 | J172: 13 | K172: 4 | L172: 0
A173: AllAllPrivateBoarding SchoolLeadership and management15-16 | B173: Boarding School | C173: All | D173: All | E173: Private | F173: Leadership and management | G173: 15-16 | H173: 2 | I173: 3 | J173: 4 | K173: 1 | L173: 0
A174: AllAllPrivateBoarding SchoolOutcomes for children and young people15-16 | B174: Boarding School | C174: All | D174: All | E174: Private | F174: Outcomes for children and young people | G174: 15-16 | H174: 1 | I174: 1 | J174: 0 | K174: 1 | L174: 0
A175: AllAllPrivateBoarding SchoolOverall effectiveness15-16 | B175: Boarding School | C175: All | D175: All | E175: Private | F175: Overall effectiveness | G175: 15-16 | H175: 2 | I175: 4 | J175: 3 | K175: 1 | L175: 0
A176: AllAllPrivateBoarding SchoolQuality of care15-16 | B176: Boarding School | C176: All | D176: All | E176: Private | F176: Quality of care | G176: 15-16 | H176: 2 | I176: 5 | J176: 3 | K176: 0 | L176: 0
A177: AllAllPrivateBoarding SchoolSafeguarding children and young people15-16 | B177: Boarding School | C177: All | D177: All | E177: Private | F177: Safeguarding children and young people | G177: 15-16 | H177: 2 | I177: 4 | J177: 3 | K177: 1 | L177: 0
A178: AllAllPrivateChildren's homeAll15-16 | B178: Children's home | C178: All | D178: All | E178: Private | F178: All | G178: 15-16 | H178: 492 | I178: 2360 | J178: 927 | K178: 256 | L178: 0
A179: AllAllPrivateChildren's homeLeadership and management15-16 | B179: Children's home | C179: All | D179: All | E179: Private | F179: Leadership and management | G179: 15-16 | H179: 159 | I179: 703 | J179: 362 | K179: 121 | L179: 0
A180: AllAllPrivateChildren's homeOverall effectiveness15-16 | B180: Children's home | C180: All | D180: All | E180: Private | F180: Overall effectiveness | G180: 15-16 | H180: 177 | I180: 830 | J180: 270 | K180: 68 | L180: 0
A181: AllAllPrivateChildren's homeSafeguarding children and young people15-16 | B181: Children's home | C181: All | D181: All | E181: Private | F181: Safeguarding children and young people | G181: 15-16 | H181: 156 | I181: 827 | J181: 295 | K181: 67 | L181: 0
A182: AllAllPrivateFurther Education College with Residential AccommodationAll15-16 | B182: Further Education College with Residential Accommodation | C182: All | D182: All | E182: Private | F182: All | G182: 15-16 | H182: 5 | I182: 6 | J182: 4 | K182: 0 | L182: 0
A183: AllAllPrivateFurther Education College with Residential AccommodationLeadership and management15-16 | B183: Further Education College with Residential Accommodation | C183: All | D183: All | E183: Private | F183: Leadership and management | G183: 15-16 | H183: 1 | I183: 1 | J183: 1 | K183: 0 | L183: 0
A184: AllAllPrivateFurther Education College with Residential AccommodationOutcomes for children and young people15-16 | B184: Further Education College with Residential Accommodation | C184: All | D184: All | E184: Private | F184: Outcomes for children and young people | G184: 15-16 | H184: 1 | I184: 2 | J184: 0 | K184: 0 | L184: 0
A185: AllAllPrivateFurther Education College with Residential AccommodationOverall effectiveness15-16 | B185: Further Education College with Residential Accommodation | C185: All | D185: All | E185: Private | F185: Overall effectiveness | G185: 15-16 | H185: 1 | I185: 1 | J185: 1 | K185: 0 | L185: 0
A186: AllAllPrivateFurther Education College with Residential AccommodationQuality of care15-16 | B186: Further Education College with Residential Accommodation | C186: All | D186: All | E186: Private | F186: Quality of care | G186: 15-16 | H186: 1 | I186: 1 | J186: 1 | K186: 0 | L186: 0
A187: AllAllPrivateFurther Education College with Residential AccommodationSafeguarding children and young people15-16 | B187: Further Education College with Residential Accommodation | C187: All | D187: All | E187: Private | F187: Safeguarding children and young people | G187: 15-16 | H187: 1 | I187: 1 | J187: 1 | K187: 0 | L187: 0
A188: AllAllPrivateIndependent Fostering AgencyAll15-16 | B188: Independent Fostering Agency | C188: All | D188: All | E188: Private | F188: All | G188: 15-16 | H188: 97 | I188: 318 | J188: 81 | K188: 14 | L188: 0
A189: AllAllPrivateIndependent Fostering AgencyLeadership and management15-16 | B189: Independent Fostering Agency | C189: All | D189: All | E189: Private | F189: Leadership and management | G189: 15-16 | H189: 19 | I189: 57 | J189: 22 | K189: 4 | L189: 0
A190: AllAllPrivateIndependent Fostering AgencyOutcomes for children and young people15-16 | B190: Independent Fostering Agency | C190: All | D190: All | E190: Private | F190: Outcomes for children and young people | G190: 15-16 | H190: 31 | I190: 64 | J190: 7 | K190: 0 | L190: 0
A191: AllAllPrivateIndependent Fostering AgencyOverall effectiveness15-16 | B191: Independent Fostering Agency | C191: All | D191: All | E191: Private | F191: Overall effectiveness | G191: 15-16 | H191: 14 | I191: 68 | J191: 17 | K191: 3 | L191: 0
A192: AllAllPrivateIndependent Fostering AgencyQuality of care15-16 | B192: Independent Fostering Agency | C192: All | D192: All | E192: Private | F192: Quality of care | G192: 15-16 | H192: 22 | I192: 63 | J192: 14 | K192: 3 | L192: 0
A193: AllAllPrivateIndependent Fostering AgencySafeguarding children and young people15-16 | B193: Independent Fostering Agency | C193: All | D193: All | E193: Private | F193: Safeguarding children and young people | G193: 15-16 | H193: 11 | I193: 66 | J193: 21 | K193: 4 | L193: 0
A194: AllAllPrivateResidential Family CentreAll15-16 | B194: Residential Family Centre | C194: All | D194: All | E194: Private | F194: All | G194: 15-16 | H194: 8 | I194: 56 | J194: 18 | K194: 0 | L194: 0
A195: AllAllPrivateResidential Family CentreLeadership and management15-16 | B195: Residential Family Centre | C195: All | D195: All | E195: Private | F195: Leadership and management | G195: 15-16 | H195: 2 | I195: 7 | J195: 8 | K195: 0 | L195: 0
A196: AllAllPrivateResidential Family CentreOutcomes for children and young people15-16 | B196: Residential Family Centre | C196: All | D196: All | E196: Private | F196: Outcomes for children and young people | G196: 15-16 | H196: 3 | I196: 8 | J196: 5 | K196: 0 | L196: 0
A197: AllAllPrivateResidential Family CentreOverall effectiveness15-16 | B197: Residential Family Centre | C197: All | D197: All | E197: Private | F197: Overall effectiveness | G197: 15-16 | H197: 1 | I197: 14 | J197: 2 | K197: 0 | L197: 0
A198: AllAllPrivateResidential Family CentreQuality of care15-16 | B198: Residential Family Centre | C198: All | D198: All | E198: Private | F198: Quality of care | G198: 15-16 | H198: 1 | I198: 13 | J198: 1 | K198: 0 | L198: 0
A199: AllAllPrivateResidential Family CentreSafeguarding children and young people15-16 | B199: Residential Family Centre | C199: All | D199: All | E199: Private | F199: Safeguarding children and young people | G199: 15-16 | H199: 1 | I199: 14 | J199: 2 | K199: 0 | L199: 0
A200: AllAllPrivateResidential Holiday Scheme for Disabled ChildrenAll15-16 | B200: Residential Holiday Scheme for Disabled Children | C200: All | D200: All | E200: Private | F200: All | G200: 15-16 | H200: 0 | I200: 8 | J200: 0 | K200: 0 | L200: 0
... 4300 more rows

Sheet pandp (hidden)
A1: lookup | B1: Provision Type | C1: Local Authority | D1: Region | E1: Sector | F1: Inspection Type | G1: Period | H1: Number of Providers | I1: Number of Places
A2: Adoption Support AgencyAllAllAll2016 | B2: Adoption Support Agency | C2: All | D2: All | E2: All | F2: All | G2: 2016 | H2: 36 | I2: 0
A3: Adoption Support AgencyAllAllAll2016 | B3: Adoption Support Agency | C3: All | D3: All | E3: All | F3: Full inspection | G3: 2016 | H3: 34 | I3: 0
A4: Adoption Support AgencyAllAllAll2016 | B4: Adoption Support Agency | C4: All | D4: All | E4: All | F4: Not yet inspected | G4: 2016 | H4: 2 | I4: 0
A5: Adoption Support AgencyAllAllPrivate2016 | B5: Adoption Support Agency | C5: All | D5: All | E5: Private | F5: All | G5: 2016 | H5: 23 | I5: 0
A6: Adoption Support AgencyAllAllPrivate2016 | B6: Adoption Support Agency | C6: All | D6: All | E6: Private | F6: Full inspection | G6: 2016 | H6: 22 | I6: 0
A7: Adoption Support AgencyAllAllPrivate2016 | B7: Adoption Support Agency | C7: All | D7: All | E7: Private | F7: Not yet inspected | G7: 2016 | H7: 1 | I7: 0
A8: Adoption Support AgencyAllAllVoluntary2016 | B8: Adoption Support Agency | C8: All | D8: All | E8: Voluntary | F8: All | G8: 2016 | H8: 13 | I8: 0
A9: Adoption Support AgencyAllAllVoluntary2016 | B9: Adoption Support Agency | C9: All | D9: All | E9: Voluntary | F9: Full inspection | G9: 2016 | H9: 12 | I9: 0
A10: Adoption Support AgencyAllAllVoluntary2016 | B10: Adoption Support Agency | C10: All | D10: All | E10: Voluntary | F10: Not yet inspected | G10: 2016 | H10: 1 | I10: 0
A11: Adoption Support AgencyAllEast MidlandsAll2016 | B11: Adoption Support Agency | C11: All | D11: East Midlands | E11: All | F11: All | G11: 2016 | H11: 1 | I11: 0
A12: Adoption Support AgencyAllEast MidlandsAll2016 | B12: Adoption Support Agency | C12: All | D12: East Midlands | E12: All | F12: Full inspection | G12: 2016 | H12: 1 | I12: 0
A13: Adoption Support AgencyAllEast MidlandsVoluntary2016 | B13: Adoption Support Agency | C13: All | D13: East Midlands | E13: Voluntary | F13: All | G13: 2016 | H13: 1 | I13: 0
A14: Adoption Support AgencyAllEast MidlandsVoluntary2016 | B14: Adoption Support Agency | C14: All | D14: East Midlands | E14: Voluntary | F14: Full inspection | G14: 2016 | H14: 1 | I14: 0
A15: Adoption Support AgencyAllEast of EnglandAll2016 | B15: Adoption Support Agency | C15: All | D15: East of England | E15: All | F15: All | G15: 2016 | H15: 2 | I15: 0
A16: Adoption Support AgencyAllEast of EnglandAll2016 | B16: Adoption Support Agency | C16: All | D16: East of England | E16: All | F16: Full inspection | G16: 2016 | H16: 2 | I16: 0
A17: Adoption Support AgencyAllEast of EnglandPrivate2016 | B17: Adoption Support Agency | C17: All | D17: East of England | E17: Private | F17: All | G17: 2016 | H17: 2 | I17: 0
A18: Adoption Support AgencyAllEast of EnglandPrivate2016 | B18: Adoption Support Agency | C18: All | D18: East of England | E18: Private | F18: Full inspection | G18: 2016 | H18: 2 | I18: 0
A19: Adoption Support AgencyAllLondonAll2016 | B19: Adoption Support Agency | C19: All | D19: London | E19: All | F19: All | G19: 2016 | H19: 8 | I19: 0
A20: Adoption Support AgencyAllLondonAll2016 | B20: Adoption Support Agency | C20: All | D20: London | E20: All | F20: Full inspection | G20: 2016 | H20: 7 | I20: 0
A21: Adoption Support AgencyAllLondonAll2016 | B21: Adoption Support Agency | C21: All | D21: London | E21: All | F21: Not yet inspected | G21: 2016 | H21: 1 | I21: 0
A22: Adoption Support AgencyAllLondonPrivate2016 | B22: Adoption Support Agency | C22: All | D22: London | E22: Private | F22: All | G22: 2016 | H22: 4 | I22: 0
A23: Adoption Support AgencyAllLondonPrivate2016 | B23: Adoption Support Agency | C23: All | D23: London | E23: Private | F23: Full inspection | G23: 2016 | H23: 4 | I23: 0
A24: Adoption Support AgencyAllLondonVoluntary2016 | B24: Adoption Support Agency | C24: All | D24: London | E24: Voluntary | F24: All | G24: 2016 | H24: 4 | I24: 0
A25: Adoption Support AgencyAllLondonVoluntary2016 | B25: Adoption Support Agency | C25: All | D25: London | E25: Voluntary | F25: Full inspection | G25: 2016 | H25: 3 | I25: 0
A26: Adoption Support AgencyAllLondonVoluntary2016 | B26: Adoption Support Agency | C26: All | D26: London | E26: Voluntary | F26: Not yet inspected | G26: 2016 | H26: 1 | I26: 0
A27: Adoption Support AgencyAllNorth EastAll2016 | B27: Adoption Support Agency | C27: All | D27: North East | E27: All | F27: All | G27: 2016 | H27: 2 | I27: 0
A28: Adoption Support AgencyAllNorth EastAll2016 | B28: Adoption Support Agency | C28: All | D28: North East | E28: All | F28: Full inspection | G28: 2016 | H28: 2 | I28: 0
A29: Adoption Support AgencyAllNorth EastVoluntary2016 | B29: Adoption Support Agency | C29: All | D29: North East | E29: Voluntary | F29: All | G29: 2016 | H29: 2 | I29: 0
A30: Adoption Support AgencyAllNorth EastVoluntary2016 | B30: Adoption Support Agency | C30: All | D30: North East | E30: Voluntary | F30: Full inspection | G30: 2016 | H30: 2 | I30: 0
A31: Adoption Support AgencyAllNorth WestAll2016 | B31: Adoption Support Agency | C31: All | D31: North West | E31: All | F31: All | G31: 2016 | H31: 3 | I31: 0
A32: Adoption Support AgencyAllNorth WestAll2016 | B32: Adoption Support Agency | C32: All | D32: North West | E32: All | F32: Full inspection | G32: 2016 | H32: 3 | I32: 0
A33: Adoption Support AgencyAllNorth WestPrivate2016 | B33: Adoption Support Agency | C33: All | D33: North West | E33: Private | F33: All | G33: 2016 | H33: 2 | I33: 0
A34: Adoption Support AgencyAllNorth WestPrivate2016 | B34: Adoption Support Agency | C34: All | D34: North West | E34: Private | F34: Full inspection | G34: 2016 | H34: 2 | I34: 0
A35: Adoption Support AgencyAllNorth WestVoluntary2016 | B35: Adoption Support Agency | C35: All | D35: North West | E35: Voluntary | F35: All | G35: 2016 | H35: 1 | I35: 0
A36: Adoption Support AgencyAllNorth WestVoluntary2016 | B36: Adoption Support Agency | C36: All | D36: North West | E36: Voluntary | F36: Full inspection | G36: 2016 | H36: 1 | I36: 0
A37: Adoption Support AgencyAllSouth EastAll2016 | B37: Adoption Support Agency | C37: All | D37: South East | E37: All | F37: All | G37: 2016 | H37: 9 | I37: 0
A38: Adoption Support AgencyAllSouth EastAll2016 | B38: Adoption Support Agency | C38: All | D38: South East | E38: All | F38: Full inspection | G38: 2016 | H38: 9 | I38: 0
A39: Adoption Support AgencyAllSouth EastPrivate2016 | B39: Adoption Support Agency | C39: All | D39: South East | E39: Private | F39: All | G39: 2016 | H39: 7 | I39: 0
A40: Adoption Support AgencyAllSouth EastPrivate2016 | B40: Adoption Support Agency | C40: All | D40: South East | E40: Private | F40: Full inspection | G40: 2016 | H40: 7 | I40: 0
A41: Adoption Support AgencyAllSouth EastVoluntary2016 | B41: Adoption Support Agency | C41: All | D41: South East | E41: Voluntary | F41: All | G41: 2016 | H41: 2 | I41: 0
A42: Adoption Support AgencyAllSouth EastVoluntary2016 | B42: Adoption Support Agency | C42: All | D42: South East | E42: Voluntary | F42: Full inspection | G42: 2016 | H42: 2 | I42: 0
A43: Adoption Support AgencyAllSouth WestAll2016 | B43: Adoption Support Agency | C43: All | D43: South West | E43: All | F43: All | G43: 2016 | H43: 5 | I43: 0
A44: Adoption Support AgencyAllSouth WestAll2016 | B44: Adoption Support Agency | C44: All | D44: South West | E44: All | F44: Full inspection | G44: 2016 | H44: 4 | I44: 0
A45: Adoption Support AgencyAllSouth WestAll2016 | B45: Adoption Support Agency | C45: All | D45: South West | E45: All | F45: Not yet inspected | G45: 2016 | H45: 1 | I45: 0
A46: Adoption Support AgencyAllSouth WestPrivate2016 | B46: Adoption Support Agency | C46: All | D46: South West | E46: Private | F46: All | G46: 2016 | H46: 4 | I46: 0
A47: Adoption Support AgencyAllSouth WestPrivate2016 | B47: Adoption Support Agency | C47: All | D47: South West | E47: Private | F47: Full inspection | G47: 2016 | H47: 3 | I47: 0
A48: Adoption Support AgencyAllSouth WestPrivate2016 | B48: Adoption Support Agency | C48: All | D48: South West | E48: Private | F48: Not yet inspected | G48: 2016 | H48: 1 | I48: 0
A49: Adoption Support AgencyAllSouth WestVoluntary2016 | B49: Adoption Support Agency | C49: All | D49: South West | E49: Voluntary | F49: All | G49: 2016 | H49: 1 | I49: 0
A50: Adoption Support AgencyAllSouth WestVoluntary2016 | B50: Adoption Support Agency | C50: All | D50: South West | E50: Voluntary | F50: Full inspection | G50: 2016 | H50: 1 | I50: 0
A51: Adoption Support AgencyAllWest MidlandsAll2016 | B51: Adoption Support Agency | C51: All | D51: West Midlands | E51: All | F51: All | G51: 2016 | H51: 4 | I51: 0
A52: Adoption Support AgencyAllWest MidlandsAll2016 | B52: Adoption Support Agency | C52: All | D52: West Midlands | E52: All | F52: Full inspection | G52: 2016 | H52: 4 | I52: 0
A53: Adoption Support AgencyAllWest MidlandsPrivate2016 | B53: Adoption Support Agency | C53: All | D53: West Midlands | E53: Private | F53: All | G53: 2016 | H53: 3 | I53: 0
A54: Adoption Support AgencyAllWest MidlandsPrivate2016 | B54: Adoption Support Agency | C54: All | D54: West Midlands | E54: Private | F54: Full inspection | G54: 2016 | H54: 3 | I54: 0
A55: Adoption Support AgencyAllWest MidlandsVoluntary2016 | B55: Adoption Support Agency | C55: All | D55: West Midlands | E55: Voluntary | F55: All | G55: 2016 | H55: 1 | I55: 0
A56: Adoption Support AgencyAllWest MidlandsVoluntary2016 | B56: Adoption Support Agency | C56: All | D56: West Midlands | E56: Voluntary | F56: Full inspection | G56: 2016 | H56: 1 | I56: 0
A57: Adoption Support AgencyAllYorkshire and The HumberAll2016 | B57: Adoption Support Agency | C57: All | D57: Yorkshire and The Humber | E57: All | F57: All | G57: 2016 | H57: 2 | I57: 0
A58: Adoption Support AgencyAllYorkshire and The HumberAll2016 | B58: Adoption Support Agency | C58: All | D58: Yorkshire and The Humber | E58: All | F58: Full inspection | G58: 2016 | H58: 2 | I58: 0
A59: Adoption Support AgencyAllYorkshire and The HumberPrivate2016 | B59: Adoption Support Agency | C59: All | D59: Yorkshire and The Humber | E59: Private | F59: All | G59: 2016 | H59: 1 | I59: 0
A60: Adoption Support AgencyAllYorkshire and The HumberPrivate2016 | B60: Adoption Support Agency | C60: All | D60: Yorkshire and The Humber | E60: Private | F60: Full inspection | G60: 2016 | H60: 1 | I60: 0
A61: Adoption Support AgencyAllYorkshire and The HumberVoluntary2016 | B61: Adoption Support Agency | C61: All | D61: Yorkshire and The Humber | E61: Voluntary | F61: All | G61: 2016 | H61: 1 | I61: 0
A62: Adoption Support AgencyAllYorkshire and The HumberVoluntary2016 | B62: Adoption Support Agency | C62: All | D62: Yorkshire and The Humber | E62: Voluntary | F62: Full inspection | G62: 2016 | H62: 1 | I62: 0
A63: Adoption Support AgencyBrighton and HoveAllAll2016 | B63: Adoption Support Agency | C63: Brighton and Hove | D63: All | E63: All | F63: All | G63: 2016 | H63: 1 | I63: 0
A64: Adoption Support AgencyBrighton and HoveAllAll2016 | B64: Adoption Support Agency | C64: Brighton and Hove | D64: All | E64: All | F64: Full inspection | G64: 2016 | H64: 1 | I64: 0
A65: Adoption Support AgencyBrighton and HoveAllPrivate2016 | B65: Adoption Support Agency | C65: Brighton and Hove | D65: All | E65: Private | F65: All | G65: 2016 | H65: 1 | I65: 0
A66: Adoption Support AgencyBrighton and HoveAllPrivate2016 | B66: Adoption Support Agency | C66: Brighton and Hove | D66: All | E66: Private | F66: Full inspection | G66: 2016 | H66: 1 | I66: 0
A67: Adoption Support AgencyBrighton and HoveSouth EastAll2016 | B67: Adoption Support Agency | C67: Brighton and Hove | D67: South East | E67: All | F67: All | G67: 2016 | H67: 1 | I67: 0
A68: Adoption Support AgencyBrighton and HoveSouth EastAll2016 | B68: Adoption Support Agency | C68: Brighton and Hove | D68: South East | E68: All | F68: Full inspection | G68: 2016 | H68: 1 | I68: 0
A69: Adoption Support AgencyBrighton and HoveSouth EastPrivate2016 | B69: Adoption Support Agency | C69: Brighton and Hove | D69: South East | E69: Private | F69: All | G69: 2016 | H69: 1 | I69: 0
A70: Adoption Support AgencyBrighton and HoveSouth EastPrivate2016 | B70: Adoption Support Agency | C70: Brighton and Hove | D70: South East | E70: Private | F70: Full inspection | G70: 2016 | H70: 1 | I70: 0
A71: Adoption Support AgencyBristolAllAll2016 | B71: Adoption Support Agency | C71: Bristol | D71: All | E71: All | F71: All | G71: 2016 | H71: 2 | I71: 0
A72: Adoption Support AgencyBristolAllAll2016 | B72: Adoption Support Agency | C72: Bristol | D72: All | E72: All | F72: Full inspection | G72: 2016 | H72: 2 | I72: 0
A73: Adoption Support AgencyBristolAllPrivate2016 | B73: Adoption Support Agency | C73: Bristol | D73: All | E73: Private | F73: All | G73: 2016 | H73: 1 | I73: 0
A74: Adoption Support AgencyBristolAllPrivate2016 | B74: Adoption Support Agency | C74: Bristol | D74: All | E74: Private | F74: Full inspection | G74: 2016 | H74: 1 | I74: 0
A75: Adoption Support AgencyBristolAllVoluntary2016 | B75: Adoption Support Agency | C75: Bristol | D75: All | E75: Voluntary | F75: All | G75: 2016 | H75: 1 | I75: 0
A76: Adoption Support AgencyBristolAllVoluntary2016 | B76: Adoption Support Agency | C76: Bristol | D76: All | E76: Voluntary | F76: Full inspection | G76: 2016 | H76: 1 | I76: 0
A77: Adoption Support AgencyBristolSouth WestAll2016 | B77: Adoption Support Agency | C77: Bristol | D77: South West | E77: All | F77: All | G77: 2016 | H77: 2 | I77: 0
A78: Adoption Support AgencyBristolSouth WestAll2016 | B78: Adoption Support Agency | C78: Bristol | D78: South West | E78: All | F78: Full inspection | G78: 2016 | H78: 2 | I78: 0
A79: Adoption Support AgencyBristolSouth WestPrivate2016 | B79: Adoption Support Agency | C79: Bristol | D79: South West | E79: Private | F79: All | G79: 2016 | H79: 1 | I79: 0
A80: Adoption Support AgencyBristolSouth WestPrivate2016 | B80: Adoption Support Agency | C80: Bristol | D80: South West | E80: Private | F80: Full inspection | G80: 2016 | H80: 1 | I80: 0
A81: Adoption Support AgencyBristolSouth WestVoluntary2016 | B81: Adoption Support Agency | C81: Bristol | D81: South West | E81: Voluntary | F81: All | G81: 2016 | H81: 1 | I81: 0
A82: Adoption Support AgencyBristolSouth WestVoluntary2016 | B82: Adoption Support Agency | C82: Bristol | D82: South West | E82: Voluntary | F82: Full inspection | G82: 2016 | H82: 1 | I82: 0
A83: Adoption Support AgencyBuckinghamshireAllAll2016 | B83: Adoption Support Agency | C83: Buckinghamshire | D83: All | E83: All | F83: All | G83: 2016 | H83: 2 | I83: 0
A84: Adoption Support AgencyBuckinghamshireAllAll2016 | B84: Adoption Support Agency | C84: Buckinghamshire | D84: All | E84: All | F84: Full inspection | G84: 2016 | H84: 2 | I84: 0
A85: Adoption Support AgencyBuckinghamshireAllPrivate2016 | B85: Adoption Support Agency | C85: Buckinghamshire | D85: All | E85: Private | F85: All | G85: 2016 | H85: 2 | I85: 0
A86: Adoption Support AgencyBuckinghamshireAllPrivate2016 | B86: Adoption Support Agency | C86: Buckinghamshire | D86: All | E86: Private | F86: Full inspection | G86: 2016 | H86: 2 | I86: 0
A87: Adoption Support AgencyBuckinghamshireSouth EastAll2016 | B87: Adoption Support Agency | C87: Buckinghamshire | D87: South East | E87: All | F87: All | G87: 2016 | H87: 2 | I87: 0
A88: Adoption Support AgencyBuckinghamshireSouth EastAll2016 | B88: Adoption Support Agency | C88: Buckinghamshire | D88: South East | E88: All | F88: Full inspection | G88: 2016 | H88: 2 | I88: 0
A89: Adoption Support AgencyBuckinghamshireSouth EastPrivate2016 | B89: Adoption Support Agency | C89: Buckinghamshire | D89: South East | E89: Private | F89: All | G89: 2016 | H89: 2 | I89: 0
A90: Adoption Support AgencyBuckinghamshireSouth EastPrivate2016 | B90: Adoption Support Agency | C90: Buckinghamshire | D90: South East | E90: Private | F90: Full inspection | G90: 2016 | H90: 2 | I90: 0
A91: Adoption Support AgencyCamdenAllAll2016 | B91: Adoption Support Agency | C91: Camden | D91: All | E91: All | F91: All | G91: 2016 | H91: 3 | I91: 0
A92: Adoption Support AgencyCamdenAllAll2016 | B92: Adoption Support Agency | C92: Camden | D92: All | E92: All | F92: Full inspection | G92: 2016 | H92: 2 | I92: 0
A93: Adoption Support AgencyCamdenAllAll2016 | B93: Adoption Support Agency | C93: Camden | D93: All | E93: All | F93: Not yet inspected | G93: 2016 | H93: 1 | I93: 0
A94: Adoption Support AgencyCamdenAllPrivate2016 | B94: Adoption Support Agency | C94: Camden | D94: All | E94: Private | F94: All | G94: 2016 | H94: 1 | I94: 0
A95: Adoption Support AgencyCamdenAllPrivate2016 | B95: Adoption Support Agency | C95: Camden | D95: All | E95: Private | F95: Full inspection | G95: 2016 | H95: 1 | I95: 0
A96: Adoption Support AgencyCamdenAllVoluntary2016 | B96: Adoption Support Agency | C96: Camden | D96: All | E96: Voluntary | F96: All | G96: 2016 | H96: 2 | I96: 0
A97: Adoption Support AgencyCamdenAllVoluntary2016 | B97: Adoption Support Agency | C97: Camden | D97: All | E97: Voluntary | F97: Full inspection | G97: 2016 | H97: 1 | I97: 0
A98: Adoption Support AgencyCamdenAllVoluntary2016 | B98: Adoption Support Agency | C98: Camden | D98: All | E98: Voluntary | F98: Not yet inspected | G98: 2016 | H98: 1 | I98: 0
A99: Adoption Support AgencyCamdenLondonAll2016 | B99: Adoption Support Agency | C99: Camden | D99: London | E99: All | F99: All | G99: 2016 | H99: 3 | I99: 0
A100: Adoption Support AgencyCamdenLondonAll2016 | B100: Adoption Support Agency | C100: Camden | D100: London | E100: All | F100: Full inspection | G100: 2016 | H100: 2 | I100: 0
A101: Adoption Support AgencyCamdenLondonAll2016 | B101: Adoption Support Agency | C101: Camden | D101: London | E101: All | F101: Not yet inspected | G101: 2016 | H101: 1 | I101: 0
A102: Adoption Support AgencyCamdenLondonPrivate2016 | B102: Adoption Support Agency | C102: Camden | D102: London | E102: Private | F102: All | G102: 2016 | H102: 1 | I102: 0
A103: Adoption Support AgencyCamdenLondonPrivate2016 | B103: Adoption Support Agency | C103: Camden | D103: London | E103: Private | F103: Full inspection | G103: 2016 | H103: 1 | I103: 0
A104: Adoption Support AgencyCamdenLondonVoluntary2016 | B104: Adoption Support Agency | C104: Camden | D104: London | E104: Voluntary | F104: All | G104: 2016 | H104: 2 | I104: 0
A105: Adoption Support AgencyCamdenLondonVoluntary2016 | B105: Adoption Support Agency | C105: Camden | D105: London | E105: Voluntary | F105: Full inspection | G105: 2016 | H105: 1 | I105: 0
A106: Adoption Support AgencyCamdenLondonVoluntary2016 | B106: Adoption Support Agency | C106: Camden | D106: London | E106: Voluntary | F106: Not yet inspected | G106: 2016 | H106: 1 | I106: 0
A107: Adoption Support AgencyCentral BedfordshireAllAll2016 | B107: Adoption Support Agency | C107: Central Bedfordshire | D107: All | E107: All | F107: All | G107: 2016 | H107: 1 | I107: 0
A108: Adoption Support AgencyCentral BedfordshireAllAll2016 | B108: Adoption Support Agency | C108: Central Bedfordshire | D108: All | E108: All | F108: Full inspection | G108: 2016 | H108: 1 | I108: 0
A109: Adoption Support AgencyCentral BedfordshireAllPrivate2016 | B109: Adoption Support Agency | C109: Central Bedfordshire | D109: All | E109: Private | F109: All | G109: 2016 | H109: 1 | I109: 0
A110: Adoption Support AgencyCentral BedfordshireAllPrivate2016 | B110: Adoption Support Agency | C110: Central Bedfordshire | D110: All | E110: Private | F110: Full inspection | G110: 2016 | H110: 1 | I110: 0
A111: Adoption Support AgencyCentral BedfordshireEast of EnglandAll2016 | B111: Adoption Support Agency | C111: Central Bedfordshire | D111: East of England | E111: All | F111: All | G111: 2016 | H111: 1 | I111: 0
A112: Adoption Support AgencyCentral BedfordshireEast of EnglandAll2016 | B112: Adoption Support Agency | C112: Central Bedfordshire | D112: East of England | E112: All | F112: Full inspection | G112: 2016 | H112: 1 | I112: 0
A113: Adoption Support AgencyCentral BedfordshireEast of EnglandPrivate2016 | B113: Adoption Support Agency | C113: Central Bedfordshire | D113: East of England | E113: Private | F113: All | G113: 2016 | H113: 1 | I113: 0
A114: Adoption Support AgencyCentral BedfordshireEast of EnglandPrivate2016 | B114: Adoption Support Agency | C114: Central Bedfordshire | D114: East of England | E114: Private | F114: Full inspection | G114: 2016 | H114: 1 | I114: 0
A115: Adoption Support AgencyCheshire West and ChesterAllAll2016 | B115: Adoption Support Agency | C115: Cheshire West and Chester | D115: All | E115: All | F115: All | G115: 2016 | H115: 1 | I115: 0
A116: Adoption Support AgencyCheshire West and ChesterAllAll2016 | B116: Adoption Support Agency | C116: Cheshire West and Chester | D116: All | E116: All | F116: Full inspection | G116: 2016 | H116: 1 | I116: 0
A117: Adoption Support AgencyCheshire West and ChesterAllPrivate2016 | B117: Adoption Support Agency | C117: Cheshire West and Chester | D117: All | E117: Private | F117: All | G117: 2016 | H117: 1 | I117: 0
A118: Adoption Support AgencyCheshire West and ChesterAllPrivate2016 | B118: Adoption Support Agency | C118: Cheshire West and Chester | D118: All | E118: Private | F118: Full inspection | G118: 2016 | H118: 1 | I118: 0
A119: Adoption Support AgencyCheshire West and ChesterNorth WestAll2016 | B119: Adoption Support Agency | C119: Cheshire West and Chester | D119: North West | E119: All | F119: All | G119: 2016 | H119: 1 | I119: 0
A120: Adoption Support AgencyCheshire West and ChesterNorth WestAll2016 | B120: Adoption Support Agency | C120: Cheshire West and Chester | D120: North West | E120: All | F120: Full inspection | G120: 2016 | H120: 1 | I120: 0
A121: Adoption Support AgencyCheshire West and ChesterNorth WestPrivate2016 | B121: Adoption Support Agency | C121: Cheshire West and Chester | D121: North West | E121: Private | F121: All | G121: 2016 | H121: 1 | I121: 0
A122: Adoption Support AgencyCheshire West and ChesterNorth WestPrivate2016 | B122: Adoption Support Agency | C122: Cheshire West and Chester | D122: North West | E122: Private | F122: Full inspection | G122: 2016 | H122: 1 | I122: 0
A123: Adoption Support AgencyCornwallAllAll2016 | B123: Adoption Support Agency | C123: Cornwall | D123: All | E123: All | F123: All | G123: 2016 | H123: 1 | I123: 0
A124: Adoption Support AgencyCornwallAllAll2016 | B124: Adoption Support Agency | C124: Cornwall | D124: All | E124: All | F124: Full inspection | G124: 2016 | H124: 1 | I124: 0
A125: Adoption Support AgencyCornwallAllPrivate2016 | B125: Adoption Support Agency | C125: Cornwall | D125: All | E125: Private | F125: All | G125: 2016 | H125: 1 | I125: 0
A126: Adoption Support AgencyCornwallAllPrivate2016 | B126: Adoption Support Agency | C126: Cornwall | D126: All | E126: Private | F126: Full inspection | G126: 2016 | H126: 1 | I126: 0
A127: Adoption Support AgencyCornwallSouth WestAll2016 | B127: Adoption Support Agency | C127: Cornwall | D127: South West | E127: All | F127: All | G127: 2016 | H127: 1 | I127: 0
A128: Adoption Support AgencyCornwallSouth WestAll2016 | B128: Adoption Support Agency | C128: Cornwall | D128: South West | E128: All | F128: Full inspection | G128: 2016 | H128: 1 | I128: 0
A129: Adoption Support AgencyCornwallSouth WestPrivate2016 | B129: Adoption Support Agency | C129: Cornwall | D129: South West | E129: Private | F129: All | G129: 2016 | H129: 1 | I129: 0
A130: Adoption Support AgencyCornwallSouth WestPrivate2016 | B130: Adoption Support Agency | C130: Cornwall | D130: South West | E130: Private | F130: Full inspection | G130: 2016 | H130: 1 | I130: 0
A131: Adoption Support AgencyCumbriaAllAll2016 | B131: Adoption Support Agency | C131: Cumbria | D131: All | E131: All | F131: All | G131: 2016 | H131: 1 | I131: 0
A132: Adoption Support AgencyCumbriaAllAll2016 | B132: Adoption Support Agency | C132: Cumbria | D132: All | E132: All | F132: Full inspection | G132: 2016 | H132: 1 | I132: 0
A133: Adoption Support AgencyCumbriaAllPrivate2016 | B133: Adoption Support Agency | C133: Cumbria | D133: All | E133: Private | F133: All | G133: 2016 | H133: 1 | I133: 0
A134: Adoption Support AgencyCumbriaAllPrivate2016 | B134: Adoption Support Agency | C134: Cumbria | D134: All | E134: Private | F134: Full inspection | G134: 2016 | H134: 1 | I134: 0
A135: Adoption Support AgencyCumbriaNorth WestAll2016 | B135: Adoption Support Agency | C135: Cumbria | D135: North West | E135: All | F135: All | G135: 2016 | H135: 1 | I135: 0
A136: Adoption Support AgencyCumbriaNorth WestAll2016 | B136: Adoption Support Agency | C136: Cumbria | D136: North West | E136: All | F136: Full inspection | G136: 2016 | H136: 1 | I136: 0
A137: Adoption Support AgencyCumbriaNorth WestPrivate2016 | B137: Adoption Support Agency | C137: Cumbria | D137: North West | E137: Private | F137: All | G137: 2016 | H137: 1 | I137: 0
A138: Adoption Support AgencyCumbriaNorth WestPrivate2016 | B138: Adoption Support Agency | C138: Cumbria | D138: North West | E138: Private | F138: Full inspection | G138: 2016 | H138: 1 | I138: 0
A139: Adoption Support AgencyDevonAllAll2016 | B139: Adoption Support Agency | C139: Devon | D139: All | E139: All | F139: All | G139: 2016 | H139: 2 | I139: 0
A140: Adoption Support AgencyDevonAllAll2016 | B140: Adoption Support Agency | C140: Devon | D140: All | E140: All | F140: Full inspection | G140: 2016 | H140: 1 | I140: 0
A141: Adoption Support AgencyDevonAllAll2016 | B141: Adoption Support Agency | C141: Devon | D141: All | E141: All | F141: Not yet inspected | G141: 2016 | H141: 1 | I141: 0
A142: Adoption Support AgencyDevonAllPrivate2016 | B142: Adoption Support Agency | C142: Devon | D142: All | E142: Private | F142: All | G142: 2016 | H142: 2 | I142: 0
A143: Adoption Support AgencyDevonAllPrivate2016 | B143: Adoption Support Agency | C143: Devon | D143: All | E143: Private | F143: Full inspection | G143: 2016 | H143: 1 | I143: 0
A144: Adoption Support AgencyDevonAllPrivate2016 | B144: Adoption Support Agency | C144: Devon | D144: All | E144: Private | F144: Not yet inspected | G144: 2016 | H144: 1 | I144: 0
A145: Adoption Support AgencyDevonSouth WestAll2016 | B145: Adoption Support Agency | C145: Devon | D145: South West | E145: All | F145: All | G145: 2016 | H145: 2 | I145: 0
A146: Adoption Support AgencyDevonSouth WestAll2016 | B146: Adoption Support Agency | C146: Devon | D146: South West | E146: All | F146: Full inspection | G146: 2016 | H146: 1 | I146: 0
A147: Adoption Support AgencyDevonSouth WestAll2016 | B147: Adoption Support Agency | C147: Devon | D147: South West | E147: All | F147: Not yet inspected | G147: 2016 | H147: 1 | I147: 0
A148: Adoption Support AgencyDevonSouth WestPrivate2016 | B148: Adoption Support Agency | C148: Devon | D148: South West | E148: Private | F148: All | G148: 2016 | H148: 2 | I148: 0
A149: Adoption Support AgencyDevonSouth WestPrivate2016 | B149: Adoption Support Agency | C149: Devon | D149: South West | E149: Private | F149: Full inspection | G149: 2016 | H149: 1 | I149: 0
A150: Adoption Support AgencyDevonSouth WestPrivate2016 | B150: Adoption Support Agency | C150: Devon | D150: South West | E150: Private | F150: Not yet inspected | G150: 2016 | H150: 1 | I150: 0
A151: Adoption Support AgencyGreenwichAllAll2016 | B151: Adoption Support Agency | C151: Greenwich | D151: All | E151: All | F151: All | G151: 2016 | H151: 1 | I151: 0
A152: Adoption Support AgencyGreenwichAllAll2016 | B152: Adoption Support Agency | C152: Greenwich | D152: All | E152: All | F152: Full inspection | G152: 2016 | H152: 1 | I152: 0
A153: Adoption Support AgencyGreenwichAllPrivate2016 | B153: Adoption Support Agency | C153: Greenwich | D153: All | E153: Private | F153: All | G153: 2016 | H153: 1 | I153: 0
A154: Adoption Support AgencyGreenwichAllPrivate2016 | B154: Adoption Support Agency | C154: Greenwich | D154: All | E154: Private | F154: Full inspection | G154: 2016 | H154: 1 | I154: 0
A155: Adoption Support AgencyGreenwichLondonAll2016 | B155: Adoption Support Agency | C155: Greenwich | D155: London | E155: All | F155: All | G155: 2016 | H155: 1 | I155: 0
A156: Adoption Support AgencyGreenwichLondonAll2016 | B156: Adoption Support Agency | C156: Greenwich | D156: London | E156: All | F156: Full inspection | G156: 2016 | H156: 1 | I156: 0
A157: Adoption Support AgencyGreenwichLondonPrivate2016 | B157: Adoption Support Agency | C157: Greenwich | D157: London | E157: Private | F157: All | G157: 2016 | H157: 1 | I157: 0
A158: Adoption Support AgencyGreenwichLondonPrivate2016 | B158: Adoption Support Agency | C158: Greenwich | D158: London | E158: Private | F158: Full inspection | G158: 2016 | H158: 1 | I158: 0
A159: Adoption Support AgencyHackneyAllAll2016 | B159: Adoption Support Agency | C159: Hackney | D159: All | E159: All | F159: All | G159: 2016 | H159: 1 | I159: 0
A160: Adoption Support AgencyHackneyAllAll2016 | B160: Adoption Support Agency | C160: Hackney | D160: All | E160: All | F160: Full inspection | G160: 2016 | H160: 1 | I160: 0
A161: Adoption Support AgencyHackneyAllPrivate2016 | B161: Adoption Support Agency | C161: Hackney | D161: All | E161: Private | F161: All | G161: 2016 | H161: 1 | I161: 0
A162: Adoption Support AgencyHackneyAllPrivate2016 | B162: Adoption Support Agency | C162: Hackney | D162: All | E162: Private | F162: Full inspection | G162: 2016 | H162: 1 | I162: 0
A163: Adoption Support AgencyHackneyLondonAll2016 | B163: Adoption Support Agency | C163: Hackney | D163: London | E163: All | F163: All | G163: 2016 | H163: 1 | I163: 0
A164: Adoption Support AgencyHackneyLondonAll2016 | B164: Adoption Support Agency | C164: Hackney | D164: London | E164: All | F164: Full inspection | G164: 2016 | H164: 1 | I164: 0
A165: Adoption Support AgencyHackneyLondonPrivate2016 | B165: Adoption Support Agency | C165: Hackney | D165: London | E165: Private | F165: All | G165: 2016 | H165: 1 | I165: 0
A166: Adoption Support AgencyHackneyLondonPrivate2016 | B166: Adoption Support Agency | C166: Hackney | D166: London | E166: Private | F166: Full inspection | G166: 2016 | H166: 1 | I166: 0
A167: Adoption Support AgencyHampshireAllAll2016 | B167: Adoption Support Agency | C167: Hampshire | D167: All | E167: All | F167: All | G167: 2016 | H167: 1 | I167: 0
A168: Adoption Support AgencyHampshireAllAll2016 | B168: Adoption Support Agency | C168: Hampshire | D168: All | E168: All | F168: Full inspection | G168: 2016 | H168: 1 | I168: 0
A169: Adoption Support AgencyHampshireAllPrivate2016 | B169: Adoption Support Agency | C169: Hampshire | D169: All | E169: Private | F169: All | G169: 2016 | H169: 1 | I169: 0
A170: Adoption Support AgencyHampshireAllPrivate2016 | B170: Adoption Support Agency | C170: Hampshire | D170: All | E170: Private | F170: Full inspection | G170: 2016 | H170: 1 | I170: 0
A171: Adoption Support AgencyHampshireSouth EastAll2016 | B171: Adoption Support Agency | C171: Hampshire | D171: South East | E171: All | F171: All | G171: 2016 | H171: 1 | I171: 0
A172: Adoption Support AgencyHampshireSouth EastAll2016 | B172: Adoption Support Agency | C172: Hampshire | D172: South East | E172: All | F172: Full inspection | G172: 2016 | H172: 1 | I172: 0
A173: Adoption Support AgencyHampshireSouth EastPrivate2016 | B173: Adoption Support Agency | C173: Hampshire | D173: South East | E173: Private | F173: All | G173: 2016 | H173: 1 | I173: 0
A174: Adoption Support AgencyHampshireSouth EastPrivate2016 | B174: Adoption Support Agency | C174: Hampshire | D174: South East | E174: Private | F174: Full inspection | G174: 2016 | H174: 1 | I174: 0
A175: Adoption Support AgencyHaringeyAllAll2016 | B175: Adoption Support Agency | C175: Haringey | D175: All | E175: All | F175: All | G175: 2016 | H175: 1 | I175: 0
A176: Adoption Support AgencyHaringeyAllAll2016 | B176: Adoption Support Agency | C176: Haringey | D176: All | E176: All | F176: Full inspection | G176: 2016 | H176: 1 | I176: 0
A177: Adoption Support AgencyHaringeyAllPrivate2016 | B177: Adoption Support Agency | C177: Haringey | D177: All | E177: Private | F177: All | G177: 2016 | H177: 1 | I177: 0
A178: Adoption Support AgencyHaringeyAllPrivate2016 | B178: Adoption Support Agency | C178: Haringey | D178: All | E178: Private | F178: Full inspection | G178: 2016 | H178: 1 | I178: 0
A179: Adoption Support AgencyHaringeyLondonAll2016 | B179: Adoption Support Agency | C179: Haringey | D179: London | E179: All | F179: All | G179: 2016 | H179: 1 | I179: 0
A180: Adoption Support AgencyHaringeyLondonAll2016 | B180: Adoption Support Agency | C180: Haringey | D180: London | E180: All | F180: Full inspection | G180: 2016 | H180: 1 | I180: 0
A181: Adoption Support AgencyHaringeyLondonPrivate2016 | B181: Adoption Support Agency | C181: Haringey | D181: London | E181: Private | F181: All | G181: 2016 | H181: 1 | I181: 0
A182: Adoption Support AgencyHaringeyLondonPrivate2016 | B182: Adoption Support Agency | C182: Haringey | D182: London | E182: Private | F182: Full inspection | G182: 2016 | H182: 1 | I182: 0
A183: Adoption Support AgencyIslingtonAllAll2016 | B183: Adoption Support Agency | C183: Islington | D183: All | E183: All | F183: All | G183: 2016 | H183: 1 | I183: 0
A184: Adoption Support AgencyIslingtonAllAll2016 | B184: Adoption Support Agency | C184: Islington | D184: All | E184: All | F184: Full inspection | G184: 2016 | H184: 1 | I184: 0
A185: Adoption Support AgencyIslingtonAllVoluntary2016 | B185: Adoption Support Agency | C185: Islington | D185: All | E185: Voluntary | F185: All | G185: 2016 | H185: 1 | I185: 0
A186: Adoption Support AgencyIslingtonAllVoluntary2016 | B186: Adoption Support Agency | C186: Islington | D186: All | E186: Voluntary | F186: Full inspection | G186: 2016 | H186: 1 | I186: 0
A187: Adoption Support AgencyIslingtonLondonAll2016 | B187: Adoption Support Agency | C187: Islington | D187: London | E187: All | F187: All | G187: 2016 | H187: 1 | I187: 0
A188: Adoption Support AgencyIslingtonLondonAll2016 | B188: Adoption Support Agency | C188: Islington | D188: London | E188: All | F188: Full inspection | G188: 2016 | H188: 1 | I188: 0
A189: Adoption Support AgencyIslingtonLondonVoluntary2016 | B189: Adoption Support Agency | C189: Islington | D189: London | E189: Voluntary | F189: All | G189: 2016 | H189: 1 | I189: 0
A190: Adoption Support AgencyIslingtonLondonVoluntary2016 | B190: Adoption Support Agency | C190: Islington | D190: London | E190: Voluntary | F190: Full inspection | G190: 2016 | H190: 1 | I190: 0
A191: Adoption Support AgencyKensington and ChelseaAllAll2016 | B191: Adoption Support Agency | C191: Kensington and Chelsea | D191: All | E191: All | F191: All | G191: 2016 | H191: 1 | I191: 0
A192: Adoption Support AgencyKensington and ChelseaAllAll2016 | B192: Adoption Support Agency | C192: Kensington and Chelsea | D192: All | E192: All | F192: Full inspection | G192: 2016 | H192: 1 | I192: 0
A193: Adoption Support AgencyKensington and ChelseaAllVoluntary2016 | B193: Adoption Support Agency | C193: Kensington and Chelsea | D193: All | E193: Voluntary | F193: All | G193: 2016 | H193: 1 | I193: 0
A194: Adoption Support AgencyKensington and ChelseaAllVoluntary2016 | B194: Adoption Support Agency | C194: Kensington and Chelsea | D194: All | E194: Voluntary | F194: Full inspection | G194: 2016 | H194: 1 | I194: 0
A195: Adoption Support AgencyKensington and ChelseaLondonAll2016 | B195: Adoption Support Agency | C195: Kensington and Chelsea | D195: London | E195: All | F195: All | G195: 2016 | H195: 1 | I195: 0
A196: Adoption Support AgencyKensington and ChelseaLondonAll2016 | B196: Adoption Support Agency | C196: Kensington and Chelsea | D196: London | E196: All | F196: Full inspection | G196: 2016 | H196: 1 | I196: 0
A197: Adoption Support AgencyKensington and ChelseaLondonVoluntary2016 | B197: Adoption Support Agency | C197: Kensington and Chelsea | D197: London | E197: Voluntary | F197: All | G197: 2016 | H197: 1 | I197: 0
A198: Adoption Support AgencyKensington and ChelseaLondonVoluntary2016 | B198: Adoption Support Agency | C198: Kensington and Chelsea | D198: London | E198: Voluntary | F198: Full inspection | G198: 2016 | H198: 1 | I198: 0
A199: Adoption Support AgencyKirkleesAllAll2016 | B199: Adoption Support Agency | C199: Kirklees | D199: All | E199: All | F199: All | G199: 2016 | H199: 1 | I199: 0
A200: Adoption Support AgencyKirkleesAllAll2016 | B200: Adoption Support Agency | C200: Kirklees | D200: All | E200: All | F200: Full inspection | G200: 2016 | H200: 1 | I200: 0
... 4300 more rows

Sheet pandpjoiners (hidden)
A1: lookup | B1: Provision Type | C1: Local Authority | D1: Region | E1: Sector | F1: Inspection Type | G1: Period | H1: Number of Providers | I1: Number of Places
A2: Adoption Support AgencyAllAllAll2016 | B2: Adoption Support Agency | C2: All | D2: All | E2: All | F2: All | G2: 2016 | H2: 2 | I2: 0
A3: Adoption Support AgencyAllAllAll2016 | B3: Adoption Support Agency | C3: All | D3: All | E3: All | F3: Full inspection | G3: 2016 | H3: 2 | I3: 0
A4: Adoption Support AgencyAllAllPrivate2016 | B4: Adoption Support Agency | C4: All | D4: All | E4: Private | F4: All | G4: 2016 | H4: 1 | I4: 0
A5: Adoption Support AgencyAllAllPrivate2016 | B5: Adoption Support Agency | C5: All | D5: All | E5: Private | F5: Full inspection | G5: 2016 | H5: 1 | I5: 0
A6: Adoption Support AgencyAllAllVoluntary2016 | B6: Adoption Support Agency | C6: All | D6: All | E6: Voluntary | F6: All | G6: 2016 | H6: 1 | I6: 0
A7: Adoption Support AgencyAllAllVoluntary2016 | B7: Adoption Support Agency | C7: All | D7: All | E7: Voluntary | F7: Full inspection | G7: 2016 | H7: 1 | I7: 0
A8: Adoption Support AgencyAllLondonAll2016 | B8: Adoption Support Agency | C8: All | D8: London | E8: All | F8: All | G8: 2016 | H8: 1 | I8: 0
A9: Adoption Support AgencyAllLondonAll2016 | B9: Adoption Support Agency | C9: All | D9: London | E9: All | F9: Full inspection | G9: 2016 | H9: 1 | I9: 0
A10: Adoption Support AgencyAllLondonVoluntary2016 | B10: Adoption Support Agency | C10: All | D10: London | E10: Voluntary | F10: All | G10: 2016 | H10: 1 | I10: 0
A11: Adoption Support AgencyAllLondonVoluntary2016 | B11: Adoption Support Agency | C11: All | D11: London | E11: Voluntary | F11: Full inspection | G11: 2016 | H11: 1 | I11: 0
A12: Adoption Support AgencyAllSouth WestAll2016 | B12: Adoption Support Agency | C12: All | D12: South West | E12: All | F12: All | G12: 2016 | H12: 1 | I12: 0
A13: Adoption Support AgencyAllSouth WestAll2016 | B13: Adoption Support Agency | C13: All | D13: South West | E13: All | F13: Full inspection | G13: 2016 | H13: 1 | I13: 0
A14: Adoption Support AgencyAllSouth WestPrivate2016 | B14: Adoption Support Agency | C14: All | D14: South West | E14: Private | F14: All | G14: 2016 | H14: 1 | I14: 0
A15: Adoption Support AgencyAllSouth WestPrivate2016 | B15: Adoption Support Agency | C15: All | D15: South West | E15: Private | F15: Full inspection | G15: 2016 | H15: 1 | I15: 0
A16: Adoption Support AgencyCamdenAllAll2016 | B16: Adoption Support Agency | C16: Camden | D16: All | E16: All | F16: All | G16: 2016 | H16: 1 | I16: 0
A17: Adoption Support AgencyCamdenAllAll2016 | B17: Adoption Support Agency | C17: Camden | D17: All | E17: All | F17: Full inspection | G17: 2016 | H17: 1 | I17: 0
A18: Adoption Support AgencyCamdenAllVoluntary2016 | B18: Adoption Support Agency | C18: Camden | D18: All | E18: Voluntary | F18: All | G18: 2016 | H18: 1 | I18: 0
A19: Adoption Support AgencyCamdenAllVoluntary2016 | B19: Adoption Support Agency | C19: Camden | D19: All | E19: Voluntary | F19: Full inspection | G19: 2016 | H19: 1 | I19: 0
A20: Adoption Support AgencyCamdenLondonAll2016 | B20: Adoption Support Agency | C20: Camden | D20: London | E20: All | F20: All | G20: 2016 | H20: 1 | I20: 0
A21: Adoption Support AgencyCamdenLondonAll2016 | B21: Adoption Support Agency | C21: Camden | D21: London | E21: All | F21: Full inspection | G21: 2016 | H21: 1 | I21: 0
A22: Adoption Support AgencyCamdenLondonVoluntary2016 | B22: Adoption Support Agency | C22: Camden | D22: London | E22: Voluntary | F22: All | G22: 2016 | H22: 1 | I22: 0
A23: Adoption Support AgencyCamdenLondonVoluntary2016 | B23: Adoption Support Agency | C23: Camden | D23: London | E23: Voluntary | F23: Full inspection | G23: 2016 | H23: 1 | I23: 0
A24: Adoption Support AgencyDevonAllAll2016 | B24: Adoption Support Agency | C24: Devon | D24: All | E24: All | F24: All | G24: 2016 | H24: 1 | I24: 0
A25: Adoption Support AgencyDevonAllAll2016 | B25: Adoption Support Agency | C25: Devon | D25: All | E25: All | F25: Full inspection | G25: 2016 | H25: 1 | I25: 0
A26: Adoption Support AgencyDevonAllPrivate2016 | B26: Adoption Support Agency | C26: Devon | D26: All | E26: Private | F26: All | G26: 2016 | H26: 1 | I26: 0
A27: Adoption Support AgencyDevonAllPrivate2016 | B27: Adoption Support Agency | C27: Devon | D27: All | E27: Private | F27: Full inspection | G27: 2016 | H27: 1 | I27: 0
